{"text_format":"1","workbook":"xlsx","n_sheets":18,"sheets":["Instructions","Overview","Core programme info","Step 1 Profile","Step 1 Profile summary","Select activities","Step 2 EAM","Risk Register","Incidents","Learn more","Glossary","Mitigation options","Compensation-Enhancement","Risk matrix","Response library","Response calculation","Risk Matrix formulae","Profile Statements"],"not_rendered":{"charts":0,"images":70,"macros":1,"external_links":0,"defined_names":558,"comments":1,"pivot_tables":0},"unopened":[],"bounds":{"document_bytes":16777216,"sheet_cells":100000,"rows_first":2000,"rows_last":500,"rows_between":2000,"halvings":0,"cell_chars":16384,"cell_head_chars":4096},"cells_cut":0,"cells_raw":0,"read":"whole","date_system":"1900"}

{"sheet":"Instructions","index":0,"n_rows":2,"n_cols":17,"rows_kept":2,"cut":false,"hidden":false,"merged":[]}
["GREEN FIELD TOOL: Mine Action and Disarmament Operations - Version: March 2025 - 1.0"]
["INSTRUCTIONS",null,null,null,null,null,null,null,null,null,null,null,null,null,null,null,"CLICK HERE FOR NEXT"]

{"sheet":"Overview","index":1,"n_rows":34,"n_cols":16,"rows_kept":34,"cut":false,"hidden":false,"merged":[]}
["GREEN FIELD TOOL: Mine Action and Disarmament Operations - Version: March 2025 - 1.0"]
["OVERVIEW",null,null,null,null,null,null,null,null,null,null,null,null,null,null,"CLICK HERE FOR NEXT"]
[]
[null,"Why is the Green Field Tool needed? ",null,null,null,null,null,null,null,null,"How to use and complete the Green Field Tool?"]
[]
[]
[]
[]
[]
[]
[]
[]
[]
[]
[]
[]
[]
[]
[]
[]
[]
[]
[]
[]
[]
[]
[]
[]
[]
[]
[]
[null,"What is included in the Green Field Tool? ",null,null,null,null,null,null,null,null,"How is environmental risk calculated? "]
[null,null,null,null,null,null,null,null,null,null,"A simplified matrix is used to evaluate the level of risk - as shown in the table below. Risk is a function of 'severity' and the 'probability' of harm occurring."]
[null,null,null,null,null,null,null,null,null,null,"Click on the table below to read more."]

{"sheet":"Core programme info","index":2,"n_rows":33,"n_cols":5,"rows_kept":33,"cut":false,"hidden":false,"merged":[[28,6,32,6],[4,0,4,3],[6,0,9,0],[6,6,9,6],[10,0,19,0],[10,6,19,6],[20,0,27,0],[28,0,32,0]]}
["GREEN FIELD TOOL: Mine Action and Disarmament Operations - Version: March 2025 - 1.0"]
["CORE PROGRAMME INFORMATION",null,"CLICK HERE FOR NEXT",null,"CLICK HERE FOR NEXT"]
["LOCATION (Country/Region):",null,"Completed by:"]
[null,null,"Date completed:"]
["Provide core information relating to any national mine action environmental policy, organisational environmental policy, relevant environmental regulation, donor and other key engagement stakeholders requirements. Complete this for each programme, including links to relevant documentation"]
["SUBJECT","QUESTION",null,"RESPONSE","Include further details and links, where applicable "]
["Administrative information","Organization name"]
[null,"Other administrative information"]
[null,"Funder(s)"]
[null,"What field activities are taking place? "]
["Environmental management policies and practices","Does your organization have a climate and environment policy?"]
[null,"Does your organization have an environmental management SOP?"]
[null,"Have relevant national /regional / local environmental regulations and policies been reviewed and understood ?","Learn more?"]
[null,"Have any environment and/or climate change studies been conducted in the project area in the past 3 years?","Learn more?"]
[null,"Do the national mine action standards include environmental safeguarding measures?","Learn more?"]
[null,"Has the funder(s) stipulated any specific environmental requirements?"]
[null,"Has the programme ring-fenced / allocated any specific funding for the environment?"]
[null,"Has the programme a dedicated environmental focal point / adviser?"]
[null,"Has environmental training been delivered to staff?"]
[null,"Describe the nature of environmental training given to staff."]
["Climate risk profile - high level","Has the climate-risk profile for the region been reviewed?","Learn more?"]
[null,"What is country's ND-GAIN index score?","Learn more?"]
[null,"What is neighbouring country's ND-GAIN index score?"]
[null,"Is the climate vulnerability of country neighbours likely to be a risk to this programme and the affected communities?"]
[null,"Has national and regional policy and strategy on climate change been reviewed and understood?","Learn more?"]
[null,"What are the key potential climate-related impacts for the region? Select all which may apply"]
[null,"How could mine action be impacted from the climate-related impacts in the region? Select all which may apply","Learn more?"]
[null,"Have climate-risks been factored into programme planning ? ","Also see STEP 2 EAM"]
["Stakeholders, including information required from NTS and community engagement","Have the relevant national /  local environment and climate change authorities been consulted?"]
[null,"Have the national mine action authorities been consulted on environmental and climate issues?"]
[null,"Have other relevant local stakeholders been consulted on environment and climate change issues (CSOs, community members, companies, etc.)?"]
[null,"Have any stakeholder expectations or requirement about environmental management been recorded ?"]
[null,"Summarise any environmental concerns which may have been highlighted from the consultations carried out to date.","Learn more?"]

{"sheet":"Step 1 Profile","index":3,"n_rows":62,"n_cols":8,"rows_kept":62,"cut":false,"hidden":false,"merged":[[24,0,29,0],[32,0,48,0],[49,0,61,0],[5,6,6,6],[5,7,6,7],[20,0,21,0],[22,0,23,0],[5,8,6,8],[11,0,14,0],[11,8,12,8],[15,0,19,0],[15,8,16,8],[2,3,2,5],[3,3,3,5],[4,0,4,4],[5,0,6,0],[5,1,6,1],[5,3,5,5]]}
["GREEN FIELD TOOL: Mine Action and Disarmament Operations - Version: March 2025 - 1.0"]
["STEP 1 : ENVIRONMENTAL PROFILE",null," CLICK HERE FOR NEXT",null,null,null,null," CLICK HERE FOR NEXT"]
["LOCATION (District/village):",null,"Completed by:"]
["Co-ordinates:",null,"Date completed:"]
["Complete this environmental profile to provide baseline information on the environmental setting of the area, including ecologically important or any protected or conservation areas, vegetation cover, water resources etc. This then informs the evaluation of the risk in STEP 2, and can be provided in any handover reports to inform others.",null,null,null,null,null,"Open source data can be used to help answer some questions. The GREEN FIELD TOOL - OPEN SOURCE APPLICATION can be used to access useful datasets  "]
["SUBJECT","QUESTION",null,"Sources?",null,null,"RESPONSE","Include further details and links, \nwhere applicable "]
[null,null,null,"NTS / field visit","Consultation","Open Source"]
["Transboundary issues","Is the programme close to an international border, which could lead to transboundary environmental issues?","Learn more?","ü","ü","ü"]
["Environmental governance","How effective is environmental governance in the region? ","Learn more?","ü","ü"]
[null,"Are any necessary environmental licences or permits in place? This could include regulations covering any plans to plant trees, manage invasive species, etc...","Learn more?","ü","ü"]
[null,"What is the overall provision of waste management infrastructure in the region?","Learn more?","ü","ü"]
["Conservation and wildlife areas","Is the area of operation located in or close to an environmentally sensitive, ecologically important or protected area?","Learn more?","ü","ü","ü"]
[null,"Are there any endangered or protected wildlife species in or near to the area of operation?",null,"ü","ü","ü"]
[null,"Are there any other known conservation or ecological management activities in the area?",null,"ü","ü","ü"]
[null,"Have any wildlife or conservation issues been raised through community engagement?",null,"ü","ü"]
["Habitat and vegetation cover","What is the nature of vegetation cover in the area? - Main","Learn more?","ü","ü"]
[null,"What is the nature of vegetation cover in the area? - Secondary",null,"ü","ü"]
[null,"What is the vegetation density in the area of operation?",null,"ü","ü"]
[null,"Are there any local or regional issues with invasive plant or animal species?","Learn more?","ü","ü"]
[null,"How old or well established is the vegetation?",null,"ü","ü"]
["Soils/Geology","What is the main soil type in the area of operation?","Learn more?","ü","ü","ü"]
[null,"What are the ground conditions in the area of operation?",null,"ü","ü"]
["Topography/slope","What is the local topography and terrain?","Learn more?","ü","ü","ü"]
[null,"What is the average slope/gradient of the area?",null,"ü","ü","ü"]
["Water","Is there a surface water feature in or near to the area of operation?","Learn more?","ü","ü","ü"]
[null,"What is the distance to the nearest surface water feature?",null,"ü","ü"]
[null,"What is the flow rate in any nearby surface water features?",null,"ü","ü"]
[null,"What are the anticipated groundwater conditions in the area?",null,"ü","ü"]
[null,"Where does water drain to from the area of operation?",null,"ü","ü"]
[null,"What is the main water source of the local population?",null,"ü","ü"]
[null,"Is water scarcity and/or quality an issue for the local population?"]
["Cultural heritage","Are there any significant historical or cultural sites near to the area of operation?","Learn more?","ü","ü","ü"]
["Local and regional trends","Has there been deforestation in the general area over recent decades? Include a  screenshot of mapping to highlight the extent.","Learn more?","ü","ü","ü"]
[null,"Has there been changes in rainfall amounts over recent years? Also check any predicted changes for the area.",null,"ü","ü","ü"]
[null,"Have seasonal patterns of rainfall changed over recent years? For example, longer rainy seasons, longer dry seasons, more droughts?  ",null,"ü","ü","ü"]
[null,"Has there been recent or more frequent river/surface flooding in the area? Check for areas prone to flooding and future predictions.",null,"ü","ü","ü"]
[null,"Has there been recent or more frequent coastal flooding in the area? Check for areas prone to flooding and future predictions.",null,"ü","ü","ü"]
[null,"Has there been recent or more frequent land or mudslides in the area?  ",null,"ü","ü","ü"]
[null,"Has there been more frequent extreme weather events?",null,"ü","ü"]
[null,"Do landscape fires take place, and has there been increased incidents of fires or burning events in the area?",null,"ü","ü","ü"]
[null,"Has there been an increase in average annual temperatures? Also check any predicted changes for the area.",null,"ü","ü","ü"]
[null,"Has the local community observed changes in overall weather and seasonal patterns, temperature, rainfall and extreme weather events?","Learn more?","ü","ü"]
[null,"What observed changes have been noted by the local community in overall weather and seasonal patterns, temperature, rainfall and extreme weather events?",null,"ü","ü"]
[null,"Are there any current community coping strategies in place to deal with climate change, or environmental degradation?",null,"ü","ü"]
[null,"If present, how effective are local coping strategies likely to be?",null,"ü","ü"]
[null,"How are local livelihoods and assets likely to be affected by climate changes?",null,"ü","ü"]
[null,"How are local ecosystems likely to be affected by climate changes?",null,"ü","ü"]
[null,"Are there possible opportunities for introducing ecosystem-based adaptation initiatives, and other environmental options to support communities?","Learn more?","ü","ü","**"]
[null,"Check the list of potential opportunities which could be relevant.  Select all which may apply","Learn more?","ü","ü"]
["Land use and local communities","What is the predominant existing land use?",null,"ü","ü","ü"]
[null,"What is the secondary existing land use?",null,"ü","ü","ü"]
[null,"What has been the main feature of any changes in land use? Consider changes over at least the previous 20 years","Learn more?","ü","ü","ü"]
[null,"Has there been a change in general land productivity?","Learn more?","ü","ü","ü"]
[null,"What is the distance of the area of operation to the nearest residential areas / populated area?",null,"ü","ü","ü"]
[null,"Will people have ready access to the adjoining areas during the field activities? ",null,"ü","ü"]
[null,"What is known about any previous or historic land use? ","Learn more?","ü","ü"]
[null,"Is there a potential for sources of pollution to be present in or adjacent to the area? ",null,"ü","ü"]
[null,"Is there any visual evidence of pollution on or adjacent to the area? ",null,"ü","ü"]
[null,"If so, what is the nature of the pollution or pollution incident?  Select all which may apply",null,"ü","ü"]
[null,"What is the scale and extent of pollution identified?",null,"ü","ü"]
[null,"What is the planned or likely use of the area following land release?",null,"ü","ü"]
[null,"What are the main environmental concerns affecting the local community? ","Learn more?","ü","ü"]

{"sheet":"Step 1 Profile summary","index":4,"n_rows":60,"n_cols":6,"rows_kept":60,"cut":false,"hidden":false,"merged":[[4,1,4,5],[1,1,1,3],[0,1,0,5]]}
[null,"GREENFIELD TOOL: Mine Action and Disarmament Operations - Version: March 2025 - 1.0"]
[null,"STEP 1 : ENVIRONMENTAL PROFILE SUMMARY",null,null,null," CLICK HERE FOR NEXT"]
[null,{"$f":"'Step 1 Profile'!A3","v":"LOCATION (District/village):"},null,{"$f":"LOCATION__DISTRICT_VILLAGE","v":0}]
[null,{"$f":"'Step 1 Profile'!A4","v":"Co-ordinates:"},null,{"$f":"EP_coordinates","v":0}]
[null,"On completing STEP 1, a profile summary is generated by the GFT. This profile summary flags environmental concerns identified, grouping them into issues of High, Medium or Lower concern depending on the location and conditions. This profile summary gives a list of 'profile statements' which help in considering the environmental 'sensitivity' of an area in Step 2, when assessing the risk to the environment from mine action activities. Environmental profile information can also be provided in any handover reports."]
[null,"Issues of high concern",null,"Issues of medium concern",null,"Issues of lower concern"]
[null,{"$f":"_xlfn.IFNA(INDEX('Profile Statements'!$A$5:$A$69,MATCH(0,IF('Profile Statements'!$C$5:$C$69=\"High\",COUNTIF($B$6:$B$6,'Profile Statements'!$A$5:$A$69),\"\"),0)),\"\")","v":""},null,{"$f":"_xlfn.IFNA(INDEX('Profile Statements'!$A$5:$A$69,MATCH(0,IF('Profile Statements'!$C$5:$C$69=\"Medium\",COUNTIF($D$6:$D$6,'Profile Statements'!$A$5:$A$69),\"\"),0)),\"\")","v":""},null,{"$f":"_xlfn.IFNA(INDEX('Profile Statements'!$A$5:$A$69,MATCH(0,IF('Profile Statements'!$C$5:$C$69=\"Low\",COUNTIF($F$6:$F$6,'Profile Statements'!$A$5:$A$69),\"\"),0)),\"\")","v":""}]
[null,{"$f":"_xlfn.IFNA(INDEX('Profile Statements'!$A$5:$A$69,MATCH(0,IF('Profile Statements'!$C$5:$C$69=\"High\",COUNTIF($B$6:$B$7,'Profile Statements'!$A$5:$A$69),\"\"),0)),\"\")","v":""},null,{"$f":"_xlfn.IFNA(INDEX('Profile Statements'!$A$5:$A$69,MATCH(0,IF('Profile Statements'!$C$5:$C$69=\"Medium\",COUNTIF($D$6:$D$7,'Profile Statements'!$A$5:$A$69),\"\"),0)),\"\")","v":""},null,{"$f":"_xlfn.IFNA(INDEX('Profile Statements'!$A$5:$A$69,MATCH(0,IF('Profile Statements'!$C$5:$C$69=\"Low\",COUNTIF($F$6:$F$7,'Profile Statements'!$A$5:$A$69),\"\"),0)),\"\")","v":""}]
[null,{"$f":"_xlfn.IFNA(INDEX('Profile Statements'!$A$5:$A$69,MATCH(0,IF('Profile Statements'!$C$5:$C$69=\"High\",COUNTIF($B$6:$B$8,'Profile Statements'!$A$5:$A$69),\"\"),0)),\"\")","v":""},null,{"$f":"_xlfn.IFNA(INDEX('Profile Statements'!$A$5:$A$69,MATCH(0,IF('Profile Statements'!$C$5:$C$69=\"Medium\",COUNTIF($D$6:$D$8,'Profile Statements'!$A$5:$A$69),\"\"),0)),\"\")","v":""},null,{"$f":"_xlfn.IFNA(INDEX('Profile Statements'!$A$5:$A$69,MATCH(0,IF('Profile Statements'!$C$5:$C$69=\"Low\",COUNTIF($F$6:$F$8,'Profile Statements'!$A$5:$A$69),\"\"),0)),\"\")","v":""}]
[null,{"$f":"_xlfn.IFNA(INDEX('Profile Statements'!$A$5:$A$69,MATCH(0,IF('Profile Statements'!$C$5:$C$69=\"High\",COUNTIF($B$6:$B$9,'Profile Statements'!$A$5:$A$69),\"\"),0)),\"\")","v":""},null,{"$f":"_xlfn.IFNA(INDEX('Profile Statements'!$A$5:$A$69,MATCH(0,IF('Profile Statements'!$C$5:$C$69=\"Medium\",COUNTIF($D$6:$D$9,'Profile Statements'!$A$5:$A$69),\"\"),0)),\"\")","v":""},null,{"$f":"_xlfn.IFNA(INDEX('Profile Statements'!$A$5:$A$69,MATCH(0,IF('Profile Statements'!$C$5:$C$69=\"Low\",COUNTIF($F$6:$F$9,'Profile Statements'!$A$5:$A$69),\"\"),0)),\"\")","v":""}]
[null,{"$f":"_xlfn.IFNA(INDEX('Profile Statements'!$A$5:$A$69,MATCH(0,IF('Profile Statements'!$C$5:$C$69=\"High\",COUNTIF($B$6:$B$10,'Profile Statements'!$A$5:$A$69),\"\"),0)),\"\")","v":""},null,{"$f":"_xlfn.IFNA(INDEX('Profile Statements'!$A$5:$A$69,MATCH(0,IF('Profile Statements'!$C$5:$C$69=\"Medium\",COUNTIF($D$6:$D$10,'Profile Statements'!$A$5:$A$69),\"\"),0)),\"\")","v":""},null,{"$f":"_xlfn.IFNA(INDEX('Profile Statements'!$A$5:$A$69,MATCH(0,IF('Profile Statements'!$C$5:$C$69=\"Low\",COUNTIF($F$6:$F$10,'Profile Statements'!$A$5:$A$69),\"\"),0)),\"\")","v":""}]
[null,{"$f":"_xlfn.IFNA(INDEX('Profile Statements'!$A$5:$A$69,MATCH(0,IF('Profile Statements'!$C$5:$C$69=\"High\",COUNTIF($B$6:$B$11,'Profile Statements'!$A$5:$A$69),\"\"),0)),\"\")","v":""},null,{"$f":"_xlfn.IFNA(INDEX('Profile Statements'!$A$5:$A$69,MATCH(0,IF('Profile Statements'!$C$5:$C$69=\"Medium\",COUNTIF($D$6:$D$11,'Profile Statements'!$A$5:$A$69),\"\"),0)),\"\")","v":""},null,{"$f":"_xlfn.IFNA(INDEX('Profile Statements'!$A$5:$A$69,MATCH(0,IF('Profile Statements'!$C$5:$C$69=\"Low\",COUNTIF($F$6:$F$11,'Profile Statements'!$A$5:$A$69),\"\"),0)),\"\")","v":""}]
[null,{"$f":"_xlfn.IFNA(INDEX('Profile Statements'!$A$5:$A$69,MATCH(0,IF('Profile Statements'!$C$5:$C$69=\"High\",COUNTIF($B$6:$B$12,'Profile Statements'!$A$5:$A$69),\"\"),0)),\"\")","v":""},null,{"$f":"_xlfn.IFNA(INDEX('Profile Statements'!$A$5:$A$69,MATCH(0,IF('Profile Statements'!$C$5:$C$69=\"Medium\",COUNTIF($D$6:$D$12,'Profile Statements'!$A$5:$A$69),\"\"),0)),\"\")","v":""},null,{"$f":"_xlfn.IFNA(INDEX('Profile Statements'!$A$5:$A$69,MATCH(0,IF('Profile Statements'!$C$5:$C$69=\"Low\",COUNTIF($F$6:$F$12,'Profile Statements'!$A$5:$A$69),\"\"),0)),\"\")","v":""}]
[null,{"$f":"_xlfn.IFNA(INDEX('Profile Statements'!$A$5:$A$69,MATCH(0,IF('Profile Statements'!$C$5:$C$69=\"High\",COUNTIF($B$6:$B$13,'Profile Statements'!$A$5:$A$69),\"\"),0)),\"\")","v":""},null,{"$f":"_xlfn.IFNA(INDEX('Profile Statements'!$A$5:$A$69,MATCH(0,IF('Profile Statements'!$C$5:$C$69=\"Medium\",COUNTIF($D$6:$D$13,'Profile Statements'!$A$5:$A$69),\"\"),0)),\"\")","v":""},null,{"$f":"_xlfn.IFNA(INDEX('Profile Statements'!$A$5:$A$69,MATCH(0,IF('Profile Statements'!$C$5:$C$69=\"Low\",COUNTIF($F$6:$F$13,'Profile Statements'!$A$5:$A$69),\"\"),0)),\"\")","v":""}]
[null,{"$f":"_xlfn.IFNA(INDEX('Profile Statements'!$A$5:$A$69,MATCH(0,IF('Profile Statements'!$C$5:$C$69=\"High\",COUNTIF($B$6:$B$14,'Profile Statements'!$A$5:$A$69),\"\"),0)),\"\")","v":""},null,{"$f":"_xlfn.IFNA(INDEX('Profile Statements'!$A$5:$A$69,MATCH(0,IF('Profile Statements'!$C$5:$C$69=\"Medium\",COUNTIF($D$6:$D$14,'Profile Statements'!$A$5:$A$69),\"\"),0)),\"\")","v":""},null,{"$f":"_xlfn.IFNA(INDEX('Profile Statements'!$A$5:$A$69,MATCH(0,IF('Profile Statements'!$C$5:$C$69=\"Low\",COUNTIF($F$6:$F$14,'Profile Statements'!$A$5:$A$69),\"\"),0)),\"\")","v":""}]
[null,{"$f":"_xlfn.IFNA(INDEX('Profile Statements'!$A$5:$A$69,MATCH(0,IF('Profile Statements'!$C$5:$C$69=\"High\",COUNTIF($B$6:$B$15,'Profile Statements'!$A$5:$A$69),\"\"),0)),\"\")","v":""},null,{"$f":"_xlfn.IFNA(INDEX('Profile Statements'!$A$5:$A$69,MATCH(0,IF('Profile Statements'!$C$5:$C$69=\"Medium\",COUNTIF($D$6:$D$15,'Profile Statements'!$A$5:$A$69),\"\"),0)),\"\")","v":""},null,{"$f":"_xlfn.IFNA(INDEX('Profile Statements'!$A$5:$A$69,MATCH(0,IF('Profile Statements'!$C$5:$C$69=\"Low\",COUNTIF($F$6:$F$15,'Profile Statements'!$A$5:$A$69),\"\"),0)),\"\")","v":""}]
[null,{"$f":"_xlfn.IFNA(INDEX('Profile Statements'!$A$5:$A$69,MATCH(0,IF('Profile Statements'!$C$5:$C$69=\"High\",COUNTIF($B$6:$B$16,'Profile Statements'!$A$5:$A$69),\"\"),0)),\"\")","v":""},null,{"$f":"_xlfn.IFNA(INDEX('Profile Statements'!$A$5:$A$69,MATCH(0,IF('Profile Statements'!$C$5:$C$69=\"Medium\",COUNTIF($D$6:$D$16,'Profile Statements'!$A$5:$A$69),\"\"),0)),\"\")","v":""},null,{"$f":"_xlfn.IFNA(INDEX('Profile Statements'!$A$5:$A$69,MATCH(0,IF('Profile Statements'!$C$5:$C$69=\"Low\",COUNTIF($F$6:$F$16,'Profile Statements'!$A$5:$A$69),\"\"),0)),\"\")","v":""}]
[null,{"$f":"_xlfn.IFNA(INDEX('Profile Statements'!$A$5:$A$69,MATCH(0,IF('Profile Statements'!$C$5:$C$69=\"High\",COUNTIF($B$6:$B$17,'Profile Statements'!$A$5:$A$69),\"\"),0)),\"\")","v":""},null,{"$f":"_xlfn.IFNA(INDEX('Profile Statements'!$A$5:$A$69,MATCH(0,IF('Profile Statements'!$C$5:$C$69=\"Medium\",COUNTIF($D$6:$D$17,'Profile Statements'!$A$5:$A$69),\"\"),0)),\"\")","v":""},null,{"$f":"_xlfn.IFNA(INDEX('Profile Statements'!$A$5:$A$69,MATCH(0,IF('Profile Statements'!$C$5:$C$69=\"Low\",COUNTIF($F$6:$F$17,'Profile Statements'!$A$5:$A$69),\"\"),0)),\"\")","v":""}]
[null,{"$f":"_xlfn.IFNA(INDEX('Profile Statements'!$A$5:$A$69,MATCH(0,IF('Profile Statements'!$C$5:$C$69=\"High\",COUNTIF($B$6:$B$18,'Profile Statements'!$A$5:$A$69),\"\"),0)),\"\")","v":""},null,{"$f":"_xlfn.IFNA(INDEX('Profile Statements'!$A$5:$A$69,MATCH(0,IF('Profile Statements'!$C$5:$C$69=\"Medium\",COUNTIF($D$6:$D$18,'Profile Statements'!$A$5:$A$69),\"\"),0)),\"\")","v":""},null,{"$f":"_xlfn.IFNA(INDEX('Profile Statements'!$A$5:$A$69,MATCH(0,IF('Profile Statements'!$C$5:$C$69=\"Low\",COUNTIF($F$6:$F$18,'Profile Statements'!$A$5:$A$69),\"\"),0)),\"\")","v":""}]
[null,{"$f":"_xlfn.IFNA(INDEX('Profile Statements'!$A$5:$A$69,MATCH(0,IF('Profile Statements'!$C$5:$C$69=\"High\",COUNTIF($B$6:$B$19,'Profile Statements'!$A$5:$A$69),\"\"),0)),\"\")","v":""},null,{"$f":"_xlfn.IFNA(INDEX('Profile Statements'!$A$5:$A$69,MATCH(0,IF('Profile Statements'!$C$5:$C$69=\"Medium\",COUNTIF($D$6:$D$19,'Profile Statements'!$A$5:$A$69),\"\"),0)),\"\")","v":""},null,{"$f":"_xlfn.IFNA(INDEX('Profile Statements'!$A$5:$A$69,MATCH(0,IF('Profile Statements'!$C$5:$C$69=\"Low\",COUNTIF($F$6:$F$19,'Profile Statements'!$A$5:$A$69),\"\"),0)),\"\")","v":""}]
[null,{"$f":"_xlfn.IFNA(INDEX('Profile Statements'!$A$5:$A$69,MATCH(0,IF('Profile Statements'!$C$5:$C$69=\"High\",COUNTIF($B$6:$B$20,'Profile Statements'!$A$5:$A$69),\"\"),0)),\"\")","v":""},null,{"$f":"_xlfn.IFNA(INDEX('Profile Statements'!$A$5:$A$69,MATCH(0,IF('Profile Statements'!$C$5:$C$69=\"Medium\",COUNTIF($D$6:$D$20,'Profile Statements'!$A$5:$A$69),\"\"),0)),\"\")","v":""},null,{"$f":"_xlfn.IFNA(INDEX('Profile Statements'!$A$5:$A$69,MATCH(0,IF('Profile Statements'!$C$5:$C$69=\"Low\",COUNTIF($F$6:$F$20,'Profile Statements'!$A$5:$A$69),\"\"),0)),\"\")","v":""}]
[null,{"$f":"_xlfn.IFNA(INDEX('Profile Statements'!$A$5:$A$69,MATCH(0,IF('Profile Statements'!$C$5:$C$69=\"High\",COUNTIF($B$6:$B$21,'Profile Statements'!$A$5:$A$69),\"\"),0)),\"\")","v":""},null,{"$f":"_xlfn.IFNA(INDEX('Profile Statements'!$A$5:$A$69,MATCH(0,IF('Profile Statements'!$C$5:$C$69=\"Medium\",COUNTIF($D$6:$D$21,'Profile Statements'!$A$5:$A$69),\"\"),0)),\"\")","v":""},null,{"$f":"_xlfn.IFNA(INDEX('Profile Statements'!$A$5:$A$69,MATCH(0,IF('Profile Statements'!$C$5:$C$69=\"Low\",COUNTIF($F$6:$F$21,'Profile Statements'!$A$5:$A$69),\"\"),0)),\"\")","v":""}]
[null,{"$f":"_xlfn.IFNA(INDEX('Profile Statements'!$A$5:$A$69,MATCH(0,IF('Profile Statements'!$C$5:$C$69=\"High\",COUNTIF($B$6:$B$22,'Profile Statements'!$A$5:$A$69),\"\"),0)),\"\")","v":""},null,{"$f":"_xlfn.IFNA(INDEX('Profile Statements'!$A$5:$A$69,MATCH(0,IF('Profile Statements'!$C$5:$C$69=\"Medium\",COUNTIF($D$6:$D$22,'Profile Statements'!$A$5:$A$69),\"\"),0)),\"\")","v":""},null,{"$f":"_xlfn.IFNA(INDEX('Profile Statements'!$A$5:$A$69,MATCH(0,IF('Profile Statements'!$C$5:$C$69=\"Low\",COUNTIF($F$6:$F$22,'Profile Statements'!$A$5:$A$69),\"\"),0)),\"\")","v":""}]
[null,{"$f":"_xlfn.IFNA(INDEX('Profile Statements'!$A$5:$A$69,MATCH(0,IF('Profile Statements'!$C$5:$C$69=\"High\",COUNTIF($B$6:$B$23,'Profile Statements'!$A$5:$A$69),\"\"),0)),\"\")","v":""},null,{"$f":"_xlfn.IFNA(INDEX('Profile Statements'!$A$5:$A$69,MATCH(0,IF('Profile Statements'!$C$5:$C$69=\"Medium\",COUNTIF($D$6:$D$23,'Profile Statements'!$A$5:$A$69),\"\"),0)),\"\")","v":""},null,{"$f":"_xlfn.IFNA(INDEX('Profile Statements'!$A$5:$A$69,MATCH(0,IF('Profile Statements'!$C$5:$C$69=\"Low\",COUNTIF($F$6:$F$23,'Profile Statements'!$A$5:$A$69),\"\"),0)),\"\")","v":""}]
[null,{"$f":"_xlfn.IFNA(INDEX('Profile Statements'!$A$5:$A$69,MATCH(0,IF('Profile Statements'!$C$5:$C$69=\"High\",COUNTIF($B$6:$B$24,'Profile Statements'!$A$5:$A$69),\"\"),0)),\"\")","v":""},null,{"$f":"_xlfn.IFNA(INDEX('Profile Statements'!$A$5:$A$69,MATCH(0,IF('Profile Statements'!$C$5:$C$69=\"Medium\",COUNTIF($D$6:$D$24,'Profile Statements'!$A$5:$A$69),\"\"),0)),\"\")","v":""},null,{"$f":"_xlfn.IFNA(INDEX('Profile Statements'!$A$5:$A$69,MATCH(0,IF('Profile Statements'!$C$5:$C$69=\"Low\",COUNTIF($F$6:$F$24,'Profile Statements'!$A$5:$A$69),\"\"),0)),\"\")","v":""}]
[null,{"$f":"_xlfn.IFNA(INDEX('Profile Statements'!$A$5:$A$69,MATCH(0,IF('Profile Statements'!$C$5:$C$69=\"High\",COUNTIF($B$6:$B$25,'Profile Statements'!$A$5:$A$69),\"\"),0)),\"\")","v":""},null,{"$f":"_xlfn.IFNA(INDEX('Profile Statements'!$A$5:$A$69,MATCH(0,IF('Profile Statements'!$C$5:$C$69=\"Medium\",COUNTIF($D$6:$D$25,'Profile Statements'!$A$5:$A$69),\"\"),0)),\"\")","v":""},null,{"$f":"_xlfn.IFNA(INDEX('Profile Statements'!$A$5:$A$69,MATCH(0,IF('Profile Statements'!$C$5:$C$69=\"Low\",COUNTIF($F$6:$F$25,'Profile Statements'!$A$5:$A$69),\"\"),0)),\"\")","v":""}]
[null,{"$f":"_xlfn.IFNA(INDEX('Profile Statements'!$A$5:$A$69,MATCH(0,IF('Profile Statements'!$C$5:$C$69=\"High\",COUNTIF($B$6:$B$26,'Profile Statements'!$A$5:$A$69),\"\"),0)),\"\")","v":""},null,{"$f":"_xlfn.IFNA(INDEX('Profile Statements'!$A$5:$A$69,MATCH(0,IF('Profile Statements'!$C$5:$C$69=\"Medium\",COUNTIF($D$6:$D$26,'Profile Statements'!$A$5:$A$69),\"\"),0)),\"\")","v":""},null,{"$f":"_xlfn.IFNA(INDEX('Profile Statements'!$A$5:$A$69,MATCH(0,IF('Profile Statements'!$C$5:$C$69=\"Low\",COUNTIF($F$6:$F$26,'Profile Statements'!$A$5:$A$69),\"\"),0)),\"\")","v":""}]
[null,{"$f":"_xlfn.IFNA(INDEX('Profile Statements'!$A$5:$A$69,MATCH(0,IF('Profile Statements'!$C$5:$C$69=\"High\",COUNTIF($B$6:$B$27,'Profile Statements'!$A$5:$A$69),\"\"),0)),\"\")","v":""},null,{"$f":"_xlfn.IFNA(INDEX('Profile Statements'!$A$5:$A$69,MATCH(0,IF('Profile Statements'!$C$5:$C$69=\"Medium\",COUNTIF($D$6:$D$27,'Profile Statements'!$A$5:$A$69),\"\"),0)),\"\")","v":""},null,{"$f":"_xlfn.IFNA(INDEX('Profile Statements'!$A$5:$A$69,MATCH(0,IF('Profile Statements'!$C$5:$C$69=\"Low\",COUNTIF($F$6:$F$27,'Profile Statements'!$A$5:$A$69),\"\"),0)),\"\")","v":""}]
[null,{"$f":"_xlfn.IFNA(INDEX('Profile Statements'!$A$5:$A$69,MATCH(0,IF('Profile Statements'!$C$5:$C$69=\"High\",COUNTIF($B$6:$B$28,'Profile Statements'!$A$5:$A$69),\"\"),0)),\"\")","v":""},null,{"$f":"_xlfn.IFNA(INDEX('Profile Statements'!$A$5:$A$69,MATCH(0,IF('Profile Statements'!$C$5:$C$69=\"Medium\",COUNTIF($D$6:$D$28,'Profile Statements'!$A$5:$A$69),\"\"),0)),\"\")","v":""},null,{"$f":"_xlfn.IFNA(INDEX('Profile Statements'!$A$5:$A$69,MATCH(0,IF('Profile Statements'!$C$5:$C$69=\"Low\",COUNTIF($F$6:$F$28,'Profile Statements'!$A$5:$A$69),\"\"),0)),\"\")","v":""}]
[null,{"$f":"_xlfn.IFNA(INDEX('Profile Statements'!$A$5:$A$69,MATCH(0,IF('Profile Statements'!$C$5:$C$69=\"High\",COUNTIF($B$6:$B$29,'Profile Statements'!$A$5:$A$69),\"\"),0)),\"\")","v":""},null,{"$f":"_xlfn.IFNA(INDEX('Profile Statements'!$A$5:$A$69,MATCH(0,IF('Profile Statements'!$C$5:$C$69=\"Medium\",COUNTIF($D$6:$D$29,'Profile Statements'!$A$5:$A$69),\"\"),0)),\"\")","v":""},null,{"$f":"_xlfn.IFNA(INDEX('Profile Statements'!$A$5:$A$69,MATCH(0,IF('Profile Statements'!$C$5:$C$69=\"Low\",COUNTIF($F$6:$F$29,'Profile Statements'!$A$5:$A$69),\"\"),0)),\"\")","v":""}]
[null,{"$f":"_xlfn.IFNA(INDEX('Profile Statements'!$A$5:$A$69,MATCH(0,IF('Profile Statements'!$C$5:$C$69=\"High\",COUNTIF($B$6:$B$30,'Profile Statements'!$A$5:$A$69),\"\"),0)),\"\")","v":""},null,{"$f":"_xlfn.IFNA(INDEX('Profile Statements'!$A$5:$A$69,MATCH(0,IF('Profile Statements'!$C$5:$C$69=\"Medium\",COUNTIF($D$6:$D$30,'Profile Statements'!$A$5:$A$69),\"\"),0)),\"\")","v":""},null,{"$f":"_xlfn.IFNA(INDEX('Profile Statements'!$A$5:$A$69,MATCH(0,IF('Profile Statements'!$C$5:$C$69=\"Low\",COUNTIF($F$6:$F$30,'Profile Statements'!$A$5:$A$69),\"\"),0)),\"\")","v":""}]
[null,{"$f":"_xlfn.IFNA(INDEX('Profile Statements'!$A$5:$A$69,MATCH(0,IF('Profile Statements'!$C$5:$C$69=\"High\",COUNTIF($B$6:$B$31,'Profile Statements'!$A$5:$A$69),\"\"),0)),\"\")","v":""},null,{"$f":"_xlfn.IFNA(INDEX('Profile Statements'!$A$5:$A$69,MATCH(0,IF('Profile Statements'!$C$5:$C$69=\"Medium\",COUNTIF($D$6:$D$31,'Profile Statements'!$A$5:$A$69),\"\"),0)),\"\")","v":""},null,{"$f":"_xlfn.IFNA(INDEX('Profile Statements'!$A$5:$A$69,MATCH(0,IF('Profile Statements'!$C$5:$C$69=\"Low\",COUNTIF($F$6:$F$31,'Profile Statements'!$A$5:$A$69),\"\"),0)),\"\")","v":""}]
[null,{"$f":"_xlfn.IFNA(INDEX('Profile Statements'!$A$5:$A$69,MATCH(0,IF('Profile Statements'!$C$5:$C$69=\"High\",COUNTIF($B$6:$B$32,'Profile Statements'!$A$5:$A$69),\"\"),0)),\"\")","v":""},null,{"$f":"_xlfn.IFNA(INDEX('Profile Statements'!$A$5:$A$69,MATCH(0,IF('Profile Statements'!$C$5:$C$69=\"Medium\",COUNTIF($D$6:$D$32,'Profile Statements'!$A$5:$A$69),\"\"),0)),\"\")","v":""},null,{"$f":"_xlfn.IFNA(INDEX('Profile Statements'!$A$5:$A$69,MATCH(0,IF('Profile Statements'!$C$5:$C$69=\"Low\",COUNTIF($F$6:$F$32,'Profile Statements'!$A$5:$A$69),\"\"),0)),\"\")","v":""}]
[null,{"$f":"_xlfn.IFNA(INDEX('Profile Statements'!$A$5:$A$69,MATCH(0,IF('Profile Statements'!$C$5:$C$69=\"High\",COUNTIF($B$6:$B$33,'Profile Statements'!$A$5:$A$69),\"\"),0)),\"\")","v":""},null,{"$f":"_xlfn.IFNA(INDEX('Profile Statements'!$A$5:$A$69,MATCH(0,IF('Profile Statements'!$C$5:$C$69=\"Medium\",COUNTIF($D$6:$D$33,'Profile Statements'!$A$5:$A$69),\"\"),0)),\"\")","v":""},null,{"$f":"_xlfn.IFNA(INDEX('Profile Statements'!$A$5:$A$69,MATCH(0,IF('Profile Statements'!$C$5:$C$69=\"Low\",COUNTIF($F$6:$F$33,'Profile Statements'!$A$5:$A$69),\"\"),0)),\"\")","v":""}]
[null,{"$f":"_xlfn.IFNA(INDEX('Profile Statements'!$A$5:$A$69,MATCH(0,IF('Profile Statements'!$C$5:$C$69=\"High\",COUNTIF($B$6:$B$34,'Profile Statements'!$A$5:$A$69),\"\"),0)),\"\")","v":""},null,{"$f":"_xlfn.IFNA(INDEX('Profile Statements'!$A$5:$A$69,MATCH(0,IF('Profile Statements'!$C$5:$C$69=\"Medium\",COUNTIF($D$6:$D$34,'Profile Statements'!$A$5:$A$69),\"\"),0)),\"\")","v":""},null,{"$f":"_xlfn.IFNA(INDEX('Profile Statements'!$A$5:$A$69,MATCH(0,IF('Profile Statements'!$C$5:$C$69=\"Low\",COUNTIF($F$6:$F$34,'Profile Statements'!$A$5:$A$69),\"\"),0)),\"\")","v":""}]
[null,{"$f":"_xlfn.IFNA(INDEX('Profile Statements'!$A$5:$A$69,MATCH(0,IF('Profile Statements'!$C$5:$C$69=\"High\",COUNTIF($B$6:$B$35,'Profile Statements'!$A$5:$A$69),\"\"),0)),\"\")","v":""},null,{"$f":"_xlfn.IFNA(INDEX('Profile Statements'!$A$5:$A$69,MATCH(0,IF('Profile Statements'!$C$5:$C$69=\"Medium\",COUNTIF($D$6:$D$35,'Profile Statements'!$A$5:$A$69),\"\"),0)),\"\")","v":""},null,{"$f":"_xlfn.IFNA(INDEX('Profile Statements'!$A$5:$A$69,MATCH(0,IF('Profile Statements'!$C$5:$C$69=\"Low\",COUNTIF($F$6:$F$35,'Profile Statements'!$A$5:$A$69),\"\"),0)),\"\")","v":""}]
[null,{"$f":"_xlfn.IFNA(INDEX('Profile Statements'!$A$5:$A$69,MATCH(0,IF('Profile Statements'!$C$5:$C$69=\"High\",COUNTIF($B$6:$B$36,'Profile Statements'!$A$5:$A$69),\"\"),0)),\"\")","v":""},null,{"$f":"_xlfn.IFNA(INDEX('Profile Statements'!$A$5:$A$69,MATCH(0,IF('Profile Statements'!$C$5:$C$69=\"Medium\",COUNTIF($D$6:$D$36,'Profile Statements'!$A$5:$A$69),\"\"),0)),\"\")","v":""},null,{"$f":"_xlfn.IFNA(INDEX('Profile Statements'!$A$5:$A$69,MATCH(0,IF('Profile Statements'!$C$5:$C$69=\"Low\",COUNTIF($F$6:$F$36,'Profile Statements'!$A$5:$A$69),\"\"),0)),\"\")","v":""}]
[null,{"$f":"_xlfn.IFNA(INDEX('Profile Statements'!$A$5:$A$69,MATCH(0,IF('Profile Statements'!$C$5:$C$69=\"High\",COUNTIF($B$6:$B$37,'Profile Statements'!$A$5:$A$69),\"\"),0)),\"\")","v":""},null,{"$f":"_xlfn.IFNA(INDEX('Profile Statements'!$A$5:$A$69,MATCH(0,IF('Profile Statements'!$C$5:$C$69=\"Medium\",COUNTIF($D$6:$D$37,'Profile Statements'!$A$5:$A$69),\"\"),0)),\"\")","v":""},null,{"$f":"_xlfn.IFNA(INDEX('Profile Statements'!$A$5:$A$69,MATCH(0,IF('Profile Statements'!$C$5:$C$69=\"Low\",COUNTIF($F$6:$F$37,'Profile Statements'!$A$5:$A$69),\"\"),0)),\"\")","v":""}]
[null,{"$f":"_xlfn.IFNA(INDEX('Profile Statements'!$A$5:$A$69,MATCH(0,IF('Profile Statements'!$C$5:$C$69=\"High\",COUNTIF($B$6:$B$38,'Profile Statements'!$A$5:$A$69),\"\"),0)),\"\")","v":""},null,{"$f":"_xlfn.IFNA(INDEX('Profile Statements'!$A$5:$A$69,MATCH(0,IF('Profile Statements'!$C$5:$C$69=\"Medium\",COUNTIF($D$6:$D$38,'Profile Statements'!$A$5:$A$69),\"\"),0)),\"\")","v":""},null,{"$f":"_xlfn.IFNA(INDEX('Profile Statements'!$A$5:$A$69,MATCH(0,IF('Profile Statements'!$C$5:$C$69=\"Low\",COUNTIF($F$6:$F$38,'Profile Statements'!$A$5:$A$69),\"\"),0)),\"\")","v":""}]
[null,{"$f":"_xlfn.IFNA(INDEX('Profile Statements'!$A$5:$A$69,MATCH(0,IF('Profile Statements'!$C$5:$C$69=\"High\",COUNTIF($B$6:$B$39,'Profile Statements'!$A$5:$A$69),\"\"),0)),\"\")","v":""},null,{"$f":"_xlfn.IFNA(INDEX('Profile Statements'!$A$5:$A$69,MATCH(0,IF('Profile Statements'!$C$5:$C$69=\"Medium\",COUNTIF($D$6:$D$39,'Profile Statements'!$A$5:$A$69),\"\"),0)),\"\")","v":""},null,{"$f":"_xlfn.IFNA(INDEX('Profile Statements'!$A$5:$A$69,MATCH(0,IF('Profile Statements'!$C$5:$C$69=\"Low\",COUNTIF($F$6:$F$39,'Profile Statements'!$A$5:$A$69),\"\"),0)),\"\")","v":""}]
[null,{"$f":"_xlfn.IFNA(INDEX('Profile Statements'!$A$5:$A$69,MATCH(0,IF('Profile Statements'!$C$5:$C$69=\"High\",COUNTIF($B$6:$B$40,'Profile Statements'!$A$5:$A$69),\"\"),0)),\"\")","v":""},null,{"$f":"_xlfn.IFNA(INDEX('Profile Statements'!$A$5:$A$69,MATCH(0,IF('Profile Statements'!$C$5:$C$69=\"Medium\",COUNTIF($D$6:$D$40,'Profile Statements'!$A$5:$A$69),\"\"),0)),\"\")","v":""},null,{"$f":"_xlfn.IFNA(INDEX('Profile Statements'!$A$5:$A$69,MATCH(0,IF('Profile Statements'!$C$5:$C$69=\"Low\",COUNTIF($F$6:$F$40,'Profile Statements'!$A$5:$A$69),\"\"),0)),\"\")","v":""}]
[null,{"$f":"_xlfn.IFNA(INDEX('Profile Statements'!$A$5:$A$69,MATCH(0,IF('Profile Statements'!$C$5:$C$69=\"High\",COUNTIF($B$6:$B$41,'Profile Statements'!$A$5:$A$69),\"\"),0)),\"\")","v":""},null,{"$f":"_xlfn.IFNA(INDEX('Profile Statements'!$A$5:$A$69,MATCH(0,IF('Profile Statements'!$C$5:$C$69=\"Medium\",COUNTIF($D$6:$D$41,'Profile Statements'!$A$5:$A$69),\"\"),0)),\"\")","v":""},null,{"$f":"_xlfn.IFNA(INDEX('Profile Statements'!$A$5:$A$69,MATCH(0,IF('Profile Statements'!$C$5:$C$69=\"Low\",COUNTIF($F$6:$F$41,'Profile Statements'!$A$5:$A$69),\"\"),0)),\"\")","v":""}]
[null,{"$f":"_xlfn.IFNA(INDEX('Profile Statements'!$A$5:$A$69,MATCH(0,IF('Profile Statements'!$C$5:$C$69=\"High\",COUNTIF($B$6:$B$42,'Profile Statements'!$A$5:$A$69),\"\"),0)),\"\")","v":""},null,{"$f":"_xlfn.IFNA(INDEX('Profile Statements'!$A$5:$A$69,MATCH(0,IF('Profile Statements'!$C$5:$C$69=\"Medium\",COUNTIF($D$6:$D$42,'Profile Statements'!$A$5:$A$69),\"\"),0)),\"\")","v":""},null,{"$f":"_xlfn.IFNA(INDEX('Profile Statements'!$A$5:$A$69,MATCH(0,IF('Profile Statements'!$C$5:$C$69=\"Low\",COUNTIF($F$6:$F$42,'Profile Statements'!$A$5:$A$69),\"\"),0)),\"\")","v":""}]
[null,{"$f":"_xlfn.IFNA(INDEX('Profile Statements'!$A$5:$A$69,MATCH(0,IF('Profile Statements'!$C$5:$C$69=\"High\",COUNTIF($B$6:$B$43,'Profile Statements'!$A$5:$A$69),\"\"),0)),\"\")","v":""},null,{"$f":"_xlfn.IFNA(INDEX('Profile Statements'!$A$5:$A$69,MATCH(0,IF('Profile Statements'!$C$5:$C$69=\"Medium\",COUNTIF($D$6:$D$43,'Profile Statements'!$A$5:$A$69),\"\"),0)),\"\")","v":""},null,{"$f":"_xlfn.IFNA(INDEX('Profile Statements'!$A$5:$A$69,MATCH(0,IF('Profile Statements'!$C$5:$C$69=\"Low\",COUNTIF($F$6:$F$43,'Profile Statements'!$A$5:$A$69),\"\"),0)),\"\")","v":""}]
[null,{"$f":"_xlfn.IFNA(INDEX('Profile Statements'!$A$5:$A$69,MATCH(0,IF('Profile Statements'!$C$5:$C$69=\"High\",COUNTIF($B$6:$B$44,'Profile Statements'!$A$5:$A$69),\"\"),0)),\"\")","v":""},null,{"$f":"_xlfn.IFNA(INDEX('Profile Statements'!$A$5:$A$69,MATCH(0,IF('Profile Statements'!$C$5:$C$69=\"Medium\",COUNTIF($D$6:$D$44,'Profile Statements'!$A$5:$A$69),\"\"),0)),\"\")","v":""},null,{"$f":"_xlfn.IFNA(INDEX('Profile Statements'!$A$5:$A$69,MATCH(0,IF('Profile Statements'!$C$5:$C$69=\"Low\",COUNTIF($F$6:$F$44,'Profile Statements'!$A$5:$A$69),\"\"),0)),\"\")","v":""}]
[null,{"$f":"_xlfn.IFNA(INDEX('Profile Statements'!$A$5:$A$69,MATCH(0,IF('Profile Statements'!$C$5:$C$69=\"High\",COUNTIF($B$6:$B$45,'Profile Statements'!$A$5:$A$69),\"\"),0)),\"\")","v":""},null,{"$f":"_xlfn.IFNA(INDEX('Profile Statements'!$A$5:$A$69,MATCH(0,IF('Profile Statements'!$C$5:$C$69=\"Medium\",COUNTIF($D$6:$D$45,'Profile Statements'!$A$5:$A$69),\"\"),0)),\"\")","v":""},null,{"$f":"_xlfn.IFNA(INDEX('Profile Statements'!$A$5:$A$69,MATCH(0,IF('Profile Statements'!$C$5:$C$69=\"Low\",COUNTIF($F$6:$F$45,'Profile Statements'!$A$5:$A$69),\"\"),0)),\"\")","v":""}]
[null,{"$f":"_xlfn.IFNA(INDEX('Profile Statements'!$A$5:$A$69,MATCH(0,IF('Profile Statements'!$C$5:$C$69=\"High\",COUNTIF($B$6:$B$46,'Profile Statements'!$A$5:$A$69),\"\"),0)),\"\")","v":""},null,{"$f":"_xlfn.IFNA(INDEX('Profile Statements'!$A$5:$A$69,MATCH(0,IF('Profile Statements'!$C$5:$C$69=\"Medium\",COUNTIF($D$6:$D$46,'Profile Statements'!$A$5:$A$69),\"\"),0)),\"\")","v":""},null,{"$f":"_xlfn.IFNA(INDEX('Profile Statements'!$A$5:$A$69,MATCH(0,IF('Profile Statements'!$C$5:$C$69=\"Low\",COUNTIF($F$6:$F$46,'Profile Statements'!$A$5:$A$69),\"\"),0)),\"\")","v":""}]
[null,{"$f":"_xlfn.IFNA(INDEX('Profile Statements'!$A$5:$A$69,MATCH(0,IF('Profile Statements'!$C$5:$C$69=\"High\",COUNTIF($B$6:$B$47,'Profile Statements'!$A$5:$A$69),\"\"),0)),\"\")","v":""},null,{"$f":"_xlfn.IFNA(INDEX('Profile Statements'!$A$5:$A$69,MATCH(0,IF('Profile Statements'!$C$5:$C$69=\"Medium\",COUNTIF($D$6:$D$47,'Profile Statements'!$A$5:$A$69),\"\"),0)),\"\")","v":""},null,{"$f":"_xlfn.IFNA(INDEX('Profile Statements'!$A$5:$A$69,MATCH(0,IF('Profile Statements'!$C$5:$C$69=\"Low\",COUNTIF($F$6:$F$47,'Profile Statements'!$A$5:$A$69),\"\"),0)),\"\")","v":""}]
[null,{"$f":"_xlfn.IFNA(INDEX('Profile Statements'!$A$5:$A$69,MATCH(0,IF('Profile Statements'!$C$5:$C$69=\"High\",COUNTIF($B$6:$B$48,'Profile Statements'!$A$5:$A$69),\"\"),0)),\"\")","v":""},null,{"$f":"_xlfn.IFNA(INDEX('Profile Statements'!$A$5:$A$69,MATCH(0,IF('Profile Statements'!$C$5:$C$69=\"Medium\",COUNTIF($D$6:$D$48,'Profile Statements'!$A$5:$A$69),\"\"),0)),\"\")","v":""},null,{"$f":"_xlfn.IFNA(INDEX('Profile Statements'!$A$5:$A$69,MATCH(0,IF('Profile Statements'!$C$5:$C$69=\"Low\",COUNTIF($F$6:$F$48,'Profile Statements'!$A$5:$A$69),\"\"),0)),\"\")","v":""}]
[null,{"$f":"_xlfn.IFNA(INDEX('Profile Statements'!$A$5:$A$69,MATCH(0,IF('Profile Statements'!$C$5:$C$69=\"High\",COUNTIF($B$6:$B$49,'Profile Statements'!$A$5:$A$69),\"\"),0)),\"\")","v":""},null,{"$f":"_xlfn.IFNA(INDEX('Profile Statements'!$A$5:$A$69,MATCH(0,IF('Profile Statements'!$C$5:$C$69=\"Medium\",COUNTIF($D$6:$D$49,'Profile Statements'!$A$5:$A$69),\"\"),0)),\"\")","v":""},null,{"$f":"_xlfn.IFNA(INDEX('Profile Statements'!$A$5:$A$69,MATCH(0,IF('Profile Statements'!$C$5:$C$69=\"Low\",COUNTIF($F$6:$F$49,'Profile Statements'!$A$5:$A$69),\"\"),0)),\"\")","v":""}]
[null,{"$f":"_xlfn.IFNA(INDEX('Profile Statements'!$A$5:$A$69,MATCH(0,IF('Profile Statements'!$C$5:$C$69=\"High\",COUNTIF($B$6:$B$50,'Profile Statements'!$A$5:$A$69),\"\"),0)),\"\")","v":""},null,{"$f":"_xlfn.IFNA(INDEX('Profile Statements'!$A$5:$A$69,MATCH(0,IF('Profile Statements'!$C$5:$C$69=\"Medium\",COUNTIF($D$6:$D$50,'Profile Statements'!$A$5:$A$69),\"\"),0)),\"\")","v":""},null,{"$f":"_xlfn.IFNA(INDEX('Profile Statements'!$A$5:$A$69,MATCH(0,IF('Profile Statements'!$C$5:$C$69=\"Low\",COUNTIF($F$6:$F$50,'Profile Statements'!$A$5:$A$69),\"\"),0)),\"\")","v":""}]
[null,{"$f":"_xlfn.IFNA(INDEX('Profile Statements'!$A$5:$A$69,MATCH(0,IF('Profile Statements'!$C$5:$C$69=\"High\",COUNTIF($B$6:$B$51,'Profile Statements'!$A$5:$A$69),\"\"),0)),\"\")","v":""},null,{"$f":"_xlfn.IFNA(INDEX('Profile Statements'!$A$5:$A$69,MATCH(0,IF('Profile Statements'!$C$5:$C$69=\"Medium\",COUNTIF($D$6:$D$51,'Profile Statements'!$A$5:$A$69),\"\"),0)),\"\")","v":""},null,{"$f":"_xlfn.IFNA(INDEX('Profile Statements'!$A$5:$A$69,MATCH(0,IF('Profile Statements'!$C$5:$C$69=\"Low\",COUNTIF($F$6:$F$51,'Profile Statements'!$A$5:$A$69),\"\"),0)),\"\")","v":""}]
[null,{"$f":"_xlfn.IFNA(INDEX('Profile Statements'!$A$5:$A$69,MATCH(0,IF('Profile Statements'!$C$5:$C$69=\"High\",COUNTIF($B$6:$B$52,'Profile Statements'!$A$5:$A$69),\"\"),0)),\"\")","v":""},null,{"$f":"_xlfn.IFNA(INDEX('Profile Statements'!$A$5:$A$69,MATCH(0,IF('Profile Statements'!$C$5:$C$69=\"Medium\",COUNTIF($D$6:$D$52,'Profile Statements'!$A$5:$A$69),\"\"),0)),\"\")","v":""},null,{"$f":"_xlfn.IFNA(INDEX('Profile Statements'!$A$5:$A$69,MATCH(0,IF('Profile Statements'!$C$5:$C$69=\"Low\",COUNTIF($F$6:$F$52,'Profile Statements'!$A$5:$A$69),\"\"),0)),\"\")","v":""}]
[null,{"$f":"_xlfn.IFNA(INDEX('Profile Statements'!$A$5:$A$69,MATCH(0,IF('Profile Statements'!$C$5:$C$69=\"High\",COUNTIF($B$6:$B$53,'Profile Statements'!$A$5:$A$69),\"\"),0)),\"\")","v":""},null,{"$f":"_xlfn.IFNA(INDEX('Profile Statements'!$A$5:$A$69,MATCH(0,IF('Profile Statements'!$C$5:$C$69=\"Medium\",COUNTIF($D$6:$D$53,'Profile Statements'!$A$5:$A$69),\"\"),0)),\"\")","v":""},null,{"$f":"_xlfn.IFNA(INDEX('Profile Statements'!$A$5:$A$69,MATCH(0,IF('Profile Statements'!$C$5:$C$69=\"Low\",COUNTIF($F$6:$F$53,'Profile Statements'!$A$5:$A$69),\"\"),0)),\"\")","v":""}]
[null,{"$f":"_xlfn.IFNA(INDEX('Profile Statements'!$A$5:$A$69,MATCH(0,IF('Profile Statements'!$C$5:$C$69=\"High\",COUNTIF($B$6:$B$54,'Profile Statements'!$A$5:$A$69),\"\"),0)),\"\")","v":""},null,{"$f":"_xlfn.IFNA(INDEX('Profile Statements'!$A$5:$A$69,MATCH(0,IF('Profile Statements'!$C$5:$C$69=\"Medium\",COUNTIF($D$6:$D$54,'Profile Statements'!$A$5:$A$69),\"\"),0)),\"\")","v":""},null,{"$f":"_xlfn.IFNA(INDEX('Profile Statements'!$A$5:$A$69,MATCH(0,IF('Profile Statements'!$C$5:$C$69=\"Low\",COUNTIF($F$6:$F$54,'Profile Statements'!$A$5:$A$69),\"\"),0)),\"\")","v":""}]
[null,{"$f":"_xlfn.IFNA(INDEX('Profile Statements'!$A$5:$A$69,MATCH(0,IF('Profile Statements'!$C$5:$C$69=\"High\",COUNTIF($B$6:$B$55,'Profile Statements'!$A$5:$A$69),\"\"),0)),\"\")","v":""},null,{"$f":"_xlfn.IFNA(INDEX('Profile Statements'!$A$5:$A$69,MATCH(0,IF('Profile Statements'!$C$5:$C$69=\"Medium\",COUNTIF($D$6:$D$55,'Profile Statements'!$A$5:$A$69),\"\"),0)),\"\")","v":""},null,{"$f":"_xlfn.IFNA(INDEX('Profile Statements'!$A$5:$A$69,MATCH(0,IF('Profile Statements'!$C$5:$C$69=\"Low\",COUNTIF($F$6:$F$55,'Profile Statements'!$A$5:$A$69),\"\"),0)),\"\")","v":""}]
[null,{"$f":"_xlfn.IFNA(INDEX('Profile Statements'!$A$5:$A$69,MATCH(0,IF('Profile Statements'!$C$5:$C$69=\"High\",COUNTIF($B$6:$B$56,'Profile Statements'!$A$5:$A$69),\"\"),0)),\"\")","v":""},null,{"$f":"_xlfn.IFNA(INDEX('Profile Statements'!$A$5:$A$69,MATCH(0,IF('Profile Statements'!$C$5:$C$69=\"Medium\",COUNTIF($D$6:$D$56,'Profile Statements'!$A$5:$A$69),\"\"),0)),\"\")","v":""},null,{"$f":"_xlfn.IFNA(INDEX('Profile Statements'!$A$5:$A$69,MATCH(0,IF('Profile Statements'!$C$5:$C$69=\"Low\",COUNTIF($F$6:$F$56,'Profile Statements'!$A$5:$A$69),\"\"),0)),\"\")","v":""}]
[null,{"$f":"_xlfn.IFNA(INDEX('Profile Statements'!$A$5:$A$69,MATCH(0,IF('Profile Statements'!$C$5:$C$69=\"High\",COUNTIF($B$6:$B$57,'Profile Statements'!$A$5:$A$69),\"\"),0)),\"\")","v":""},null,{"$f":"_xlfn.IFNA(INDEX('Profile Statements'!$A$5:$A$69,MATCH(0,IF('Profile Statements'!$C$5:$C$69=\"Medium\",COUNTIF($D$6:$D$57,'Profile Statements'!$A$5:$A$69),\"\"),0)),\"\")","v":""},null,{"$f":"_xlfn.IFNA(INDEX('Profile Statements'!$A$5:$A$69,MATCH(0,IF('Profile Statements'!$C$5:$C$69=\"Low\",COUNTIF($F$6:$F$57,'Profile Statements'!$A$5:$A$69),\"\"),0)),\"\")","v":""}]
[null,{"$f":"_xlfn.IFNA(INDEX('Profile Statements'!$A$5:$A$69,MATCH(0,IF('Profile Statements'!$C$5:$C$69=\"High\",COUNTIF($B$6:$B$58,'Profile Statements'!$A$5:$A$69),\"\"),0)),\"\")","v":""},null,{"$f":"_xlfn.IFNA(INDEX('Profile Statements'!$A$5:$A$69,MATCH(0,IF('Profile Statements'!$C$5:$C$69=\"Medium\",COUNTIF($D$6:$D$58,'Profile Statements'!$A$5:$A$69),\"\"),0)),\"\")","v":""},null,{"$f":"_xlfn.IFNA(INDEX('Profile Statements'!$A$5:$A$69,MATCH(0,IF('Profile Statements'!$C$5:$C$69=\"Low\",COUNTIF($F$6:$F$58,'Profile Statements'!$A$5:$A$69),\"\"),0)),\"\")","v":""}]
[null,{"$f":"_xlfn.IFNA(INDEX('Profile Statements'!$A$5:$A$69,MATCH(0,IF('Profile Statements'!$C$5:$C$69=\"High\",COUNTIF($B$6:$B$59,'Profile Statements'!$A$5:$A$69),\"\"),0)),\"\")","v":""},null,{"$f":"_xlfn.IFNA(INDEX('Profile Statements'!$A$5:$A$69,MATCH(0,IF('Profile Statements'!$C$5:$C$69=\"Medium\",COUNTIF($D$6:$D$59,'Profile Statements'!$A$5:$A$69),\"\"),0)),\"\")","v":""},null,{"$f":"_xlfn.IFNA(INDEX('Profile Statements'!$A$5:$A$69,MATCH(0,IF('Profile Statements'!$C$5:$C$69=\"Low\",COUNTIF($F$6:$F$59,'Profile Statements'!$A$5:$A$69),\"\"),0)),\"\")","v":""}]

{"sheet":"Select activities","index":5,"n_rows":14,"n_cols":3,"rows_kept":14,"cut":false,"hidden":false,"merged":[]}
["GREENFIELD TOOL: Mine Action and Disarmament Operations Version 2025.1"]
["SELECT ACTIVITIES: SCREEN OUT (OR EXCLUDE) ACTIVITIES WHICH DO NOT APPLY",null," CLICK HERE FOR NEXT"]
["LOCATION (Work area):"]
["Co-ordinates:"]
["Completed by:"]
["Date completed:"]
["On starting STEP 2, first complete this section to exclude activities which do not apply. This will simplify STEP 2."]
["Activities","Is this relevant for the planned task(s)? \nIf not relevant, select \"X\" to screen it out"]
["Will there be any demolitions carried out on-site?"]
["Will there be any burning of vegetation or waste?"]
["Will heavy equipment be used?"]
["Will vegetation need to be removed?"]
["Will the activities take place near local wildlife?"]
["Will there be any discharges of wastewater?"]

{"sheet":"Step 2 EAM","index":6,"n_rows":46,"n_cols":18,"rows_kept":46,"cut":false,"hidden":false,"merged":[[44,16,45,16],[44,0,45,0],[44,11,45,11],[44,13,45,13],[44,14,45,14],[44,15,45,15],[38,0,40,0],[38,11,40,11],[38,13,40,13],[38,14,40,14],[38,15,40,15],[30,0,33,0],[30,11,33,11],[30,13,33,13],[30,14,33,14],[30,15,33,15],[34,0,37,0],[34,11,37,11],[34,13,37,13],[34,14,37,14],[34,15,37,15],[21,0,27,0],[21,11,27,11],[21,13,27,13],[21,14,27,14],[21,15,27,15],[28,0,29,0],[28,11,29,11],[28,13,29,13],[28,14,29,14],[28,15,29,15],[18,0,19,0],[18,11,19,11],[18,13,19,13],[18,14,19,14],[18,15,19,15],[15,0,17,0],[15,11,17,11],[15,13,17,13],[15,14,17,14],[15,15,17,15],[12,0,14,0],[12,11,14,11],[12,13,14,13],[12,14,14,14],[12,15,14,15],[7,0,11,0],[7,11,11,11],[7,13,11,13],[7,14,11,14],[7,15,11,15],[4,0,4,5],[5,2,6,2],[5,10,6,10],[5,11,6,11],[5,14,6,14],[7,16,11,16],[12,16,14,16],[15,16,17,16],[18,16,19,16],[38,16,40,16],[21,16,27,16],[28,16,29,16],[30,16,33,16],[34,16,37,16]]}
["GREENFIELD TOOL: Mine Action and Disarmament Operations - Version: March 2025 - 1.0"]
["STEP 2 : ENVIRONMENTAL ASSESSMENT & MONITORING",null," CLICK HERE FOR NEXT",null,null,null,null,null,null,null,null,null,null,null,null,null,null," CLICK HERE FOR NEXT"]
["LOCATION (Work Area):",{"$f":"LOCATION__WORK_AREA","v":0},"Co-ordinates:",{"$f":"step2_coord","v":0}]
["Task type/field activity:",null,"Completed by:",null,"Date completed:"]
["Complete this before mobilising and commencing mine action operations, then reviewed at the beginning of work. \nThis should be kept under review during tasks."]
["Environmental aspect","Environmental impact","Is relevant for the planned task(s)?\nIf not, select \"X\" and screen it out.","When would this impact occur?","Would the impact be temporary or permanent?","Likelihood of occuring","Severity of impact","Significance - risk level","Are risk prevention and mitigation measures needed?",null,"Is this covered in SOPs?","Add any further detail here - include any other measures in place but not listed earlier\n","With these measures in place, what is the residual risk?","Are there other measures which could be applied but are not possible?","\nGive brief details here:\n","Are any compensation, or other enhancement measures being applied or planned?","List any compensation or enhancement measures applied or planned ","Risk owner"]
["(click for definition)","(click for definition)",null,"(Learn more?)","(Learn more?)","(click for definition)","(click for definition)","(Autofill)","Select all which apply from the options list provided",null,null,null,"(Learn more?)","(Learn more?)",null,"(Learn more?)","Select all that apply","Who is responsible for reviewing and implementing?"]
["01.  Climate trends - observed & predicted changes","1.1 Vulnerability to wind storms, soil erosion",null,null,null,null,null,{"$f":"IF('Risk Matrix formulae'!J3>5,\"High\",IF('Risk Matrix formulae'!J3>2,\"Medium\",IF('Risk Matrix formulae'!J3>0,\"Low\",\"\")))","v":""}]
[null,"1.2 Vulnerability to landslides",null,null,null,null,null,{"$f":"IF('Risk Matrix formulae'!J4>5,\"High\",IF('Risk Matrix formulae'!J4>2,\"Medium\",IF('Risk Matrix formulae'!J4>0,\"Low\",\"\")))","v":""}]
[null,"1.3 Vulnerability to extreme heat/droughts",null,null,null,null,null,{"$f":"IF('Risk Matrix formulae'!J5>5,\"High\",IF('Risk Matrix formulae'!J5>2,\"Medium\",IF('Risk Matrix formulae'!J5>0,\"Low\",\"\")))","v":""}]
[null,"1.4 Vulnerability to wildfires",null,null,null,null,null,{"$f":"IF('Risk Matrix formulae'!J6>5,\"High\",IF('Risk Matrix formulae'!J6>2,\"Medium\",IF('Risk Matrix formulae'!J6>0,\"Low\",\"\")))","v":""}]
[null,"1.5 Vulnerability to flooding events",null,null,null,null,null,{"$f":"IF('Risk Matrix formulae'!J7>5,\"High\",IF('Risk Matrix formulae'!J7>2,\"Medium\",IF('Risk Matrix formulae'!J7>0,\"Low\",\"\")))","v":""}]
["02.  Soil degradation and erosion","2.1 Soil degradation due to machinery and vehicles - use and tracking causing soil compaction, loss of structure and erosion",null,null,null,null,null,{"$f":"IF('Risk Matrix formulae'!J8>5,\"High\",IF('Risk Matrix formulae'!J8>2,\"Medium\",IF('Risk Matrix formulae'!J8>0,\"Low\",\"\")))","v":""}]
[null,"2.2 Cratering / detonations affecting soil structure and landform changes",null,null,null,null,null,{"$f":"IF('Risk Matrix formulae'!J9>5,\"High\",IF('Risk Matrix formulae'!J9>2,\"Medium\",IF('Risk Matrix formulae'!J9>0,\"Low\",\"\")))","v":""}]
[null,"2.3 Stripping, stockpiling and replacement of soils affecting soil health",null,null,null,null,null,{"$f":"IF('Risk Matrix formulae'!J10>5,\"High\",IF('Risk Matrix formulae'!J10>2,\"Medium\",IF('Risk Matrix formulae'!J10>0,\"Low\",\"\")))","v":""}]
["03.  Vegetation","3.1 Vegetation removal ",null,null,null,null,null,{"$f":"IF('Risk Matrix formulae'!J11>5,\"High\",IF('Risk Matrix formulae'!J11>2,\"Medium\",IF('Risk Matrix formulae'!J11>0,\"Low\",\"\")))","v":""}]
[null,"3.2 Damage to retained trees and vegetation",null,null,null,null,null,{"$f":"IF('Risk Matrix formulae'!J12>5,\"High\",IF('Risk Matrix formulae'!J12>2,\"Medium\",IF('Risk Matrix formulae'!J12>0,\"Low\",\"\")))","v":""}]
[null,"3.3 Presence and spreading of invasive species",null,null,null,null,null,{"$f":"IF('Risk Matrix formulae'!J13>5,\"High\",IF('Risk Matrix formulae'!J13>2,\"Medium\",IF('Risk Matrix formulae'!J13>0,\"Low\",\"\")))","v":""}]
["04.  Wildlife","4.1 Impact on animals: disturbance of habitat, including breeding and nesting sites",null,null,null,null,null,{"$f":"IF('Risk Matrix formulae'!J14>5,\"High\",IF('Risk Matrix formulae'!J14>2,\"Medium\",IF('Risk Matrix formulae'!J14>0,\"Low\",\"\")))","v":""}]
[null,"4.2 Impact on animals: other physical injury or disturbance, including migration routes and foraging",null,null,null,null,null,{"$f":"IF('Risk Matrix formulae'!J15>5,\"High\",IF('Risk Matrix formulae'!J15>2,\"Medium\",IF('Risk Matrix formulae'!J15>0,\"Low\",\"\")))","v":""}]
["05.  Pre-existing pollution / chemical contamination","5.1 Exposure to and generation of contaminated soil arisings or waste from pre-existing pollution ",null,null,null,null,null,{"$f":"IF('Risk Matrix formulae'!J16>5,\"High\",IF('Risk Matrix formulae'!J16>2,\"Medium\",IF('Risk Matrix formulae'!J16>0,\"Low\",\"\")))","v":""}]
["06.  Releases to land and water","6.1 Contamination of soil and water from demolition activities",null,null,null,null,null,{"$f":"IF('Risk Matrix formulae'!J17>5,\"High\",IF('Risk Matrix formulae'!J17>2,\"Medium\",IF('Risk Matrix formulae'!J17>0,\"Low\",\"\")))","v":""}]
[null,"6.2 Spills and leakages from stored fuel and chemicals impacting soil and water",null,null,null,null,null,{"$f":"IF('Risk Matrix formulae'!J18>5,\"High\",IF('Risk Matrix formulae'!J18>2,\"Medium\",IF('Risk Matrix formulae'!J18>0,\"Low\",\"\")))","v":""}]
[null,"6.3 Site activities, vehicle and equipment use, maintenance and washing areas impacting soil and water",null,null,null,null,null,{"$f":"IF('Risk Matrix formulae'!J19>5,\"High\",IF('Risk Matrix formulae'!J19>2,\"Medium\",IF('Risk Matrix formulae'!J19>0,\"Low\",\"\")))","v":""}]
[null,"6.4 Generation and disposal of wastewater - grey (i.e. wash, kitchen water) impacting soil and water",null,null,null,null,null,{"$f":"IF('Risk Matrix formulae'!J20>5,\"High\",IF('Risk Matrix formulae'!J20>2,\"Medium\",IF('Risk Matrix formulae'!J20>0,\"Low\",\"\")))","v":""}]
[null,"6.5 Generation and disposal of wastewater - black (i.e. sewage / human water) impacting soil and water",null,null,null,null,null,{"$f":"IF('Risk Matrix formulae'!J21>5,\"High\",IF('Risk Matrix formulae'!J21>2,\"Medium\",IF('Risk Matrix formulae'!J21>0,\"Low\",\"\")))","v":""}]
[null,"6.6 Generation of other wastewater impacting soil and water",null,null,null,null,null,{"$f":"IF('Risk Matrix formulae'!J22>5,\"High\",IF('Risk Matrix formulae'!J22>2,\"Medium\",IF('Risk Matrix formulae'!J22>0,\"Low\",\"\")))","v":""}]
[null,"6.7 Storage, handling and disposal of solid waste impacting soils and water",null,null,null,null,null,{"$f":"IF('Risk Matrix formulae'!J23>5,\"High\",IF('Risk Matrix formulae'!J23>2,\"Medium\",IF('Risk Matrix formulae'!J23>0,\"Low\",\"\")))","v":""}]
["07.  Generation of waste and waste management","7.1 Volumes of non-hazardous waste generated",null,null,null,null,null,{"$f":"IF('Risk Matrix formulae'!J24>5,\"High\",IF('Risk Matrix formulae'!J24>2,\"Medium\",IF('Risk Matrix formulae'!J24>0,\"Low\",\"\")))","v":""}]
[null,"7.2 Volumes of toxic/hazardous waste generated",null,null,null,null,null,{"$f":"IF('Risk Matrix formulae'!J25>5,\"High\",IF('Risk Matrix formulae'!J25>2,\"Medium\",IF('Risk Matrix formulae'!J25>0,\"Low\",\"\")))","v":""}]
["08. Resource use","8.1 Depletion of local potable and non-potable water supplies",null,null,null,null,null,{"$f":"IF('Risk Matrix formulae'!J26>5,\"High\",IF('Risk Matrix formulae'!J26>2,\"Medium\",IF('Risk Matrix formulae'!J26>0,\"Low\",\"\")))","v":""}]
[null,"8.2 Supply of consumables, including site equipment, markers, timber and depletion of resources",null,null,null,null,null,{"$f":"IF('Risk Matrix formulae'!J27>5,\"High\",IF('Risk Matrix formulae'!J27>2,\"Medium\",IF('Risk Matrix formulae'!J27>0,\"Low\",\"\")))","v":""}]
[null,"8.3 Single use plastics and sandbags, and depletion of resources",null,null,null,null,null,{"$f":"IF('Risk Matrix formulae'!J28>5,\"High\",IF('Risk Matrix formulae'!J28>2,\"Medium\",IF('Risk Matrix formulae'!J28>0,\"Low\",\"\")))","v":""}]
[null,"8.4 Footprint and area of land used",null,null,null,null,null,{"$f":"IF('Risk Matrix formulae'!J29>5,\"High\",IF('Risk Matrix formulae'!J29>2,\"Medium\",IF('Risk Matrix formulae'!J29>0,\"Low\",\"\")))","v":""}]
["09. Emissions to air","9.1 Vehicle and equipment exhaust emissions (generators, etc.) affect on air quality",null,null,null,null,null,{"$f":"IF('Risk Matrix formulae'!J30>5,\"High\",IF('Risk Matrix formulae'!J30>2,\"Medium\",IF('Risk Matrix formulae'!J30>0,\"Low\",\"\")))","v":""}]
[null,"9.2 Open burning and fires (vegetation, waste) affect on air quality",null,null,null,null,null,{"$f":"IF('Risk Matrix formulae'!J31>5,\"High\",IF('Risk Matrix formulae'!J31>2,\"Medium\",IF('Risk Matrix formulae'!J31>0,\"Low\",\"\")))","v":""}]
[null,"9.3 Emission from demolition activities (particulates, greenhouse gases and other hazardous air pollutants) affect on air quality",null,null,null,null,null,{"$f":"IF('Risk Matrix formulae'!J32>5,\"High\",IF('Risk Matrix formulae'!J32>2,\"Medium\",IF('Risk Matrix formulae'!J32>0,\"Low\",\"\")))","v":""}]
[null,"9.4 Dust from site activities / vehicle movements affect on air quality",null,null,null,null,null,{"$f":"IF('Risk Matrix formulae'!J33>5,\"High\",IF('Risk Matrix formulae'!J33>2,\"Medium\",IF('Risk Matrix formulae'!J33>0,\"Low\",\"\")))","v":""}]
["10.  Noise","10.1 Noise disturbance to livestock",null,null,null,null,null,{"$f":"IF('Risk Matrix formulae'!J34>5,\"High\",IF('Risk Matrix formulae'!J34>2,\"Medium\",IF('Risk Matrix formulae'!J34>0,\"Low\",\"\")))","v":""}]
[null,"10.2 Noise disturbance to wildlife",null,null,null,null,null,{"$f":"IF('Risk Matrix formulae'!J35>5,\"High\",IF('Risk Matrix formulae'!J35>2,\"Medium\",IF('Risk Matrix formulae'!J35>0,\"Low\",\"\")))","v":""}]
[null,"10.3 Noise disturbance to the local community",null,null,null,null,null,{"$f":"IF('Risk Matrix formulae'!J36>5,\"High\",IF('Risk Matrix formulae'!J36>2,\"Medium\",IF('Risk Matrix formulae'!J36>0,\"Low\",\"\")))","v":""}]
["11.  Local amenity","11.1 Nuisance to local communities ",null,null,null,null,null,{"$f":"IF('Risk Matrix formulae'!J37>5,\"High\",IF('Risk Matrix formulae'!J37>2,\"Medium\",IF('Risk Matrix formulae'!J37>0,\"Low\",\"\")))","v":""}]
["12.  Cultural heritage","12.1  Impact on cultural heritage and historical sites or objects, including religious and burial sites",null,null,null,null,null,{"$f":"IF('Risk Matrix formulae'!J38>5,\"High\",IF('Risk Matrix formulae'!J38>2,\"Medium\",IF('Risk Matrix formulae'!J38>0,\"Low\",\"\")))","v":""}]
["13.  Emergency / natural disaster","13.1 Uncontrolled releases from site, redundant equipment and risk to personnel",null,null,null,null,null,{"$f":"IF('Risk Matrix formulae'!J39>5,\"High\",IF('Risk Matrix formulae'!J39>2,\"Medium\",IF('Risk Matrix formulae'!J39>0,\"Low\",\"\")))","v":""}]
["14.  Local flooding / water courses","14.1 Increased surface run-off and ponding",null,null,null,null,null,{"$f":"IF('Risk Matrix formulae'!J40>5,\"High\",IF('Risk Matrix formulae'!J40>2,\"Medium\",IF('Risk Matrix formulae'!J40>0,\"Low\",\"\")))","v":""}]
[null,"14.2 Physical barriers / diversions obstructing flow",null,null,null,null,null,{"$f":"IF('Risk Matrix formulae'!J41>5,\"High\",IF('Risk Matrix formulae'!J41>2,\"Medium\",IF('Risk Matrix formulae'!J41>0,\"Low\",\"\")))","v":""}]

{"sheet":"Risk Register","index":7,"n_rows":46,"n_cols":16,"rows_kept":46,"cut":false,"hidden":false,"merged":[[2,1,2,4],[3,1,3,2],[4,0,4,6],[1,5,1,6],[0,0,0,5]]}
["GREENFIELD TOOL: Mine Action and Disarmament Operations - Version: March 2025 - 1.0"]
["RISK REGISTER AND ISSUES LOG",null,null,null,null," CLICK HERE FOR NEXT",null,null,null,null,null,null,null,null,null," CLICK HERE FOR NEXT"]
[{"$f":"'Step 2 EAM'!A3","v":"LOCATION (Work Area):"},{"$f":"LOCATION__WORK_AREA","v":0},null,null,null,"Co-ordinates:",{"$f":"step2_coord","v":0}]
["Completed by:",null,null,null,null,"Date completed:"]
["The risk register summarises the environmental risks and measures in place. It also allows for enhancement or compensation initiatives to be recorded, and the overall issues and outcomes."]
["Environmental impact\n","Significance - risk level","Covered in SOPs?","Control measures required?","With measures in place, what is the residual risk?","Are there other measures which could be applied but are not possible?","Details:","Not relevant","Are any compensation, or other enhancement measures being applied or planned?","Compensation or enhancement measures in place, or planned","Are controls in place effective?","Is further action required?","What is the estimated scale of the potential benefit?","What is the estimated overall outcome?","Date closed","Risk owner"]
["(Autofill)","(Autofill)","(Autofill)","(Autofill)","(Autofill)","(Autofill)","(Autofill)",null,"(Autofill)","(Autofill)",null,null,"(Learn more?)","(Learn more?)"]
[{"$f":"EAM_1.1","v":"1.1 Vulnerability to wind storms, soil erosion"},{"$f":"IFERROR(INDEX('Step 2 EAM'!$H:$H,MATCH(A8,'Step 2 EAM'!$B:$B,FALSE)),\"\")","v":""},{"$f":"IFERROR(INDEX('Step 2 EAM'!$K:$K,MATCH(A8,'Step 2 EAM'!$B:$B,FALSE)),\"\")","v":0},{"$f":"IFERROR(INDEX('Step 2 EAM'!$J:$J,MATCH(A8,'Step 2 EAM'!$B:$B,FALSE)),\"\")","v":0},{"$f":"IFERROR(INDEX('Step 2 EAM'!$M:$M,MATCH(A8,'Step 2 EAM'!$B:$B,FALSE)),\"\")","v":0},{"$f":"EAM_Climate_trends_N","v":0},{"$f":"EAM_Climate_trends_O","v":0},{"$f":"IFERROR(INDEX('Step 2 EAM'!$C:$C,MATCH(A8,'Step 2 EAM'!$B:$B,FALSE)),\"\")","v":0},{"$f":"EAM_Climate_trends_P","v":0},{"$f":"EAM_Climate_trends_Q","v":0}]
[{"$f":"EAM_1.2","v":"1.2 Vulnerability to landslides"},{"$f":"IFERROR(INDEX('Step 2 EAM'!$H:$H,MATCH(A9,'Step 2 EAM'!$B:$B,FALSE)),\"\")","v":""},{"$f":"IFERROR(INDEX('Step 2 EAM'!$K:$K,MATCH(A9,'Step 2 EAM'!$B:$B,FALSE)),\"\")","v":0},{"$f":"IFERROR(INDEX('Step 2 EAM'!$J:$J,MATCH(A9,'Step 2 EAM'!$B:$B,FALSE)),\"\")","v":0},{"$f":"IFERROR(INDEX('Step 2 EAM'!$M:$M,MATCH(A9,'Step 2 EAM'!$B:$B,FALSE)),\"\")","v":0},{"$f":"EAM_Climate_trends_N","v":0},{"$f":"EAM_Climate_trends_O","v":0},{"$f":"IFERROR(INDEX('Step 2 EAM'!$C:$C,MATCH(A9,'Step 2 EAM'!$B:$B,FALSE)),\"\")","v":0},{"$f":"EAM_Climate_trends_P","v":0},{"$f":"EAM_Climate_trends_Q","v":0}]
[{"$f":"EAM_1.3","v":"1.3 Vulnerability to extreme heat/droughts"},{"$f":"IFERROR(INDEX('Step 2 EAM'!$H:$H,MATCH(A10,'Step 2 EAM'!$B:$B,FALSE)),\"\")","v":""},{"$f":"IFERROR(INDEX('Step 2 EAM'!$K:$K,MATCH(A10,'Step 2 EAM'!$B:$B,FALSE)),\"\")","v":0},{"$f":"IFERROR(INDEX('Step 2 EAM'!$J:$J,MATCH(A10,'Step 2 EAM'!$B:$B,FALSE)),\"\")","v":0},{"$f":"IFERROR(INDEX('Step 2 EAM'!$M:$M,MATCH(A10,'Step 2 EAM'!$B:$B,FALSE)),\"\")","v":0},{"$f":"EAM_Climate_trends_N","v":0},{"$f":"EAM_Climate_trends_O","v":0},{"$f":"IFERROR(INDEX('Step 2 EAM'!$C:$C,MATCH(A10,'Step 2 EAM'!$B:$B,FALSE)),\"\")","v":0},{"$f":"EAM_Climate_trends_P","v":0},{"$f":"EAM_Climate_trends_Q","v":0}]
[{"$f":"EAM_1.4","v":"1.4 Vulnerability to wildfires"},{"$f":"IFERROR(INDEX('Step 2 EAM'!$H:$H,MATCH(A11,'Step 2 EAM'!$B:$B,FALSE)),\"\")","v":""},{"$f":"IFERROR(INDEX('Step 2 EAM'!$K:$K,MATCH(A11,'Step 2 EAM'!$B:$B,FALSE)),\"\")","v":0},{"$f":"IFERROR(INDEX('Step 2 EAM'!$J:$J,MATCH(A11,'Step 2 EAM'!$B:$B,FALSE)),\"\")","v":0},{"$f":"IFERROR(INDEX('Step 2 EAM'!$M:$M,MATCH(A11,'Step 2 EAM'!$B:$B,FALSE)),\"\")","v":0},{"$f":"EAM_Climate_trends_N","v":0},{"$f":"EAM_Climate_trends_O","v":0},{"$f":"IFERROR(INDEX('Step 2 EAM'!$C:$C,MATCH(A11,'Step 2 EAM'!$B:$B,FALSE)),\"\")","v":0},{"$f":"EAM_Climate_trends_P","v":0},{"$f":"EAM_Climate_trends_Q","v":0}]
[{"$f":"EAM_1.5","v":"1.5 Vulnerability to flooding events"},{"$f":"IFERROR(INDEX('Step 2 EAM'!$H:$H,MATCH(A12,'Step 2 EAM'!$B:$B,FALSE)),\"\")","v":""},{"$f":"IFERROR(INDEX('Step 2 EAM'!$K:$K,MATCH(A12,'Step 2 EAM'!$B:$B,FALSE)),\"\")","v":0},{"$f":"IFERROR(INDEX('Step 2 EAM'!$J:$J,MATCH(A12,'Step 2 EAM'!$B:$B,FALSE)),\"\")","v":0},{"$f":"IFERROR(INDEX('Step 2 EAM'!$M:$M,MATCH(A12,'Step 2 EAM'!$B:$B,FALSE)),\"\")","v":0},{"$f":"EAM_Climate_trends_N","v":0},{"$f":"EAM_Climate_trends_O","v":0},{"$f":"IFERROR(INDEX('Step 2 EAM'!$C:$C,MATCH(A12,'Step 2 EAM'!$B:$B,FALSE)),\"\")","v":0},{"$f":"EAM_Climate_trends_P","v":0},{"$f":"EAM_Climate_trends_Q","v":0}]
[{"$f":"EAM_2.1","v":"2.1 Soil degradation due to machinery and vehicles - use and tracking causing soil compaction, loss of structure and erosion"},{"$f":"IFERROR(INDEX('Step 2 EAM'!$H:$H,MATCH(A13,'Step 2 EAM'!$B:$B,FALSE)),\"\")","v":""},{"$f":"IFERROR(INDEX('Step 2 EAM'!$K:$K,MATCH(A13,'Step 2 EAM'!$B:$B,FALSE)),\"\")","v":0},{"$f":"IFERROR(INDEX('Step 2 EAM'!$J:$J,MATCH(A13,'Step 2 EAM'!$B:$B,FALSE)),\"\")","v":0},{"$f":"IFERROR(INDEX('Step 2 EAM'!$M:$M,MATCH(A13,'Step 2 EAM'!$B:$B,FALSE)),\"\")","v":0},{"$f":"EAM_Soil_N","v":0},{"$f":"EAM_Soil_O","v":0},{"$f":"IFERROR(INDEX('Step 2 EAM'!$C:$C,MATCH(A13,'Step 2 EAM'!$B:$B,FALSE)),\"\")","v":0},{"$f":"EAM_Soil_P","v":0},{"$f":"EAM_Soil_Q","v":0}]
[{"$f":"EAM_2.2","v":"2.2 Cratering / detonations affecting soil structure and landform changes"},{"$f":"IFERROR(INDEX('Step 2 EAM'!$H:$H,MATCH(A14,'Step 2 EAM'!$B:$B,FALSE)),\"\")","v":""},{"$f":"IFERROR(INDEX('Step 2 EAM'!$K:$K,MATCH(A14,'Step 2 EAM'!$B:$B,FALSE)),\"\")","v":0},{"$f":"IFERROR(INDEX('Step 2 EAM'!$J:$J,MATCH(A14,'Step 2 EAM'!$B:$B,FALSE)),\"\")","v":0},{"$f":"IFERROR(INDEX('Step 2 EAM'!$M:$M,MATCH(A14,'Step 2 EAM'!$B:$B,FALSE)),\"\")","v":0},{"$f":"EAM_Soil_N","v":0},{"$f":"EAM_Soil_O","v":0},{"$f":"IFERROR(INDEX('Step 2 EAM'!$C:$C,MATCH(A14,'Step 2 EAM'!$B:$B,FALSE)),\"\")","v":0},{"$f":"EAM_Soil_P","v":0},{"$f":"EAM_Soil_Q","v":0}]
[{"$f":"EAM_2.3","v":"2.3 Stripping, stockpiling and replacement of soils affecting soil health"},{"$f":"IFERROR(INDEX('Step 2 EAM'!$H:$H,MATCH(A15,'Step 2 EAM'!$B:$B,FALSE)),\"\")","v":""},{"$f":"IFERROR(INDEX('Step 2 EAM'!$K:$K,MATCH(A15,'Step 2 EAM'!$B:$B,FALSE)),\"\")","v":0},{"$f":"IFERROR(INDEX('Step 2 EAM'!$J:$J,MATCH(A15,'Step 2 EAM'!$B:$B,FALSE)),\"\")","v":0},{"$f":"IFERROR(INDEX('Step 2 EAM'!$M:$M,MATCH(A15,'Step 2 EAM'!$B:$B,FALSE)),\"\")","v":0},{"$f":"EAM_Soil_N","v":0},{"$f":"EAM_Soil_O","v":0},{"$f":"IFERROR(INDEX('Step 2 EAM'!$C:$C,MATCH(A15,'Step 2 EAM'!$B:$B,FALSE)),\"\")","v":0},{"$f":"EAM_Soil_P","v":0},{"$f":"EAM_Soil_Q","v":0}]
[{"$f":"EAM_3.1","v":"3.1 Vegetation removal "},{"$f":"IFERROR(INDEX('Step 2 EAM'!$H:$H,MATCH(A16,'Step 2 EAM'!$B:$B,FALSE)),\"\")","v":""},{"$f":"IFERROR(INDEX('Step 2 EAM'!$K:$K,MATCH(A16,'Step 2 EAM'!$B:$B,FALSE)),\"\")","v":0},{"$f":"IFERROR(INDEX('Step 2 EAM'!$J:$J,MATCH(A16,'Step 2 EAM'!$B:$B,FALSE)),\"\")","v":0},{"$f":"IFERROR(INDEX('Step 2 EAM'!$M:$M,MATCH(A16,'Step 2 EAM'!$B:$B,FALSE)),\"\")","v":0},{"$f":"EAM_Veg_N","v":0},{"$f":"EAM_Veg_O","v":0},{"$f":"IFERROR(INDEX('Step 2 EAM'!$C:$C,MATCH(A16,'Step 2 EAM'!$B:$B,FALSE)),\"\")","v":0},{"$f":"EAM_Veg_P","v":0},{"$f":"EAM_Veg_Q","v":0}]
[{"$f":"EAM_3.2","v":"3.2 Damage to retained trees and vegetation"},{"$f":"IFERROR(INDEX('Step 2 EAM'!$H:$H,MATCH(A17,'Step 2 EAM'!$B:$B,FALSE)),\"\")","v":""},{"$f":"IFERROR(INDEX('Step 2 EAM'!$K:$K,MATCH(A17,'Step 2 EAM'!$B:$B,FALSE)),\"\")","v":0},{"$f":"IFERROR(INDEX('Step 2 EAM'!$J:$J,MATCH(A17,'Step 2 EAM'!$B:$B,FALSE)),\"\")","v":0},{"$f":"IFERROR(INDEX('Step 2 EAM'!$M:$M,MATCH(A17,'Step 2 EAM'!$B:$B,FALSE)),\"\")","v":0},{"$f":"EAM_Veg_N","v":0},{"$f":"EAM_Veg_O","v":0},{"$f":"IFERROR(INDEX('Step 2 EAM'!$C:$C,MATCH(A17,'Step 2 EAM'!$B:$B,FALSE)),\"\")","v":0},{"$f":"EAM_Veg_P","v":0},{"$f":"EAM_Veg_Q","v":0}]
[{"$f":"EAM_3.3","v":"3.3 Presence and spreading of invasive species"},{"$f":"IFERROR(INDEX('Step 2 EAM'!$H:$H,MATCH(A18,'Step 2 EAM'!$B:$B,FALSE)),\"\")","v":""},{"$f":"IFERROR(INDEX('Step 2 EAM'!$K:$K,MATCH(A18,'Step 2 EAM'!$B:$B,FALSE)),\"\")","v":0},{"$f":"IFERROR(INDEX('Step 2 EAM'!$J:$J,MATCH(A18,'Step 2 EAM'!$B:$B,FALSE)),\"\")","v":0},{"$f":"IFERROR(INDEX('Step 2 EAM'!$M:$M,MATCH(A18,'Step 2 EAM'!$B:$B,FALSE)),\"\")","v":0},{"$f":"EAM_Veg_N","v":0},{"$f":"EAM_Veg_O","v":0},{"$f":"IFERROR(INDEX('Step 2 EAM'!$C:$C,MATCH(A18,'Step 2 EAM'!$B:$B,FALSE)),\"\")","v":0},{"$f":"EAM_Veg_P","v":0},{"$f":"EAM_Veg_Q","v":0}]
[{"$f":"EAM_4.1","v":"4.1 Impact on animals: disturbance of habitat, including breeding and nesting sites"},{"$f":"IFERROR(INDEX('Step 2 EAM'!$H:$H,MATCH(A19,'Step 2 EAM'!$B:$B,FALSE)),\"\")","v":""},{"$f":"IFERROR(INDEX('Step 2 EAM'!$K:$K,MATCH(A19,'Step 2 EAM'!$B:$B,FALSE)),\"\")","v":0},{"$f":"IFERROR(INDEX('Step 2 EAM'!$J:$J,MATCH(A19,'Step 2 EAM'!$B:$B,FALSE)),\"\")","v":0},{"$f":"IFERROR(INDEX('Step 2 EAM'!$M:$M,MATCH(A19,'Step 2 EAM'!$B:$B,FALSE)),\"\")","v":0},{"$f":"EAM_Wildlife_N","v":0},{"$f":"EAM_Wildlife_O","v":0},{"$f":"IFERROR(INDEX('Step 2 EAM'!$C:$C,MATCH(A19,'Step 2 EAM'!$B:$B,FALSE)),\"\")","v":0},{"$f":"EAM_Wildlife_P","v":0},{"$f":"EAM_Wildlife_Q","v":0}]
[{"$f":"EAM_4.2","v":"4.2 Impact on animals: other physical injury or disturbance, including migration routes and foraging"},{"$f":"IFERROR(INDEX('Step 2 EAM'!$H:$H,MATCH(A20,'Step 2 EAM'!$B:$B,FALSE)),\"\")","v":""},{"$f":"IFERROR(INDEX('Step 2 EAM'!$K:$K,MATCH(A20,'Step 2 EAM'!$B:$B,FALSE)),\"\")","v":0},{"$f":"IFERROR(INDEX('Step 2 EAM'!$J:$J,MATCH(A20,'Step 2 EAM'!$B:$B,FALSE)),\"\")","v":0},{"$f":"IFERROR(INDEX('Step 2 EAM'!$M:$M,MATCH(A20,'Step 2 EAM'!$B:$B,FALSE)),\"\")","v":0},{"$f":"EAM_Wildlife_N","v":0},{"$f":"EAM_Wildlife_O","v":0},{"$f":"IFERROR(INDEX('Step 2 EAM'!$C:$C,MATCH(A20,'Step 2 EAM'!$B:$B,FALSE)),\"\")","v":0},{"$f":"EAM_Wildlife_P","v":0},{"$f":"EAM_Wildlife_Q","v":0}]
[{"$f":"EAM_5.1","v":"5.1 Exposure to and generation of contaminated soil arisings or waste from pre-existing pollution "},{"$f":"IFERROR(INDEX('Step 2 EAM'!$H:$H,MATCH(A21,'Step 2 EAM'!$B:$B,FALSE)),\"\")","v":""},{"$f":"IFERROR(INDEX('Step 2 EAM'!$K:$K,MATCH(A21,'Step 2 EAM'!$B:$B,FALSE)),\"\")","v":0},{"$f":"IFERROR(INDEX('Step 2 EAM'!$J:$J,MATCH(A21,'Step 2 EAM'!$B:$B,FALSE)),\"\")","v":0},{"$f":"IFERROR(INDEX('Step 2 EAM'!$M:$M,MATCH(A21,'Step 2 EAM'!$B:$B,FALSE)),\"\")","v":0},{"$f":"EAM_Pollution_N","v":0},{"$f":"EAM_Pollution_O","v":0},{"$f":"IFERROR(INDEX('Step 2 EAM'!$C:$C,MATCH(A21,'Step 2 EAM'!$B:$B,FALSE)),\"\")","v":0},{"$f":"EAM_Pollution_P","v":0},{"$f":"EAM_Pollution_Q","v":0}]
[{"$f":"EAM_6.1","v":"6.1 Contamination of soil and water from demolition activities"},{"$f":"IFERROR(INDEX('Step 2 EAM'!$H:$H,MATCH(A22,'Step 2 EAM'!$B:$B,FALSE)),\"\")","v":""},{"$f":"IFERROR(INDEX('Step 2 EAM'!$K:$K,MATCH(A22,'Step 2 EAM'!$B:$B,FALSE)),\"\")","v":0},{"$f":"IFERROR(INDEX('Step 2 EAM'!$J:$J,MATCH(A22,'Step 2 EAM'!$B:$B,FALSE)),\"\")","v":0},{"$f":"IFERROR(INDEX('Step 2 EAM'!$M:$M,MATCH(A22,'Step 2 EAM'!$B:$B,FALSE)),\"\")","v":0},{"$f":"EAM_Releases_N","v":0},{"$f":"EAM_Releases_O","v":0},{"$f":"IFERROR(INDEX('Step 2 EAM'!$C:$C,MATCH(A22,'Step 2 EAM'!$B:$B,FALSE)),\"\")","v":0},{"$f":"EAM_Releases_P","v":0},{"$f":"EAM_Releases_Q","v":0}]
[{"$f":"EAM_6.2","v":"6.2 Spills and leakages from stored fuel and chemicals impacting soil and water"},{"$f":"IFERROR(INDEX('Step 2 EAM'!$H:$H,MATCH(A23,'Step 2 EAM'!$B:$B,FALSE)),\"\")","v":""},{"$f":"IFERROR(INDEX('Step 2 EAM'!$K:$K,MATCH(A23,'Step 2 EAM'!$B:$B,FALSE)),\"\")","v":0},{"$f":"IFERROR(INDEX('Step 2 EAM'!$J:$J,MATCH(A23,'Step 2 EAM'!$B:$B,FALSE)),\"\")","v":0},{"$f":"IFERROR(INDEX('Step 2 EAM'!$M:$M,MATCH(A23,'Step 2 EAM'!$B:$B,FALSE)),\"\")","v":0},0,0,{"$f":"IFERROR(INDEX('Step 2 EAM'!$C:$C,MATCH(A23,'Step 2 EAM'!$B:$B,FALSE)),\"\")","v":0},0,0]
[{"$f":"EAM_6.3","v":"6.3 Site activities, vehicle and equipment use, maintenance and washing areas impacting soil and water"},{"$f":"IFERROR(INDEX('Step 2 EAM'!$H:$H,MATCH(A24,'Step 2 EAM'!$B:$B,FALSE)),\"\")","v":""},{"$f":"IFERROR(INDEX('Step 2 EAM'!$K:$K,MATCH(A24,'Step 2 EAM'!$B:$B,FALSE)),\"\")","v":0},{"$f":"IFERROR(INDEX('Step 2 EAM'!$J:$J,MATCH(A24,'Step 2 EAM'!$B:$B,FALSE)),\"\")","v":0},{"$f":"IFERROR(INDEX('Step 2 EAM'!$M:$M,MATCH(A24,'Step 2 EAM'!$B:$B,FALSE)),\"\")","v":0},0,0,{"$f":"IFERROR(INDEX('Step 2 EAM'!$C:$C,MATCH(A24,'Step 2 EAM'!$B:$B,FALSE)),\"\")","v":0},0,0]
[{"$f":"EAM_6.4","v":"6.4 Generation and disposal of wastewater - grey (i.e. wash, kitchen water) impacting soil and water"},{"$f":"IFERROR(INDEX('Step 2 EAM'!$H:$H,MATCH(A25,'Step 2 EAM'!$B:$B,FALSE)),\"\")","v":""},{"$f":"IFERROR(INDEX('Step 2 EAM'!$K:$K,MATCH(A25,'Step 2 EAM'!$B:$B,FALSE)),\"\")","v":0},{"$f":"IFERROR(INDEX('Step 2 EAM'!$J:$J,MATCH(A25,'Step 2 EAM'!$B:$B,FALSE)),\"\")","v":0},{"$f":"IFERROR(INDEX('Step 2 EAM'!$M:$M,MATCH(A25,'Step 2 EAM'!$B:$B,FALSE)),\"\")","v":0},0,0,{"$f":"IFERROR(INDEX('Step 2 EAM'!$C:$C,MATCH(A25,'Step 2 EAM'!$B:$B,FALSE)),\"\")","v":0},0,0]
[{"$f":"EAM_6.5","v":"6.5 Generation and disposal of wastewater - black (i.e. sewage / human water) impacting soil and water"},{"$f":"IFERROR(INDEX('Step 2 EAM'!$H:$H,MATCH(A26,'Step 2 EAM'!$B:$B,FALSE)),\"\")","v":""},{"$f":"IFERROR(INDEX('Step 2 EAM'!$K:$K,MATCH(A26,'Step 2 EAM'!$B:$B,FALSE)),\"\")","v":0},{"$f":"IFERROR(INDEX('Step 2 EAM'!$J:$J,MATCH(A26,'Step 2 EAM'!$B:$B,FALSE)),\"\")","v":0},{"$f":"IFERROR(INDEX('Step 2 EAM'!$M:$M,MATCH(A26,'Step 2 EAM'!$B:$B,FALSE)),\"\")","v":0},0,0,{"$f":"IFERROR(INDEX('Step 2 EAM'!$C:$C,MATCH(A26,'Step 2 EAM'!$B:$B,FALSE)),\"\")","v":0},0,0]
[{"$f":"EAM_6.6","v":"6.6 Generation of other wastewater impacting soil and water"},{"$f":"IFERROR(INDEX('Step 2 EAM'!$H:$H,MATCH(A27,'Step 2 EAM'!$B:$B,FALSE)),\"\")","v":""},{"$f":"IFERROR(INDEX('Step 2 EAM'!$K:$K,MATCH(A27,'Step 2 EAM'!$B:$B,FALSE)),\"\")","v":0},{"$f":"IFERROR(INDEX('Step 2 EAM'!$J:$J,MATCH(A27,'Step 2 EAM'!$B:$B,FALSE)),\"\")","v":0},{"$f":"IFERROR(INDEX('Step 2 EAM'!$M:$M,MATCH(A27,'Step 2 EAM'!$B:$B,FALSE)),\"\")","v":0},0,0,{"$f":"IFERROR(INDEX('Step 2 EAM'!$C:$C,MATCH(A27,'Step 2 EAM'!$B:$B,FALSE)),\"\")","v":0},0,0]
[{"$f":"EAM_6.7","v":"6.7 Storage, handling and disposal of solid waste impacting soils and water"},{"$f":"IFERROR(INDEX('Step 2 EAM'!$H:$H,MATCH(A28,'Step 2 EAM'!$B:$B,FALSE)),\"\")","v":""},{"$f":"IFERROR(INDEX('Step 2 EAM'!$K:$K,MATCH(A28,'Step 2 EAM'!$B:$B,FALSE)),\"\")","v":0},{"$f":"IFERROR(INDEX('Step 2 EAM'!$J:$J,MATCH(A28,'Step 2 EAM'!$B:$B,FALSE)),\"\")","v":0},{"$f":"IFERROR(INDEX('Step 2 EAM'!$M:$M,MATCH(A28,'Step 2 EAM'!$B:$B,FALSE)),\"\")","v":0},0,0,{"$f":"IFERROR(INDEX('Step 2 EAM'!$C:$C,MATCH(A28,'Step 2 EAM'!$B:$B,FALSE)),\"\")","v":0},0,0]
[{"$f":"EAM_7.1","v":"7.1 Volumes of non-hazardous waste generated"},{"$f":"IFERROR(INDEX('Step 2 EAM'!$H:$H,MATCH(A29,'Step 2 EAM'!$B:$B,FALSE)),\"\")","v":""},{"$f":"IFERROR(INDEX('Step 2 EAM'!$K:$K,MATCH(A29,'Step 2 EAM'!$B:$B,FALSE)),\"\")","v":0},{"$f":"IFERROR(INDEX('Step 2 EAM'!$J:$J,MATCH(A29,'Step 2 EAM'!$B:$B,FALSE)),\"\")","v":0},{"$f":"IFERROR(INDEX('Step 2 EAM'!$M:$M,MATCH(A29,'Step 2 EAM'!$B:$B,FALSE)),\"\")","v":0},{"$f":"EAM_Waste_N","v":0},{"$f":"EAM_Waste_O","v":0},{"$f":"IFERROR(INDEX('Step 2 EAM'!$C:$C,MATCH(A29,'Step 2 EAM'!$B:$B,FALSE)),\"\")","v":0},{"$f":"EAM_Waste_P","v":0},{"$f":"EAM_Waste_Q","v":0}]
[{"$f":"EAM_7.2","v":"7.2 Volumes of toxic/hazardous waste generated"},{"$f":"IFERROR(INDEX('Step 2 EAM'!$H:$H,MATCH(A30,'Step 2 EAM'!$B:$B,FALSE)),\"\")","v":""},{"$f":"IFERROR(INDEX('Step 2 EAM'!$K:$K,MATCH(A30,'Step 2 EAM'!$B:$B,FALSE)),\"\")","v":0},{"$f":"IFERROR(INDEX('Step 2 EAM'!$J:$J,MATCH(A30,'Step 2 EAM'!$B:$B,FALSE)),\"\")","v":0},{"$f":"IFERROR(INDEX('Step 2 EAM'!$M:$M,MATCH(A30,'Step 2 EAM'!$B:$B,FALSE)),\"\")","v":0},{"$f":"EAM_Waste_N","v":0},{"$f":"EAM_Waste_O","v":0},{"$f":"IFERROR(INDEX('Step 2 EAM'!$C:$C,MATCH(A30,'Step 2 EAM'!$B:$B,FALSE)),\"\")","v":0},{"$f":"EAM_Waste_P","v":0},{"$f":"EAM_Waste_Q","v":0}]
[{"$f":"EAM_8.1","v":"8.1 Depletion of local potable and non-potable water supplies"},{"$f":"IFERROR(INDEX('Step 2 EAM'!$H:$H,MATCH(A31,'Step 2 EAM'!$B:$B,FALSE)),\"\")","v":""},{"$f":"IFERROR(INDEX('Step 2 EAM'!$K:$K,MATCH(A31,'Step 2 EAM'!$B:$B,FALSE)),\"\")","v":0},{"$f":"IFERROR(INDEX('Step 2 EAM'!$J:$J,MATCH(A31,'Step 2 EAM'!$B:$B,FALSE)),\"\")","v":0},{"$f":"IFERROR(INDEX('Step 2 EAM'!$M:$M,MATCH(A31,'Step 2 EAM'!$B:$B,FALSE)),\"\")","v":0},{"$f":"EAM_Resources_N","v":0},{"$f":"EAM_Resources_O","v":0},{"$f":"IFERROR(INDEX('Step 2 EAM'!$C:$C,MATCH(A31,'Step 2 EAM'!$B:$B,FALSE)),\"\")","v":0},{"$f":"EAM_Resources_P","v":0},{"$f":"EAM_Resources_Q","v":0}]
[{"$f":"EAM_8.2","v":"8.2 Supply of consumables, including site equipment, markers, timber and depletion of resources"},{"$f":"IFERROR(INDEX('Step 2 EAM'!$H:$H,MATCH(A32,'Step 2 EAM'!$B:$B,FALSE)),\"\")","v":""},{"$f":"IFERROR(INDEX('Step 2 EAM'!$K:$K,MATCH(A32,'Step 2 EAM'!$B:$B,FALSE)),\"\")","v":0},{"$f":"IFERROR(INDEX('Step 2 EAM'!$J:$J,MATCH(A32,'Step 2 EAM'!$B:$B,FALSE)),\"\")","v":0},{"$f":"IFERROR(INDEX('Step 2 EAM'!$M:$M,MATCH(A32,'Step 2 EAM'!$B:$B,FALSE)),\"\")","v":0},{"$f":"EAM_Resources_N","v":0},{"$f":"EAM_Resources_O","v":0},{"$f":"IFERROR(INDEX('Step 2 EAM'!$C:$C,MATCH(A32,'Step 2 EAM'!$B:$B,FALSE)),\"\")","v":0},{"$f":"EAM_Resources_P","v":0},{"$f":"EAM_Resources_Q","v":0}]
[{"$f":"EAM_8.3","v":"8.3 Single use plastics and sandbags, and depletion of resources"},{"$f":"IFERROR(INDEX('Step 2 EAM'!$H:$H,MATCH(A33,'Step 2 EAM'!$B:$B,FALSE)),\"\")","v":""},{"$f":"IFERROR(INDEX('Step 2 EAM'!$K:$K,MATCH(A33,'Step 2 EAM'!$B:$B,FALSE)),\"\")","v":0},{"$f":"IFERROR(INDEX('Step 2 EAM'!$J:$J,MATCH(A33,'Step 2 EAM'!$B:$B,FALSE)),\"\")","v":0},{"$f":"IFERROR(INDEX('Step 2 EAM'!$M:$M,MATCH(A33,'Step 2 EAM'!$B:$B,FALSE)),\"\")","v":0},{"$f":"EAM_Resources_N","v":0},{"$f":"EAM_Resources_O","v":0},{"$f":"IFERROR(INDEX('Step 2 EAM'!$C:$C,MATCH(A33,'Step 2 EAM'!$B:$B,FALSE)),\"\")","v":0},{"$f":"EAM_Resources_P","v":0},{"$f":"EAM_Resources_Q","v":0}]
[{"$f":"EAM_8.4","v":"8.4 Footprint and area of land used"},{"$f":"IFERROR(INDEX('Step 2 EAM'!$H:$H,MATCH(A34,'Step 2 EAM'!$B:$B,FALSE)),\"\")","v":""},{"$f":"IFERROR(INDEX('Step 2 EAM'!$K:$K,MATCH(A34,'Step 2 EAM'!$B:$B,FALSE)),\"\")","v":0},{"$f":"IFERROR(INDEX('Step 2 EAM'!$J:$J,MATCH(A34,'Step 2 EAM'!$B:$B,FALSE)),\"\")","v":0},{"$f":"IFERROR(INDEX('Step 2 EAM'!$M:$M,MATCH(A34,'Step 2 EAM'!$B:$B,FALSE)),\"\")","v":0},{"$f":"EAM_Resources_N","v":0},{"$f":"EAM_Resources_O","v":0},{"$f":"IFERROR(INDEX('Step 2 EAM'!$C:$C,MATCH(A34,'Step 2 EAM'!$B:$B,FALSE)),\"\")","v":0},{"$f":"EAM_Resources_P","v":0},{"$f":"EAM_Resources_Q","v":0}]
[{"$f":"EAM_9.1","v":"9.1 Vehicle and equipment exhaust emissions (generators, etc.) affect on air quality"},{"$f":"IFERROR(INDEX('Step 2 EAM'!$H:$H,MATCH(A35,'Step 2 EAM'!$B:$B,FALSE)),\"\")","v":""},{"$f":"IFERROR(INDEX('Step 2 EAM'!$K:$K,MATCH(A35,'Step 2 EAM'!$B:$B,FALSE)),\"\")","v":0},{"$f":"IFERROR(INDEX('Step 2 EAM'!$J:$J,MATCH(A35,'Step 2 EAM'!$B:$B,FALSE)),\"\")","v":0},{"$f":"IFERROR(INDEX('Step 2 EAM'!$M:$M,MATCH(A35,'Step 2 EAM'!$B:$B,FALSE)),\"\")","v":0},{"$f":"EAM_Air_N","v":0},{"$f":"EAM_Air_O","v":0},{"$f":"IFERROR(INDEX('Step 2 EAM'!$C:$C,MATCH(A35,'Step 2 EAM'!$B:$B,FALSE)),\"\")","v":0},{"$f":"EAM_Air_P","v":0},{"$f":"EAM_Air_Q","v":0}]
[{"$f":"EAM_9.2","v":"9.2 Open burning and fires (vegetation, waste) affect on air quality"},{"$f":"IFERROR(INDEX('Step 2 EAM'!$H:$H,MATCH(A36,'Step 2 EAM'!$B:$B,FALSE)),\"\")","v":""},{"$f":"IFERROR(INDEX('Step 2 EAM'!$K:$K,MATCH(A36,'Step 2 EAM'!$B:$B,FALSE)),\"\")","v":0},{"$f":"IFERROR(INDEX('Step 2 EAM'!$J:$J,MATCH(A36,'Step 2 EAM'!$B:$B,FALSE)),\"\")","v":0},{"$f":"IFERROR(INDEX('Step 2 EAM'!$M:$M,MATCH(A36,'Step 2 EAM'!$B:$B,FALSE)),\"\")","v":0},{"$f":"EAM_Air_N","v":0},{"$f":"EAM_Air_O","v":0},{"$f":"IFERROR(INDEX('Step 2 EAM'!$C:$C,MATCH(A36,'Step 2 EAM'!$B:$B,FALSE)),\"\")","v":0},{"$f":"EAM_Air_P","v":0},{"$f":"EAM_Air_Q","v":0}]
[{"$f":"EAM_9.3","v":"9.3 Emission from demolition activities (particulates, greenhouse gases and other hazardous air pollutants) affect on air quality"},{"$f":"IFERROR(INDEX('Step 2 EAM'!$H:$H,MATCH(A37,'Step 2 EAM'!$B:$B,FALSE)),\"\")","v":""},{"$f":"IFERROR(INDEX('Step 2 EAM'!$K:$K,MATCH(A37,'Step 2 EAM'!$B:$B,FALSE)),\"\")","v":0},{"$f":"IFERROR(INDEX('Step 2 EAM'!$J:$J,MATCH(A37,'Step 2 EAM'!$B:$B,FALSE)),\"\")","v":0},{"$f":"IFERROR(INDEX('Step 2 EAM'!$M:$M,MATCH(A37,'Step 2 EAM'!$B:$B,FALSE)),\"\")","v":0},{"$f":"EAM_Air_N","v":0},{"$f":"EAM_Air_O","v":0},{"$f":"IFERROR(INDEX('Step 2 EAM'!$C:$C,MATCH(A37,'Step 2 EAM'!$B:$B,FALSE)),\"\")","v":0},{"$f":"EAM_Air_P","v":0},{"$f":"EAM_Air_Q","v":0}]
[{"$f":"EAM_9.4","v":"9.4 Dust from site activities / vehicle movements affect on air quality"},{"$f":"IFERROR(INDEX('Step 2 EAM'!$H:$H,MATCH(A38,'Step 2 EAM'!$B:$B,FALSE)),\"\")","v":""},{"$f":"IFERROR(INDEX('Step 2 EAM'!$K:$K,MATCH(A38,'Step 2 EAM'!$B:$B,FALSE)),\"\")","v":0},{"$f":"IFERROR(INDEX('Step 2 EAM'!$J:$J,MATCH(A38,'Step 2 EAM'!$B:$B,FALSE)),\"\")","v":0},{"$f":"IFERROR(INDEX('Step 2 EAM'!$M:$M,MATCH(A38,'Step 2 EAM'!$B:$B,FALSE)),\"\")","v":0},{"$f":"EAM_Air_N","v":0},{"$f":"EAM_Air_O","v":0},{"$f":"IFERROR(INDEX('Step 2 EAM'!$C:$C,MATCH(A38,'Step 2 EAM'!$B:$B,FALSE)),\"\")","v":0},{"$f":"EAM_Air_P","v":0},{"$f":"EAM_Air_Q","v":0}]
[{"$f":"EAM_10.1","v":"10.1 Noise disturbance to livestock"},{"$f":"IFERROR(INDEX('Step 2 EAM'!$H:$H,MATCH(A39,'Step 2 EAM'!$B:$B,FALSE)),\"\")","v":""},{"$f":"IFERROR(INDEX('Step 2 EAM'!$K:$K,MATCH(A39,'Step 2 EAM'!$B:$B,FALSE)),\"\")","v":0},{"$f":"IFERROR(INDEX('Step 2 EAM'!$J:$J,MATCH(A39,'Step 2 EAM'!$B:$B,FALSE)),\"\")","v":0},{"$f":"IFERROR(INDEX('Step 2 EAM'!$M:$M,MATCH(A39,'Step 2 EAM'!$B:$B,FALSE)),\"\")","v":0},{"$f":"EAM_Noise_N","v":0},{"$f":"EAM_Noise_O","v":0},{"$f":"IFERROR(INDEX('Step 2 EAM'!$C:$C,MATCH(A39,'Step 2 EAM'!$B:$B,FALSE)),\"\")","v":0},{"$f":"EAM_Noise_P","v":0},{"$f":"EAM_Noise_Q","v":0}]
[{"$f":"EAM_10.2","v":"10.2 Noise disturbance to wildlife"},{"$f":"IFERROR(INDEX('Step 2 EAM'!$H:$H,MATCH(A40,'Step 2 EAM'!$B:$B,FALSE)),\"\")","v":""},{"$f":"IFERROR(INDEX('Step 2 EAM'!$K:$K,MATCH(A40,'Step 2 EAM'!$B:$B,FALSE)),\"\")","v":0},{"$f":"IFERROR(INDEX('Step 2 EAM'!$J:$J,MATCH(A40,'Step 2 EAM'!$B:$B,FALSE)),\"\")","v":0},{"$f":"IFERROR(INDEX('Step 2 EAM'!$M:$M,MATCH(A40,'Step 2 EAM'!$B:$B,FALSE)),\"\")","v":0},{"$f":"EAM_Noise_N","v":0},{"$f":"EAM_Noise_O","v":0},{"$f":"IFERROR(INDEX('Step 2 EAM'!$C:$C,MATCH(A40,'Step 2 EAM'!$B:$B,FALSE)),\"\")","v":0},{"$f":"EAM_Noise_P","v":0},{"$f":"EAM_Noise_Q","v":0}]
[{"$f":"EAM_10.3","v":"10.3 Noise disturbance to the local community"},{"$f":"IFERROR(INDEX('Step 2 EAM'!$H:$H,MATCH(A41,'Step 2 EAM'!$B:$B,FALSE)),\"\")","v":""},{"$f":"IFERROR(INDEX('Step 2 EAM'!$K:$K,MATCH(A41,'Step 2 EAM'!$B:$B,FALSE)),\"\")","v":0},{"$f":"IFERROR(INDEX('Step 2 EAM'!$J:$J,MATCH(A41,'Step 2 EAM'!$B:$B,FALSE)),\"\")","v":0},{"$f":"IFERROR(INDEX('Step 2 EAM'!$M:$M,MATCH(A41,'Step 2 EAM'!$B:$B,FALSE)),\"\")","v":0},{"$f":"EAM_Noise_N","v":0},{"$f":"EAM_Noise_O","v":0},{"$f":"IFERROR(INDEX('Step 2 EAM'!$C:$C,MATCH(A41,'Step 2 EAM'!$B:$B,FALSE)),\"\")","v":0},{"$f":"EAM_Noise_P","v":0},{"$f":"EAM_Noise_Q","v":0}]
[{"$f":"EAM_11.1","v":"11.1 Nuisance to local communities "},{"$f":"IFERROR(INDEX('Step 2 EAM'!$H:$H,MATCH(A42,'Step 2 EAM'!$B:$B,FALSE)),\"\")","v":""},{"$f":"IFERROR(INDEX('Step 2 EAM'!$K:$K,MATCH(A42,'Step 2 EAM'!$B:$B,FALSE)),\"\")","v":0},{"$f":"IFERROR(INDEX('Step 2 EAM'!$J:$J,MATCH(A42,'Step 2 EAM'!$B:$B,FALSE)),\"\")","v":0},{"$f":"IFERROR(INDEX('Step 2 EAM'!$M:$M,MATCH(A42,'Step 2 EAM'!$B:$B,FALSE)),\"\")","v":0},{"$f":"EAM_LocalA_N","v":0},{"$f":"EAM_LocalA_O","v":0},{"$f":"IFERROR(INDEX('Step 2 EAM'!$C:$C,MATCH(A42,'Step 2 EAM'!$B:$B,FALSE)),\"\")","v":0},{"$f":"EAM_LocalA_P","v":0},{"$f":"EAM_LocalA_Q","v":0}]
[{"$f":"EAM_12.1","v":"12.1  Impact on cultural heritage and historical sites or objects, including religious and burial sites"},{"$f":"IFERROR(INDEX('Step 2 EAM'!$H:$H,MATCH(A43,'Step 2 EAM'!$B:$B,FALSE)),\"\")","v":""},{"$f":"IFERROR(INDEX('Step 2 EAM'!$K:$K,MATCH(A43,'Step 2 EAM'!$B:$B,FALSE)),\"\")","v":0},{"$f":"IFERROR(INDEX('Step 2 EAM'!$J:$J,MATCH(A43,'Step 2 EAM'!$B:$B,FALSE)),\"\")","v":0},{"$f":"IFERROR(INDEX('Step 2 EAM'!$M:$M,MATCH(A43,'Step 2 EAM'!$B:$B,FALSE)),\"\")","v":0},{"$f":"EAM_CH_N","v":0},{"$f":"EAM_CH_O","v":0},{"$f":"IFERROR(INDEX('Step 2 EAM'!$C:$C,MATCH(A43,'Step 2 EAM'!$B:$B,FALSE)),\"\")","v":0},{"$f":"EAM_CH_P","v":0},{"$f":"EAM_CH_Q","v":0}]
[{"$f":"EAM_13.1","v":"13.1 Uncontrolled releases from site, redundant equipment and risk to personnel"},{"$f":"IFERROR(INDEX('Step 2 EAM'!$H:$H,MATCH(A44,'Step 2 EAM'!$B:$B,FALSE)),\"\")","v":""},{"$f":"IFERROR(INDEX('Step 2 EAM'!$K:$K,MATCH(A44,'Step 2 EAM'!$B:$B,FALSE)),\"\")","v":0},{"$f":"IFERROR(INDEX('Step 2 EAM'!$J:$J,MATCH(A44,'Step 2 EAM'!$B:$B,FALSE)),\"\")","v":0},{"$f":"IFERROR(INDEX('Step 2 EAM'!$M:$M,MATCH(A44,'Step 2 EAM'!$B:$B,FALSE)),\"\")","v":0},{"$f":"EAM_Emerg_N","v":0},{"$f":"EAM_Emerg_O","v":0},{"$f":"IFERROR(INDEX('Step 2 EAM'!$C:$C,MATCH(A44,'Step 2 EAM'!$B:$B,FALSE)),\"\")","v":0},{"$f":"EAM_Emerg_P","v":0},{"$f":"EAM_Emerg_Q","v":0}]
[{"$f":"EAM_14.1","v":"14.1 Increased surface run-off and ponding"},{"$f":"IFERROR(INDEX('Step 2 EAM'!$H:$H,MATCH(A45,'Step 2 EAM'!$B:$B,FALSE)),\"\")","v":""},{"$f":"IFERROR(INDEX('Step 2 EAM'!$K:$K,MATCH(A45,'Step 2 EAM'!$B:$B,FALSE)),\"\")","v":0},{"$f":"IFERROR(INDEX('Step 2 EAM'!$J:$J,MATCH(A45,'Step 2 EAM'!$B:$B,FALSE)),\"\")","v":0},{"$f":"IFERROR(INDEX('Step 2 EAM'!$M:$M,MATCH(A45,'Step 2 EAM'!$B:$B,FALSE)),\"\")","v":0},{"$f":"EAM_LocalF_N","v":0},{"$f":"EAM_LocalF_O","v":0},{"$f":"IFERROR(INDEX('Step 2 EAM'!$C:$C,MATCH(A45,'Step 2 EAM'!$B:$B,FALSE)),\"\")","v":0},{"$f":"EAM_LocalF_P","v":0},{"$f":"EAM_LocalF_Q","v":0}]
[{"$f":"EAM_14.2","v":"14.2 Physical barriers / diversions obstructing flow"},{"$f":"IFERROR(INDEX('Step 2 EAM'!$H:$H,MATCH(A46,'Step 2 EAM'!$B:$B,FALSE)),\"\")","v":""},{"$f":"IFERROR(INDEX('Step 2 EAM'!$K:$K,MATCH(A46,'Step 2 EAM'!$B:$B,FALSE)),\"\")","v":0},{"$f":"IFERROR(INDEX('Step 2 EAM'!$J:$J,MATCH(A46,'Step 2 EAM'!$B:$B,FALSE)),\"\")","v":0},{"$f":"IFERROR(INDEX('Step 2 EAM'!$M:$M,MATCH(A46,'Step 2 EAM'!$B:$B,FALSE)),\"\")","v":0},{"$f":"EAM_LocalF_N","v":0},{"$f":"EAM_LocalF_O","v":0},{"$f":"IFERROR(INDEX('Step 2 EAM'!$C:$C,MATCH(A46,'Step 2 EAM'!$B:$B,FALSE)),\"\")","v":0},{"$f":"EAM_LocalF_P","v":0},{"$f":"EAM_LocalF_Q","v":0}]

{"sheet":"Incidents","index":8,"n_rows":23,"n_cols":3,"rows_kept":23,"cut":false,"hidden":false,"merged":[[2,0,3,1]]}
["GREENFIELD TOOL: Mine Action and Disarmament Operations - Version: March 2025 - 1.0"]
["INCIDENT REPORTING","CLICK to Learn More"]
["This is a template which can be used to record any environmental incident noted during or on completion of field work. "]
[]
["Subject","Incident #001","ADD COLUMNS AS REQUIRED "]
["Location of incident"]
["Person(s) witnessing or reported the\nincident / near-miss"]
["Date occurred"]
["Incident report by"]
["Date reported"]
["Type (incident or near-miss)"]
["Cause / parties involved"]
["Cause / parties - further details"]
["Nature of event"]
["Extent / severity"]
["Details on what has been impacted, or has the potential to be impacted (select all which apply)"]
["Provide any further details here, describing the nature of the impact:"]
["Link to photographs taken: \nShow evidence of the nature and extent of the incident"]
["Parties notified"]
["Follow-up actions"]
["Follow-up actions - further details"]
["Date actions completed"]
["Completed by"]

{"sheet":"Learn more","index":9,"n_rows":77,"n_cols":6,"rows_kept":77,"cut":false,"hidden":false,"merged":[[9,0,10,0],[17,0,18,0],[2,0,2,2],[3,2,3,5]]}
["GREENFIELD TOOL: Mine Action and Disarmament Operations - Version: March 2025 - 1.0"]
["LEARN MORE"]
["This gives further explanation on why the information requested is relevant, how it relates to mine action and why it is important to understand. \nSome additional useful links are also included. "]
["Topic","Why is this is relevant?","Further information and useful links to find out more.  \nImages provided for illustrative purposes only (click on image to see image credits)."]
["National and regional legislation on climate change and the environment, including permits and licences","National, regional or local environmental legislation relevant for mine action can be wide ranging, including: \nair quality, climate change, contamination and the protection of soil, conservation and the protection of endangered species, formal Environmental Impact Assessment, protection of historic and cultural heritage, noise and ground shocks/vibration, planning and development, management of waste and wastewater, protection and use of water resources.\nFailure to comply could result in a loss of reputation, programme delays, or even fines and prosecution.  \nConsultation with regulators and local authorities is essential.  \n","FAOLEX is a FAO database of national legislation, policies and bilateral agreements "]
["Waste management infrastructure ","Waste management infrastructure ranges from waste storage and collection systems, through to waste sorting, recycling and disposal facilities. Poor, ineffective or non-existent waste management causes air pollution, water and soil contamination. This includes the use of open and non-engineered landfill sites, illegal dumping, the open burning and incineration of waste, or in some cases informal recycling.","Solid waste management guidance - sector specific guidelines for the Red Cross Red Crescent"]
["Environmental and climate change studies or research","Recent local studies and regional research may be available which include useful background information on the environment, including recommendations or planned implementation strategies which mine action could help facilitate.\n"]
["National mine action standards and environmental safeguarding","Not all mine action authorities have standards or policies in place which fully address environmental protection and climate change. Adhering to environmental good practice remains is important, even where national standards are not yet in place.\n"]
["Environmental governance","This can include provision and enforcement of national or local environmental laws, or community-led codes of practice.  Consider whether these are in place and how well they are enforced.\nWeak governance will affect how well the environment and people are protected from harm.\n"]
["Climate risk profile - high level","Country-level scores are available to gauge the climate extremes affecting a country, and their ability to adapt.\nThe ND-GAIN Country Index summarizes a country's vulnerability to climate change and other global challenges in combination with its readiness to improve resilience. \nHigher ND-GAIN scores are better, and lower scores means a country will be more vulnerable to the effects of climate change. \nRecording the ND-GAIN score helps to understand the country's vulnerability in a global context.","ND-Gain County Index"]
[null,"Country climate-risk profiles and fact sheets are also available for several countries, and can be used to understand and identify the key issues.\nConsultation with government and local agencies is essential, followed by community engagement to better understand issues facing communities and their concerns.\n","Red Cross Red Crescent Climate Centre 2025, climate factsheets for some countries, detailing regional climate change projections","ThinkHazard! gives a general view of the hazards, for a given location","Climate Change Knowledge Portal, with country-profiles","World Health Orgainsation, Health and Climate Change country profiles"]
["Policy and strategy on climate change","Understanding national policy and climate change strategy will also help identify climate-related risks relevant to mine action and affected communities.\nCountry specific information, including on ‘vulnerability’ will be provided in a country’s Nationally Determined Contributions (NDC) report and their National Adaptation Plan, where available.\n","Climate Watch, open data and analysis on countries' climate change policy and progress"]
["Climate-impacts and mine action","Climate change can impact areas affected by explosive ordnance (EO) contamination in several ways. Extreme weather events such as flooding and heatwaves can increase the risks posed by EO contamination; remobilising EO; degrading and affecting the stability of EO; or triggering landscape fires. \n\nPeople living in communities affected by contamination will also be exposed to climate risks, and the compounding impacts of other socio-economic factors and environmental degradation.\n","Refer to Section 6 of the Technical Note for Mine Action TNMA 07.13"]
["Environmental compensation and enhancements","Compensation is often seen as a way to achieve a neutral or beneficial environmental impact by restoring or improving the environment in response to any damage or loss caused. \nEnhancement is an action which provides net benefits for the environment over and above the requirement to avoid, mitigate or compensate for any adverse environmental effects. \nOpportunities for environmental enhancement must be explored as early as possible, and can be varied. They can include opportunities to address climate change or historic environmental impacts caused by conflict or land use practices, such as loss, decline and removal of natural habitat or pollution.\nCompensation and enhancement initiatives will require input from environmental experts and stakeholders, and may need adjusting over time.\n","Sphere guidance on delivering nature-based solutions in a humanitarian context","ALivE - Adaptation, Livelihoods and Ecosystems Planning Tool to support the planning of ecosystem-based adaptation (EbA) options","CARE guidance on locally-led adaptation and resilience","BRACED, Building Resilience and Adaptation to Climate Extremes and Disaster"]
["Scale of potential benefits","Without longer-term monitoring in place, it is not possible to assess the outcome and success of environmental compensation or enhancement measures. It may take several years for some schemes to establish, and for the benefits to be fully realised. However, an qualitative estimate of the scale of the potential benefits can be noted, using the following 3 categories:\n- small scale, and localised benefit, typically restricted to the task area or immediate surroundings\n- wider benefit, extending to the broader community, with local-level engagement, buy-in and knowledge sharing\n- larger and multiple benefits, including contribution to landscape-scale restoration, community projects or far-reaching awareness raising. This could include pilot projects which then are trialled and then adopted elsewhere.\n"]
["Impacts - short-term or long-term","A short-term impact means that the consequences are immediate, and would typically take place during field operations, such as smoke or air emissions during demolitions.\nA long-term impact would evolve over time, and more likely to cause an effect after field operations have ended, such as erosion or contamination of soil.\n"]
["Impacts - temporary or permanent","Temporary impacts do not cause a permanent change to people’s health, the character of the land or environment, for example noise disturbance. \nPermanent impacts can cause irreversible change, such as the loss of important and irreplaceable habitat, or loss of soils.\n"]
["Ecosystem-based adaptions, and other environmental solutions\n","There may be opportunities to make environmental improvements and introduce or support the introduction of ecosystem-based adaptation (EbA) initiatives. EbA involves using biodiversity and ecosystem services to help people adapt to climate change, as part of an overall adaptation strategy . Even if these cannot be implemented by mine action, this can be flagged and the options highlighted at handover. \n\nThere are mapping tools available, identifying areas of potential high impact, but local stakeholder engagement will be needed. Opportunities for environmental enhancement must be explored as early as possible.\n\n","UNEP opportunity mapping","ALivE - Adaptation, Livelihoods and Ecosystems Planning Tool to support the planning of ecosystem-based adaptation (EbA) options"]
[null,"Some examples relevant to mine-affected communities are included here :  "," List of compensation and enhancement examples","UNEP ecosystem-based adaptation examples"]
["Land productivity","Changes in the health and productive capacity of the land reflects the net effects of changes in soil and ecosystem function. This can be a useful indication of land degradation, and help identify where land management interventions are needed, or extra measures in place during mine clearance activities\n"]
["Residual risks","Following the identification and implementation of mitigation measures, residual risks may still remain. \nThe GFT does not calculate these residual risks, and it is up the GFT User to review each risk and estimate whether the risk has been managed by the measures proposed or in place. There may also be opportunities and additional measures which could be recommended to make further improvements - or enhancements - and benefit the local community and environment.\n"]
["Net environmental benefits or gains","Outcomes can include an approach or action which results in improving the environment to a better state than it was beforehand. This is not restricted to the Task Area, and can cover wider benefits to the community, such as improvements in soil quality, habitat, wildlife conservation, the protection and quality of water resources, air quality, reduction in the use of chemicals (such as pesticides, fertilisers), the control and management of waste, and measures to reduce emissions of greenhouse gases."]
["Conservation and wildlife areas","These can include locally important or nature conservation areas, not formally recognised or designated by regional or national authorities.  As a first step, check whether there are any designated areas on the World Database on Protected Areas (WDPA) or listed as a Key Biodiversity Area (KBA).  This can be done this using the GFT OPEN SOURCE APPLICATION.\n\nLocal consultation is also essential. Mine action in ecologically-important areas will require specific planning - this may require work to be only undertaken outside of breeding and nesting seasons, as well as other specialist measures and support from ecologists.\n\nGlobal datasets on threatened species, protected areas and key biodiversity areas are available on-line, but these are not exhaustive and will not include locally important areas. This should be answered in part by the NTS/Community engagement.\nSome information on conservation and management plans may also be available through open data sources, but it will not be conclusive.\n\nConsultation will be required to understand local conservation programmes and activities, including local NGOs or community based projects. \n","GFT OPEN SOURCE APPLICATION"]
["Habitat and vegetation cover","Details on habitat type, its density and maturity are needed to understand the impact of any planned work and clearance, as well as risks to retained trees and vegetation. \n\nFor retained trees, measures must be in place to protect their root systems and help chances of their survival.\n\nClearing vegetation risks exposing large areas of soil, which can be prone to erosion and degradation.\n"]
["Soil and geology","It is difficult to get reliable and detailed enough information on soil type and geology, without local knowledge. \nOn-line mapping can provide an overview, but field visits and local consultation will also be needed. \n\nSoil type and structure affects many factors including levels of moisture, plant growth, resistance to erosion, and the risk of compaction. Soil texture can range from coarse (sands and gravels) to fine (clays and silts), and this will affect their fertility, and how readily they may drain or retain water.\n\nBare ground, with little vegetation cover is more prone to soil erosion by wind or water.  Dust generated from degraded soils can be blown for long distances, damaging crops, water courses and wildlife.\n\nCompacted soil is caused by vehicles, machinery and livestock, degrading and affects soil health and productivity. Detonations and cratering will also disrupt and destroy soil structure, and affect soil function."]
["Topography / slope","Details on the slope and terrain is useful to understand the potential for run-off, soil erosion and flooding, and in extreme cases, the risk of landslides.\n"]
["Water features","Nearby water resources could be impacted by mine action activities. On-line mapping of water features can be limited, and field visits and local consultation will be needed to fully understand their location, water flow rates, and their use. \n\nInformation on groundwater will also need to be determined from local consultation. Shallow groundwater will be more susceptible to activities on site, such as spills and repeat detonations.\nSites with shallow groundwater may also be at risk from flooding and waterlogging.\n\nConsult and check with the local community."]
["Cultural heritage","Nearby cultural assets could be impacted by mine action activities. This can include religious sites or sacred areas, historic buildings, burial grounds, ruins or archaeological sites. \n\nThe information available through open source data is limited, and consultation with the local community and authorities is essential.\n"]
["Local and regional trends","Some information on regional trends is available through open source data, but also should be supplemented by engaging with local people, asking them about their experience and any of changes observed over recent years.\nInformation on deforestation from open source data is especially useful since it gives an oversight of the wider regional context, which may directly affect mine action activities and people.\n\nAreas affected by high rates of deforestation are likely to be more vulnerable to biodiversity loss, flood risks, soil erosion, poorer water quality, and in some cases, landslides. Remember that deforestation may have been caused by the conflict itself, and pre-date the open source data records. \n\nOther annual rainfall and temperature trends are also available.\n"]
["Changes observed by the local community, and coping strategies","This could cover a wide range of observations including changes in rainy / dry seasons, hot / cold seasons, notable changes in weather around national holidays / festivals, planting season and harvests, crop production and soil fertility, periods of scarce resources (e.g. food, water, fish, pasture), migration times of species, extreme weather events, increase in pests and vermin, and seasonal illness (people and livestock) .\n\nIt is also important to ask about what coping strategies are in place to help communities adapt to the effects of climate change, and whether these strategies are effective.\nClimate change and climate-related events can worsen existing local stresses such as poverty, food insecurity, land degradation, and access to water shortages, as well as physical risks to extreme weather events.\n"]
["Land use changes","In some areas, there may have been significant shifts in how land is used, with increased urbanisation, increased agriculture and reduced areas of natural habitat. An understanding of the scale and nature of these changes can help indicate the potential importance of additional enhancement measures which could be put in place, and the overall land use pressures. \n"]
["Previously used land","Harmful chemicals or substances from previous land use and practices can contaminate the environment, and pose risks to people. Damage to buildings, industry and infrastructure during a conflict could also lead to pollution.\n\nThe risks to people and the environment from chemical contamination depends on several factors, including the nature and extent of pollutants present, the location and its environmental setting, and the routes by which people or the wider environment may be exposed to contaminants present. The assessment of these risks is quite complex, but site observations and an overview of the history of the area is an important starting point. This could include fuel or chemical contamination from industrial sources or activities, pollution incidents/spills, buried waste, fires, damaged wastewater infrastructure, fly tipping or presence of demolition waste, discharges of foul water or other waste disposal practices. This could include asbestos containing materials reported or suspected. \n\nThe presence of contamination is not always obvious, but observations on the ground conditions, including the presence of waste, discolouration, or vegetation die-back are very useful. \n\nThe local community and authorities should also be consulted on the history of the site use. Although unlikely, this should include confirmation on the potential for radioactive materials to be present.\n","Refer to Annex C of the Technical Note for Mine Action TNMA 07.13\n\n\n\n"]
["Incident reporting","Reporting environmental incidents or events helps to understand how and why something happened, and what could be put in place to prevent it happening or minimise the impact should it happen again.\n\nThis includes extreme weather and climate-related events, which may have impacted mine action site-based activities.\n\nAn environmental incident includes any situation which has caused harm or has the potential to cause harm to people, property (including crops and livestock) or the wider environment. Incident reporting should also include near-misses and non-compliance with environmental policy.]\n\nAll environmental incidents and near misses should be reported which relate directly to the mine action activities and external factors (such as a wildfire, flooding event or a pollution incident), which could impact mine action activities and the communities where mine action activities take place.\n\nEnvironmental incidents which may not relate directly to a mine action activity may be important to include, since:\n●\t the cause and extent of the incident or non-compliance may need investigating;\n●\t preventive or corrective action may need to be taken;\n●\t authorities, landowners, occupants/users and the local community may need notifying; and\n●\tthe mine action activities themselves may need to be ruled out.","Refer to Annex I of the Technical Note for Mine Action TNMA 07.13"]
["Local concerns and environmental issues","There may be variety of issues and environmental concerns raised or identified as affecting the local community. This may be directly linked to the risks from climate change, or relate to other environmental and land right issues, such as access and use of natural resources, access to water, illegal logging, high reliance on the use of firewood, biodiversity loss, soil erosion, spread of invasive species, poor waste management, use of chemicals and pesticides, poor indoor and local air quality, and pollution."]
["Handover reports and environmental data","There are benefits from the reporting of environmental data, assessment and action in handover reports. It enables environmental information to be provided to landowners and inform them of future land use considerations, and can set out any land management or aftercare requirements to maintain any planting scheme or environmental initiatives implemented.\n\nIt can also enable the sharing of environmental datasets with collaboration partners, and minimize the duplication of data collection, as well as supporting awareness-raising across local and wider communities.","Refer to Annex H of the Technical Note for Mine Action TNMA 07.13"]
["Transboundary issues - working near international (or regional) borders","Mine action could increase access to important ecological areas or result in land-use changes close to the border. Changes in land use could increase the use of natural resources or generate pollution, with cross-border implications, e.g. for water bodies shared between countries or ecologically important areas. This can lead to cross-border sensitivities around environmental impacts. Local environmental actors can help identify existing policy or agreements that could manage potential cross-border environmental issues. This may include transboundary conservation, water resource, or pollution management."]
["Constraints","There may be many constraints which limit or prevent the consideration or implementation of certain measures, including the availability of expertise and resources, timeframes, access, cost, or permissions. Recording these constraints can help to identify future measures to overcome barriers. "]
[]
["Credit for images:"]
["Agricultural farmland","World Resources Institute"]
["Boreal forest and tundra","Stan Wullschleger"]
["Coastal and mangroves","GRID-Arendal"]
["Deserts and shrublands","Quinn Dombrowski"]
["Grasslands, savannas & shrublands","Per Harald Olsen"]
["Mediterranean forests, woodlands & scrub","Jeremy Williams"]
["Plantation/managed forestry","Sukanya"]
["Temperate forests","Johannes Plenio"]
["Tropical & sub-tropical forest","David Riaño Cortés"]
["Urban","Pxhere"]
["Wetlands","Omar Castro"]
["Gravel","Tom Harle"]
["Sand","Eli Sagor"]
["Loam","No known copyright"]
["Silt","No known copyright"]
["Clay","No known copyright"]
["Bare soil","Washington State Department of Ecology"]
["Windblown dust","AnRo0002"]
["Compaction","Evelyn Simak"]
["Soil erosion","Volker Prasuhn"]
["Waterlogged","Nigel Mykura"]
["Flat","David Kemp"]
["Gentle","Kenneth Allen"]
["Moderate","Harold"]
["Steep","Devansh Bahuguna"]
["Artifical channels","denisbin"]
["Slow flowing","Sallu"]
["Fast flowing","Pxhere"]
["Buried drums","Jula2812"]
["Evidence of leak","NWFblogs"]
["Discoloration","Dumelow"]
["Die back and vegetation distress","Florida Fish and Wildlife"]
["Dead or gasping fish","joegoauk73"]
["Fire-damaged assets","Russell Lawson"]
["Sheen","NOAA Office of Response and Restoration."]
["Waste","CEOBS"]
["Asbestos","Leo Reynolds"]
["Radioactive materials","OCAL"]

{"sheet":"Glossary","index":10,"n_rows":81,"n_cols":3,"rows_kept":81,"cut":false,"hidden":false,"merged":[]}
["GREENFIELD TOOL: Mine Action and Disarmament Operations - Version: March 2025 - 1.0"]
["GLOSSARY "]
[]
["Term","Definition","Example.  \nImages provided for illustrative purposes only (click on image to see image credits)."]
["access","access via footpaths, roads and bridges"]
["acidic soil","pH gives an indication of soil acidity, and will vary due to natural processes and conditions. Soils with a pH below 7 are acidic. Trace elements and contaminants can be more mobile and available for uptake by plants and microbes in acidic soils"]
["acute risk","generally a risk which manifests in the short term, which can cause immediate harm"]
["afforestation","where trees are planted or allowed to grow an area where there were previously no trees before. Afforestation can have negative impacts on local biodiversity and function"]
["agricultural","cultivated areas, market gardens and intensive grazing of animals "]
["bare soil ","where vegetation is absent or almost absent "]
["biodiversity","the variety of all living organisms within an ecosystem. Ecosystems with low biodiveristy tend to be less able to recover from impacts. Areas rich in biodiversity may include many rare and endangered species."]
["boreal forest","forests with cold, dry winters and short, cool, wet summers. Coniferous trees and shrubs typically dominant"]
["camp","temporary overnight accommodation established for mine action staff for the duration of field activities"]
["climate hazard","a physical event or threat such as drought, severe rain, flooding, hurricanes, sea-level rise, tidal surges, heatwaves, coldwaves, wildfires or desertification"]
["climate incident","an extreme weather or climate-related event that may cause harm or potential harm to people or the environment e.g. water, land, crops, wildlife or local habitat"]
["climate projections","plausible descriptions of the future climate and possible changes, based on assumptions about the rising levels of greenhouse gases"]
["climate-smart practices","measures to adapt and build resilience to climate change, and reduce and/or removing greenhouse gas emissions"]
["chronic risk","generally a risk which manifests over a long period of time, and can cause harm for a long period"]
["community and public services","includes health facilites, educaton facilites, playgrounds and play areas, shops and markets, community/administratve buildings and cultural, religious and recreational sites"]
["compensation","actions where negative impacts cannot be avoided or mitigated, and compensatory measures might be appropriate. Compensation should be seen as a last resort, when all other mitigation options have been exhausted.","examples include: habitat restoration, reforestation, or wildlife conservation efforts that offset the harm caused by mine clearance operations"]
["convective conditions","occurs when warmer, less dense air rises and cooler, denser air replaces it"]
["deforestation","human-induced loss or removal of forests, and conversion to non-forested land"]
["degraded land","land in decline, with loss of biodiversity, function and ecosystem services that cannot fully recover unaided"]
["desert","very dry areas, with sparse and small growing vegetation"]
["drainage channel","an artifical channel through which water flows"]
["ecosystem-based adaptation ","strategies which use nature-based solutions and ecosystem services to adapt to the effects of climate change. They can cover a wide range of ecosystem management activities, such as the sustainable management of forests, grasslands, and wetlands, that increase the resilience and reduce the vulnerability of people and the environment to climate change","examples include: planting mangroves to protect coastal areas and create habitat for spawning fish; reforestation to alleviate desertification, or improve water catchment management; using rivers and lakes to provide natural drainage and reduce flooding downstream."]
["ecosystem services","the wide range of functions which an ecosystem provides for free, such as water filtration and storage, clean air, pollination, nutrient cycling, carbon storage, natural resources...."]
["enhancement","actions which provide net benefits for the environment over and above the requirement to avoid, mitigate or compensate for any adverse environmental effects. The goal of enhancement is to leave the environment in a better condition than before the project or activity began","examples include: transforming cleared minefields into nature reserves, creating sustainable agricultural practices in cleared areas, or implementing water resource management programmes"]
["environmental aspect","element of an organization’s activities or products or services that interacts or can interact with the environment (Note: 'climate trends' have been included here since they are external factors which affect an organisation, although not an organisational activity or product) "]
["environmental impact","a change to the environment, whether adverse or beneficial"]
["environmental governance","includes the framework of policy, rules and regulation used to protect, manage and control risks to human health and the environment."]
["harm","an adverse impact on people, the environment, infrastructure, property, animals, or business"]
["hazard","a potential source of harm"]
["invasive species","animals, plants, insects or aquatic species , which can cause harm where they are not native. Invasive species are an increasing problem and can damage habitats and have an economic impact."]
["land take","area of land needed for a project, development or specific use "]
["land productivity","relates to land's capacity to produce biomass and deliver a range of ecosystem services"]
["likely","reasonable chance of occurring ","for example: a climate-related hazard has already occurred in the region in the last 5 years"]
["loam","a class of soil comprising organic material, sand, silt and clay"]
["long-term","an impact where the consequences may evolve over time, after field operations have ended","for example: a release of contaminants to water or soil from materials remaining within or adjacent to the task area"]
["low likelihood","might occur at least once","for example: a climate-related hazard has occurred in the region in the last 10 years"]
["mediterranean forests","forests typically including shrublands, grasslands, and forest, with dry summers and rainy winters"]
["mitigation measure","an action to avoid or reduce an adverse impact"]
["permanent","where the effect of an impact causes a lasting or irreversible change","for example: a permanent land take, or a loss of an important habitat"]
["pollution","the introduction of contaminants into the environment that cause an adverse change"]
["potable water","water safe  for human consumption"]
["protected area","a clearly defined geographical area, recognized, dedicated and managed, through legal or other effective means, to conserve culture or ecosystem services"]
["protected species","in some countries, certain species may be protected by law, meaning that it can be illegal to kill, injure or capture birds or animals or to pick or damage certain wild plants"]
["reforestation","planting forests on land that previously contained forests but since converted to other uses"]
["remediation","an action to clean-up or rehabilitates the environment"]
["residential","housing and setlements including permanent housing, compounds, temporary shelters, makeshift shelters or temporary settlements"]
["risk","a function of the severity of a hazard and the likelihood that the hazard will cause harm"]
["risk - high risk","risks are unacceptable and corrective action is required to mitigate such risks"]
["risk - low risk","risks should be monitored and kept under review, with option to still make improvements/enhancements"]
["risk - moderate risk","risks require monitoring and plans in place to mitigate adverse risks"]
["savannas, grasslands & shrublands","areas dominated by grasses and shrubs, dry, often rocky and typically short periods of heavy rainfall"]
["sedimat","a mat which can be installed in a stream or channel to trap sediment without impeding water flow, and reduces the risk to the ecology downstream."]
["severity","the severity of an impact is determined by its scale (how grave), scope (how widespread) and character (how easily can any harm caused be recified)"]
["sewer","pipes or channels which carrys off water  "]
["short-term","an impact where the consequences are immediate and take place during field operations","for example: noise or the release of smoke from the use of machinery or from demolitions"]
["silt fence","a temporary barrier designed to prevent sediment from being carried to ditches and streams where it can negatively impact aquatic life. The silt fence captures sediment and soil, and allows water to infiltrate and percolate into the ground, and can be installed to intercept runoff from slopes and to protect drainage channels and watercourses."]
["soft-start","the gradual ramping up of power or activity, allowing time for animals to move away from the noise source"]
["sustainable agriculture","land use that serves the agricultural needs of people, and is protective of ecological systems"]
["temperate forests","forests with trees and shrubs dominant, and four seasons"]
["temporary","where the effect of an impact occurs for a limited period of time and the change can be reversed","for example: a change in local air quality"]
["threatened species","species that are listed in the IUCN Red List of Threatened Species categories as critically endangered, endangered, or vulnerable."]
["tropical and sub-tropical forests","forests typically with dense canopies, and humid all year round"]
["tundra","areas with limited tree growth, cold year-round and dry"]
["unlikely","not expected to occur","for example: for climate-related hazard has not occurred in the region in the last 10 years"]
["urban "," built-up and inhabited areas, including cities, towns, and villages"]
["vulnerability","sensitivity to harm and the capacity to cope"]
["waste","material which is no longer in use, and the producer or holder discards it, intends to discard it, or is required to discard it"]
["waste - non hazardous","waste without characteristics that pose a direct risk to health or the environment, and includes typical household waste and packaging"]
["waste - hazardous","waste with characteristics, such that it requires special handling and disposal procedures to avoid negative health or adverse environmental effects "]
["water course","a natural or artifical channel through which water flows including rivers, streams, drains or culverts"]
["wetlands","saturated ground (fresh or salt), and can include peatlands, marshes, swamps, sloughs, fens, bogs, and wet meadows"]
[]
["Credit for images:"]
["Degraded land","Aaron Minnick | World Resources Institute"]
["Ecosytem services","WWF Living Planet report, 2016"]
["Sedimat","Hy-Tex"]
["Silt fence","Gap Power"]

{"sheet":"Mitigation options","index":11,"n_rows":388,"n_cols":3,"rows_kept":388,"cut":false,"hidden":false,"merged":[[2,0,2,16383]]}
["GREENFIELD TOOL: Mine Action and Disarmament Operations - Version: March 2025 - 1.0"]
["MITIGATION OPTIONS"]
["A list of mitigation options which could be applied, and are included in the STEP 2 dropdown lists are given here. These can be amended, and more added."]
["Category","Sub-category","Options"]
["1. Climate trends","1.1 Vulnerability to wind storms, soil erosion","CT01. Review responses from community engagement on history of climate trends/incidents"]
["1. Climate trends","1.1 Vulnerability to wind storms, soil erosion","CT02. Monitor forecasts, early warning and extreme weather alerts"]
["1. Climate trends","1.1 Vulnerability to wind storms, soil erosion","CT03. Ensure staff are kept fully informed "]
["1. Climate trends","1.1 Vulnerability to wind storms, soil erosion","CT04. Review and identify opportunities to build climate resilience in consultation with local people"]
["1. Climate trends","1.1 Vulnerability to wind storms, soil erosion","CT05. Feedback and identify how climate trends may require prioritisation of some more vulnerable work areas before others"]
["1. Climate trends","1.1 Vulnerability to wind storms, soil erosion","CT06. Identify how climate trends may affect work programme and shift patterns"]
["1. Climate trends","1.1 Vulnerability to wind storms, soil erosion","CT07. Have emergency plan and evacuation procedures in place"]
["1. Climate trends","1.1 Vulnerability to wind storms, soil erosion","CT08. Consult and check on-line data sources on climate trends/risks"]
["1. Climate trends","1.1 Vulnerability to wind storms, soil erosion","CT09. Be aware of any current community coping strategies in place, and their effectiveness  "]
["1. Climate trends","1.1 Vulnerability to wind storms, soil erosion","CT10. Note and share details of any improvements which could be made to current community coping strategies"]
["1. Climate trends","1.1 Vulnerability to wind storms, soil erosion","CT11. Develop work plans, with seasonal planning, prioritisation and work-patterns based on climate-risks for selected areas"]
["1. Climate trends","1.1 Vulnerability to wind storms, soil erosion","CT12. Incorporate stand-down provisions for climate-related incidents"]
["1. Climate trends","1.1 Vulnerability to wind storms, soil erosion","CT13. Check suitability of techniques (e.g. type of survey equipment, use of machinery, access routes) to be deployed due to changing conditions"]
["1. Climate trends","1.1 Vulnerability to wind storms, soil erosion","CT14. Check suitability and durability of equipment"]
["1. Climate trends","1.1 Vulnerability to wind storms, soil erosion","CT15. Add provision to re-survey/clear areas due to 'shifting' explosive ordnance"]
["1. Climate trends","1.1 Vulnerability to wind storms, soil erosion","CT17. Incorporate climate-related hazards into work plan risk assessments"]
["1. Climate trends","1.1 Vulnerability to wind storms, soil erosion","CT18. Incorporate climate-related hazards into staff training and awareness"]
["1. Climate trends","1.1 Vulnerability to wind storms, soil erosion","CT19. Plan for shorter shifts, and more frequent breaks"]
["1. Climate trends","1.1 Vulnerability to wind storms, soil erosion","CT21. Add precautionary measures, training and medical check-ups, to manage potential health-related impacts"]
["1. Climate trends","1.2 Vulnerability to landslides","CT01. Review responses from community engagement on history of climate trends/incidents"]
["1. Climate trends","1.2 Vulnerability to landslides","CT02. Monitor forecasts, early warning and extreme weather alerts"]
["1. Climate trends","1.2 Vulnerability to landslides","CT03. Ensure staff are kept fully informed "]
["1. Climate trends","1.2 Vulnerability to landslides","CT04. Review and identify opportunities to build climate resilience in consultation with local people"]
["1. Climate trends","1.2 Vulnerability to landslides","CT05. Feedback and identify how climate trends may require prioritisation of some more vulnerable work areas before others"]
["1. Climate trends","1.2 Vulnerability to landslides","CT06. Identify how climate trends may affect work programme and shift patterns"]
["1. Climate trends","1.2 Vulnerability to landslides","CT07. Have emergency plan and evacuation procedures in place"]
["1. Climate trends","1.2 Vulnerability to landslides","CT08. Consult and check on-line data sources on climate trends/risks"]
["1. Climate trends","1.2 Vulnerability to landslides","CT09. Be aware of any current community coping strategies in place, and their effectiveness  "]
["1. Climate trends","1.2 Vulnerability to landslides","CT10. Note and share details of any improvements which could be made to current community coping strategies"]
["1. Climate trends","1.2 Vulnerability to landslides","CT11. Develop work plans, with seasonal planning, prioritisation and work-patterns based on climate-risks for selected areas"]
["1. Climate trends","1.2 Vulnerability to landslides","CT12. Incorporate stand-down provisions for climate-related incidents"]
["1. Climate trends","1.2 Vulnerability to landslides","CT15. Add provision to re-survey/clear areas due to 'shifting' explosive ordnance"]
["1. Climate trends","1.2 Vulnerability to landslides","CT17. Incorporate climate-related hazards into work plan risk assessments"]
["1. Climate trends","1.2 Vulnerability to landslides","CT18. Incorporate climate-related hazards into staff training and awareness"]
["1. Climate trends","1.2 Vulnerability to landslides","CT22. Seek expert advice before proceeding if task areas are on or near slopes with suspected landslide risk"]
["1. Climate trends","1.3 Vulnerability to extreme heat / droughts","CT01. Review responses from community engagement on history of climate trends/incidents"]
["1. Climate trends","1.3 Vulnerability to extreme heat / droughts","CT02. Monitor forecasts, early warning and extreme weather alerts"]
["1. Climate trends","1.3 Vulnerability to extreme heat / droughts","CT03. Ensure staff are kept fully informed "]
["1. Climate trends","1.3 Vulnerability to extreme heat / droughts","CT04. Review and identify opportunities to build climate resilience in consultation with local people"]
["1. Climate trends","1.3 Vulnerability to extreme heat / droughts","CT06. Identify how climate trends may affect work programme and shift patterns"]
["1. Climate trends","1.3 Vulnerability to extreme heat / droughts","CT07. Have emergency plan and evacuation procedures in place"]
["1. Climate trends","1.3 Vulnerability to extreme heat / droughts","CT08. Consult and check on-line data sources on climate trends/risks"]
["1. Climate trends","1.3 Vulnerability to extreme heat / droughts","CT09. Be aware of any current community coping strategies in place, and their effectiveness  "]
["1. Climate trends","1.3 Vulnerability to extreme heat / droughts","CT10. Note and share details of any improvements which could be made to current community coping strategies"]
["1. Climate trends","1.3 Vulnerability to extreme heat / droughts","CT11. Develop work plans, with seasonal planning, prioritisation and work-patterns based on climate-risks for selected areas"]
["1. Climate trends","1.3 Vulnerability to extreme heat / droughts","CT12. Incorporate stand-down provisions for climate-related incidents"]
["1. Climate trends","1.3 Vulnerability to extreme heat / droughts","CT13. Check suitability of techniques (e.g. type of survey equipment, use of machinery, access routes) to be deployed due to changing conditions"]
["1. Climate trends","1.3 Vulnerability to extreme heat / droughts","CT14. Check suitability and durability of equipment"]
["1. Climate trends","1.3 Vulnerability to extreme heat / droughts","CT16. Add provision to survey previously submerged areas"]
["1. Climate trends","1.3 Vulnerability to extreme heat / droughts","CT17. Incorporate climate-related hazards into work plan risk assessments"]
["1. Climate trends","1.3 Vulnerability to extreme heat / droughts","CT18. Incorporate climate-related hazards into staff training and awareness"]
["1. Climate trends","1.3 Vulnerability to extreme heat / droughts","CT19. Plan for shorter shifts, and more frequent breaks"]
["1. Climate trends","1.3 Vulnerability to extreme heat / droughts","CT20. Include provision for additional measures, including the use of fire breaks, provision of firefighting equipment"]
["1. Climate trends","1.3 Vulnerability to extreme heat / droughts","CT21. Add precautionary measures, training and medical check-ups, to manage potential health-related impacts"]
["1. Climate trends","1.4 Vulnerability to wildfires","CT01. Review responses from community engagement on history of climate trends/incidents"]
["1. Climate trends","1.4 Vulnerability to wildfires","CT02. Monitor forecasts, early warning and extreme weather alerts"]
["1. Climate trends","1.4 Vulnerability to wildfires","CT03. Ensure staff are kept fully informed "]
["1. Climate trends","1.4 Vulnerability to wildfires","CT04. Review and identify opportunities to build climate resilience in consultation with local people"]
["1. Climate trends","1.4 Vulnerability to wildfires","CT05. Feedback and identify how climate trends may require prioritisation of some more vulnerable work areas before others"]
["1. Climate trends","1.4 Vulnerability to wildfires","CT06. Identify how climate trends may affect work programme and shift patterns"]
["1. Climate trends","1.4 Vulnerability to wildfires","CT07. Have emergency plan and evacuation procedures in place"]
["1. Climate trends","1.4 Vulnerability to wildfires","CT08. Consult and check on-line data sources on climate trends/risks"]
["1. Climate trends","1.4 Vulnerability to wildfires","CT09. Be aware of any current community coping strategies in place, and their effectiveness  "]
["1. Climate trends","1.4 Vulnerability to wildfires","CT10. Note any improvements which could be made to current community coping strategies"]
["1. Climate trends","1.4 Vulnerability to wildfires","CT11. Develop work plans, with seasonal planning, prioritisation and work-patterns based on climate-risks for selected areas"]
["1. Climate trends","1.4 Vulnerability to wildfires","CT12. Incorporate stand-down provisions for climate-related incidents"]
["1. Climate trends","1.4 Vulnerability to wildfires","CT17. Incorporate climate-related hazards into work plan risk assessments"]
["1. Climate trends","1.4 Vulnerability to wildfires","CT18. Incorporate climate-related hazards into staff training and awareness"]
["1. Climate trends","1.4 Vulnerability to wildfires","CT20. Include provision for additional measures, including the use of fire breaks, provision of firefighting equipment"]
["1. Climate trends","1.5 Flooding events, more intense rainfall","CT01. Review responses from community engagement on history of climate trends/incidents"]
["1. Climate trends","1.5 Flooding events, more intense rainfall","CT02. Monitor forecasts, early warning and extreme weather alerts"]
["1. Climate trends","1.5 Flooding events, more intense rainfall","CT03. Ensure staff are kept fully informed "]
["1. Climate trends","1.5 Flooding events, more intense rainfall","CT04. Review and identify opportunities to build climate resilience in consultation with local people"]
["1. Climate trends","1.5 Flooding events, more intense rainfall","CT05. Feedback and identify how climate trends may require prioritisation of some more vulnerable work areas before others"]
["1. Climate trends","1.5 Flooding events, more intense rainfall","CT06. Identify how climate trends may affect work programme and shift patterns"]
["1. Climate trends","1.5 Flooding events, more intense rainfall","CT07. Have emergency plan and evacuation procedures in place"]
["1. Climate trends","1.5 Flooding events, more intense rainfall","CT08. Consult and check on-line data sources on climate trends/risks"]
["1. Climate trends","1.5 Flooding events, more intense rainfall","CT09. Be aware of any current community coping strategies in place, and their effectiveness  "]
["1. Climate trends","1.5 Flooding events, more intense rainfall","CT10. Note and share details of any improvements which could be made to current community coping strategies"]
["1. Climate trends","1.5 Flooding events, more intense rainfall","CT11. Develop work plans, with seasonal planning, prioritisation and work-patterns based on climate-risks for selected areas"]
["1. Climate trends","1.5 Flooding events, more intense rainfall","CT12. Incorporate stand-down provisions for climate-related incidents"]
["1. Climate trends","1.5 Flooding events, more intense rainfall","CT13. Check suitability of techniques (e.g. type of survey equipment, use of machinery, access routes) to be deployed due to changing conditions"]
["1. Climate trends","1.5 Flooding events, more intense rainfall","CT14. Check suitability and durability of equipment"]
["1. Climate trends","1.5 Flooding events, more intense rainfall","CT15. Add provision to re-survey/clear areas due to possible 'shifting' explosive ordnance"]
["1. Climate trends","1.5 Flooding events, more intense rainfall","CT17. Incorporate climate-related hazards into work plan risk assessments"]
["1. Climate trends","1.5 Flooding events, more intense rainfall","CT18. Incorporate climate-related hazards into staff training and awareness"]
["1. Climate trends","1.5 Flooding events, more intense rainfall","CT19. Plan for shorter shifts, and more frequent breaks"]
["1. Climate trends","1.5 Flooding events, more intense rainfall","CT20. Include provision for additional measures, including the use of fire breaks, provision of firefighting equipment"]
["1. Climate trends","1.5 Flooding events, more intense rainfall","CT21. Add precautionary measures, training and medical check-ups, to manage potential health-related impacts"]
["2. Soil degradation and erosion","2.1 Machinery use","MU01. Confine movement of vehicles/equipment to designated routes only"]
["2. Soil degradation and erosion","2.1 Machinery use","MU02. Consider phasing works to minimise the length of time soil is exposed, keeping the time between vegetation removal and start of other works as short as possible  "]
["2. Soil degradation and erosion","2.1 Machinery use","MU03. Do not strip vegetation during dry and windy conditions"]
["2. Soil degradation and erosion","2.1 Machinery use","MU04. Do not use machinery during heavy rainfall"]
["2. Soil degradation and erosion","2.1 Machinery use","MU05. Do not use machinery on steep slopes "]
["2. Soil degradation and erosion","2.1 Machinery use","MU06. Ensure appropriate selection of equipment  - avoid using oversized or undersized machines "]
["2. Soil degradation and erosion","2.1 Machinery use","MU07. For heavily tracked areas, use track mats or boards to reduce rutting and erosion"]
["2. Soil degradation and erosion","2.1 Machinery use","MU08. Keep areas of exposed soil to a minimum"]
["2. Soil degradation and erosion","2.1 Machinery use","MU09. Keep to existing access routes, whenever possible"]
["2. Soil degradation and erosion","2.1 Machinery use","MU10. Keep vegetation removal to an absolute minimum to reduce the risk of soil erosion"]
["2. Soil degradation and erosion","2.1 Machinery use","MU11. Minimise tracking of machinery/vehicle movements"]
["2. Soil degradation and erosion","2.1 Machinery use","MU12. Plan on-site routes, one-way systems and turning areas to avoid sensitive areas"]
["2. Soil degradation and erosion","2.1 Machinery use","MU13. Plan operation and positioning of equipment/plant to avoid unnecessary movements"]
["2. Soil degradation and erosion","2.1 Machinery use","MU14. Restrict tiller depth as far as practical to minimise impact to soil structure"]
["2. Soil degradation and erosion","2.1 Machinery use","MU15. Store machinery in an appropriate section of the work-area to minimise daily tracking in/off site"]
["2. Soil degradation and erosion","2.1 Machinery use","MU16. Use fencing / signage to demarcate parking areas for vehicles and equipment"]
["2. Soil degradation and erosion","2.1 Machinery use","MU17. Use tracked equipment rather than tyred to reduce compaction"]
["2. Soil degradation and erosion","2.2 Cratering","CR01. Backfill craters where possible to reduce the risk of use for ad hoc waste disposal"]
["2. Soil degradation and erosion","2.2 Cratering","CR02. Replace soils by loose tipping, minimising over compaction "]
["2. Soil degradation and erosion","2.2 Cratering","CR03. Select EOD method to minimise cratering and damage to soil structure, as far as possible"]
["2. Soil degradation and erosion","2.3 Stripping/stockpiles","SS01. Avoid exposing areas of bare ground in heavy rain or in dry and windy conditions"]
["2. Soil degradation and erosion","2.3 Stripping/stockpiles","SS02. Avoid over-handling soils due to the risk of soil structure damage and loss of soil function"]
["2. Soil degradation and erosion","2.3 Stripping/stockpiles","SS03. Consider phasing works to minimise the length of time soil is exposed, keeping the time between vegetation removal and start of other works as short as possible  "]
["2. Soil degradation and erosion","2.3 Stripping/stockpiles","SS04. Do not incorporate stripped vegetation into any soil stockpiles"]
["2. Soil degradation and erosion","2.3 Stripping/stockpiles","SS05. Do not use machinery during heavy rainfall"]
["2. Soil degradation and erosion","2.3 Stripping/stockpiles","SS06. Do not use machinery on steep slopes "]
["2. Soil degradation and erosion","2.3 Stripping/stockpiles","SS07. Keep any removed top soils separate from less fertile sub-soils"]
["2. Soil degradation and erosion","2.3 Stripping/stockpiles","SS08. Keep areas of exposed soil to a minimum"]
["2. Soil degradation and erosion","2.3 Stripping/stockpiles","SS09. Keep vegetation removal to an absolute minimum to reduce the risk of soil erosion"]
["2. Soil degradation and erosion","2.3 Stripping/stockpiles","SS10. Maintain vegetation strips as wind / runoff breaks whenever possible to minimise erosion"]
["2. Soil degradation and erosion","2.3 Stripping/stockpiles","SS11. Minimise any soil stockpiles to 2 metres in height, to avoid compaction and to keep well aerated"]
["2. Soil degradation and erosion","2.3 Stripping/stockpiles","SS12. Protect soil stockpiles from erosion by seeding or covering"]
["2. Soil degradation and erosion","2.3 Stripping/stockpiles","SS13. Remove and segregate any removed top soil for replacement"]
["2. Soil degradation and erosion","2.3 Stripping/stockpiles","SS14. Replace excavated soils by loose tipping, minimising over compaction "]
["2. Soil degradation and erosion","2.3 Stripping/stockpiles","SS15. Stockpile any soils in the driest conditions possible and for only short periods of time"]
["2. Soil degradation and erosion","2.3 Stripping/stockpiles","SS16. Store any stripped soil in temporary, well-managed stockpiles, prior to replacement"]
["2. Soil degradation and erosion","2.3 Stripping/stockpiles","SS17. Undertake staged clearance, working in strips and returning to minimise working area"]
["3. Vegetation","3.1 Removal","RV01. Avoid burning of any vegetation"]
["3. Vegetation","3.1 Removal","RV02. Avoid exposing areas of bare ground in heavy rain or in dry and windy conditions"]
["3. Vegetation","3.1 Removal","RV03. Avoid use of herbicides"]
["3. Vegetation","3.1 Removal","RV04. Avoid vegetation clearance during nesting and breeding season"]
["3. Vegetation","3.1 Removal","RV05. Clear vegetation manually, if possible"]
["3. Vegetation","3.1 Removal","RV06. Consult as early as possible on enhancement opportunities post clearance and funding options"]
["3. Vegetation","3.1 Removal","RV07. Do not use machinery during heavy rainfall"]
["3. Vegetation","3.1 Removal","RV08. Do not use machinery on steep slopes "]
["3. Vegetation","3.1 Removal","RV09. Keep vegetation removal and habitat loss to an absolute minimum, avoiding any unnecessary clearance"]
["3. Vegetation","3.1 Removal","RV10. Maintain a vegetated strip between any stockpiles and waterways of at least 10 metres "]
["3. Vegetation","3.1 Removal","RV11. Only cut roots using a clean handsaw - do not use a spade or mechanical digger"]
["3. Vegetation","3.1 Removal","RV12. Re-vegetate and seed exposed areas of soil as soon as possible"]
["3. Vegetation","3.2 Retained","RT01. Avoid damage to bark or branches of retained trees"]
["3. Vegetation","3.2 Retained","RT02. Backfill area with care to prevent root damage to retained trees and over-compaction "]
["3. Vegetation","3.2 Retained","RT03. Do not cut or damage roots greater than 25mm in diameter within the root protection area"]
["3. Vegetation","3.2 Retained","RT04. For retained trees, wrap damp sacking around any exposed roots until the area is backfilled"]
["3. Vegetation","3.2 Retained","RT05. Keep vehicles and plant away from retained trees and hedges"]
["3. Vegetation","3.2 Retained","RT06. Only cut roots using a clean handsaw - do not use a spade or mechanical digger"]
["3. Vegetation","3.2 Retained","RT07. Use temporary fencing or markers to set out areas of retained trees and vegetation to be protected"]
["3. Vegetation","3.2 Retained","RT08. Safeguard root area of retained trees - avoid compaction, including vehicle movements/equipment storage, raising soil or water levels, soil stripping or excavation, prevent spills of fuels/hazardous chemicals"]
["3. Vegetation","3.3 Invasive species","IV01. Check for invasive non-native species and take precautions to avoid spreading/introducing to other areas - e.g. minimise work areas, avoid cutting when in seed, seek specialist advice"]
["4. Wildlife","4.1 Habitat","HB01. Arrange compliance visits by an ecological advisor during works"]
["4. Wildlife","4.1 Habitat","HB02. Check for invasvie non-native species and take precautions to avoid spreading/introducing to other areas - e.g. minimise work areas, avoid cutting when in seed, seek specialist advice"]
["4. Wildlife","4.1 Habitat","HB03. Confirm and obtain permissions to proceed with work from environmental regulator bodies/stakeholders"]
["4. Wildlife","4.1 Habitat","HB04. Consult and seek advice from local authority and environmental bodies/stakeholders"]
["4. Wildlife","4.1 Habitat","HB05. Consult as early as possible on enhancement opportunities post clearance and funding options"]
["4. Wildlife","4.1 Habitat","HB06. If endangered or protected species present or suspected as present, seek advice from local specialist and follow advice to avoid harm"]
["4. Wildlife","4.1 Habitat","HB07. Keep vegetation removal and habitat loss to an absolute minimum, avoiding any unnecessary clearance"]
["4. Wildlife","4.1 Habitat","HB08. Locate compounds, including any waste, equipment storage or vehicle parking areas to minimise impacts to conservation/protected area"]
["4. Wildlife","4.1 Habitat","HB09. Preparatory site visit by an ecological advisor before start of works"]
["4. Wildlife","4.1 Habitat","HB10. Use of demarcations/barriers/signage to prevent the risk of entry and accidental damage to areas outside of the designated work areas"]
["4. Wildlife","4.1 Habitat","HB11. Vehicles movements/tracking and use of mechanical mine clearance within the conservation/protected area should be minimised, as far as practicable"]
["4. Wildlife","4.1 Habitat","HB12. Where safety permits, EOD area to be located outside of the conservation/protected area"]
["4. Wildlife","4.1 Habitat","HB13. Avoid blocking, obstructing or diverting any water course  "]
["4. Wildlife","4.2 Injury/disturbance","DS01. Arrange compliance visits by an ecological advisor during works"]
["4. Wildlife","4.2 Injury/disturbance","DS02. Confirm and obtain permissions to proceed with work from environmental regulator bodies/stakeholders"]
["4. Wildlife","4.2 Injury/disturbance","DS03. Review work plan to avoid nesting and breeding season"]
["4. Wildlife","4.2 Injury/disturbance","DS04. Consider the use lower-noise alternatives to high-order detonation (such as deflagration), where possible"]
["4. Wildlife","4.2 Injury/disturbance","DS05. Consult and seek advice from local authority and environmental bodies/stakeholders"]
["4. Wildlife","4.2 Injury/disturbance","DS06. If endangered or protected species present or suspected as present, seek advice from local specialist and follow advice to avoid harm"]
["4. Wildlife","4.2 Injury/disturbance","DS07. If nesting birds found, do not disturb or cut vegetation"]
["4. Wildlife","4.2 Injury/disturbance","DS08. If night-time working, avoid excessive lighting, position lighting away from sensitive areas, use directional lighting, use hoods/shields to reduce light spill, limit level of illumination without compromising safety  "]
["4. Wildlife","4.2 Injury/disturbance","DS09. Keep all noise levels as low as practicable, erecting barriers where required"]
["4. Wildlife","4.2 Injury/disturbance","DS10. Keep vegetation removal and habitat loss to an absolute minimum, avoiding any unnecessary clearance"]
["4. Wildlife","4.2 Injury/disturbance","DS11. Locate compounds, including any waste, equipment storage or vehicle parking areas to minimise impacts to conservation/protected area"]
["4. Wildlife","4.2 Injury/disturbance","DS12. Practice ‘soft-start’ approach and keep vehicle movement speeds to a minimum"]
["4. Wildlife","4.2 Injury/disturbance","DS13. Preparatory site visit by an ecological advisor before start of works"]
["4. Wildlife","4.2 Injury/disturbance","DS14. Consider fitting noise-arrestors for noisy equipment"]
["4. Wildlife","4.2 Injury/disturbance","DS15. Use of demarcations/barriers/signage to prevent the risk of entry and accidental damage to areas outside of the designated work areas"]
["4. Wildlife","4.2 Injury/disturbance","DS16. Vehicles movements/tracking and use of mechanical mine clearance within the conservation/protected area should be minimised, as far as practicable"]
["4. Wildlife","4.2 Injury/disturbance","DS17. Where safety permits, demolition area to be located outside of the conservation/protected area"]
["5. Pre-existing contamination","5.1 Exposure and soil arisings","PC01. Check work areas for signs of pre-existing surface or buried chemical contamination, or pollution"]
["5. Pre-existing contamination","5.1 Exposure and soil arisings","PC02. Ensure provision of appropriate PPE for site staff, if contaminated soils suspected or present"]
["5. Pre-existing contamination","5.1 Exposure and soil arisings","PC03. Health and safety file for the task/task area to include the potential for chemical pollution and control measures to be in place"]
["5. Pre-existing contamination","5.1 Exposure and soil arisings","PC04. Maintain appropriate records, detailing the date, location, nature, cause and severity (where possible) of the environmental incident and reporting body"]
["5. Pre-existing contamination","5.1 Exposure and soil arisings","PC05. Provision of additional PPE and welfare facilities – such as washing and changing facilities - for site staff"]
["5. Pre-existing contamination","5.1 Exposure and soil arisings","PC06. Report any evidence of pre-existing contamination or pollution to local authorities or agencies"]
["5. Pre-existing contamination","5.1 Exposure and soil arisings","PC07. Report any evidence of pre-existing contamination or pollution to site owners or those with access to the area"]
["5. Pre-existing contamination","5.1 Exposure and soil arisings","PC08. Site inductions to inform all site staff of anticipated ground conditions"]
["5. Pre-existing contamination","5.1 Exposure and soil arisings","PC09. Stop work in the event of unexpected contaminated or site conditions, only proceeding once risks have been adequately assessed, appropriate control measures are in place and permission granted from relevant authorities to proceed"]
["5. Pre-existing contamination","5.1 Exposure and soil arisings","PC10. When contamination present, seek specialist advice, environmental supervision and environmental monitoring during technical survey and clearance activities"]
["6. Releases to land and water","6.1 Detonations","DL01. Avoid areas near water resources, saturated ground, areas prone to flooding or high groundwater tables"]
["6. Releases to land and water","6.1 Detonations","DL02. Avoid sandy or acidic soil conditions"]
["6. Releases to land and water","6.1 Detonations","DL03. Avoid the use of any fuel or other material to support open burning"]
["6. Releases to land and water","6.1 Detonations","DL04. Conduct any necessary open burning at high temperature to ensure complete detonation/chemical reaction"]
["6. Releases to land and water","6.1 Detonations","DL05. Conduct open detonation to allow high order detonation"]
["6. Releases to land and water","6.1 Detonations","DL06. Cover areas to prevent rainfall/run-off coming into contact with open buring/open detonation area"]
["6. Releases to land and water","6.1 Detonations","DL07. Do not undertake open buring/open detonation during weather inversions, precipitation events, inclement or stormy weather"]
["6. Releases to land and water","6.1 Detonations","DL08. Do not use open buring/open detonation for heavy metal tungsten alloy munition"]
["6. Releases to land and water","6.1 Detonations","DL09. Following open buring/open detonation, inspect area, remove scrap items, residual debris and ensure 'free from explosives'"]
["6. Releases to land and water","6.1 Detonations","DL10. For any central demolition site (CDS), an Environmental Management Plan to be in place"]
["6. Releases to land and water","6.1 Detonations","DL11. For any open burning, optimise ingress of oxygen (e.g. burn tables, ventilated incinerators for small arms ammunition, remove from boxes)"]
["6. Releases to land and water","6.1 Detonations","DL12. Inspect open buring/open detonation area, checking all control measures are in place"]
["6. Releases to land and water","6.1 Detonations","DL13. Maximise the recovery and safe re-use of materials (such as scrap metal), as far as possible"]
["6. Releases to land and water","6.1 Detonations","DL14. Munitions containing perchlorates - additional measures to prevent release to soils or water since highly soluble"]
["6. Releases to land and water","6.1 Detonations","DL15. Optimise detonation stacks to maximise detonation and use of charge"]
["6. Releases to land and water","6.1 Detonations","DL16. Regular monitoring and inspections to be in place - including visual checks and sampling, where appropriate"]
["6. Releases to land and water","6.1 Detonations","DL17. Review methodology when other hazardous components suspected"]
["6. Releases to land and water","6.1 Detonations","DL18. Review variations in material, detonation/burn methods and site or weather conditions"]
["6. Releases to land and water","6.1 Detonations","DL19. Select detonation method that effectively transforms energetics to detonation products"]
["6. Releases to land and water","6.1 Detonations","DL20. Select location to minimise risks to sensitive habitat or land uses (e.g. agriculture, houses)"]
["6. Releases to land and water","6.1 Detonations","DL21. Use any suppression of afterburning with caution"]
["6. Releases to land and water","6.1 Detonations","DL22. Use berms/ditches to prevent surface water run-on and run-off"]
["6. Releases to land and water","6.1 Detonations","DL23. Use burn trays or concrete pads to minimise contact with the ground (check regularly for integrity)"]
["6. Releases to land and water","6.1 Detonations","DL24. Use of earthen pits, burn trays, blast boxes or trenches with berms to control and contain activities"]
["6. Releases to land and water","6.2 Fuels/Chemicals","FC01. Avoid the use of any herbicides or pesticides"]
["6. Releases to land and water","6.2 Fuels/Chemicals","FC02. Check for any fuel or oils leaks and repair prior to deployment of equipment/vehicles"]
["6. Releases to land and water","6.2 Fuels/Chemicals","FC03. Designate responsibility for any fuel/chemical stores, restrict and manage access"]
["6. Releases to land and water","6.2 Fuels/Chemicals","FC04. Do not store fuel/chemicals where there is a risk of flooding"]
["6. Releases to land and water","6.2 Fuels/Chemicals","FC05. Ensure that all machinery is in good working order and is well maintained"]
["6. Releases to land and water","6.2 Fuels/Chemicals","FC06. Keep storage and use of fuels/chemicals on site to a minimum"]
["6. Releases to land and water","6.2 Fuels/Chemicals","FC07. Maintain a supply of spill pads/rolls and use to absorb accidental oil/fuel leaks or spills"]
["6. Releases to land and water","6.2 Fuels/Chemicals","FC08. Maintain and deploy spill response kits/spill pads in case of accidental oil/fuel leaks or spills"]
["6. Releases to land and water","6.2 Fuels/Chemicals","FC09. Necessary repairs to vehicles/machinery to be carried out by appropriately trained staff only, away from drains and waterways"]
["6. Releases to land and water","6.2 Fuels/Chemicals","FC10. No refuelling/handling to take place near any drains or surface water features (at least 20m away) "]
["6. Releases to land and water","6.2 Fuels/Chemicals","FC11. No storage near any surface water feature (at least 20m away) "]
["6. Releases to land and water","6.2 Fuels/Chemicals","FC12. Safeguard any fuel/chemical stores from risk of damage or vandalism"]
["6. Releases to land and water","6.2 Fuels/Chemicals","FC13. Substitute hazardous materials with non-hazardous alternatives, whenever possible (e.g. biodegradable detergents, low volatile content paints/markers)"]
["6. Releases to land and water","6.2 Fuels/Chemicals","FC14. Supervise all refuelling/handling activities by appropriately trained staff"]
["6. Releases to land and water","6.2 Fuels/Chemicals","FC15. To avoid the risk of leaks, use secondary containment such as bunds, double skinned fuel bowsers and drip trays"]
["6. Releases to land and water","6.2 Fuels/Chemicals","FC16. Undertake daily checks to ensure machinery is sound and leak-free"]
["6. Releases to land and water","6.2 Fuels/Chemicals","FC17. Use biodegradable oil for hydraulics, where appropriate"]
["6. Releases to land and water","6.2 Fuels/Chemicals","FC18. Use drip trays and plant nappies when repairing equipment to prevent leaks or drips contaminating the ground or nearby water"]
["6. Releases to land and water","6.2 Fuels/Chemicals","FC19. Use drip trays for any refuelling practices/chemical handling on site"]
["6. Releases to land and water","6.3 Vehicles/equipment","VL01. Avoid washing vehicles or equipment on site. If necessary, ensure this is undertaken away from drains or waterways and avoids infiltration of oils, fuels, detergents or other pollutants into soils"]
["6. Releases to land and water","6.3 Vehicles/equipment","VL02. Identify water resources near to the site and potential pollution pathways, such as drainage routes and channels"]
["6. Releases to land and water","6.3 Vehicles/equipment","VL03. If working near water, place protective bunds to prevent water pollution"]
["6. Releases to land and water","6.3 Vehicles/equipment","VL04. Install silt fences, sedimats or use straw bales, if necessary to capture silty runoff"]
["6. Releases to land and water","6.3 Vehicles/equipment","VL05. Maintain a vegetated strip between any stockpiles and waterways of at least 10 metres "]
["6. Releases to land and water","6.3 Vehicles/equipment","VL06. Place stockpiles of soil or excavated materials where there is minimal risk of surface run-off eroding the stockpile base"]
["6. Releases to land and water","6.3 Vehicles/equipment","VL07. Seek appropriate specialist advice on discharges, if dewatering of trenches, excavations etc. is required "]
["6. Releases to land and water","6.3 Vehicles/equipment","VL08. Stockpiles of soil or excavated materials to be stored at least 10 metres from waterways and covered to prevent run-off from contaminating any nearby watercourses"]
["6. Releases to land and water","6.3 Vehicles/equipment","VL09. Undertake regular visual checks of nearby watercourses "]
["6. Releases to land and water","6.4 Wastewater - grey","WG01. Any soakaway used for wastewater discharge to be sufficient number and size to accommodate volumes of wastewater generated"]
["6. Releases to land and water","6.4 Wastewater - grey","WG02. Avoid washing vehicles or equipment on site. If necessary, ensure this is undertaken away from drains or waterways and avoids infiltration of oils, fuels, detergents or other pollutants into soils"]
["6. Releases to land and water","6.4 Wastewater - grey","WG03. Check appropriate disposal for any wastewater generated on site. In some cases this may need treatment/filtering before disposal (e.g. from bomb cutting) or containment and disposal off-site"]
["6. Releases to land and water","6.4 Wastewater - grey","WG04. Identify water resources near to the site and potential pollution pathways, such as drainage routes and channels"]
["6. Releases to land and water","6.4 Wastewater - grey","WG05. Locate soakaway at least 20m from watercourse or wells"]
["6. Releases to land and water","6.4 Wastewater - grey","WG06. No direct discharge of hazardous chemicals permitted to soakaway"]
["6. Releases to land and water","6.4 Wastewater - grey","WG07. No direct discharge of wastewater to surface water"]
["6. Releases to land and water","6.4 Wastewater - grey","WG08. Reduce water usage and wastage, where possible"]
["6. Releases to land and water","6.4 Wastewater - grey","WG09. Soakaways to be 1.5m above the water table"]
["6. Releases to land and water","6.4 Wastewater - grey","WG10. Undertake regular visual checks of nearby watercourses "]
["6. Releases to land and water","6.5 Wastewater - black","WB01. At least one toilet per every 20 persons"]
["6. Releases to land and water","6.5 Wastewater - black","WB02. Do not allow other wastewater to drain to latrines"]
["6. Releases to land and water","6.5 Wastewater - black","WB03. Identify water resources near to the site and potential pollution pathways, such as drainage routes and channels"]
["6. Releases to land and water","6.5 Wastewater - black","WB04. Locate earth latrines at least 20m from watercourse or wells."]
["6. Releases to land and water","6.5 Wastewater - black","WB05. Locate where no risk of surface water flooding the earth latrines."]
["6. Releases to land and water","6.5 Wastewater - black","WB06. No direct discharge of wastewater to surface water"]
["6. Releases to land and water","6.5 Wastewater - black","WB07. Temporary toilets to be equipped with holding tanks that can be pumped to sewage tanker trucks for disposal at approved site, or fitted to septic tank"]
["6. Releases to land and water","6.5 Wastewater - black","WB08. Undertake regular visual checks of nearby watercourses (i.e. streams, rivers, ponds, lakes etc.)"]
["6. Releases to land and water","6.5 Wastewater - black","WB09. Where earth latrines are to be used, these must be at least 2m in depth and 1.5m above the water table"]
["6. Releases to land and water","6.6 Wastewater - other","WW01. Check appropriate disposal for any wastewater generated on site. In some cases this may need treatment/filtering before disposal (e.g. from bomb cutting) or containment and disposal off-site"]
["6. Releases to land and water","6.7 Solid waste","WT01. Arrange regular waste collections, where possible"]
["6. Releases to land and water","6.7 Solid waste","WT02. Collect all waste and recyclables in suitable, covered containers, checking for wear, leaks or signs of corrosion"]
["6. Releases to land and water","6.7 Solid waste","WT03. Do not store waste for longer than necessary"]
["6. Releases to land and water","6.7 Solid waste","WT04. Do not store waste where there is a risk of flooding"]
["6. Releases to land and water","6.7 Solid waste","WT05. Identify water resources near to the site and potential pollution pathways, such as drainage routes and channels"]
["6. Releases to land and water","6.7 Solid waste","WT06. Minimise the risk of windblow litter or debris and rainwater ingress by covering storage bins/skips, including during transportation"]
["6. Releases to land and water","6.7 Solid waste","WT07. Minimise the risk of windblow litter or debris and rainwater ingress by covering storage bins/skips, including during transportation"]
["6. Releases to land and water","6.7 Solid waste","WT08. Remove in-situ waste and litter from Task Areas, with appropriate disposal or recycling at authorised facilities"]
["6. Releases to land and water","6.7 Solid waste","WT09. Set-up waste storage and handling area, at least 20m from drains or waterways"]
["6. Releases to land and water","6.7 Solid waste","WT10. Undertake regular visual checks of nearby watercourses "]
["6. Releases to land and water","6.7 Solid waste","WT11. Undertake regular visual checks of waste storage area"]
["7. Generation of waste","7.1 Non-hazardous","WN01. Clearly label containers for intended waste"]
["7. Generation of waste","7.1 Non-hazardous","WN02. Contain wastes to control nuisance from pests"]
["7. Generation of waste","7.1 Non-hazardous","WN03. Do not store waste for longer than necessary"]
["7. Generation of waste","7.1 Non-hazardous","WN04. Do not store waste where there is a risk of flooding"]
["7. Generation of waste","7.1 Non-hazardous","WN05. Employ waste hierarchy - prevent, reduce, reuse, recycle, recover and dispose"]
["7. Generation of waste","7.1 Non-hazardous","WN06. Minimise the risk of windblow litter or debris and rainwater ingress by covering storage bins/skips, including during transportation"]
["7. Generation of waste","7.1 Non-hazardous","WN07. Record volume estimates to help track reduction or recycling targets"]
["7. Generation of waste","7.1 Non-hazardous","WN08. Remove in-situ waste and litter from Task Areas, with appropriate disposal or recycling at authorised facilities"]
["7. Generation of waste","7.1 Non-hazardous","WN09. Set-up waste storage and handling area, at least 20m from drains or waterways"]
["7. Generation of waste","7.1 Non-hazardous","WN10. Sort and segregate waste streams on-site to enable recycling"]
["7. Generation of waste","7.1 Non-hazardous","WN11. Store hazardous waste separately and do not mix with other waste"]
["7. Generation of waste","7.1 Non-hazardous","WN12. Store waste in designated areas"]
["7. Generation of waste","7.1 Non-hazardous","WN13. Use only suitable waste contractors and authorised facilities to handle, transport, recycle or dispose of waste "]
["7. Generation of waste","7.1 Non-hazardous","WN14. Where on-site disposal unavoidable, segregate compostable waste"]
["7. Generation of waste","7.1 Non-hazardous","WN15. Backfill craters following EOD activities to reduce the risk of use for future ad hoc waste disposal"]
["7. Generation of waste","7.2 Hazardous","WH01. Avoid any on-site disposal or burning of waste"]
["7. Generation of waste","7.2 Hazardous","WH02. Clearly label containers for hazardous waste"]
["7. Generation of waste","7.2 Hazardous","WH03. Collect hazardous waste in covered containers, checking for wear, leaks or signs of corrosion"]
["7. Generation of waste","7.2 Hazardous","WH04. Do not store waste for longer than necessary"]
["7. Generation of waste","7.2 Hazardous","WH05. Do not store waste where there is a risk of flooding"]
["7. Generation of waste","7.2 Hazardous","WH06. Employ waste hierarchy - prevent, reduce, reuse, recycle, recover and dispose"]
["7. Generation of waste","7.2 Hazardous","WH07. Ensure that all hazardous waste – including contaminated soils, oil containers, used oil, oil filters, tyres – is segregated from non-hazardous waste and stored appropriately"]
["7. Generation of waste","7.2 Hazardous","WH08. Prevent rainwater ingress by covering storage bins/skips, including during transportation"]
["7. Generation of waste","7.2 Hazardous","WH09. Record volume estimates "]
["7. Generation of waste","7.2 Hazardous","WH10. Set-up hazardous waste storage and handling area, at least 20m from drains or waterways"]
["7. Generation of waste","7.2 Hazardous","WH11. Store hazardous waste in designated areas"]
["7. Generation of waste","7.2 Hazardous","WH12. Store hazardous waste separately and do not mix with other waste"]
["7. Generation of waste","7.2 Hazardous","WH13. Use only suitable waste contractors and authorised facilities to handle, transport, treat or dispose of hazardous waste "]
["8. Resource use","8.1 Depletion of water supplies","RS01. Install rainwater collection systems where possible"]
["8. Resource use","8.1 Depletion of water supplies","RS02. Secure water supply which avoids disruption to the needs of nearby local communities or landowners"]
["8. Resource use","8.2 Supply of consumables","RS03. Consider 'whole life' factors when selecting products or suppliers - cost, reliability, quality, energy efficiency, carbon footprint, and disposal needs"]
["8. Resource use","8.2 Supply of consumables","RS04. Check and report any quality, durability concerns or defects with supplies to the procurement team"]
["8. Resource use","8.2 Supply of consumables","RS05. Identify exact supply needs to avoid over-ordering"]
["8. Resource use","8.2 Supply of consumables","RS06. Optimise use of packaging to minimise waste, yet enough to protect supplies from damage"]
["8. Resource use","8.2 Supply of consumables","RS07. Re-use materials (e.g. fencing, markers), where possible"]
["8. Resource use","8.2 Supply of consumables","RS08. Use rechargeable batteries "]
["8. Resource use","8.2 Supply of consumables","RS09. Use sustainably sourced timber, where relevant and possible certified to FSC, PEFC or similar"]
["8. Resource use","8.2 Supply of consumables","RS10. Store all supplies appropriately to avoid accidental or weather damage"]
["8. Resource use","8.2 Supply of consumables","RS11. Substitute hazardous materials with non-hazardous alternatives, whenever possible (e.g. biodegradable hydraulic oil, biodegradable detergents, low volatile content paints/markers)"]
["8. Resource use","8.2 Supply of consumables","RS12. Use environmentally certified suppliers, if possible - such as ISO 14001 or equivalent, good references, proof of continued good service"]
["8. Resource use","8.2 Supply of consumables","RS13. Use locally resourced and recycled products, where possible "]
["8. Resource use","8.3 Single use plastics","RS14. Seek options to replace use of plastic sandbags with sustainable alternative / natural products (e.g. hessian/jute)"]
["8. Resource use","8.3 Single use plastics","RS15. Replace single use plastic bottled water with reusable containers"]
["8. Resource use","8.4 Footprint / area of land used","RS16. Keep the footprint and land take for compounds/work areas to a minimum"]
["9. Emissions to air","9.1 Vehicles/equipment","VE01. Regular servicing and maintenance of all vehicles, generators and plant equipment"]
["9. Emissions to air","9.1 Vehicles/equipment","VE02. Avoid idling / switch off vehicles and machinery when not in use"]
["9. Emissions to air","9.1 Vehicles/equipment","VE03. Use low-emission vehicles/equipment"]
["9. Emissions to air","9.1 Vehicles/equipment","VE04. For vehicles or machinery which emit excessive exhaust emissions (including black smoke), retrofit exhaust filter systems or take out of service"]
["9. Emissions to air","9.1 Vehicles/equipment","VE05. Position generators and exhausts away from sensitive receptors, whenever possible"]
["9. Emissions to air","9.1 Vehicles/equipment","VE06. Use electric-powered equipment over diesel, where possible  "]
["9. Emissions to air","9.1 Vehicles/equipment","VE07. Substitute hazardous materials with non-hazardous alternatives, whenever possible (e.g. low volatile content paints/markers)"]
["9. Emissions to air","9.2 Burning/fires","BF01. Avoid burning of any vegetation or waste"]
["9. Emissions to air","9.2 Burning/fires","BF02. Deploy firefighting equipment to tackle small fires"]
["9. Emissions to air","9.2 Burning/fires","BF03. Emergency fire procedure to be in place"]
["9. Emissions to air","9.2 Burning/fires","BF04. Use of fire breaks in vulnerable areas"]
["9. Emissions to air","9.3 Detonations","DE01. For any central demolition site, an Environmental Management Plan to be in place"]
["9. Emissions to air","9.3 Detonations","DE02. For central demolition sites, select location to minimise risks to downwind sensitive areas (e.g. houses, habitat, watercourses)"]
["9. Emissions to air","9.3 Detonations","DE03. Review variations in material, detonation/burn methods and site or weather conditions"]
["9. Emissions to air","9.3 Detonations","DE04. Do not use open burning/open detonation for heavy metal tungsten alloy munition"]
["9. Emissions to air","9.3 Detonations","DE05. Select detonation method that effectively transforms energetics to detonation products"]
["9. Emissions to air","9.3 Detonations","DE06. Regular monitoring and inspections to be in place - including visual checks and sampling, where appropriate"]
["9. Emissions to air","9.3 Detonations","DE07. Review methodology when other hazardous components suspected"]
["9. Emissions to air","9.3 Detonations","DE08. Inspect open burning/open detonation area, checking control measures are in place"]
["9. Emissions to air","9.3 Detonations","DE09. Conduct any necessary open burning at high temperature to ensure complete detonation / chemical reaction"]
["9. Emissions to air","9.3 Detonations","DE10. Conduct any open detonation  to allow high order detonation to ensure complete detonation / chemical reaction"]
["9. Emissions to air","9.3 Detonations","DE11. Optimise any detonation stacks to maximise detonation"]
["9. Emissions to air","9.3 Detonations","DE12. Conduct under daytime convective conditions with wind speed of 3 – 15 mph to allow atmospheric dispersal/mixing"]
["9. Emissions to air","9.3 Detonations","DE13. Avoid use of any fuel or material-supported open burning"]
["9. Emissions to air","9.3 Detonations","DE14. Use of earthen pits, burn trays, blast boxes or trenches with berms to control and contain activities"]
["9. Emissions to air","9.3 Detonations","DE15. Do not undertake open burning/open detonation during weather inversions, precipitation events, inclement or stormy weather"]
["9. Emissions to air","9.3 Detonations","DE16. Prevent excessive temperatures, causing vaporisation of metals"]
["9. Emissions to air","9.3 Detonations","DE17. Use any suppression of afterburning with caution"]
["9. Emissions to air","9.3 Detonations","DE18. Following open burning/open detonation, inspect area, remove scrap items and ensure 'free from explosives'"]
["9. Emissions to air","9.3 Detonations","DE19. For open burning, optimise ingress of oxygen (e.g. burn tables, ventilated incinerators for small arms ammunition, remove from boxes)"]
["9. Emissions to air","9.4 Dust","DT01. Minimise areas of bare ground and vehicle/plant movement to reduce generating dust from soil erosion"]
["9. Emissions to air","9.4 Dust","DT02. Maintain vegetation strips as breaks, where ever possible"]
["9. Emissions to air","9.4 Dust","DT03. Keep site speed limits to a minimum to reduce the risk of dust clouds"]
["9. Emissions to air","9.4 Dust","DT04. Store stockpiles of excavated material in sheltered areas or covered to minimse any dust generated"]
["10. Noise",null,"NS01. Consider fitting noise-arrestors for noisy equipment"]
["10. Noise",null,"NS02. For noise sensitive locations, consider the use lower-noise alternatives to high-order detonation (such as deflagration), where possible"]
["10. Noise",null,"NS03. Keep all noise levels as low as practicable, erecting barriers where required"]
["10. Noise",null,"NS04. Review work plan to avoid nesting and breeding season"]
["11. Local amenity","11.1 Nuisance","NU01. Adopt working hours which avoid nuisance to the local community"]
["11. Local amenity","11.1 Nuisance","NU02. Consider access routes, set-up of work area and parking areas to minimise risk of nuisance"]
["11. Local amenity","11.1 Nuisance","NU03. Consider fitting noise-arrestors for noisy equipment"]
["11. Local amenity","11.1 Nuisance","NU04. Display board on site, with contact details for any complaints or comments "]
["11. Local amenity","11.1 Nuisance","NU05. Identify and keep local community representatives informed"]
["11. Local amenity","11.1 Nuisance","NU06. Keep the footprint and land take for compounds/work areas to a minimum "]
["11. Local amenity","11.1 Nuisance","NU07. Record any complaints received and the response taken"]
["11. Local amenity","11.1 Nuisance","NU08. Maintain good housekeeping on site"]
["11. Local amenity","11.1 Nuisance","NU09. On demobilisation, reinstate areas and remove all equipment, waste and temporary structures"]
["11. Local amenity","11.1 Nuisance","NU10. Use existing access routes and compound areas, where possible"]
["11. Local amenity","11.1 Nuisance","NU11. Visit occupants of nearby sensitive building (e.g. residential, schools, healthcare facilities/hospitals) to keep informed on progress"]
["12. Cultural heritage","12.1 Impact on cultural heritage sites/objects","CH01. Consult with local community on cultural heritage and where necessary, seek specialist advice before proceeding and review site activities"]
["12. Cultural heritage","12.1 Impact on cultural heritage sites/objects","CH02. Confirm and obtain permissions to proceed with work from cultural heritage/stakeholders"]
["12. Cultural heritage","12.1 Impact on cultural heritage sites/objects","CH03. Any cultural heritage finds, including archaeological artefacts must be recorded and reported to the landowner and local authorities"]
["12. Cultural heritage","12.1 Impact on cultural heritage sites/objects","CH04. Agree procedures to handle any artefacts or finds discovered"]
["12. Cultural heritage","12.1 Impact on cultural heritage sites/objects","CH05. Halt works if human remains are found or suspected, adhering to IMAS guidelines"]
["13. Emergency / natural disaster","13.1 Uncontrolled releases/risk to personnel","EE01. Monitor local reports and extreme weather alerts"]
["13. Emergency / natural disaster","13.1 Uncontrolled releases/risk to personnel","EE02. Keep staff informed "]
["13. Emergency / natural disaster","13.1 Uncontrolled releases/risk to personnel","EE03. Emergency plan and evacuation procedure to be in place"]
["14. Local flooding/water courses","14.1 Surface run-off and ponding","LF01. Check any current community coping strategies in place "]
["14. Local flooding/water courses","14.1 Surface run-off and ponding","LF02. Check on-line data sources on previous flooding events"]
["14. Local flooding/water courses","14.1 Surface run-off and ponding","LF03. Do not store equipment, material or waste where there is a risk of flooding"]
["14. Local flooding/water courses","14.1 Surface run-off and ponding","LF04. Emergency plan and evacuation procedure to be in place"]
["14. Local flooding/water courses","14.1 Surface run-off and ponding","LF05. Identify how trends may require the prioritisation of some works areas before others. e.g. if prone to flooding, landslides or soil erosion"]
["14. Local flooding/water courses","14.1 Surface run-off and ponding","LF06. Identify opportunities to improve flood and climate resilience in the community"]
["14. Local flooding/water courses","14.1 Surface run-off and ponding","LF07. Keep staff informed "]
["14. Local flooding/water courses","14.1 Surface run-off and ponding","LF08. Maintain work areas to prevent waterlogging / flooding"]
["14. Local flooding/water courses","14.1 Surface run-off and ponding","LF09. Monitor forecasts and extreme weather alerts"]
["14. Local flooding/water courses","14.1 Surface run-off and ponding","LF10. Plan work programmes around seasonal patterns"]
["14. Local flooding/water courses","14.1 Surface run-off and ponding","LF11. Seek detail from community engagement on history of local flood events"]
["14. Local flooding/water courses","14.2 Physical barriers/diversions","PB01. Avoid blocking, obstructing or diverting any water course  "]
["14. Local flooding/water courses","14.2 Physical barriers/diversions","PB02. Seek local advice and expertise if any temporary crossing, diversion or bridge needed, and avoiding any changes in flow capacity, water levels, or passage for fish, eels etc…"]

{"sheet":"Compensation-Enhancement","index":12,"n_rows":36,"n_cols":7,"rows_kept":36,"cut":false,"hidden":false,"merged":[[3,1,3,6],[2,0,2,6]]}
["GREENFIELD TOOL: Mine Action and Disarmament Operations - Version: March 2025 - 1.0"]
["COMPENSATION OR ENHANCEMENT OPTIONS"]
["A list of compensation or enhancement options which could be applied to provide environmental benefits, and are included in the STEP 2 dropdown lists are given here. A 'benefit' category is also given, indicating how implementation could be make a positive impact. In some many cases, the benefits are multiple."]
[null,"Benefit category"]
["Options","Social value","Climate resilience","Conservation | biodiversity","Low carbon","Sustainable resource use","Pollution control |remediation|\nwaste management"]
["Awareness: Develop educational programs for project staff, local communities, and schools to raise awareness about environmental issues.","ü","ü",null,"``"]
["Awareness: Engage in community outreach to promote environmental stewardship and involve local communities in conservation efforts","ü",null,"ü"]
["Habitat: Creating flower-rich pollinator habitats, for example on field margins or by grassland restoration","ü",null,"ü"]
["Habitat: Creating seed-rich bird habitat, for example on field margins and by leaving overwinter stubbles","ü",null,"ü"]
["Habitat: Dedicate portions of the project site as permanent conservation areas or green spaces.","ü",null,"ü"]
["Habitat: Ensure areas are preserved in their natural state, allowing for the regeneration of native vegetation and wildlife.","ü","ü","ü"]
["Habitat: Establish or contribute to protected areas, wildlife reserves, or ecological corridors to safeguard habitats and species.","ü","ü","ü"]
["Habitat: Identify and protect areas with high biodiversity value both within and outside the project site.","ü","ü","ü"]
["Habitat: Implement wetland enhancement initiatives, such as water level management and the removal of invasive species.","ü","ü","ü"]
["Habitat: Plant native trees and vegetation in areas adjacent to the project site to restore or enhance forest cover.","ü","ü","ü"]
["Habitat: Provision of new ecological features or habitat which results in a net-gain in biodiversity. Includes creating nesting sites, ponds and wildlife corridors to facilitate the movement and breeding of native species","ü","ü","ü"]
["Habitat: Tree planting and woodland creation, using native species",null,"ü","ü"]
["Habitat: Wetland restoration. These can provide important habitats for wild flowers, insects, waders, wildfowl and aquatic species, as well as helping to store carbon and reduce the risk of downstream flooding and soil erosion.",null,"ü","ü"]
["Habitat: Wildlife conservation and protection monitoring programmes","ü",null,"ü"]
["Invasive species: Identify and control the spread of invasive plant and animal species that can negatively impact the local ecosystem","ü",null,"ü"]
["Invasive species: Improved management of existing ecological features, including the removal of invasive species or planting and replacement with native species","ü",null,"ü"]
["Resources: Promote and support greener travel options, including Eco driving practices, vehicle maintenance","ü",null,null,"ü",null,"ü"]
["Resources: Promote and support use of renewable energy options, such as solar panels","ü",null,null,"ü","ü","ü"]
["Resources: Promote sustainable agricultural and forestry practices that conserve soil and water resources and reduce the use of harmful chemicals.","ü","ü",null,null,"ü","ü"]
["Social: Encourage ecotourism initiatives that allow visitors to appreciate the enhanced environment","ü",null,"ü",null,"ü"]
["Social: Develop land use plans that balance human needs with environmental protection.","ü","ü"]
["Soil: Apply soil stabilization methods, like revegetation and erosion control mats, in areas where soil disturbance is a concern","ü","ü",null,null,"ü"]
["Soil: Conduct soil assessments and implement soil improvement techniques to enhance soil quality",null,"ü",null,null,null,"ü"]
["Soil: Implement erosion control measures, such as terracing, riparian buffers, and bioengineering techniques, to prevent soil erosion","ü","ü",null,null,"ü","ü"]
["Soil: Promote and support sustainable farming and climate-smart practices including measures which reduce soil erosion, chemical use, water pollution, and conserve water","ü","ü","ü",null,"ü","ü"]
["Waste: Fund infrastructure projects that directly benefit the environment, such as waste treatment facilities, pollution control systems, and green transportation options.","ü",null,null,null,null,"ü"]
["Waste: Promote and support waste reduction and recycling schemes, and the reduced use of single use plastics","ü",null,null,null,"ü","ü"]
["Waste: Waste or debris removal","ü",null,null,null,null,"ü"]
["Water: Invest in water resource management projects, such as riverbank stabilization, watershed protection, and water quality improvement.","ü","ü",null,null,"ü"]
["Water: Promote responsible water resource management, such as rainwater harvesting and water recycling.","ü","ü",null,null,"ü"]
["Water: Water resource protection, for example by use of buffer strips and planting of cover crops. Buffer strips (e.g. of perennial grasses) can help to reduce runoff or pollutants such as pesticides, fertilisers or sediment from fields into nearby watercourses. Cover crops can also help reduce pollutant runoff and soil erosion.","ü","ü",null,null,"ü","ü"]

{"sheet":"Risk matrix","index":13,"n_rows":45,"n_cols":7,"rows_kept":45,"cut":false,"hidden":false,"merged":[[44,6,44,20],[41,6,41,20],[42,4,42,5],[42,6,42,20],[43,4,43,5],[43,6,43,20],[38,6,38,20],[39,1,39,3],[39,4,39,5],[39,6,39,20],[40,6,40,20],[35,6,35,20],[36,4,36,5],[36,6,36,20],[37,4,37,5],[37,6,37,20],[32,6,32,20],[33,1,33,3],[33,4,33,5],[33,6,33,20],[34,6,34,20],[27,1,27,3],[21,1,21,3],[22,1,22,3],[23,1,23,3],[27,4,27,5],[28,6,28,20],[30,4,30,5],[31,4,31,5],[21,4,21,20],[22,4,22,20],[23,4,23,20],[27,6,27,20],[29,6,29,20],[31,6,31,20],[30,6,30,20]]}
["GREENFIELD TOOL: Mine Action and Disarmament Operations - Version: March 2025 - 1.0"]
["RISK MATRIX"]
[]
[null,"The simplified matrix below is used to evaluate the level of risk. Risk is a function of 'severity' and the 'probability' of harm occurring"]
[]
[]
[]
[]
[]
[]
[]
[]
[]
[]
[]
[]
[]
[]
[]
[null,"Definitions of probability (or ‘likelihood’) used are given below:"]
[]
[null,"High - likely",null,null,"It is probable that an impact will occur. It is not inevitable, but possible in the short-term and likely over the long-term."]
[null,"Medium - low likelihood",null,null,"Circumstances are possible under which an impact could occur. It is by no means certain that even over a longer period such an event would take place, and less likely in the short term. "]
[null,"Low - unlikely",null,null,"It is improbable that an impact would occur in the very long term. "]
[]
[null,"Some example definitions on the severity (or 'magnitude') of an environmental impact are given below:"]
[]
[null,"High - severe",null,null,"People",null,"Acute and immediate physical risks to people and their health, and their livelihoods or assets"]
[null,null,null,null,"Pollution ",null,"Immediate risk of pollution to a sensitive environment or a pollution incident of a significantly large scale."]
[null,null,null,null,"Waste",null,"Large volumes of non-hazardous waste generated, volumes of hazardous waste or high levels of contamination/pollutants released. No or very limited local or regional waste management capacity."]
[null,null,null,null,"Biodiversity/wildlife",null,"Irreversible damage to an ecologically protected area or immediate risks to protected species."]
[null,null,null,null,"Resources",null,"Use of scarce, mainly internationally sourced or non-recyclable materials, high carbon footprint / energy use. For soils, covers the loss and permanent damage of soil function which supports agriculture or ecologically important area."]
[null,null,null,null,"Climate",null,"Several climate-change factors, such changes in rainfall, or extreme weather events compounded by regional deforestation, environmental degradation, scarce climate adaptation capacity, existing pressure of local natural resources etc."]
[null,"Medium - moderate",null,null,"People",null,"Chronic risks to people's health over the longer-term, and longer-term risk to their livelihoods or assets"]
[null,null,null,null,"Pollution",null,"Risk of a pollution incident in the short-term or long-term."]
[null,null,null,null,"Waste",null,"Volumes of non-hazardous waste generated, smaller volumes of hazardous waste or small-scale release of contamination/pollutants. Some local or regional waste management capacity."]
[null,null,null,null,"Biodiversity/wildlife",null,"Adverse damage to an ecologically protected location, risks to protected species and habitat."]
[null,null,null,null,"Resources",null,"Use of materials mainly sourced on a local or national scale, some of which are sustainably sourced or recyclable, reduced carbon footprint / energy use. For soils, covers the loss and permanent damage of soil function which supports non-priority habitats or agriculture."]
[null,null,null,null,"Climate",null,"Climate factors, such changes in rainfall, or extreme weather events, but some climate adaptation capacity in place."]
[null,"Low - mild",null,null,"People",null,"Minor and non-permanent risk to people's health, and livelihoods or assets"]
[null,null,null,null,"Pollution",null,"Risk of small-scale pollution incident in the short or long term of non-sensitive environment."]
[null,null,null,null,"Waste",null,"Generation of low volumes of non-hazardous waste, minimal or no volumes of hazardous waste or pollutants. Waste management capacity available at local and regional waste management facilities."]
[null,null,null,null,"Biodiversity/wildlife",null,"Adverse damage to a less-sensitive environment (e.g. non-designated)."]
[null,null,null,null,"Resources",null,"Use of materials mainly sustainably sourced and recyclable, low carbon footprint / energy use. For soils, covers the loss and permanent damage of soil function which have been previously developed or little potential for return to agriculture."]
[null,null,null,null,"Climate",null,"Climate factors, such changes in rainfall, or extreme weather events, but climate adaptation capacity already in place or planned."]

{"sheet":"Response library","index":14,"n_rows":71,"n_cols":17,"rows_kept":71,"cut":false,"hidden":false,"merged":[]}
["GREENFIELD TOOL: Mine Action and Disarmament Operations - Version: March 2025 - 1.0"]
["RESPONSE LIBRARY","Note: The cells with Response options have 'defined names' and are linked to other sheets. Check these remain linked after any translation or any edits."]
["Response options provided in the dropdown lists"]
["Category","Response options"]
["General","Yes","No","Not known","Not relevant"]
["Border","Possible - within 10km","Unlikely - between 10-50km","Highly unlikely - more than 50km"]
["General","Yes, but no issues likely","Yes, a potential concern","No, no issues likely"]
["Governance - general","Non-existent","Ad-hoc or poorly functioning structures","Functioning structures with limited capacity/representation","Representative, effective and functioning system","Not known"]
["Governance - mine action","Yes ","Yes - partially","No"]
["Distance-I","Yes - within boundary","Yes - nearby, less than 2 km","Yes - between 2 to 10 km away","No - not within 10 km","Not known"]
["Distance-II","Yes - within boundary","Yes - nearby, less than 2 km","No - not within 2 km","Not known"]
["Conservation plans","Yes - details available","Yes - but details not given","None in place","Not known"]
["Local conservation concerns","Yes - details available","Yes - but no specific detail or plans in place","No issues raised or likely","Not known"]
["Invasive species","Yes - details available","Yes - but no specific detail or control plans in place","No issues raised","Not known"]
["Impact","Direct","Indirect"]
["Situation","Normal","Unusual","Emergency"]
["Likelihood","1. Unlikely","2. Low likelihood","3. Likely"]
["Severity","1. Mild","2. Moderate","3. Severe"]
["Risk","Low","Medium ","High"]
["Status","Open","Closed"]
["Impact - when","Short-term","Long-term"]
["Duration of the impact","Temporary","Permanent"]
["Vegetation maturity","Less than 5 years","Established","Mature or ancient","Not applicable - none present"]
["Habitat","Agricultural farmland ","Boreal forest & tundra","Coastal & mangroves","Deserts & shrublands ","Grasslands, savannas & shrublands","Mediterranean forests, woodlands & scrub","Plantation/managed forestry","Temperate forests","Tropical & sub-tropical forest","Urban ","Wetlands"]
["Land use","Aquaculture","Cultivated","Fallow/uncultivated","Grazing","Residential","Urban-commercial","Urban-derelict","Urban-industrial","Urban-undeveloped","Woodland","Other: specify"]
["Vegetation cover density","None","Open grassland, no trees","Occasional trees, low vegetation","Young, regenerating forest","Low density forest","Medium density forest","High density forest"]
["Land use changes","No change evident","Increase in natural habitat / vegetation cover","Decline in natural habitat / vegetation cover","Increase in development / urbanisation","Increase in agriculture","Decline in agriculture","Not known","Other: specify"]
["Previous land use","Not known","Aquaculture","Cultivated","Fallow/uncultivated","Grazing","Residential","Urban-commercial","Urban-derelict","Urban-industrial","Urban-undeveloped","Woodland","Other: specify"]
["Existing pollution /incidents","No obvious signs or evidence of pollution","Buried drums, tanks, pipework","Evidence of leaks or spills of fuel or chemicals","Soil or water with discolouration or odour","Vegetation loss, dieback or signs of stress","Dead or gasping fish in water bodies","Sick livestock or wildlife","Fire and fire damaged assets","Iridescent sheens (e.g. oil/fuel on soil or water)","Waste and debris at ground level or buried","Asbestos containing materials reported / suspected","Radioactive materials reported / suspected","Other: specify"]
["Soil type","Clay","Silt","Loam (organic-rich sand, silt, and clay)","Sand (finely coarse)","Gravel (coarse)"]
["Ground conditions","Vegetated","Bare - not compacted","Bare - compacted","Rocky","Waterlogged","Other: specify"]
["Surface water feature","None","Canal","Coast/estuary","Drainage channel/wadi","Lake","River","Stream","Not known"]
["Distance-III","Within boundary","Nearby, less than 200m","Between 200m to 500m","More than 500m"]
["Local water supply","Surface water (rivers, stream, ponds etc..)","Shallow wells/springs","Deep wells","Piped system","Rainwater collection system","Not known"]
["Water drains to ","Ground/soils","Sewer","Drainage channel/wadi","Natural water course (stream or river)","Not known"]
["Topography / terrain","Mountains","Hills, undulating","Flat","Coastal"]
["Slope","Flat","Gentle slope","Moderate slope","Steep"]
["Groundwater","Shallow, less than 10m below ground","Deep, more than 10m below ground","Not known"]
["Population","Within 200m","Between 200m to 500m","More than 500m"]
["Population density","Very sparse ","Low","Moderate","High","Not known"]
["Public access","No access","Limited access","Open and unrestricted access","Not known"]
["Deforestation","Yes - significant ","Yes - some ","No - not evident ","Not known"]
["Rainfall","Yes -  an increase","Yes - a decrease","No change","Not known"]
["Seasons-I","Yes","No change","Not relevant for this area","Not known"]
["Seasons-II","Yes","No change","Not known"]
["Coping strategies","Non-existent","Ad-hoc and not structured","Functioning, but limited capacity","Well established and effective ","Not known"]
["Climate impact-local livelihoods/ecosystem","No change likely","Adverse impact likely","Benefits likely","Not known"]
["EbA","Not likely","Yes - possibly","Yes - local support and capacity","Not known"]
["Land productivity","Declining","Early signs of decline","Stable but stressed","Stable ","Increasing"]
["Land use categories - post clearance","Residential","Agricultural","Community / public services","Natural resources (including foraging, hunting etc..)","Infrastructure","Access (footpaths, roads, bridges)","Not known"]
["Scale of pollution incident","Uncertain","Localised","Widespread","No evidence / unlikely to be present"]
["Enhancement categories","Low carbon","Social value","Sustainable use of resources","Conservation / biodiversity","Climate resilience","Pollution control / remediation / waste"]
["Positive benefits","Some benefit - small scale, and local","Wider benefit - community-level engagement and knowledge sharing","Multiple benefits - large scale, and major improvements"]
["Climate impacts","Changes in seasons","Cyclones and hurricanes","Damage to infrastructure","Damage to marine ecosystems and fisheries","Desertification","Displacement of people","Flooding","Food insecurity","Heat stress","Increased risk of landscape fires","Increased risk of pests and diseases","Landslides","Loss of biodiversity","More intense rainfall","Storm surges and coastal flooding","Water scarcity"]
["ND Index Score","Not available","High score (good) - more than 60","Average score - 50 to 60","Low score - 40 to  50","Very low score (poor) - below 40"]
["Climate-mine action","Ability to deploy mine detection dog teams or certain equipment","Conditions affecting the durability and robustness of some equipment","Drought causing the exposure of previously submerged EO","Fires triggering EO detonations, and detonations causing fires","Flooding and landslides causing uncertainty about the location and orientation of EO, potential need to areas to be re-surveyed/cleared","Heat stress","Increased fire risk to staff, equipment, firefighters, and local people","Increased pressure on local water resources, and agricultural stress ","Increased risk of disease and need for precautionary measures, training, medical check-ups and treatment","Need for additional measures to protect soils, prevent erosion and improve soil health","Need for additional measures, such as use of fire breaks, provisions of firefighting equipment, revised evacuation procedures","Need for areas to be re-surveyed and cleared","Physical risks to staff and local people","Shorter work shifts and more frequent breaks","Stand down, access constraints and delays to workplans"]
["Water flow rates","Dry","Stagnant - no flow","Slow flowing","Fast flowing","Not applicable"]
["Governance - waste","Non-existent","Ad-hoc or poorly functioning","Functioning, but limited capacity","Effective and well regulated","Not known"]
["Outcomes","Limited measures in place and no change / reduction in risks","Measures in place, and risks minimised","Measures in place, risks minimised, and some compensation measures in place","Additional enhancement measures in place, and overall net benefits anticipated (longer-term monitoring required to assess).","Work stopped / not proceeding at this stage."]
["General - I","Yes","No, not possible","None relevant / required"]
["General - II","Yes ","Not ","Not yet known"]
["Further actions","None at this stage","Provide environmental details in handover reports","Longer-term monitoring / aftercare planning","Inform other stakeholders","Additional control measures"]
["Incident reporting - cause","Mine action activities","External factor - climate  / weather event","External factor - existing pollution / waste","External factor - neighbouring activities","Not known"]
["Incident reporting - positive","None evident","Yes - planned","Yes - ongoing","Yes - completed"]
["Incident reporting - nature","Incident","Near-miss"]
["Incident reporting - extent ","Uncertain","Localised, minor","Localised, severe","Local community affected, minor","Local community affected, severe","Regional-scale"]
["Incident - impacted or potential to be impacted","People, and access","Property, including crops, livestock","Soil quality","Air quality","Water quality","Wildlife / habitat","Cultural heritage"]
["Incident - details of incident","Damage to a structure or asset ","Loss or leak of fuel, chemicals or hazardous material ","Other spill or pollution event","Nuisance (e.g. litter, odour) or noise, ground-shocks and vibrations","Illegal or uncontrolled waste disposal","Pre-existing soil contamination","Damage to ecologically important habitat ","Damage to cultural assets","Flooding","Landscape or localised fire","Collapsed or badly damaged river banks","Unusual changes in flowrates in rivers or streams","Dead or 'gasping' fish","Injured or dead wildlife /livestock","Previously unreported presence of invasive species","Inspection or contact from the regulatory authorities"]
["Incident - notification","Mine action authorities","Occupants / land users","Landowners","Local community ","Local/regional authorities","Not required"]
["Screen out","X","Yes"]
["Task types","Technical survey","Clearance","Central demolition site","Camp","Access routes"]

{"sheet":"Response calculation","index":15,"n_rows":400,"n_cols":38,"rows_kept":400,"cut":false,"hidden":true,"merged":[[0,1,0,3]]}
["Profile Statement","Note: this sheet has cells with 'defined names' and should update automatically if the Step 1 profile questions, the responses or the 'profile statements' are translated or text changed.",null,null,null,null,null,null,null,null,"Complementary Attribute #",{"$f":"J1+1","v":1},"Complementary Attribute #",{"$f":"L1+1","v":2},"Complementary Attribute #",{"$f":"N1+1","v":3},"Complementary Attribute #",{"$f":"P1+1","v":4},"Complementary Attribute #",{"$f":"R1+1","v":5},"Complementary Attribute #",{"$f":"T1+1","v":6},"Complementary Attribute #",{"$f":"V1+1","v":7},"Complementary Attribute #",{"$f":"X1+1","v":8},"Complementary Attribute #",{"$f":"Z1+1","v":9},"Complementary Attribute #",{"$f":"AB1+1","v":10},"Complementary Attribute #",{"$f":"AD1+1","v":11},"Complementary Attribute #",{"$f":"AF1+1","v":12},"Complementary Attribute #",{"$f":"AH1+1","v":13},"Complementary Attribute #",{"$f":"AJ1+1","v":14}]
[{"$f":"SS_populated_areas","v":"People living nearby, could be affected by negative mine action activities."},{"$f":"D3","v":0}]
[null,"Response value",null,{"$f":"IF(ISNA(VLOOKUP(D4,C5:D7,2,FALSE)),0,VLOOKUP(D4,C5:D7,2,FALSE))","v":0}]
[null,"Response",{"$f":"EP_Res_pop","v":"What is the distance of the area of operation to the nearest residential areas / populated area?"},{"$f":"INDEX('Step 1 Profile'!$G:$G,MATCH('Response calculation'!C4,'Step 1 Profile'!$B:$B,FALSE))","v":0}]
[null,null,{"$f":"Response_Pop_B_within_200m","v":"Within 200m"},1]
[null,null,{"$f":"Response_Pop_C_200m_to_500m","v":"Between 200m to 500m"},0.6]
[null,null,{"$f":"Response_Pop_D_more_than_500m","v":"More than 500m"},0.4]
[{"$f":"SS_access_to_areas","v":"People with ready access to areas close to the mine action activities."},{"$f":"D9","v":0}]
[null,"Response value",null,{"$f":"IF(ISNA(VLOOKUP(D10,C11:D14,2,FALSE)),0,VLOOKUP(D10,C11:D14,2,FALSE))","v":0}]
[null,"Response",{"$f":"EP_access","v":"Will people have ready access to the adjoining areas during the field activities? "},{"$f":"INDEX('Step 1 Profile'!$G:$G,MATCH('Response calculation'!C10,'Step 1 Profile'!$B:$B,FALSE))","v":0}]
[null,null,{"$f":"Response_Public_E","v":"Not known"},1]
[null,null,{"$f":"Response_Public_D","v":"Open and unrestricted access"},1]
[null,null,{"$f":"Response_Public_C","v":"Limited access"},0.6]
[null,null,{"$f":"Response_Public_B","v":"No access"},0.4]
[{"$f":"SS_general_decline","v":"A general decline or early signs of decline in land quality and land productivity."},{"$f":"D16","v":0}]
[null,"Response value",null,{"$f":"IF(ISNA(VLOOKUP(D17,C18:D22,2,FALSE)),0,VLOOKUP(D17,C18:D22,2,FALSE))","v":0}]
[null,"Response",{"$f":"EP_land_prod","v":"Has there been a change in general land productivity?"},{"$f":"INDEX('Step 1 Profile'!$G:$G,MATCH('Response calculation'!C17,'Step 1 Profile'!$B:$B,FALSE))","v":0}]
[null,null,{"$f":"Response_Land_productivity_B","v":"Declining"},1]
[null,null,{"$f":"Response_Land_productivity_C","v":"Early signs of decline"},1]
[null,null,{"$f":"Response_Land_productivity_D","v":"Stable but stressed"},0.6]
[null,null,{"$f":"Response_Land_productivity_E","v":"Stable "},0.4]
[null,null,{"$f":"Response_Land_productivity_F","v":"Increasing"},0.3]
[{"$f":"SS_decline_NH","v":"A decline, or potential for decline, in natural habitat due to increased urbanisation or agricultural changes in recent years."},{"$f":"D24","v":0}]
[null,"Response value",null,{"$f":"IF(ISNA(VLOOKUP(D25,C26:D31,2,FALSE)),0,VLOOKUP(D25,C26:D31,2,FALSE))","v":0}]
[null,"Response",{"$f":"EP_landuse_changes","v":"What has been the main feature of any changes in land use? Consider changes over at least the previous 20 years"},{"$f":"INDEX('Step 1 Profile'!$G:$G,MATCH('Response calculation'!C25,'Step 1 Profile'!$B:$B,FALSE))","v":0}]
[null,null,{"$f":"Response_Land_use_change_D","v":"Decline in natural habitat / vegetation cover"},1]
[null,null,{"$f":"Response_Land_use_change_E","v":"Increase in development / urbanisation"},1]
[null,null,{"$f":"Response_Land_use_change_F","v":"Increase in agriculture"},1]
[null,null,{"$f":"Response_Land_use_change_G","v":"Decline in agriculture"},0.3]
[null,null,{"$f":"Response_Land_use_change_B","v":"No change evident"},0.3]
[null,null,{"$f":"Response_Land_use_change_C","v":"Increase in natural habitat / vegetation cover"},0.3]
[{"$f":"SS_decline_NH_NotK","v":"Uncertain whether natural habitat has declined in recent years due land use changes."},{"$f":"D33","v":0}]
[null,"Response value",null,{"$f":"IF(ISNA(VLOOKUP(D34,C35:D35,2,FALSE)),0,VLOOKUP(D34,C35:D35,2,FALSE))","v":0}]
[null,"Response",{"$f":"EP_landuse_changes","v":"What has been the main feature of any changes in land use? Consider changes over at least the previous 20 years"},{"$f":"INDEX('Step 1 Profile'!$G:$G,MATCH('Response calculation'!C34,'Step 1 Profile'!$B:$B,FALSE))","v":0}]
[null,null,{"$f":"Response_Land_use_change_H","v":"Not known"},0.6]
[{"$f":"SS_weakened_or_poor_governance","v":"Weakened or poor governance system, with a low capacity for environmental management or controls."},{"$f":"D37","v":0}]
[null,"Response value",null,{"$f":"IF(ISNA(VLOOKUP(D38,C39:D43,2,FALSE)),0,VLOOKUP(D38,C39:D43,2,FALSE))","v":0}]
[null,"Response",{"$f":"EP_gov_general","v":"How effective is environmental governance in the region? "},{"$f":"INDEX('Step 1 Profile'!$G:$G,MATCH('Response calculation'!C38,'Step 1 Profile'!$B:$B,FALSE))","v":0}]
[null,null,{"$f":"Response_Gov_B","v":"Non-existent"},1]
[null,null,{"$f":"Response_Gov_C","v":"Ad-hoc or poorly functioning structures"},0.6]
[null,null,{"$f":"Response_Gov_D","v":"Functioning structures with limited capacity/representation"},0.6]
[null,null,{"$f":"Response_Gov_E","v":"Representative, effective and functioning system"},0.3]
[null,null,{"$f":"Response_Gov_F","v":"Not known"},1]
[{"$f":"SS_veg_type_main","v":"The predominant ecosystem in the area is potentially vulnerable to habitat and biodiversity loss. \nSeek local ecological advice. "},{"$f":"D45","v":0}]
[null,"Response value",null,{"$f":"IF(ISNA(VLOOKUP(D46,C47:D57,2,FALSE)),0,VLOOKUP(D46,C47:D57,2,FALSE))","v":0}]
[null,"Response",{"$f":"EP_veg_main","v":"What is the nature of vegetation cover in the area? - Main"},{"$f":"INDEX('Step 1 Profile'!$G:$G,MATCH('Response calculation'!C46,'Step 1 Profile'!$B:$B,FALSE))","v":0}]
[null,null,{"$f":"Response_Habitat_C","v":"Boreal forest & tundra"},1]
[null,null,{"$f":"Response_Habitat_E","v":"Deserts & shrublands "},1]
[null,null,{"$f":"Response_Habitat_D","v":"Coastal & mangroves"},1]
[null,null,{"$f":"Response_Habitat_L","v":"Wetlands"},1]
[null,null,{"$f":"Response_Habitat_G","v":"Mediterranean forests, woodlands & scrub"},1]
[null,null,{"$f":"Response_Habitat_I","v":"Temperate forests"},1]
[null,null,{"$f":"Response_Habitat_J","v":"Tropical & sub-tropical forest"},1]
[null,null,{"$f":"Response_Habitat_F","v":"Grasslands, savannas & shrublands"},1]
[null,null,{"$f":"Response_Habitat_H","v":"Plantation/managed forestry"},0.4]
[null,null,{"$f":"Response_Habitat_K","v":"Urban "},0.3]
[null,null,{"$f":"Response_Habitat_B","v":"Agricultural farmland "},0.3,null,null,"",null,"",null,"",null,"",null,"",null,"",null,"",null,"",null,""]
[{"$f":"SS_protected_legal","v":"Protected / conservation areas, and legal / planning restrictions are likely to apply.\nConsult with authorities and seek local advice."},{"$f":"D59","v":0}]
[null,"Response value",null,{"$f":"IF(ISNA(VLOOKUP(D60,C61:D64,2,FALSE)),0,VLOOKUP(D60,C61:D64,2,FALSE))","v":0}]
[null,"Response",{"$f":"EP_KBA","v":"Is the area of operation located in or close to an environmentally sensitive, ecologically important or protected area?"},{"$f":"INDEX('Step 1 Profile'!$G:$G,MATCH('Response calculation'!C60,'Step 1 Profile'!$B:$B,FALSE))","v":0}]
[null,null,{"$f":"Response_Protectedarea_dist_B","v":"Yes - within boundary"},1]
[null,null,{"$f":"Response_Protectedarea_dist_C","v":"Yes - nearby, less than 2 km"},0.6]
[null,null,{"$f":"Response_Protectedarea_dist_D","v":"Yes - between 2 to 10 km away"},0.4]
[null,null,{"$f":"Response_Protectedarea_dist_E","v":"No - not within 10 km"},0.3]
[{"$f":"SS_Protected_NotK","v":"Protected/conservation area status is not known. \nSeek local ecological advice. "},{"$f":"D66","v":0}]
[null,"Response value",null,{"$f":"IF(ISNA(VLOOKUP(D67,C68:D68,2,FALSE)),0,VLOOKUP(D67,C68:D68,2,FALSE))","v":0}]
[null,"Response",{"$f":"EP_KBA","v":"Is the area of operation located in or close to an environmentally sensitive, ecologically important or protected area?"},{"$f":"INDEX('Step 1 Profile'!$G:$G,MATCH('Response calculation'!C67,'Step 1 Profile'!$B:$B,FALSE))","v":0}]
[null,null,{"$f":"Response_Protectedarea_dist_F","v":"Not known"},1]
[{"$f":"SS_CH","v":"Nearby areas of high cultural significance, and special precautions may apply."},{"$f":"D70","v":0}]
[null,"Response value",null,{"$f":"IF(ISNA(VLOOKUP(D71,C72:D74,2,FALSE)),0,VLOOKUP(D71,C72:D78,2,FALSE))","v":0}]
[null,"Response",{"$f":"EP_CH","v":"Are there any significant historical or cultural sites near to the area of operation?"},{"$f":"INDEX('Step 1 Profile'!$G:$G,MATCH('Response calculation'!C71,'Step 1 Profile'!$B:$B,FALSE))","v":0}]
[null,null,{"$f":"Response_DistanceII_B","v":"Yes - within boundary"},1]
[null,null,{"$f":"Response_DistanceII_C","v":"Yes - nearby, less than 2 km"},0.6]
[null,null,{"$f":"Response_DistanceII_D","v":"No - not within 2 km"},0.3]
[{"$f":"SS_CH_NotK","v":"No current details known on whether there are cultural assets nearby.\nSeek local advice."},{"$f":"D76","v":0}]
[null,"Response value",null,{"$f":"IF(ISNA(VLOOKUP(D77,C78:D78,2,FALSE)),0,VLOOKUP(D77,C78:D78,2,FALSE))","v":0}]
[null,"Response",{"$f":"EP_CH","v":"Are there any significant historical or cultural sites near to the area of operation?"},{"$f":"INDEX('Step 1 Profile'!$G:$G,MATCH('Response calculation'!C77,'Step 1 Profile'!$B:$B,FALSE))","v":0}]
[null,null,{"$f":"Response_DistanceII_E","v":"Not known"},1]
[{"$f":"SS_EbA","v":"Opportunities to introduce ecosystem-based adaptation or other initiatives.\nSeek local advice as early as possible and suitability of options."},{"$f":"D80","v":0}]
[null,"Response value",null,{"$f":"IF(ISNA(VLOOKUP(D81,C82:D85,2,FALSE)),0,VLOOKUP(D81,C82:D85,2,FALSE))","v":0}]
[null,"Response",{"$f":"EP_EbA","v":"Are there possible opportunities for introducing ecosystem-based adaptation initiatives, and other environmental options to support communities?"},{"$f":"INDEX('Step 1 Profile'!$G:$G,MATCH('Response calculation'!C81,'Step 1 Profile'!$B:$B,FALSE))","v":0}]
[null,null,{"$f":"Response_Gen_B_Yes","v":"Yes"},1]
[null,null,{"$f":"Response_Gen_C_No","v":"No"},0.3]
[null,null,{"$f":"Response_Gen_D_NotRev","v":"Not relevant"},0.3]
[null,null,{"$f":"Response_Gen_D_NotK","v":"Not known"},1]
[{"$f":"SS_deforestation","v":"Deforestation in the region over recent years, which could worsen the effects of climate change, soil erosion and biodiversity loss. "},{"$f":"D87","v":0}]
[null,"Response value",null,{"$f":"IF(ISNA(VLOOKUP(D88,C89:D91,2,FALSE)),0,VLOOKUP(D88,C89:D94,2,FALSE))","v":0}]
[null,"Response",{"$f":"EP_deforestation","v":"Has there been deforestation in the general area over recent decades? Include a  screenshot of mapping to highlight the extent."},{"$f":"INDEX('Step 1 Profile'!$G:$G,MATCH('Response calculation'!C88,'Step 1 Profile'!$B:$B,FALSE))","v":0}]
[null,null,{"$f":"Response_Deforest_B","v":"Yes - significant "},1]
[null,null,{"$f":"Response_Deforest_C","v":"Yes - some "},0.6]
[null,null,{"$f":"Response_Deforest_D","v":"No - not evident "},0.3]
[{"$f":"SS_deforestation_NotK","v":"No current details known on deforestation in the region.\nSeek local advice."},{"$f":"D93","v":0}]
[null,"Response value",null,{"$f":"IF(ISNA(VLOOKUP(D94,C95:D95,2,FALSE)),0,VLOOKUP(D94,C95:D96,2,FALSE))","v":0}]
[null,"Response",{"$f":"EP_deforestation","v":"Has there been deforestation in the general area over recent decades? Include a  screenshot of mapping to highlight the extent."},{"$f":"INDEX('Step 1 Profile'!$G:$G,MATCH('Response calculation'!C94,'Step 1 Profile'!$B:$B,FALSE))","v":0}]
[null,null,{"$f":"Response_Deforest_E","v":"Not known"},1]
[{"$f":"SS_regenerative_cap","v":"Low regenerative capacity of the local environment. The effects of land and soil degradation may be more significant."},{"$f":"D97","v":0}]
[null,"Response value",null,{"$f":"IF(ISNA(VLOOKUP(D98,C99:D103,2,FALSE)),0,VLOOKUP(D98,C99:D103,2,FALSE))","v":0}]
[null,"Response",{"$f":"EP_land_prod","v":"Has there been a change in general land productivity?"},{"$f":"INDEX('Step 1 Profile'!$G:$G,MATCH('Response calculation'!C98,'Step 1 Profile'!$B:$B,FALSE))","v":0}]
[null,null,{"$f":"Response_Land_productivity_B","v":"Declining"},1]
[null,null,{"$f":"Response_Land_productivity_C","v":"Early signs of decline"},1]
[null,null,{"$f":"Response_Land_productivity_D","v":"Stable but stressed"},0.6]
[null,null,{"$f":"Response_Land_productivity_E","v":"Stable "},0.4]
[null,null,{"$f":"Response_Land_productivity_F","v":"Increasing"},0]
[{"$f":"SS_local_water_qual","v":"Local water supply may be vulnerable to contamination."},{"$f":"D105","v":0},"Condition Value:",{"$f":"IF(AND(F104>0.5, H104>0),F104,0)","v":0}]
[null,"Response value",null,{"$f":"IF(ISNA(VLOOKUP(D106,C107:D112,2,FALSE)),0,VLOOKUP(D106,C107:D112,2,FALSE))","v":0}]
[null,"Response",{"$f":"EP_water_source","v":"What is the main water source of the local population?"},{"$f":"INDEX('Step 1 Profile'!$G:$G,MATCH('Response calculation'!C106,'Step 1 Profile'!$B:$B,FALSE))","v":0}]
[null,null,{"$f":"Response_Water_supply_B","v":"Surface water (rivers, stream, ponds etc..)"},1]
[null,null,{"$f":"Response_Water_supply_C","v":"Shallow wells/springs"},1]
[null,null,{"$f":"Response_Water_supply_D","v":"Deep wells"},0.6]
[null,null,{"$f":"Response_Water_supply_E","v":"Piped system"},0]
[null,null,{"$f":"Response_Water_supply_F","v":"Rainwater collection system"},0]
[null,null,{"$f":"Response_Water_supply_G","v":"Not known"},1]
[{"$f":"SS_water_features","v":"Nearby surface water features which may be vulnerable from mine action activities."},{"$f":"D114","v":0},"Condition Value:",{"$f":"F113","v":0}]
[null,"Response value",null,{"$f":"IF(ISNA(VLOOKUP(D115,C116:D119,2,FALSE)),0,VLOOKUP(D115,C116:D119,2,FALSE))","v":0}]
[null,"Response",{"$f":"EP_water_distance","v":"What is the distance to the nearest surface water feature?"},{"$f":"INDEX('Step 1 Profile'!$G:$G,MATCH('Response calculation'!C115,'Step 1 Profile'!$B:$B,FALSE))","v":0}]
[null,null,{"$f":"Response_Water_distance_B","v":"Within boundary"},1]
[null,null,{"$f":"Response_Water_distance_C","v":"Nearby, less than 200m"},0.6]
[null,null,{"$f":"Response_Water_distance_D","v":"Between 200m to 500m"},0.4]
[null,null,{"$f":"Response_Water_distance_E","v":"More than 500m"},0.3]
[{"$f":"SS_water_scarity","v":"There are local water scarcity and quality issues.\nIncorporate water conservation, together with standard pollution control measures."},{"$f":"D121","v":0}]
[null,"Response value",null,{"$f":"IF(ISNA(VLOOKUP(D122,C123:D124,2,FALSE)),0,VLOOKUP(D122,C123:D124,2,FALSE))","v":0}]
[null,"Response",{"$f":"EP_water_scarity","v":"Is water scarcity and/or quality an issue for the local population?"},{"$f":"INDEX('Step 1 Profile'!$G:$G,MATCH('Response calculation'!C122,'Step 1 Profile'!$B:$B,FALSE))","v":0}]
[null,null,{"$f":"Response_Gen_B_Yes","v":"Yes"},1]
[null,null,{"$f":"Response_Gen_C_No","v":"No"},0]
[{"$f":"SS_storm_surge","v":"Area may be at risk from storm surges, flooding and/or coastal erosion"},{"$f":"D126","v":0}]
[null,"Response value",null,{"$f":"IF(ISNA(VLOOKUP(D127,C128:D131,2,FALSE)),0,VLOOKUP(D127,C128:D131,2,FALSE))","v":0}]
[null,"Response",{"$f":"EP_floodcoast","v":"Has there been recent or more frequent coastal flooding in the area? Check for areas prone to flooding and future predictions."},{"$f":"INDEX('Step 1 Profile'!$G:$G,MATCH('Response calculation'!C127,'Step 1 Profile'!$B:$B,FALSE))","v":0}]
[null,null,{"$f":"Response_Seasons_I_B","v":"Yes"},1]
[null,null,{"$f":"Response_Seasons_I_C","v":"No change"},0.6]
[null,null,{"$f":"Response_Seasons_I_D","v":"Not relevant for this area"},0]
[null,null,{"$f":"Response_Seasons_I_E","v":"Not known"},0.6]
[{"$f":"SS_flooding","v":"Area may be at risk of flooding, which could impact mine action activities and local people."},{"$f":"D133","v":0}]
[null,"Response value",null,{"$f":"IF(ISNA(VLOOKUP(D134,C135:D138,2,FALSE)),0,VLOOKUP(D134,C135:D138,2,FALSE))","v":0}]
[null,"Response",{"$f":"EP_floodriver","v":"Has there been recent or more frequent river/surface flooding in the area? Check for areas prone to flooding and future predictions."},{"$f":"INDEX('Step 1 Profile'!$G:$G,MATCH('Response calculation'!C134,'Step 1 Profile'!$B:$B,FALSE))","v":0}]
[null,null,{"$f":"Response_Seasons_I_B","v":"Yes"},1]
[null,null,{"$f":"Response_Seasons_I_C","v":"No change"},0.4]
[null,null,{"$f":"Response_Seasons_I_D","v":"Not relevant for this area"},0]
[null,null,{"$f":"Response_Seasons_I_E","v":"Not known"},0.6]
[{"$f":"SS_Risk_of_existing_pollution","v":"Existing pollution due to previous activities and land use could impact soil and water quality, future land use and safe access."},{"$f":"D140","v":0},"Condition Value:",{"$f":"IF(AND(F139>0,H139>0),F139,H139)","v":0}]
[null,"Response value",null,{"$f":"IF(ISNA(VLOOKUP(D141,C142:D145,2,FALSE)),0,VLOOKUP(D141,C142:D145,2,FALSE))","v":0}]
[null,"Response",{"$f":"EP_scale_pollution","v":"What is the scale and extent of pollution identified?"},{"$f":"INDEX('Step 1 Profile'!$G:$G,MATCH('Response calculation'!C141,'Step 1 Profile'!$B:$B,FALSE))","v":0}]
[null,null,{"$f":"Response_Scale_Pollution_B","v":"Uncertain"},0.6]
[null,null,{"$f":"Response_Scale_Pollution_C","v":"Localised"},0.6]
[null,null,{"$f":"Response_Scale_Pollution_D","v":"Widespread"},1]
[null,null,{"$f":"Response_Scale_Pollution_E","v":"No evidence / unlikely to be present"},0]
[{"$f":"SS_international_border","v":"An international border is nearby. Mine action activities could cause cross-boundary environmental issues. \nConsultation with local environmental actors required."},{"$f":"D147","v":0}]
[null,"Response value",null,{"$f":"IF(ISNA(VLOOKUP(D148,C149:D151,2,FALSE)),0,VLOOKUP(D148,C149:D151,2,FALSE))","v":0}]
[null,"Response",{"$f":"EP_border","v":"Is the programme close to an international border, which could lead to transboundary environmental issues?"},{"$f":"INDEX('Step 1 Profile'!$G:$G,MATCH('Response calculation'!C148,'Step 1 Profile'!$B:$B,FALSE))","v":0}]
[null,null,{"$f":"Response_Border_B_within_10km","v":"Possible - within 10km"},1]
[null,null,{"$f":"Response_Border_C_10_50km","v":"Unlikely - between 10-50km"},0.6]
[null,null,{"$f":"Response_Border_D_more_than_50km","v":"Highly unlikely - more than 50km"},0.3]
[{"$f":"SS_CC_local_eco","v":"Local ecosystems adversely impacted by climate change."},{"$f":"D153","v":0}]
[null,"Response value",null,{"$f":"IF(ISNA(VLOOKUP(D154,C155:D157,2,FALSE)),0,VLOOKUP(D154,C155:D157,2,FALSE))","v":0}]
[null,"Response",{"$f":"EP_local_eco","v":"How are local ecosystems likely to be affected by climate changes?"},{"$f":"INDEX('Step 1 Profile'!$G:$G,MATCH('Response calculation'!C154,'Step 1 Profile'!$B:$B,FALSE))","v":0}]
[null,null,{"$f":"Response_Climate_local_lives_B","v":"No change likely"},0.5]
[null,null,{"$f":"Response_Climate_local_lives_C","v":"Adverse impact likely"},1]
[null,null,{"$f":"Response_Climate_local_lives_D","v":"Benefits likely"},0.3]
[{"$f":"SS_CC_local_eco_NotK","v":"Uncertain about how local ecosystems may be impacted by climate change."},{"$f":"D159","v":0}]
[null,"Response value",null,{"$f":"IF(ISNA(VLOOKUP(D160,C161:D161,2,FALSE)),0,VLOOKUP(D160,C161:D161,2,FALSE))","v":0}]
[null,"Response",{"$f":"EP_local_eco","v":"How are local ecosystems likely to be affected by climate changes?"},{"$f":"INDEX('Step 1 Profile'!$G:$G,MATCH('Response calculation'!C160,'Step 1 Profile'!$B:$B,FALSE))","v":0}]
[null,null,{"$f":"Response_Climate_local_lives_E","v":"Not known"},0.6]
[{"$f":"SS_CC_livelihoods","v":"Local livelihoods and assets adversely impacted by climate change."},{"$f":"D163","v":0}]
[null,"Response value",null,{"$f":"IF(ISNA(VLOOKUP(D164,C165:D167,2,FALSE)),0,VLOOKUP(D164,C165:D167,2,FALSE))","v":0}]
[null,"Response",{"$f":"EP_local_livelihoods","v":"How are local livelihoods and assets likely to be affected by climate changes?"},{"$f":"INDEX('Step 1 Profile'!$G:$G,MATCH('Response calculation'!C164,'Step 1 Profile'!$B:$B,FALSE))","v":0}]
[null,null,{"$f":"Response_Climate_local_lives_B","v":"No change likely"},0.5]
[null,null,{"$f":"Response_Climate_local_lives_C","v":"Adverse impact likely"},1]
[null,null,{"$f":"Response_Climate_local_lives_D","v":"Benefits likely"},0.3]
[{"$f":"SS_CC_livelihoods_NotK","v":"Uncertain about how local livelihoods and assets may be impacted by climate change."},{"$f":"D169","v":0}]
[null,"Response value",null,{"$f":"IF(ISNA(VLOOKUP(D170,C171:D171,2,FALSE)),0,VLOOKUP(D170,C171:D171,2,FALSE))","v":0}]
[null,"Response",{"$f":"EP_local_livelihoods","v":"How are local livelihoods and assets likely to be affected by climate changes?"},{"$f":"INDEX('Step 1 Profile'!$G:$G,MATCH('Response calculation'!C170,'Step 1 Profile'!$B:$B,FALSE))","v":0}]
[null,null,{"$f":"Response_Climate_local_lives_E","v":"Not known"},0.6]
[{"$f":"SS_local_comm_obs","v":"The local community has noted overall changes in weather and seasonal patterns."},{"$f":"D173","v":0},"Condition Value:",{"$f":"F172","v":0}]
[null,"Response value",null,{"$f":"IF(ISNA(VLOOKUP(D174,C175:D176,2,FALSE)),0,VLOOKUP(D174,C175:D176,2,FALSE))","v":0}]
[null,"Response",{"$f":"EP_comm_obs","v":"Has the local community observed changes in overall weather and seasonal patterns, temperature, rainfall and extreme weather events?"},{"$f":"INDEX('Step 1 Profile'!$G:$G,MATCH('Response calculation'!C174,'Step 1 Profile'!$B:$B,FALSE))","v":0}]
[null,null,{"$f":"Response_Seasons_II_B","v":"Yes"},1]
[null,null,{"$f":"Response_Seasons_II_C","v":"No change"},0]
[{"$f":"SS_local_comm_obs_NotK","v":"The local community experience of changes in weather and seasonal patterns is unknown."},{"$f":"D178","v":0},"Condition Value:",{"$f":"F177","v":0}]
[null,"Response value",null,{"$f":"IF(ISNA(VLOOKUP(D179,C180:D180,2,FALSE)),0,VLOOKUP(D179,C180:D180,2,FALSE))","v":0}]
[null,"Response",{"$f":"EP_comm_obs","v":"Has the local community observed changes in overall weather and seasonal patterns, temperature, rainfall and extreme weather events?"},{"$f":"INDEX('Step 1 Profile'!$G:$G,MATCH('Response calculation'!C179,'Step 1 Profile'!$B:$B,FALSE))","v":0}]
[null,null,{"$f":"Response_Seasons_II_D","v":"Not known"},0.6]
[{"$f":"SS_mine_action_CCimpacts","v":"Heightened exposure to climate-related risks and extreme weather events.\nIncorporation of climate-risks into mine action programming and adaptation planning."},{"$f":"D182","v":0}]
[null,"Response value",null,{"$f":"IF(ISNA(VLOOKUP(D183,C184:D186,2,FALSE)),0,VLOOKUP(D183,C184:D186,2,FALSE))","v":0}]
[null,"Response",{"$f":"EP_extreme_weather","v":"Has there been more frequent extreme weather events?"},{"$f":"INDEX('Step 1 Profile'!$G:$G,MATCH('Response calculation'!C183,'Step 1 Profile'!$B:$B,FALSE))","v":0}]
[null,null,{"$f":"Response_Seasons_I_B","v":"Yes"},1]
[null,null,{"$f":"Response_Seasons_I_C","v":"No change"},0.6]
[null,null,{"$f":"Response_Seasons_I_D","v":"Not relevant for this area"},0.3]
[{"$f":"SS_mine_action_CCimpacts_NotK","v":"The potential for heightened exposure to climate-related risks is unknown. \nCheck high-level climate risk profiles and seek advice."},{"$f":"D188","v":0}]
[null,"Response value",null,{"$f":"IF(ISNA(VLOOKUP(D189,C190:D190,2,FALSE)),0,VLOOKUP(D189,C190:D190,2,FALSE))","v":0}]
[null,"Response",{"$f":"EP_extreme_weather","v":"Has there been more frequent extreme weather events?"},{"$f":"INDEX('Step 1 Profile'!$G:$G,MATCH('Response calculation'!C189,'Step 1 Profile'!$B:$B,FALSE))","v":0}]
[null,null,{"$f":"Response_Seasons_I_E","v":"Not known"},1]
[{"$f":"SS_poor_slope_stability","v":"Area may have poorer slope stability, susceptible to erosion, and potentially prone to landslides and mudslides. A lack of vegetation will worsen the risk. "},{"$f":"D192","v":0}]
[null,"Response value",null,{"$f":"IF(ISNA(VLOOKUP(D193,C194:D197,2,FALSE)),0,VLOOKUP(D193,C194:D197,2,FALSE))","v":0}]
[null,"Response",{"$f":"EP_slope","v":"What is the average slope/gradient of the area?"},{"$f":"INDEX('Step 1 Profile'!$G:$G,MATCH('Response calculation'!C193,'Step 1 Profile'!$B:$B,FALSE))","v":0}]
[null,null,{"$f":"Response_Slope_B","v":"Flat"},0.3]
[null,null,{"$f":"Response_Slope_C","v":"Gentle slope"},0.3]
[null,null,{"$f":"Response_Slope_D","v":"Moderate slope"},0.6]
[null,null,{"$f":"Response_Slope_E","v":"Steep"},1]
[{"$f":"SS_low_capacity_waste","v":"Limited regional capacity to manage solid waste, including hazardous waste."},{"$f":"D199","v":0}]
[null,"Response value",null,{"$f":"IF(ISNA(VLOOKUP(D200,C201:D205,2,FALSE)),0,VLOOKUP(D200,C201:D205,2,FALSE))","v":0}]
[null,"Response",{"$f":"EP_gov_waste","v":"What is the overall provision of waste management infrastructure in the region?"},{"$f":"INDEX('Step 1 Profile'!$G:$G,MATCH('Response calculation'!C200,'Step 1 Profile'!$B:$B,FALSE))","v":0}]
[null,null,{"$f":"Response_Gov_Waste_B","v":"Non-existent"},1]
[null,null,{"$f":"Response_Gov_Waste_C","v":"Ad-hoc or poorly functioning"},1]
[null,null,{"$f":"Response_Gov_Waste_D","v":"Functioning, but limited capacity"},0.6]
[null,null,{"$f":"Response_Gov_Waste_E","v":"Effective and well regulated"},0.3]
[null,null,{"$f":"Response_Gov_Waste_F","v":"Not known"},1]
[{"$f":"SS_veg_type_sec","v":"The secondary ecosystem in the area is potentially vulnerable to habitat and biodiversity loss. \nSeek local ecological advice. "},{"$f":"D207","v":0}]
[null,"Response value",null,{"$f":"IF(ISNA(VLOOKUP(D208,C209:D219,2,FALSE)),0,VLOOKUP(D208,C209:D219,2,FALSE))","v":0}]
[null,"Response",{"$f":"EP_veg_sec","v":"What is the nature of vegetation cover in the area? - Secondary"},{"$f":"INDEX('Step 1 Profile'!$G:$G,MATCH('Response calculation'!C208,'Step 1 Profile'!$B:$B,FALSE))","v":0}]
[null,null,{"$f":"Response_Habitat_C","v":"Boreal forest & tundra"},1]
[null,null,{"$f":"Response_Habitat_E","v":"Deserts & shrublands "},1]
[null,null,{"$f":"Response_Habitat_D","v":"Coastal & mangroves"},1]
[null,null,{"$f":"Response_Habitat_L","v":"Wetlands"},1]
[null,null,{"$f":"Response_Habitat_G","v":"Mediterranean forests, woodlands & scrub"},1]
[null,null,{"$f":"Response_Habitat_I","v":"Temperate forests"},1]
[null,null,{"$f":"Response_Habitat_J","v":"Tropical & sub-tropical forest"},1]
[null,null,{"$f":"Response_Habitat_F","v":"Grasslands, savannas & shrublands"},1]
[null,null,{"$f":"Response_Habitat_H","v":"Plantation/managed forestry"},0.4]
[null,null,{"$f":"Response_Habitat_K","v":"Urban "},0.3]
[null,null,{"$f":"Response_Habitat_B","v":"Agricultural farmland "},0.3,null,null,null,null,null,null,null,null,null,null,null,null,null,null,null,null,null,null,""]
[{"$f":"SS_local_concerns","v":"The local community note wildlife and conservation issues in the area."},{"$f":"D221","v":0}]
[null,"Response value",null,{"$f":"IF(ISNA(VLOOKUP(D222,C223:D225,2,FALSE)),0,VLOOKUP(D222,C223:D225,2,FALSE))","v":0}]
[null,"Response",{"$f":"EP_cons_locals","v":"Have any wildlife or conservation issues been raised through community engagement?"},{"$f":"INDEX('Step 1 Profile'!$G:$G,MATCH('Response calculation'!C222,'Step 1 Profile'!$B:$B,FALSE))","v":0}]
[null,null,{"$f":"Response_Conservation_local_B","v":"Yes - details available"},1]
[null,null,{"$f":"Response_Conservation_local_C","v":"Yes - but no specific detail or plans in place"},1]
[null,null,{"$f":"Response_Conservation_local_D","v":"No issues raised or likely"},0.3]
[{"$f":"SS_local_concern_NotK","v":"There is no current information on local wildlife or conservation issues. \nFurther enquiries should be carried out to check status."},{"$f":"D227","v":0}]
[null,"Response value",null,{"$f":"IF(ISNA(VLOOKUP(D228,C229:D229,2,FALSE)),0,VLOOKUP(D228,C229:D229,2,FALSE))","v":0}]
[null,"Response",{"$f":"EP_cons_locals","v":"Have any wildlife or conservation issues been raised through community engagement?"},{"$f":"INDEX('Step 1 Profile'!$G:$G,MATCH('Response calculation'!C228,'Step 1 Profile'!$B:$B,FALSE))","v":0}]
[null,null,{"$f":"Response_Conservation_local_E","v":"Not known"},0.6]
[{"$f":"SS_protected_species","v":"There are records of endangered species living within or close to the area of concern."},{"$f":"D231","v":0}]
[null,"Response value",null,{"$f":"IF(ISNA(VLOOKUP(D232,C233:D236,2,FALSE)),0,VLOOKUP(D232,C233:D236,2,FALSE))","v":0}]
[null,"Response",{"$f":"EP_protected_species","v":"Are there any endangered or protected wildlife species in or near to the area of operation?"},{"$f":"INDEX('Step 1 Profile'!$G:$G,MATCH('Response calculation'!C232,'Step 1 Profile'!$B:$B,FALSE))","v":0}]
[null,null,{"$f":"Response_Protectedarea_dist_B","v":"Yes - within boundary"},1]
[null,null,{"$f":"Response_Protectedarea_dist_C","v":"Yes - nearby, less than 2 km"},0.6]
[null,null,{"$f":"Response_Protectedarea_dist_D","v":"Yes - between 2 to 10 km away"},0.4]
[null,null,{"$f":"Response_Protectedarea_dist_E","v":"No - not within 10 km"},0.3]
[{"$f":"SS_protected_species_NotK","v":"The presence of protected or endangered species in the area is not known. \nSeek local ecological advice. "},{"$f":"D238","v":0}]
[null,"Response value",null,{"$f":"IF(ISNA(VLOOKUP(D239,C240:D240,2,FALSE)),0,VLOOKUP(D239,C240:D240,2,FALSE))","v":0}]
[null,"Response",{"$f":"EP_protected_species","v":"Are there any endangered or protected wildlife species in or near to the area of operation?"},{"$f":"INDEX('Step 1 Profile'!$G:$G,MATCH('Response calculation'!C239,'Step 1 Profile'!$B:$B,FALSE))","v":0}]
[null,null,{"$f":"Response_Protectedarea_dist_F","v":"Not known"},1]
[{"$f":"SS_conservation_plans","v":"There are known conservation or ecological activities in the area.\nThese may be relevant  to task areas, and collaboration opportunities possible. "},{"$f":"D242","v":0}]
[null,"Response value",null,{"$f":"IF(ISNA(VLOOKUP(D243,C244:D246,2,FALSE)),0,VLOOKUP(D243,C244:D246,2,FALSE))","v":0}]
[null,"Response",{"$f":"EP_cons_plans","v":"Are there any other known conservation or ecological management activities in the area?"},{"$f":"INDEX('Step 1 Profile'!$G:$G,MATCH('Response calculation'!C243,'Step 1 Profile'!$B:$B,FALSE))","v":0}]
[null,null,{"$f":"Response_Conservation_plans_B","v":"Yes - details available"},1]
[null,null,{"$f":"Response_Conservation_plans_C","v":"Yes - but details not given"},1]
[null,null,{"$f":"Response_Conservation_plans_D","v":"None in place"},0]
[{"$f":"SS_conservation_plans_NotK","v":"There is no current information on any local conservation activities in the area. \nFurther enquiries should be carried out to check status."},{"$f":"D248","v":0}]
[null,"Response value",null,{"$f":"IF(ISNA(VLOOKUP(D249,C250:D250,2,FALSE)),0,VLOOKUP(D249,C250:D250,2,FALSE))","v":0}]
[null,"Response",{"$f":"EP_cons_plans","v":"Are there any other known conservation or ecological management activities in the area?"},{"$f":"INDEX('Step 1 Profile'!$G:$G,MATCH('Response calculation'!C249,'Step 1 Profile'!$B:$B,FALSE))","v":0}]
[null,null,{"$f":"Response_Conservation_plans_E","v":"Not known"},1]
[{"$f":"SS_soil_erosion","v":"Soils are at risk of erosion where vegetation is removed. Erosion leads to a loss of fertility and productivity, and more difficult to revegetate."},{"$f":"D252","v":0}]
[null,"Response value",null,{"$f":"IF(ISNA(VLOOKUP(D253,C254:D260,2,FALSE)),0,VLOOKUP(D253,C254:D260,2,FALSE))","v":0}]
[null,"Response",{"$f":"EP_veg_density","v":"What is the vegetation density in the area of operation?"},{"$f":"INDEX('Step 1 Profile'!$G:$G,MATCH('Response calculation'!C253,'Step 1 Profile'!$B:$B,FALSE))","v":0}]
[null,null,{"$f":"Response_Vegetation_density_B","v":"None"},0]
[null,null,{"$f":"Response_Vegetation_density_C","v":"Open grassland, no trees"},1]
[null,null,{"$f":"Response_Vegetation_density_D","v":"Occasional trees, low vegetation"},1]
[null,null,{"$f":"Response_Vegetation_density_E","v":"Young, regenerating forest"},1]
[null,null,{"$f":"Response_Vegetation_density_F","v":"Low density forest"},1]
[null,null,{"$f":"Response_Vegetation_density_G","v":"Medium density forest"},1]
[null,null,{"$f":"Response_Vegetation_density_H","v":"High density forest"},1]
[{"$f":"SS_invasive","v":"Invasive species may be present and measures required to avoid spreading."},{"$f":"D262","v":0}]
[null,"Response value",null,{"$f":"IF(ISNA(VLOOKUP(D263,C264:D266,2,FALSE)),0,VLOOKUP(D263,C264:D266,2,FALSE))","v":0}]
[null,"Response",{"$f":"EP_invasive","v":"Are there any local or regional issues with invasive plant or animal species?"},{"$f":"INDEX('Step 1 Profile'!$G:$G,MATCH('Response calculation'!C263,'Step 1 Profile'!$B:$B,FALSE))","v":0}]
[null,null,{"$f":"Response_Invasive_species_B","v":"Yes - details available"},1]
[null,null,{"$f":"Response_Invasive_species_C","v":"Yes - but no specific detail or control plans in place"},1]
[null,null,{"$f":"Response_Invasive_species_D","v":"No issues raised"},0]
[{"$f":"SS_invasive_NotK","v":"No current information on invasive species.\nFurther enquiries should be carried out to check status."},{"$f":"D268","v":0}]
[null,"Response value",null,{"$f":"IF(ISNA(VLOOKUP(D269,C270:D270,2,FALSE)),0,VLOOKUP(D269,C270:D270,2,FALSE))","v":0}]
[null,"Response",{"$f":"EP_invasive","v":"Are there any local or regional issues with invasive plant or animal species?"},{"$f":"INDEX('Step 1 Profile'!$G:$G,MATCH('Response calculation'!C269,'Step 1 Profile'!$B:$B,FALSE))","v":0}]
[null,null,{"$f":"Response_Invasive_species_E","v":"Not known"},0.6]
[{"$f":"SS_veg_maturity","v":"Any vegetation removed will take time to re-establish."},{"$f":"D272","v":0}]
[null,"Response value",null,{"$f":"IF(ISNA(VLOOKUP(D273,C274:D275,2,FALSE)),0,VLOOKUP(D273,C274:D275,2,FALSE))","v":0}]
[null,"Response",{"$f":"EP_maturity","v":"How old or well established is the vegetation?"},{"$f":"INDEX('Step 1 Profile'!$G:$G,MATCH('Response calculation'!C273,'Step 1 Profile'!$B:$B,FALSE))","v":0}]
[null,null,{"$f":"Response_Habitat_maturity_B","v":"Less than 5 years"},0.6]
[null,null,{"$f":"Response_Habitat_maturity_E","v":"Not applicable - none present"},0]
[{"$f":"SS_mature_veg","v":"Mature and/or established vegetation present.\nWhere vegetation cover to be removed, keep to a minimum and  prevent damage to retained areas. "},{"$f":"D277","v":0}]
[null,"Response value",null,{"$f":"IF(ISNA(VLOOKUP(D278,C279:D282,2,FALSE)),0,VLOOKUP(D278,C279:D282,2,FALSE))","v":0}]
[null,"Response",{"$f":"EP_maturity","v":"How old or well established is the vegetation?"},{"$f":"INDEX('Step 1 Profile'!$G:$G,MATCH('Response calculation'!C278,'Step 1 Profile'!$B:$B,FALSE))","v":0}]
[null,null,{"$f":"Response_Habitat_maturity_B","v":"Less than 5 years"},0]
[null,null,{"$f":"Response_Habitat_maturity_C","v":"Established"},1]
[null,null,{"$f":"Response_Habitat_maturity_D","v":"Mature or ancient"},1]
[null,null,{"$f":"Response_Habitat_maturity_E","v":"Not applicable - none present"},0]
[{"$f":"SS_water_scarity_NotK","v":"Local water scarcity and quality issues are uncertain or not known.\nIncorporate water conservation, together with standard pollution control measures as good practice."},{"$f":"D284","v":0}]
[null,"Response value",null,{"$f":"IF(ISNA(VLOOKUP(D285,C286:D286,2,FALSE)),0,VLOOKUP(D285,C286:D286,2,FALSE))","v":0}]
[null,"Response",{"$f":"EP_water_scarity","v":"Is water scarcity and/or quality an issue for the local population?"},{"$f":"INDEX('Step 1 Profile'!$G:$G,MATCH('Response calculation'!C285,'Step 1 Profile'!$B:$B,FALSE))","v":0}]
[null,null,{"$f":"Response_Gen_D_NotK","v":"Not known"},0.6]
[{"$f":"SS_compaction_waterlogging","v":"Soils vulnerable to compaction and waterlogging."},{"$f":"D288","v":0}]
[null,"Response value",null,{"$f":"IF(ISNA(VLOOKUP(D289,C290:D294,2,FALSE)),0,VLOOKUP(D289,C290:D294,2,FALSE))","v":0}]
[null,"Response",{"$f":"EP_soil","v":"What is the main soil type in the area of operation?"},{"$f":"INDEX('Step 1 Profile'!$G:$G,MATCH('Response calculation'!C289,'Step 1 Profile'!$B:$B,FALSE))","v":0}]
[null,null,{"$f":"Response_Soil_B","v":"Clay"},1]
[null,null,{"$f":"Response_Soil_C","v":"Silt"},0.6]
[null,null,{"$f":"Response_Soil_D","v":"Loam (organic-rich sand, silt, and clay)"},0.6]
[null,null,{"$f":"Response_Soil_E","v":"Sand (finely coarse)"},0.3]
[null,null,{"$f":"Response_Soil_F","v":"Gravel (coarse)"},0.3]
[{"$f":"SS_bare_soil","v":"Existing bare soils vulnerable to erosion by wind, water run-off or flooding"},{"$f":"D296","v":0}]
[null,"Response value",null,{"$f":"IF(ISNA(VLOOKUP(D297,C298:D301,2,FALSE)),0,VLOOKUP(D297,C298:D301,2,FALSE))","v":0}]
[null,"Response",{"$f":"EP_ground","v":"What are the ground conditions in the area of operation?"},{"$f":"INDEX('Step 1 Profile'!$G:$G,MATCH('Response calculation'!C297,'Step 1 Profile'!$B:$B,FALSE))","v":0}]
[null,null,{"$f":"Response_Cover_B","v":"Vegetated"},0.3]
[null,null,{"$f":"Response_Cover_C","v":"Bare - not compacted"},1]
[null,null,{"$f":"Response_Cover_D","v":"Bare - compacted"},0.6]
[null,null,{"$f":"Response_Cover_E","v":"Rocky"},0.6]
[{"$f":"SS_waterlogged","v":"Soils vulnerable to compaction, and groundwater may be close to the surface."},{"$f":"D303","v":0}]
[null,"Response value",null,{"$f":"IF(ISNA(VLOOKUP(D304,C305:D305,2,FALSE)),0,VLOOKUP(D304,C305:D305,2,FALSE))","v":0}]
[null,"Response",{"$f":"EP_ground","v":"What are the ground conditions in the area of operation?"},{"$f":"INDEX('Step 1 Profile'!$G:$G,MATCH('Response calculation'!C304,'Step 1 Profile'!$B:$B,FALSE))","v":0}]
[null,null,{"$f":"Response_Cover_F","v":"Waterlogged"},1]
[{"$f":"SS_soils_permeable","v":"Sandy or coarser soils which may allow pollution present, or arising from mine activities, to readily travel through soil and migrate to groundwater or nearby water bodies."},{"$f":"D307","v":0}]
[null,"Response value",null,{"$f":"IF(ISNA(VLOOKUP(D308,C309:D313,2,FALSE)),0,VLOOKUP(D308,C309:D313,2,FALSE))","v":0}]
[null,"Response",{"$f":"EP_soil","v":"What is the main soil type in the area of operation?"},{"$f":"INDEX('Step 1 Profile'!$G:$G,MATCH('Response calculation'!C308,'Step 1 Profile'!$B:$B,FALSE))","v":0}]
[null,null,{"$f":"Response_Soil_B","v":"Clay"},0.3]
[null,null,{"$f":"Response_Soil_C","v":"Silt"},0.3]
[null,null,{"$f":"Response_Soil_D","v":"Loam (organic-rich sand, silt, and clay)"},0.6]
[null,null,{"$f":"Response_Soil_E","v":"Sand (finely coarse)"},1]
[null,null,{"$f":"Response_Soil_F","v":"Gravel (coarse)"},1]
[{"$f":"SS_groundwater_shallow","v":"Shallow groundwater may be more vulnerable to pollution."},{"$f":"D315","v":0}]
[null,"Response value",null,{"$f":"IF(ISNA(VLOOKUP(D316,C317:D318,2,FALSE)),0,VLOOKUP(D316,C317:D318,2,FALSE))","v":0}]
[null,"Response",{"$f":"EP_gw","v":"What are the anticipated groundwater conditions in the area?"},{"$f":"INDEX('Step 1 Profile'!$G:$G,MATCH('Response calculation'!C316,'Step 1 Profile'!$B:$B,FALSE))","v":0}]
[null,null,{"$f":"Response_GW_B","v":"Shallow, less than 10m below ground"},1]
[null,null,{"$f":"Response_GW_D","v":"Not known"},1]
[{"$f":"SS_groundwater_deep","v":"Groundwater may be less vulnerable to pollution."},{"$f":"D320","v":0}]
[null,"Response value",null,{"$f":"IF(ISNA(VLOOKUP(D321,C322:D322,2,FALSE)),0,VLOOKUP(D321,C322:D322,2,FALSE))","v":0}]
[null,"Response",{"$f":"EP_gw","v":"What are the anticipated groundwater conditions in the area?"},{"$f":"INDEX('Step 1 Profile'!$G:$G,MATCH('Response calculation'!C321,'Step 1 Profile'!$B:$B,FALSE))","v":0}]
[null,null,{"$f":"Response_GW_C","v":"Deep, more than 10m below ground"},0.6]
[{"$f":"SS_water_flow","v":"Pollution may affect watercourses with lower flow rate, with less dilution of contaminants."},{"$f":"D324","v":0}]
[null,"Response value",null,{"$f":"IF(ISNA(VLOOKUP(D325,C326:D329,2,FALSE)),0,VLOOKUP(D325,C326:D329,2,FALSE))","v":0}]
[null,"Response",{"$f":"EP_waterflow","v":"What is the flow rate in any nearby surface water features?"},{"$f":"INDEX('Step 1 Profile'!$G:$G,MATCH('Response calculation'!C325,'Step 1 Profile'!$B:$B,FALSE))","v":0}]
[null,null,{"$f":"Response_Waterflow_B","v":"Dry"},1]
[null,null,{"$f":"Response_Waterflow_C","v":"Stagnant - no flow"},1]
[null,null,{"$f":"Response_Waterflow_D","v":"Slow flowing"},1]
[null,null,{"$f":"Response_Waterflow_E","v":"Fast flowing"},0.6]
[{"$f":"SS_fires","v":"Increased risk of landscape fires."},{"$f":"D331","v":0}]
[null,"Response value",null,{"$f":"IF(ISNA(VLOOKUP(D332,C333:D335,2,FALSE)),0,VLOOKUP(D332,C333:D335,2,FALSE))","v":0}]
[null,"Response",{"$f":"EP_fires","v":"Do landscape fires take place, and has there been increased incidents of fires or burning events in the area?"},{"$f":"INDEX('Step 1 Profile'!$G:$G,MATCH('Response calculation'!C332,'Step 1 Profile'!$B:$B,FALSE))","v":0}]
[null,null,{"$f":"Response_Seasons_I_B","v":"Yes"},1]
[null,null,{"$f":"Response_Seasons_I_C","v":"No change"},0.6]
[null,null,{"$f":"Response_Seasons_I_D","v":"Not relevant for this area"},0]
[{"$f":"SS_fires_NotK","v":"The potential for landscape fires is unknown. \nCheck high-level climate risk profiles and seek local advice."},{"$f":"D337","v":0}]
[null,"Response value",null,{"$f":"IF(ISNA(VLOOKUP(D338,C339:D339,2,FALSE)),0,VLOOKUP(D338,C339:D339,2,FALSE))","v":0}]
[null,"Response",{"$f":"EP_fires","v":"Do landscape fires take place, and has there been increased incidents of fires or burning events in the area?"},{"$f":"INDEX('Step 1 Profile'!$G:$G,MATCH('Response calculation'!C338,'Step 1 Profile'!$B:$B,FALSE))","v":0}]
[null,null,{"$f":"Response_Seasons_I_E","v":"Not known"},0.6]
[{"$f":"SS_temp","v":"Annual temperature rises could impact shift patterns, and increase landscape fire risks in the future."},{"$f":"D341","v":0}]
[null,"Response value",null,{"$f":"IF(ISNA(VLOOKUP(D342,C343:D344,2,FALSE)),0,VLOOKUP(D342,C343:D344,2,FALSE))","v":0}]
[null,"Response",{"$f":"EP_temp","v":"Has there been an increase in average annual temperatures? Also check any predicted changes for the area."},{"$f":"INDEX('Step 1 Profile'!$G:$G,MATCH('Response calculation'!C342,'Step 1 Profile'!$B:$B,FALSE))","v":0}]
[null,null,{"$f":"Response_Seasons_II_B","v":"Yes"},1]
[null,null,{"$f":"Response_Seasons_II_C","v":"No change"},0.4]
[{"$f":"SS_temp_NotK","v":"The potential for temperature rises is unknown. \nCheck high-level climate risk profiles and seek local advice."},{"$f":"D346","v":0}]
[null,"Response value",null,{"$f":"IF(ISNA(VLOOKUP(D347,C348:D348,2,FALSE)),0,VLOOKUP(D347,C348:D348,2,FALSE))","v":0}]
[null,"Response",{"$f":"EP_temp","v":"Has there been an increase in average annual temperatures? Also check any predicted changes for the area."},{"$f":"INDEX('Step 1 Profile'!$G:$G,MATCH('Response calculation'!C347,'Step 1 Profile'!$B:$B,FALSE))","v":0}]
[null,null,{"$f":"Response_Seasons_II_D","v":"Not known"},0.6]
[{"$f":"SS_drain","v":"Control of water run-off from work areas."},{"$f":"D350","v":0}]
[null,"Response value",null,{"$f":"IF(ISNA(VLOOKUP(D351,C352:D356,2,FALSE)),0,VLOOKUP(D351,C352:D356,2,FALSE))","v":0}]
[null,"Response",{"$f":"EP_drain","v":"Where does water drain to from the area of operation?"},{"$f":"INDEX('Step 1 Profile'!$G:$G,MATCH('Response calculation'!C351,'Step 1 Profile'!$B:$B,FALSE))","v":0}]
[null,null,{"$f":"Response_Drains_B","v":"Ground/soils"},0.6]
[null,null,{"$f":"Response_Drains_C","v":"Sewer"},0.4]
[null,null,{"$f":"Response_Drains_D","v":"Drainage channel/wadi"},0.8]
[null,null,{"$f":"Response_Drains_E","v":"Natural water course (stream or river)"},0.8]
[null,null,{"$f":"Response_Drains_F","v":"Not known"},1]
[{"$f":"SS_rainfall_increase","v":"Increases in annual rainfall may impact mine action programming, and seasonal flood risks."},{"$f":"D358","v":0}]
[null,"Response value",null,{"$f":"IF(ISNA(VLOOKUP(D359,C360:D361,2,FALSE)),0,VLOOKUP(D359,C360:D361,2,FALSE))","v":0}]
[null,"Response",{"$f":"EP_rain","v":"Has there been changes in rainfall amounts over recent years? Also check any predicted changes for the area."},{"$f":"INDEX('Step 1 Profile'!$G:$G,MATCH('Response calculation'!C359,'Step 1 Profile'!$B:$B,FALSE))","v":0}]
[null,null,{"$f":"Response_Rainfall_B","v":"Yes -  an increase"},1]
[null,null,{"$f":"Response_Rainfall_D","v":"No change"},0.3]
[{"$f":"SS_rainfall_decrease","v":"Decreases in annual rainfall may impact mine action programming, and increase drought conditions."},{"$f":"D363","v":0}]
[null,"Response value",null,{"$f":"IF(ISNA(VLOOKUP(D364,C365:D365,2,FALSE)),0,VLOOKUP(D364,C365:D365,2,FALSE))","v":0}]
[null,"Response",{"$f":"EP_rain","v":"Has there been changes in rainfall amounts over recent years? Also check any predicted changes for the area."},{"$f":"INDEX('Step 1 Profile'!$G:$G,MATCH('Response calculation'!C364,'Step 1 Profile'!$B:$B,FALSE))","v":0}]
[null,null,{"$f":"Response_Rainfall_C","v":"Yes - a decrease"},1]
[{"$f":"SS_rainfall_NotK","v":"Changes in annual rainfall not clear. \nSeek local information and expertise."},{"$f":"D367","v":0}]
[null,"Response value",null,{"$f":"IF(ISNA(VLOOKUP(D368,C369:D369,2,FALSE)),0,VLOOKUP(D368,C369:D369,2,FALSE))","v":0}]
[null,"Response",{"$f":"EP_rain","v":"Has there been changes in rainfall amounts over recent years? Also check any predicted changes for the area."},{"$f":"INDEX('Step 1 Profile'!$G:$G,MATCH('Response calculation'!C368,'Step 1 Profile'!$B:$B,FALSE))","v":0}]
[null,null,{"$f":"Response_Rainfall_E","v":"Not known"},0.6]
[{"$f":"SS_rainfall_pattern","v":"Changes in rainfall patterns may impact mine action programming"},{"$f":"D371","v":0}]
[null,"Response value",null,{"$f":"IF(ISNA(VLOOKUP(D372,C373:D375,2,FALSE)),0,VLOOKUP(D372,C373:D375,2,FALSE))","v":0}]
[null,"Response",{"$f":"EP_patterns","v":"Have seasonal patterns of rainfall changed over recent years? For example, longer rainy seasons, longer dry seasons, more droughts?  "},{"$f":"INDEX('Step 1 Profile'!$G:$G,MATCH('Response calculation'!C372,'Step 1 Profile'!$B:$B,FALSE))","v":0}]
[null,null,{"$f":"Response_Seasons_II_B","v":"Yes"},1]
[null,null,{"$f":"Response_Seasons_II_C","v":"No change"},0.3]
[null,null,{"$f":"Response_Seasons_II_D","v":"Not known"},0.6]
[{"$f":"SS_landslides","v":"Landslides and mudslides risks."},{"$f":"D377","v":0}]
[null,"Response value",null,{"$f":"IF(ISNA(VLOOKUP(D378,C379:D382,2,FALSE)),0,VLOOKUP(D378,C379:D382,2,FALSE))","v":0}]
[null,"Response",{"$f":"EP_landslides","v":"Has there been recent or more frequent land or mudslides in the area?  "},{"$f":"INDEX('Step 1 Profile'!$G:$G,MATCH('Response calculation'!C378,'Step 1 Profile'!$B:$B,FALSE))","v":0}]
[null,null,{"$f":"Response_Seasons_I_B","v":"Yes"},1]
[null,null,{"$f":"Response_Seasons_I_C","v":"No change"},0.6]
[null,null,{"$f":"Response_Seasons_I_D","v":"Not relevant for this area"},0]
[null,null,{"$f":"Response_Seasons_I_E","v":"Not known"},0.6]
[{"$f":"SS_future_landuse","v":"Future land use has a potential to impact the environment following clearance."},{"$f":"D384","v":0}]
[null,"Response value",null,{"$f":"IF(ISNA(VLOOKUP(D385,C386:D392,2,FALSE)),0,VLOOKUP(D385,C386:D392,2,FALSE))","v":0}]
[null,"Response",{"$f":"EP_land_release","v":"What is the planned or likely use of the area following land release?"},{"$f":"INDEX('Step 1 Profile'!$G:$G,MATCH('Response calculation'!C385,'Step 1 Profile'!$B:$B,FALSE))","v":0}]
[null,null,{"$f":"Response_Landuse_post_B","v":"Residential"},0.6]
[null,null,{"$f":"Response_Landuse_post_C","v":"Agricultural"},0.6]
[null,null,{"$f":"Response_Landuse_post_D","v":"Community / public services"},1]
[null,null,{"$f":"Response_Landuse_post_E","v":"Natural resources (including foraging, hunting etc..)"},0.4]
[null,null,{"$f":"Response_Landuse_post_F","v":"Infrastructure"},1]
[null,null,{"$f":"Response_Landuse_post_G","v":"Access (footpaths, roads, bridges)"},0.6]
[null,null,{"$f":"Response_Landuse_post_H","v":"Not known"},1]
[{"$f":"SS_Coping","v":"Weak or unknown local coping strategies to deal with climate change and other environmental risks."},{"$f":"D394","v":0},"Condition Value:",{"$f":"F393","v":0}]
[null,"Response value",null,{"$f":"IF(ISNA(VLOOKUP(D395,C396:D400,2,FALSE)),0,VLOOKUP(D395,C396:D400,2,FALSE))","v":0}]
[null,"Response",{"$f":"EP_coping","v":"If present, how effective are local coping strategies likely to be?"},{"$f":"INDEX('Step 1 Profile'!$G:$G,MATCH('Response calculation'!C395,'Step 1 Profile'!$B:$B,FALSE))","v":0}]
[null,null,{"$f":"Response_Coping_B","v":"Non-existent"},1]
[null,null,{"$f":"Response_Coping_C","v":"Ad-hoc and not structured"},1]
[null,null,{"$f":"Response_Coping_D","v":"Functioning, but limited capacity"},1]
[null,null,{"$f":"Response_Coping_E","v":"Well established and effective "},0]
[null,null,{"$f":"Response_Coping_F","v":"Not known"},1]

{"sheet":"Risk Matrix formulae","index":16,"n_rows":299,"n_cols":10,"rows_kept":299,"cut":false,"hidden":true,"merged":[]}
[null,"Note: formula is this sheet refers to cells with 'defined names', given in the Response Library under livelihood and severity."]
[null,"Likelihood 1","Likelihood 2","Likelihood 3","Likelihood 4","Severity 1","Severity 2","Severity 3","Severity - TOTAL","Risk"]
[null,{"$f":"IF('Step 2 EAM'!F8=Response_1._Unlikely, 1, 0)","v":0},{"$f":"IF('Step 2 EAM'!F8=Response_2._Low_likelihood, 2, 0)","v":0},{"$f":"IF('Step 2 EAM'!F8=Response_3._Likely, 3, 0)","v":0},{"$f":"SUM(B3:D3)","v":0},{"$f":"IF('Step 2 EAM'!G8=Response_1._Mild, 1, 0)","v":0},{"$f":"IF('Step 2 EAM'!G8=Response_2._Moderate,2, 0)","v":0},{"$f":"IF('Step 2 EAM'!G8=Response_3._Severe, 3, 0)","v":0},{"$f":"SUM(F3:H3)","v":0},{"$f":"I3*E3","v":0}]
[null,{"$f":"IF('Step 2 EAM'!F9=Response_1._Unlikely, 1, 0)","v":0},{"$f":"IF('Step 2 EAM'!F9=Response_2._Low_likelihood, 2, 0)","v":0},{"$f":"IF('Step 2 EAM'!F9=Response_3._Likely, 3, 0)","v":0},{"$f":"SUM(B4:D4)","v":0},{"$f":"IF('Step 2 EAM'!G9=Response_1._Mild, 1, 0)","v":0},{"$f":"IF('Step 2 EAM'!G9=Response_2._Moderate,2, 0)","v":0},{"$f":"IF('Step 2 EAM'!G9=Response_3._Severe, 3, 0)","v":0},{"$f":"SUM(F4:H4)","v":0},{"$f":"I4*E4","v":0}]
[null,{"$f":"IF('Step 2 EAM'!F10=Response_1._Unlikely, 1, 0)","v":0},{"$f":"IF('Step 2 EAM'!F10=Response_2._Low_likelihood, 2, 0)","v":0},{"$f":"IF('Step 2 EAM'!F10=Response_3._Likely, 3, 0)","v":0},0,{"$f":"IF('Step 2 EAM'!G10=Response_1._Mild, 1, 0)","v":0},{"$f":"IF('Step 2 EAM'!G10=Response_2._Moderate,2, 0)","v":0},{"$f":"IF('Step 2 EAM'!G10=Response_3._Severe, 3, 0)","v":0},0,0]
[null,{"$f":"IF('Step 2 EAM'!F11=Response_1._Unlikely, 1, 0)","v":0},{"$f":"IF('Step 2 EAM'!F11=Response_2._Low_likelihood, 2, 0)","v":0},{"$f":"IF('Step 2 EAM'!F11=Response_3._Likely, 3, 0)","v":0},0,{"$f":"IF('Step 2 EAM'!G11=Response_1._Mild, 1, 0)","v":0},{"$f":"IF('Step 2 EAM'!G11=Response_2._Moderate,2, 0)","v":0},{"$f":"IF('Step 2 EAM'!G11=Response_3._Severe, 3, 0)","v":0},0,0]
[null,{"$f":"IF('Step 2 EAM'!F12=Response_1._Unlikely, 1, 0)","v":0},{"$f":"IF('Step 2 EAM'!F12=Response_2._Low_likelihood, 2, 0)","v":0},{"$f":"IF('Step 2 EAM'!F12=Response_3._Likely, 3, 0)","v":0},0,{"$f":"IF('Step 2 EAM'!G12=Response_1._Mild, 1, 0)","v":0},{"$f":"IF('Step 2 EAM'!G12=Response_2._Moderate,2, 0)","v":0},{"$f":"IF('Step 2 EAM'!G12=Response_3._Severe, 3, 0)","v":0},0,0]
[null,{"$f":"IF('Step 2 EAM'!F13=Response_1._Unlikely, 1, 0)","v":0},{"$f":"IF('Step 2 EAM'!F13=Response_2._Low_likelihood, 2, 0)","v":0},{"$f":"IF('Step 2 EAM'!F13=Response_3._Likely, 3, 0)","v":0},0,{"$f":"IF('Step 2 EAM'!G13=Response_1._Mild, 1, 0)","v":0},{"$f":"IF('Step 2 EAM'!G13=Response_2._Moderate,2, 0)","v":0},{"$f":"IF('Step 2 EAM'!G13=Response_3._Severe, 3, 0)","v":0},0,0]
[null,{"$f":"IF('Step 2 EAM'!F14=Response_1._Unlikely, 1, 0)","v":0},{"$f":"IF('Step 2 EAM'!F14=Response_2._Low_likelihood, 2, 0)","v":0},{"$f":"IF('Step 2 EAM'!F14=Response_3._Likely, 3, 0)","v":0},0,{"$f":"IF('Step 2 EAM'!G14=Response_1._Mild, 1, 0)","v":0},{"$f":"IF('Step 2 EAM'!G14=Response_2._Moderate,2, 0)","v":0},{"$f":"IF('Step 2 EAM'!G14=Response_3._Severe, 3, 0)","v":0},0,0]
[null,{"$f":"IF('Step 2 EAM'!F15=Response_1._Unlikely, 1, 0)","v":0},{"$f":"IF('Step 2 EAM'!F15=Response_2._Low_likelihood, 2, 0)","v":0},{"$f":"IF('Step 2 EAM'!F15=Response_3._Likely, 3, 0)","v":0},0,{"$f":"IF('Step 2 EAM'!G15=Response_1._Mild, 1, 0)","v":0},{"$f":"IF('Step 2 EAM'!G15=Response_2._Moderate,2, 0)","v":0},{"$f":"IF('Step 2 EAM'!G15=Response_3._Severe, 3, 0)","v":0},0,0]
[null,{"$f":"IF('Step 2 EAM'!F16=Response_1._Unlikely, 1, 0)","v":0},{"$f":"IF('Step 2 EAM'!F16=Response_2._Low_likelihood, 2, 0)","v":0},{"$f":"IF('Step 2 EAM'!F16=Response_3._Likely, 3, 0)","v":0},0,{"$f":"IF('Step 2 EAM'!G16=Response_1._Mild, 1, 0)","v":0},{"$f":"IF('Step 2 EAM'!G16=Response_2._Moderate,2, 0)","v":0},{"$f":"IF('Step 2 EAM'!G16=Response_3._Severe, 3, 0)","v":0},0,0]
[null,{"$f":"IF('Step 2 EAM'!F17=Response_1._Unlikely, 1, 0)","v":0},{"$f":"IF('Step 2 EAM'!F17=Response_2._Low_likelihood, 2, 0)","v":0},{"$f":"IF('Step 2 EAM'!F17=Response_3._Likely, 3, 0)","v":0},0,{"$f":"IF('Step 2 EAM'!G17=Response_1._Mild, 1, 0)","v":0},{"$f":"IF('Step 2 EAM'!G17=Response_2._Moderate,2, 0)","v":0},{"$f":"IF('Step 2 EAM'!G17=Response_3._Severe, 3, 0)","v":0},0,0]
[null,{"$f":"IF('Step 2 EAM'!F18=Response_1._Unlikely, 1, 0)","v":0},{"$f":"IF('Step 2 EAM'!F18=Response_2._Low_likelihood, 2, 0)","v":0},{"$f":"IF('Step 2 EAM'!F18=Response_3._Likely, 3, 0)","v":0},0,{"$f":"IF('Step 2 EAM'!G18=Response_1._Mild, 1, 0)","v":0},{"$f":"IF('Step 2 EAM'!G18=Response_2._Moderate,2, 0)","v":0},{"$f":"IF('Step 2 EAM'!G18=Response_3._Severe, 3, 0)","v":0},0,0]
[null,{"$f":"IF('Step 2 EAM'!F19=Response_1._Unlikely, 1, 0)","v":0},{"$f":"IF('Step 2 EAM'!F19=Response_2._Low_likelihood, 2, 0)","v":0},{"$f":"IF('Step 2 EAM'!F19=Response_3._Likely, 3, 0)","v":0},0,{"$f":"IF('Step 2 EAM'!G19=Response_1._Mild, 1, 0)","v":0},{"$f":"IF('Step 2 EAM'!G19=Response_2._Moderate,2, 0)","v":0},{"$f":"IF('Step 2 EAM'!G19=Response_3._Severe, 3, 0)","v":0},0,0]
[null,{"$f":"IF('Step 2 EAM'!F20=Response_1._Unlikely, 1, 0)","v":0},{"$f":"IF('Step 2 EAM'!F20=Response_2._Low_likelihood, 2, 0)","v":0},{"$f":"IF('Step 2 EAM'!F20=Response_3._Likely, 3, 0)","v":0},0,{"$f":"IF('Step 2 EAM'!G20=Response_1._Mild, 1, 0)","v":0},{"$f":"IF('Step 2 EAM'!G20=Response_2._Moderate,2, 0)","v":0},{"$f":"IF('Step 2 EAM'!G20=Response_3._Severe, 3, 0)","v":0},0,0]
[null,{"$f":"IF('Step 2 EAM'!F21=Response_1._Unlikely, 1, 0)","v":0},{"$f":"IF('Step 2 EAM'!F21=Response_2._Low_likelihood, 2, 0)","v":0},{"$f":"IF('Step 2 EAM'!F21=Response_3._Likely, 3, 0)","v":0},0,{"$f":"IF('Step 2 EAM'!G21=Response_1._Mild, 1, 0)","v":0},{"$f":"IF('Step 2 EAM'!G21=Response_2._Moderate,2, 0)","v":0},{"$f":"IF('Step 2 EAM'!G21=Response_3._Severe, 3, 0)","v":0},0,0]
[null,{"$f":"IF('Step 2 EAM'!F22=Response_1._Unlikely, 1, 0)","v":0},{"$f":"IF('Step 2 EAM'!F22=Response_2._Low_likelihood, 2, 0)","v":0},{"$f":"IF('Step 2 EAM'!F22=Response_3._Likely, 3, 0)","v":0},0,{"$f":"IF('Step 2 EAM'!G22=Response_1._Mild, 1, 0)","v":0},{"$f":"IF('Step 2 EAM'!G22=Response_2._Moderate,2, 0)","v":0},{"$f":"IF('Step 2 EAM'!G22=Response_3._Severe, 3, 0)","v":0},0,0]
[null,{"$f":"IF('Step 2 EAM'!F23=Response_1._Unlikely, 1, 0)","v":0},{"$f":"IF('Step 2 EAM'!F23=Response_2._Low_likelihood, 2, 0)","v":0},{"$f":"IF('Step 2 EAM'!F23=Response_3._Likely, 3, 0)","v":0},0,{"$f":"IF('Step 2 EAM'!G23=Response_1._Mild, 1, 0)","v":0},{"$f":"IF('Step 2 EAM'!G23=Response_2._Moderate,2, 0)","v":0},{"$f":"IF('Step 2 EAM'!G23=Response_3._Severe, 3, 0)","v":0},0,0]
[null,{"$f":"IF('Step 2 EAM'!F24=Response_1._Unlikely, 1, 0)","v":0},{"$f":"IF('Step 2 EAM'!F24=Response_2._Low_likelihood, 2, 0)","v":0},{"$f":"IF('Step 2 EAM'!F24=Response_3._Likely, 3, 0)","v":0},0,{"$f":"IF('Step 2 EAM'!G24=Response_1._Mild, 1, 0)","v":0},{"$f":"IF('Step 2 EAM'!G24=Response_2._Moderate,2, 0)","v":0},{"$f":"IF('Step 2 EAM'!G24=Response_3._Severe, 3, 0)","v":0},0,0]
[null,{"$f":"IF('Step 2 EAM'!F25=Response_1._Unlikely, 1, 0)","v":0},{"$f":"IF('Step 2 EAM'!F25=Response_2._Low_likelihood, 2, 0)","v":0},{"$f":"IF('Step 2 EAM'!F25=Response_3._Likely, 3, 0)","v":0},0,{"$f":"IF('Step 2 EAM'!G25=Response_1._Mild, 1, 0)","v":0},{"$f":"IF('Step 2 EAM'!G25=Response_2._Moderate,2, 0)","v":0},{"$f":"IF('Step 2 EAM'!G25=Response_3._Severe, 3, 0)","v":0},0,0]
[null,{"$f":"IF('Step 2 EAM'!F26=Response_1._Unlikely, 1, 0)","v":0},{"$f":"IF('Step 2 EAM'!F26=Response_2._Low_likelihood, 2, 0)","v":0},{"$f":"IF('Step 2 EAM'!F26=Response_3._Likely, 3, 0)","v":0},0,{"$f":"IF('Step 2 EAM'!G26=Response_1._Mild, 1, 0)","v":0},{"$f":"IF('Step 2 EAM'!G26=Response_2._Moderate,2, 0)","v":0},{"$f":"IF('Step 2 EAM'!G26=Response_3._Severe, 3, 0)","v":0},0,0]
[null,{"$f":"IF('Step 2 EAM'!F27=Response_1._Unlikely, 1, 0)","v":0},{"$f":"IF('Step 2 EAM'!F27=Response_2._Low_likelihood, 2, 0)","v":0},{"$f":"IF('Step 2 EAM'!F27=Response_3._Likely, 3, 0)","v":0},0,{"$f":"IF('Step 2 EAM'!G27=Response_1._Mild, 1, 0)","v":0},{"$f":"IF('Step 2 EAM'!G27=Response_2._Moderate,2, 0)","v":0},{"$f":"IF('Step 2 EAM'!G27=Response_3._Severe, 3, 0)","v":0},0,0]
[null,{"$f":"IF('Step 2 EAM'!F28=Response_1._Unlikely, 1, 0)","v":0},{"$f":"IF('Step 2 EAM'!F28=Response_2._Low_likelihood, 2, 0)","v":0},{"$f":"IF('Step 2 EAM'!F28=Response_3._Likely, 3, 0)","v":0},0,{"$f":"IF('Step 2 EAM'!G28=Response_1._Mild, 1, 0)","v":0},{"$f":"IF('Step 2 EAM'!G28=Response_2._Moderate,2, 0)","v":0},{"$f":"IF('Step 2 EAM'!G28=Response_3._Severe, 3, 0)","v":0},0,0]
[null,{"$f":"IF('Step 2 EAM'!F29=Response_1._Unlikely, 1, 0)","v":0},{"$f":"IF('Step 2 EAM'!F29=Response_2._Low_likelihood, 2, 0)","v":0},{"$f":"IF('Step 2 EAM'!F29=Response_3._Likely, 3, 0)","v":0},0,{"$f":"IF('Step 2 EAM'!G29=Response_1._Mild, 1, 0)","v":0},{"$f":"IF('Step 2 EAM'!G29=Response_2._Moderate,2, 0)","v":0},{"$f":"IF('Step 2 EAM'!G29=Response_3._Severe, 3, 0)","v":0},0,0]
[null,{"$f":"IF('Step 2 EAM'!F30=Response_1._Unlikely, 1, 0)","v":0},{"$f":"IF('Step 2 EAM'!F30=Response_2._Low_likelihood, 2, 0)","v":0},{"$f":"IF('Step 2 EAM'!F30=Response_3._Likely, 3, 0)","v":0},0,{"$f":"IF('Step 2 EAM'!G30=Response_1._Mild, 1, 0)","v":0},{"$f":"IF('Step 2 EAM'!G30=Response_2._Moderate,2, 0)","v":0},{"$f":"IF('Step 2 EAM'!G30=Response_3._Severe, 3, 0)","v":0},0,0]
[null,{"$f":"IF('Step 2 EAM'!F31=Response_1._Unlikely, 1, 0)","v":0},{"$f":"IF('Step 2 EAM'!F31=Response_2._Low_likelihood, 2, 0)","v":0},{"$f":"IF('Step 2 EAM'!F31=Response_3._Likely, 3, 0)","v":0},0,{"$f":"IF('Step 2 EAM'!G31=Response_1._Mild, 1, 0)","v":0},{"$f":"IF('Step 2 EAM'!G31=Response_2._Moderate,2, 0)","v":0},{"$f":"IF('Step 2 EAM'!G31=Response_3._Severe, 3, 0)","v":0},0,0]
[null,{"$f":"IF('Step 2 EAM'!F32=Response_1._Unlikely, 1, 0)","v":0},{"$f":"IF('Step 2 EAM'!F32=Response_2._Low_likelihood, 2, 0)","v":0},{"$f":"IF('Step 2 EAM'!F32=Response_3._Likely, 3, 0)","v":0},0,{"$f":"IF('Step 2 EAM'!G32=Response_1._Mild, 1, 0)","v":0},{"$f":"IF('Step 2 EAM'!G32=Response_2._Moderate,2, 0)","v":0},{"$f":"IF('Step 2 EAM'!G32=Response_3._Severe, 3, 0)","v":0},0,0]
[null,{"$f":"IF('Step 2 EAM'!F33=Response_1._Unlikely, 1, 0)","v":0},{"$f":"IF('Step 2 EAM'!F33=Response_2._Low_likelihood, 2, 0)","v":0},{"$f":"IF('Step 2 EAM'!F33=Response_3._Likely, 3, 0)","v":0},0,{"$f":"IF('Step 2 EAM'!G33=Response_1._Mild, 1, 0)","v":0},{"$f":"IF('Step 2 EAM'!G33=Response_2._Moderate,2, 0)","v":0},{"$f":"IF('Step 2 EAM'!G33=Response_3._Severe, 3, 0)","v":0},0,0]
[null,{"$f":"IF('Step 2 EAM'!F34=Response_1._Unlikely, 1, 0)","v":0},{"$f":"IF('Step 2 EAM'!F34=Response_2._Low_likelihood, 2, 0)","v":0},{"$f":"IF('Step 2 EAM'!F34=Response_3._Likely, 3, 0)","v":0},0,{"$f":"IF('Step 2 EAM'!G34=Response_1._Mild, 1, 0)","v":0},{"$f":"IF('Step 2 EAM'!G34=Response_2._Moderate,2, 0)","v":0},{"$f":"IF('Step 2 EAM'!G34=Response_3._Severe, 3, 0)","v":0},0,0]
[null,{"$f":"IF('Step 2 EAM'!F35=Response_1._Unlikely, 1, 0)","v":0},{"$f":"IF('Step 2 EAM'!F35=Response_2._Low_likelihood, 2, 0)","v":0},{"$f":"IF('Step 2 EAM'!F35=Response_3._Likely, 3, 0)","v":0},0,{"$f":"IF('Step 2 EAM'!G35=Response_1._Mild, 1, 0)","v":0},{"$f":"IF('Step 2 EAM'!G35=Response_2._Moderate,2, 0)","v":0},{"$f":"IF('Step 2 EAM'!G35=Response_3._Severe, 3, 0)","v":0},0,0]
[null,{"$f":"IF('Step 2 EAM'!F36=Response_1._Unlikely, 1, 0)","v":0},{"$f":"IF('Step 2 EAM'!F36=Response_2._Low_likelihood, 2, 0)","v":0},{"$f":"IF('Step 2 EAM'!F36=Response_3._Likely, 3, 0)","v":0},0,{"$f":"IF('Step 2 EAM'!G36=Response_1._Mild, 1, 0)","v":0},{"$f":"IF('Step 2 EAM'!G36=Response_2._Moderate,2, 0)","v":0},{"$f":"IF('Step 2 EAM'!G36=Response_3._Severe, 3, 0)","v":0},0,0]
[null,{"$f":"IF('Step 2 EAM'!F37=Response_1._Unlikely, 1, 0)","v":0},{"$f":"IF('Step 2 EAM'!F37=Response_2._Low_likelihood, 2, 0)","v":0},{"$f":"IF('Step 2 EAM'!F37=Response_3._Likely, 3, 0)","v":0},0,{"$f":"IF('Step 2 EAM'!G37=Response_1._Mild, 1, 0)","v":0},{"$f":"IF('Step 2 EAM'!G37=Response_2._Moderate,2, 0)","v":0},{"$f":"IF('Step 2 EAM'!G37=Response_3._Severe, 3, 0)","v":0},0,0]
[null,{"$f":"IF('Step 2 EAM'!F38=Response_1._Unlikely, 1, 0)","v":0},{"$f":"IF('Step 2 EAM'!F38=Response_2._Low_likelihood, 2, 0)","v":0},{"$f":"IF('Step 2 EAM'!F38=Response_3._Likely, 3, 0)","v":0},0,{"$f":"IF('Step 2 EAM'!G38=Response_1._Mild, 1, 0)","v":0},{"$f":"IF('Step 2 EAM'!G38=Response_2._Moderate,2, 0)","v":0},{"$f":"IF('Step 2 EAM'!G38=Response_3._Severe, 3, 0)","v":0},0,0]
[null,{"$f":"IF('Step 2 EAM'!F39=Response_1._Unlikely, 1, 0)","v":0},{"$f":"IF('Step 2 EAM'!F39=Response_2._Low_likelihood, 2, 0)","v":0},{"$f":"IF('Step 2 EAM'!F39=Response_3._Likely, 3, 0)","v":0},0,{"$f":"IF('Step 2 EAM'!G39=Response_1._Mild, 1, 0)","v":0},{"$f":"IF('Step 2 EAM'!G39=Response_2._Moderate,2, 0)","v":0},{"$f":"IF('Step 2 EAM'!G39=Response_3._Severe, 3, 0)","v":0},0,0]
[null,{"$f":"IF('Step 2 EAM'!F40=Response_1._Unlikely, 1, 0)","v":0},{"$f":"IF('Step 2 EAM'!F40=Response_2._Low_likelihood, 2, 0)","v":0},{"$f":"IF('Step 2 EAM'!F40=Response_3._Likely, 3, 0)","v":0},0,{"$f":"IF('Step 2 EAM'!G40=Response_1._Mild, 1, 0)","v":0},{"$f":"IF('Step 2 EAM'!G40=Response_2._Moderate,2, 0)","v":0},{"$f":"IF('Step 2 EAM'!G40=Response_3._Severe, 3, 0)","v":0},0,0]
[null,{"$f":"IF('Step 2 EAM'!F41=Response_1._Unlikely, 1, 0)","v":0},{"$f":"IF('Step 2 EAM'!F41=Response_2._Low_likelihood, 2, 0)","v":0},{"$f":"IF('Step 2 EAM'!F41=Response_3._Likely, 3, 0)","v":0},0,{"$f":"IF('Step 2 EAM'!G41=Response_1._Mild, 1, 0)","v":0},{"$f":"IF('Step 2 EAM'!G41=Response_2._Moderate,2, 0)","v":0},{"$f":"IF('Step 2 EAM'!G41=Response_3._Severe, 3, 0)","v":0},0,0]
[null,{"$f":"IF('Step 2 EAM'!F42=Response_1._Unlikely, 1, 0)","v":0},{"$f":"IF('Step 2 EAM'!F42=Response_2._Low_likelihood, 2, 0)","v":0},{"$f":"IF('Step 2 EAM'!F42=Response_3._Likely, 3, 0)","v":0},0,{"$f":"IF('Step 2 EAM'!G42=Response_1._Mild, 1, 0)","v":0},{"$f":"IF('Step 2 EAM'!G42=Response_2._Moderate,2, 0)","v":0},{"$f":"IF('Step 2 EAM'!G42=Response_3._Severe, 3, 0)","v":0},0,0]
[null,{"$f":"IF('Step 2 EAM'!F43=Response_1._Unlikely, 1, 0)","v":0},{"$f":"IF('Step 2 EAM'!F43=Response_2._Low_likelihood, 2, 0)","v":0},{"$f":"IF('Step 2 EAM'!F43=Response_3._Likely, 3, 0)","v":0},0,{"$f":"IF('Step 2 EAM'!G43=Response_1._Mild, 1, 0)","v":0},{"$f":"IF('Step 2 EAM'!G43=Response_2._Moderate,2, 0)","v":0},{"$f":"IF('Step 2 EAM'!G43=Response_3._Severe, 3, 0)","v":0},0,0]
[null,{"$f":"IF('Step 2 EAM'!F44=Response_1._Unlikely, 1, 0)","v":0},{"$f":"IF('Step 2 EAM'!F44=Response_2._Low_likelihood, 2, 0)","v":0},{"$f":"IF('Step 2 EAM'!F44=Response_3._Likely, 3, 0)","v":0},0,{"$f":"IF('Step 2 EAM'!G44=Response_1._Mild, 1, 0)","v":0},{"$f":"IF('Step 2 EAM'!G44=Response_2._Moderate,2, 0)","v":0},{"$f":"IF('Step 2 EAM'!G44=Response_3._Severe, 3, 0)","v":0},0,0]
[null,{"$f":"IF('Step 2 EAM'!F45=Response_1._Unlikely, 1, 0)","v":0},{"$f":"IF('Step 2 EAM'!F45=Response_2._Low_likelihood, 2, 0)","v":0},{"$f":"IF('Step 2 EAM'!F45=Response_3._Likely, 3, 0)","v":0},0,{"$f":"IF('Step 2 EAM'!G45=Response_1._Mild, 1, 0)","v":0},{"$f":"IF('Step 2 EAM'!G45=Response_2._Moderate,2, 0)","v":0},{"$f":"IF('Step 2 EAM'!G45=Response_3._Severe, 3, 0)","v":0},0,0]
[null,{"$f":"IF('Step 2 EAM'!F46=Response_1._Unlikely, 1, 0)","v":0},{"$f":"IF('Step 2 EAM'!F46=Response_2._Low_likelihood, 2, 0)","v":0},{"$f":"IF('Step 2 EAM'!F46=Response_3._Likely, 3, 0)","v":0},0,{"$f":"IF('Step 2 EAM'!G46=Response_1._Mild, 1, 0)","v":0},{"$f":"IF('Step 2 EAM'!G46=Response_2._Moderate,2, 0)","v":0},{"$f":"IF('Step 2 EAM'!G46=Response_3._Severe, 3, 0)","v":0},0,0]
[null,{"$f":"IF('Step 2 EAM'!F47=Response_1._Unlikely, 1, 0)","v":0},{"$f":"IF('Step 2 EAM'!F47=Response_2._Low_likelihood, 2, 0)","v":0},{"$f":"IF('Step 2 EAM'!F47=Response_3._Likely, 3, 0)","v":0},0,{"$f":"IF('Step 2 EAM'!G47=Response_1._Mild, 1, 0)","v":0},{"$f":"IF('Step 2 EAM'!G47=Response_2._Moderate,2, 0)","v":0},{"$f":"IF('Step 2 EAM'!G47=Response_3._Severe, 3, 0)","v":0},0,0]
[null,{"$f":"IF('Step 2 EAM'!F48=Response_1._Unlikely, 1, 0)","v":0},{"$f":"IF('Step 2 EAM'!F48=Response_2._Low_likelihood, 2, 0)","v":0},{"$f":"IF('Step 2 EAM'!F48=Response_3._Likely, 3, 0)","v":0},0,{"$f":"IF('Step 2 EAM'!G48=Response_1._Mild, 1, 0)","v":0},{"$f":"IF('Step 2 EAM'!G48=Response_2._Moderate,2, 0)","v":0},{"$f":"IF('Step 2 EAM'!G48=Response_3._Severe, 3, 0)","v":0},0,0]
[null,{"$f":"IF('Step 2 EAM'!F49=Response_1._Unlikely, 1, 0)","v":0},{"$f":"IF('Step 2 EAM'!F49=Response_2._Low_likelihood, 2, 0)","v":0},{"$f":"IF('Step 2 EAM'!F49=Response_3._Likely, 3, 0)","v":0},0,{"$f":"IF('Step 2 EAM'!G49=Response_1._Mild, 1, 0)","v":0},{"$f":"IF('Step 2 EAM'!G49=Response_2._Moderate,2, 0)","v":0},{"$f":"IF('Step 2 EAM'!G49=Response_3._Severe, 3, 0)","v":0},0,0]
[null,{"$f":"IF('Step 2 EAM'!F50=Response_1._Unlikely, 1, 0)","v":0},{"$f":"IF('Step 2 EAM'!F50=Response_2._Low_likelihood, 2, 0)","v":0},{"$f":"IF('Step 2 EAM'!F50=Response_3._Likely, 3, 0)","v":0},0,{"$f":"IF('Step 2 EAM'!G50=Response_1._Mild, 1, 0)","v":0},{"$f":"IF('Step 2 EAM'!G50=Response_2._Moderate,2, 0)","v":0},{"$f":"IF('Step 2 EAM'!G50=Response_3._Severe, 3, 0)","v":0},0,0]
[null,{"$f":"IF('Step 2 EAM'!F51=Response_1._Unlikely, 1, 0)","v":0},{"$f":"IF('Step 2 EAM'!F51=Response_2._Low_likelihood, 2, 0)","v":0},{"$f":"IF('Step 2 EAM'!F51=Response_3._Likely, 3, 0)","v":0},0,{"$f":"IF('Step 2 EAM'!G51=Response_1._Mild, 1, 0)","v":0},{"$f":"IF('Step 2 EAM'!G51=Response_2._Moderate,2, 0)","v":0},{"$f":"IF('Step 2 EAM'!G51=Response_3._Severe, 3, 0)","v":0},0,0]
[null,{"$f":"IF('Step 2 EAM'!F52=Response_1._Unlikely, 1, 0)","v":0},{"$f":"IF('Step 2 EAM'!F52=Response_2._Low_likelihood, 2, 0)","v":0},{"$f":"IF('Step 2 EAM'!F52=Response_3._Likely, 3, 0)","v":0},0,{"$f":"IF('Step 2 EAM'!G52=Response_1._Mild, 1, 0)","v":0},{"$f":"IF('Step 2 EAM'!G52=Response_2._Moderate,2, 0)","v":0},{"$f":"IF('Step 2 EAM'!G52=Response_3._Severe, 3, 0)","v":0},0,0]
[null,{"$f":"IF('Step 2 EAM'!F53=Response_1._Unlikely, 1, 0)","v":0},{"$f":"IF('Step 2 EAM'!F53=Response_2._Low_likelihood, 2, 0)","v":0},{"$f":"IF('Step 2 EAM'!F53=Response_3._Likely, 3, 0)","v":0},0,{"$f":"IF('Step 2 EAM'!G53=Response_1._Mild, 1, 0)","v":0},{"$f":"IF('Step 2 EAM'!G53=Response_2._Moderate,2, 0)","v":0},{"$f":"IF('Step 2 EAM'!G53=Response_3._Severe, 3, 0)","v":0},0,0]
[null,{"$f":"IF('Step 2 EAM'!F54=Response_1._Unlikely, 1, 0)","v":0},{"$f":"IF('Step 2 EAM'!F54=Response_2._Low_likelihood, 2, 0)","v":0},{"$f":"IF('Step 2 EAM'!F54=Response_3._Likely, 3, 0)","v":0},0,{"$f":"IF('Step 2 EAM'!G54=Response_1._Mild, 1, 0)","v":0},{"$f":"IF('Step 2 EAM'!G54=Response_2._Moderate,2, 0)","v":0},{"$f":"IF('Step 2 EAM'!G54=Response_3._Severe, 3, 0)","v":0},0,0]
[null,{"$f":"IF('Step 2 EAM'!F55=Response_1._Unlikely, 1, 0)","v":0},{"$f":"IF('Step 2 EAM'!F55=Response_2._Low_likelihood, 2, 0)","v":0},{"$f":"IF('Step 2 EAM'!F55=Response_3._Likely, 3, 0)","v":0},0,{"$f":"IF('Step 2 EAM'!G55=Response_1._Mild, 1, 0)","v":0},{"$f":"IF('Step 2 EAM'!G55=Response_2._Moderate,2, 0)","v":0},{"$f":"IF('Step 2 EAM'!G55=Response_3._Severe, 3, 0)","v":0},0,0]
[null,{"$f":"IF('Step 2 EAM'!F56=Response_1._Unlikely, 1, 0)","v":0},{"$f":"IF('Step 2 EAM'!F56=Response_2._Low_likelihood, 2, 0)","v":0},{"$f":"IF('Step 2 EAM'!F56=Response_3._Likely, 3, 0)","v":0},0,{"$f":"IF('Step 2 EAM'!G56=Response_1._Mild, 1, 0)","v":0},{"$f":"IF('Step 2 EAM'!G56=Response_2._Moderate,2, 0)","v":0},{"$f":"IF('Step 2 EAM'!G56=Response_3._Severe, 3, 0)","v":0},0,0]
[null,{"$f":"IF('Step 2 EAM'!F57=Response_1._Unlikely, 1, 0)","v":0},{"$f":"IF('Step 2 EAM'!F57=Response_2._Low_likelihood, 2, 0)","v":0},{"$f":"IF('Step 2 EAM'!F57=Response_3._Likely, 3, 0)","v":0},0,{"$f":"IF('Step 2 EAM'!G57=Response_1._Mild, 1, 0)","v":0},{"$f":"IF('Step 2 EAM'!G57=Response_2._Moderate,2, 0)","v":0},{"$f":"IF('Step 2 EAM'!G57=Response_3._Severe, 3, 0)","v":0},0,0]
[null,{"$f":"IF('Step 2 EAM'!F58=Response_1._Unlikely, 1, 0)","v":0},{"$f":"IF('Step 2 EAM'!F58=Response_2._Low_likelihood, 2, 0)","v":0},{"$f":"IF('Step 2 EAM'!F58=Response_3._Likely, 3, 0)","v":0},0,{"$f":"IF('Step 2 EAM'!G58=Response_1._Mild, 1, 0)","v":0},{"$f":"IF('Step 2 EAM'!G58=Response_2._Moderate,2, 0)","v":0},{"$f":"IF('Step 2 EAM'!G58=Response_3._Severe, 3, 0)","v":0},0,0]
[null,{"$f":"IF('Step 2 EAM'!F59=Response_1._Unlikely, 1, 0)","v":0},{"$f":"IF('Step 2 EAM'!F59=Response_2._Low_likelihood, 2, 0)","v":0},{"$f":"IF('Step 2 EAM'!F59=Response_3._Likely, 3, 0)","v":0},0,{"$f":"IF('Step 2 EAM'!G59=Response_1._Mild, 1, 0)","v":0},{"$f":"IF('Step 2 EAM'!G59=Response_2._Moderate,2, 0)","v":0},{"$f":"IF('Step 2 EAM'!G59=Response_3._Severe, 3, 0)","v":0},0,0]
[null,{"$f":"IF('Step 2 EAM'!F60=Response_1._Unlikely, 1, 0)","v":0},{"$f":"IF('Step 2 EAM'!F60=Response_2._Low_likelihood, 2, 0)","v":0},{"$f":"IF('Step 2 EAM'!F60=Response_3._Likely, 3, 0)","v":0},0,{"$f":"IF('Step 2 EAM'!G60=Response_1._Mild, 1, 0)","v":0},{"$f":"IF('Step 2 EAM'!G60=Response_2._Moderate,2, 0)","v":0},{"$f":"IF('Step 2 EAM'!G60=Response_3._Severe, 3, 0)","v":0},0,0]
[null,{"$f":"IF('Step 2 EAM'!F61=Response_1._Unlikely, 1, 0)","v":0},{"$f":"IF('Step 2 EAM'!F61=Response_2._Low_likelihood, 2, 0)","v":0},{"$f":"IF('Step 2 EAM'!F61=Response_3._Likely, 3, 0)","v":0},0,{"$f":"IF('Step 2 EAM'!G61=Response_1._Mild, 1, 0)","v":0},{"$f":"IF('Step 2 EAM'!G61=Response_2._Moderate,2, 0)","v":0},{"$f":"IF('Step 2 EAM'!G61=Response_3._Severe, 3, 0)","v":0},0,0]
[null,{"$f":"IF('Step 2 EAM'!F62=Response_1._Unlikely, 1, 0)","v":0},{"$f":"IF('Step 2 EAM'!F62=Response_2._Low_likelihood, 2, 0)","v":0},{"$f":"IF('Step 2 EAM'!F62=Response_3._Likely, 3, 0)","v":0},0,{"$f":"IF('Step 2 EAM'!G62=Response_1._Mild, 1, 0)","v":0},{"$f":"IF('Step 2 EAM'!G62=Response_2._Moderate,2, 0)","v":0},{"$f":"IF('Step 2 EAM'!G62=Response_3._Severe, 3, 0)","v":0},0,0]
[null,{"$f":"IF('Step 2 EAM'!F63=Response_1._Unlikely, 1, 0)","v":0},{"$f":"IF('Step 2 EAM'!F63=Response_2._Low_likelihood, 2, 0)","v":0},{"$f":"IF('Step 2 EAM'!F63=Response_3._Likely, 3, 0)","v":0},0,{"$f":"IF('Step 2 EAM'!G63=Response_1._Mild, 1, 0)","v":0},{"$f":"IF('Step 2 EAM'!G63=Response_2._Moderate,2, 0)","v":0},{"$f":"IF('Step 2 EAM'!G63=Response_3._Severe, 3, 0)","v":0},0,0]
[null,{"$f":"IF('Step 2 EAM'!F64=Response_1._Unlikely, 1, 0)","v":0},{"$f":"IF('Step 2 EAM'!F64=Response_2._Low_likelihood, 2, 0)","v":0},{"$f":"IF('Step 2 EAM'!F64=Response_3._Likely, 3, 0)","v":0},0,{"$f":"IF('Step 2 EAM'!G64=Response_1._Mild, 1, 0)","v":0},{"$f":"IF('Step 2 EAM'!G64=Response_2._Moderate,2, 0)","v":0},{"$f":"IF('Step 2 EAM'!G64=Response_3._Severe, 3, 0)","v":0},0,0]
[null,{"$f":"IF('Step 2 EAM'!F65=Response_1._Unlikely, 1, 0)","v":0},{"$f":"IF('Step 2 EAM'!F65=Response_2._Low_likelihood, 2, 0)","v":0},{"$f":"IF('Step 2 EAM'!F65=Response_3._Likely, 3, 0)","v":0},0,{"$f":"IF('Step 2 EAM'!G65=Response_1._Mild, 1, 0)","v":0},{"$f":"IF('Step 2 EAM'!G65=Response_2._Moderate,2, 0)","v":0},{"$f":"IF('Step 2 EAM'!G65=Response_3._Severe, 3, 0)","v":0},0,0]
[null,{"$f":"IF('Step 2 EAM'!F66=Response_1._Unlikely, 1, 0)","v":0},{"$f":"IF('Step 2 EAM'!F66=Response_2._Low_likelihood, 2, 0)","v":0},{"$f":"IF('Step 2 EAM'!F66=Response_3._Likely, 3, 0)","v":0},0,{"$f":"IF('Step 2 EAM'!G66=Response_1._Mild, 1, 0)","v":0},{"$f":"IF('Step 2 EAM'!G66=Response_2._Moderate,2, 0)","v":0},{"$f":"IF('Step 2 EAM'!G66=Response_3._Severe, 3, 0)","v":0},0,0]
[null,{"$f":"IF('Step 2 EAM'!F67=Response_1._Unlikely, 1, 0)","v":0},{"$f":"IF('Step 2 EAM'!F67=Response_2._Low_likelihood, 2, 0)","v":0},{"$f":"IF('Step 2 EAM'!F67=Response_3._Likely, 3, 0)","v":0},0,{"$f":"IF('Step 2 EAM'!G67=Response_1._Mild, 1, 0)","v":0},{"$f":"IF('Step 2 EAM'!G67=Response_2._Moderate,2, 0)","v":0},{"$f":"IF('Step 2 EAM'!G67=Response_3._Severe, 3, 0)","v":0},0,0]
[null,{"$f":"IF('Step 2 EAM'!F68=Response_1._Unlikely, 1, 0)","v":0},{"$f":"IF('Step 2 EAM'!F68=Response_2._Low_likelihood, 2, 0)","v":0},{"$f":"IF('Step 2 EAM'!F68=Response_3._Likely, 3, 0)","v":0},0,{"$f":"IF('Step 2 EAM'!G68=Response_1._Mild, 1, 0)","v":0},{"$f":"IF('Step 2 EAM'!G68=Response_2._Moderate,2, 0)","v":0},{"$f":"IF('Step 2 EAM'!G68=Response_3._Severe, 3, 0)","v":0},0,0]
[null,{"$f":"IF('Step 2 EAM'!F69=Response_1._Unlikely, 1, 0)","v":0},{"$f":"IF('Step 2 EAM'!F69=Response_2._Low_likelihood, 2, 0)","v":0},{"$f":"IF('Step 2 EAM'!F69=Response_3._Likely, 3, 0)","v":0},0,{"$f":"IF('Step 2 EAM'!G69=Response_1._Mild, 1, 0)","v":0},{"$f":"IF('Step 2 EAM'!G69=Response_2._Moderate,2, 0)","v":0},{"$f":"IF('Step 2 EAM'!G69=Response_3._Severe, 3, 0)","v":0},0,0]
[null,{"$f":"IF('Step 2 EAM'!F70=Response_1._Unlikely, 1, 0)","v":0},{"$f":"IF('Step 2 EAM'!F70=Response_2._Low_likelihood, 2, 0)","v":0},{"$f":"IF('Step 2 EAM'!F70=Response_3._Likely, 3, 0)","v":0},0,{"$f":"IF('Step 2 EAM'!G70=Response_1._Mild, 1, 0)","v":0},{"$f":"IF('Step 2 EAM'!G70=Response_2._Moderate,2, 0)","v":0},{"$f":"IF('Step 2 EAM'!G70=Response_3._Severe, 3, 0)","v":0},0,0]
[null,{"$f":"IF('Step 2 EAM'!F71=Response_1._Unlikely, 1, 0)","v":0},{"$f":"IF('Step 2 EAM'!F71=Response_2._Low_likelihood, 2, 0)","v":0},{"$f":"IF('Step 2 EAM'!F71=Response_3._Likely, 3, 0)","v":0},0,{"$f":"IF('Step 2 EAM'!G71=Response_1._Mild, 1, 0)","v":0},{"$f":"IF('Step 2 EAM'!G71=Response_2._Moderate,2, 0)","v":0},{"$f":"IF('Step 2 EAM'!G71=Response_3._Severe, 3, 0)","v":0},0,0]
[null,{"$f":"IF('Step 2 EAM'!F72=Response_1._Unlikely, 1, 0)","v":0},{"$f":"IF('Step 2 EAM'!F72=Response_2._Low_likelihood, 2, 0)","v":0},{"$f":"IF('Step 2 EAM'!F72=Response_3._Likely, 3, 0)","v":0},0,{"$f":"IF('Step 2 EAM'!G72=Response_1._Mild, 1, 0)","v":0},{"$f":"IF('Step 2 EAM'!G72=Response_2._Moderate,2, 0)","v":0},{"$f":"IF('Step 2 EAM'!G72=Response_3._Severe, 3, 0)","v":0},0,0]
[null,{"$f":"IF('Step 2 EAM'!F73=Response_1._Unlikely, 1, 0)","v":0},{"$f":"IF('Step 2 EAM'!F73=Response_2._Low_likelihood, 2, 0)","v":0},{"$f":"IF('Step 2 EAM'!F73=Response_3._Likely, 3, 0)","v":0},{"$f":"SUM(B68:D68)","v":0},{"$f":"IF('Step 2 EAM'!G73=Response_1._Mild, 1, 0)","v":0},{"$f":"IF('Step 2 EAM'!G73=Response_2._Moderate,2, 0)","v":0},{"$f":"IF('Step 2 EAM'!G73=Response_3._Severe, 3, 0)","v":0},{"$f":"SUM(F68:H68)","v":0},{"$f":"I68*E68","v":0}]
[null,{"$f":"IF('Step 2 EAM'!F74=Response_1._Unlikely, 1, 0)","v":0},{"$f":"IF('Step 2 EAM'!F74=Response_2._Low_likelihood, 2, 0)","v":0},{"$f":"IF('Step 2 EAM'!F74=Response_3._Likely, 3, 0)","v":0},0,{"$f":"IF('Step 2 EAM'!G74=Response_1._Mild, 1, 0)","v":0},{"$f":"IF('Step 2 EAM'!G74=Response_2._Moderate,2, 0)","v":0},{"$f":"IF('Step 2 EAM'!G74=Response_3._Severe, 3, 0)","v":0},0,0]
[null,{"$f":"IF('Step 2 EAM'!F75=Response_1._Unlikely, 1, 0)","v":0},{"$f":"IF('Step 2 EAM'!F75=Response_2._Low_likelihood, 2, 0)","v":0},{"$f":"IF('Step 2 EAM'!F75=Response_3._Likely, 3, 0)","v":0},0,{"$f":"IF('Step 2 EAM'!G75=Response_1._Mild, 1, 0)","v":0},{"$f":"IF('Step 2 EAM'!G75=Response_2._Moderate,2, 0)","v":0},{"$f":"IF('Step 2 EAM'!G75=Response_3._Severe, 3, 0)","v":0},0,0]
[null,{"$f":"IF('Step 2 EAM'!F76=Response_1._Unlikely, 1, 0)","v":0},{"$f":"IF('Step 2 EAM'!F76=Response_2._Low_likelihood, 2, 0)","v":0},{"$f":"IF('Step 2 EAM'!F76=Response_3._Likely, 3, 0)","v":0},0,{"$f":"IF('Step 2 EAM'!G76=Response_1._Mild, 1, 0)","v":0},{"$f":"IF('Step 2 EAM'!G76=Response_2._Moderate,2, 0)","v":0},{"$f":"IF('Step 2 EAM'!G76=Response_3._Severe, 3, 0)","v":0},0,0]
[null,{"$f":"IF('Step 2 EAM'!F77=Response_1._Unlikely, 1, 0)","v":0},{"$f":"IF('Step 2 EAM'!F77=Response_2._Low_likelihood, 2, 0)","v":0},{"$f":"IF('Step 2 EAM'!F77=Response_3._Likely, 3, 0)","v":0},0,{"$f":"IF('Step 2 EAM'!G77=Response_1._Mild, 1, 0)","v":0},{"$f":"IF('Step 2 EAM'!G77=Response_2._Moderate,2, 0)","v":0},{"$f":"IF('Step 2 EAM'!G77=Response_3._Severe, 3, 0)","v":0},0,0]
[null,{"$f":"IF('Step 2 EAM'!F78=Response_1._Unlikely, 1, 0)","v":0},{"$f":"IF('Step 2 EAM'!F78=Response_2._Low_likelihood, 2, 0)","v":0},{"$f":"IF('Step 2 EAM'!F78=Response_3._Likely, 3, 0)","v":0},0,{"$f":"IF('Step 2 EAM'!G78=Response_1._Mild, 1, 0)","v":0},{"$f":"IF('Step 2 EAM'!G78=Response_2._Moderate,2, 0)","v":0},{"$f":"IF('Step 2 EAM'!G78=Response_3._Severe, 3, 0)","v":0},0,0]
[null,{"$f":"IF('Step 2 EAM'!F79=Response_1._Unlikely, 1, 0)","v":0},{"$f":"IF('Step 2 EAM'!F79=Response_2._Low_likelihood, 2, 0)","v":0},{"$f":"IF('Step 2 EAM'!F79=Response_3._Likely, 3, 0)","v":0},0,{"$f":"IF('Step 2 EAM'!G79=Response_1._Mild, 1, 0)","v":0},{"$f":"IF('Step 2 EAM'!G79=Response_2._Moderate,2, 0)","v":0},{"$f":"IF('Step 2 EAM'!G79=Response_3._Severe, 3, 0)","v":0},0,0]
[null,{"$f":"IF('Step 2 EAM'!F80=Response_1._Unlikely, 1, 0)","v":0},{"$f":"IF('Step 2 EAM'!F80=Response_2._Low_likelihood, 2, 0)","v":0},{"$f":"IF('Step 2 EAM'!F80=Response_3._Likely, 3, 0)","v":0},0,{"$f":"IF('Step 2 EAM'!G80=Response_1._Mild, 1, 0)","v":0},{"$f":"IF('Step 2 EAM'!G80=Response_2._Moderate,2, 0)","v":0},{"$f":"IF('Step 2 EAM'!G80=Response_3._Severe, 3, 0)","v":0},0,0]
[null,{"$f":"IF('Step 2 EAM'!F81=Response_1._Unlikely, 1, 0)","v":0},{"$f":"IF('Step 2 EAM'!F81=Response_2._Low_likelihood, 2, 0)","v":0},{"$f":"IF('Step 2 EAM'!F81=Response_3._Likely, 3, 0)","v":0},0,{"$f":"IF('Step 2 EAM'!G81=Response_1._Mild, 1, 0)","v":0},{"$f":"IF('Step 2 EAM'!G81=Response_2._Moderate,2, 0)","v":0},{"$f":"IF('Step 2 EAM'!G81=Response_3._Severe, 3, 0)","v":0},0,0]
[null,{"$f":"IF('Step 2 EAM'!F82=Response_1._Unlikely, 1, 0)","v":0},{"$f":"IF('Step 2 EAM'!F82=Response_2._Low_likelihood, 2, 0)","v":0},{"$f":"IF('Step 2 EAM'!F82=Response_3._Likely, 3, 0)","v":0},0,{"$f":"IF('Step 2 EAM'!G82=Response_1._Mild, 1, 0)","v":0},{"$f":"IF('Step 2 EAM'!G82=Response_2._Moderate,2, 0)","v":0},{"$f":"IF('Step 2 EAM'!G82=Response_3._Severe, 3, 0)","v":0},0,0]
[null,{"$f":"IF('Step 2 EAM'!F83=Response_1._Unlikely, 1, 0)","v":0},{"$f":"IF('Step 2 EAM'!F83=Response_2._Low_likelihood, 2, 0)","v":0},{"$f":"IF('Step 2 EAM'!F83=Response_3._Likely, 3, 0)","v":0},0,{"$f":"IF('Step 2 EAM'!G83=Response_1._Mild, 1, 0)","v":0},{"$f":"IF('Step 2 EAM'!G83=Response_2._Moderate,2, 0)","v":0},{"$f":"IF('Step 2 EAM'!G83=Response_3._Severe, 3, 0)","v":0},0,0]
[null,{"$f":"IF('Step 2 EAM'!F84=Response_1._Unlikely, 1, 0)","v":0},{"$f":"IF('Step 2 EAM'!F84=Response_2._Low_likelihood, 2, 0)","v":0},{"$f":"IF('Step 2 EAM'!F84=Response_3._Likely, 3, 0)","v":0},0,{"$f":"IF('Step 2 EAM'!G84=Response_1._Mild, 1, 0)","v":0},{"$f":"IF('Step 2 EAM'!G84=Response_2._Moderate,2, 0)","v":0},{"$f":"IF('Step 2 EAM'!G84=Response_3._Severe, 3, 0)","v":0},0,0]
[null,{"$f":"IF('Step 2 EAM'!F85=Response_1._Unlikely, 1, 0)","v":0},{"$f":"IF('Step 2 EAM'!F85=Response_2._Low_likelihood, 2, 0)","v":0},{"$f":"IF('Step 2 EAM'!F85=Response_3._Likely, 3, 0)","v":0},0,{"$f":"IF('Step 2 EAM'!G85=Response_1._Mild, 1, 0)","v":0},{"$f":"IF('Step 2 EAM'!G85=Response_2._Moderate,2, 0)","v":0},{"$f":"IF('Step 2 EAM'!G85=Response_3._Severe, 3, 0)","v":0},0,0]
[null,{"$f":"IF('Step 2 EAM'!F86=Response_1._Unlikely, 1, 0)","v":0},{"$f":"IF('Step 2 EAM'!F86=Response_2._Low_likelihood, 2, 0)","v":0},{"$f":"IF('Step 2 EAM'!F86=Response_3._Likely, 3, 0)","v":0},0,{"$f":"IF('Step 2 EAM'!G86=Response_1._Mild, 1, 0)","v":0},{"$f":"IF('Step 2 EAM'!G86=Response_2._Moderate,2, 0)","v":0},{"$f":"IF('Step 2 EAM'!G86=Response_3._Severe, 3, 0)","v":0},0,0]
[null,{"$f":"IF('Step 2 EAM'!F87=Response_1._Unlikely, 1, 0)","v":0},{"$f":"IF('Step 2 EAM'!F87=Response_2._Low_likelihood, 2, 0)","v":0},{"$f":"IF('Step 2 EAM'!F87=Response_3._Likely, 3, 0)","v":0},0,{"$f":"IF('Step 2 EAM'!G87=Response_1._Mild, 1, 0)","v":0},{"$f":"IF('Step 2 EAM'!G87=Response_2._Moderate,2, 0)","v":0},{"$f":"IF('Step 2 EAM'!G87=Response_3._Severe, 3, 0)","v":0},0,0]
[null,{"$f":"IF('Step 2 EAM'!F88=Response_1._Unlikely, 1, 0)","v":0},{"$f":"IF('Step 2 EAM'!F88=Response_2._Low_likelihood, 2, 0)","v":0},{"$f":"IF('Step 2 EAM'!F88=Response_3._Likely, 3, 0)","v":0},0,{"$f":"IF('Step 2 EAM'!G88=Response_1._Mild, 1, 0)","v":0},{"$f":"IF('Step 2 EAM'!G88=Response_2._Moderate,2, 0)","v":0},{"$f":"IF('Step 2 EAM'!G88=Response_3._Severe, 3, 0)","v":0},0,0]
[null,{"$f":"IF('Step 2 EAM'!F89=Response_1._Unlikely, 1, 0)","v":0},{"$f":"IF('Step 2 EAM'!F89=Response_2._Low_likelihood, 2, 0)","v":0},{"$f":"IF('Step 2 EAM'!F89=Response_3._Likely, 3, 0)","v":0},0,{"$f":"IF('Step 2 EAM'!G89=Response_1._Mild, 1, 0)","v":0},{"$f":"IF('Step 2 EAM'!G89=Response_2._Moderate,2, 0)","v":0},{"$f":"IF('Step 2 EAM'!G89=Response_3._Severe, 3, 0)","v":0},0,0]
[null,{"$f":"IF('Step 2 EAM'!F90=Response_1._Unlikely, 1, 0)","v":0},{"$f":"IF('Step 2 EAM'!F90=Response_2._Low_likelihood, 2, 0)","v":0},{"$f":"IF('Step 2 EAM'!F90=Response_3._Likely, 3, 0)","v":0},0,{"$f":"IF('Step 2 EAM'!G90=Response_1._Mild, 1, 0)","v":0},{"$f":"IF('Step 2 EAM'!G90=Response_2._Moderate,2, 0)","v":0},{"$f":"IF('Step 2 EAM'!G90=Response_3._Severe, 3, 0)","v":0},0,0]
[null,{"$f":"IF('Step 2 EAM'!F91=Response_1._Unlikely, 1, 0)","v":0},{"$f":"IF('Step 2 EAM'!F91=Response_2._Low_likelihood, 2, 0)","v":0},{"$f":"IF('Step 2 EAM'!F91=Response_3._Likely, 3, 0)","v":0},0,{"$f":"IF('Step 2 EAM'!G91=Response_1._Mild, 1, 0)","v":0},{"$f":"IF('Step 2 EAM'!G91=Response_2._Moderate,2, 0)","v":0},{"$f":"IF('Step 2 EAM'!G91=Response_3._Severe, 3, 0)","v":0},0,0]
[null,{"$f":"IF('Step 2 EAM'!F92=Response_1._Unlikely, 1, 0)","v":0},{"$f":"IF('Step 2 EAM'!F92=Response_2._Low_likelihood, 2, 0)","v":0},{"$f":"IF('Step 2 EAM'!F92=Response_3._Likely, 3, 0)","v":0},0,{"$f":"IF('Step 2 EAM'!G92=Response_1._Mild, 1, 0)","v":0},{"$f":"IF('Step 2 EAM'!G92=Response_2._Moderate,2, 0)","v":0},{"$f":"IF('Step 2 EAM'!G92=Response_3._Severe, 3, 0)","v":0},0,0]
[null,{"$f":"IF('Step 2 EAM'!F93=Response_1._Unlikely, 1, 0)","v":0},{"$f":"IF('Step 2 EAM'!F93=Response_2._Low_likelihood, 2, 0)","v":0},{"$f":"IF('Step 2 EAM'!F93=Response_3._Likely, 3, 0)","v":0},0,{"$f":"IF('Step 2 EAM'!G93=Response_1._Mild, 1, 0)","v":0},{"$f":"IF('Step 2 EAM'!G93=Response_2._Moderate,2, 0)","v":0},{"$f":"IF('Step 2 EAM'!G93=Response_3._Severe, 3, 0)","v":0},0,0]
[null,{"$f":"IF('Step 2 EAM'!F94=Response_1._Unlikely, 1, 0)","v":0},{"$f":"IF('Step 2 EAM'!F94=Response_2._Low_likelihood, 2, 0)","v":0},{"$f":"IF('Step 2 EAM'!F94=Response_3._Likely, 3, 0)","v":0},0,{"$f":"IF('Step 2 EAM'!G94=Response_1._Mild, 1, 0)","v":0},{"$f":"IF('Step 2 EAM'!G94=Response_2._Moderate,2, 0)","v":0},{"$f":"IF('Step 2 EAM'!G94=Response_3._Severe, 3, 0)","v":0},0,0]
[null,{"$f":"IF('Step 2 EAM'!F95=Response_1._Unlikely, 1, 0)","v":0},{"$f":"IF('Step 2 EAM'!F95=Response_2._Low_likelihood, 2, 0)","v":0},{"$f":"IF('Step 2 EAM'!F95=Response_3._Likely, 3, 0)","v":0},0,{"$f":"IF('Step 2 EAM'!G95=Response_1._Mild, 1, 0)","v":0},{"$f":"IF('Step 2 EAM'!G95=Response_2._Moderate,2, 0)","v":0},{"$f":"IF('Step 2 EAM'!G95=Response_3._Severe, 3, 0)","v":0},0,0]
[null,{"$f":"IF('Step 2 EAM'!F96=Response_1._Unlikely, 1, 0)","v":0},{"$f":"IF('Step 2 EAM'!F96=Response_2._Low_likelihood, 2, 0)","v":0},{"$f":"IF('Step 2 EAM'!F96=Response_3._Likely, 3, 0)","v":0},0,{"$f":"IF('Step 2 EAM'!G96=Response_1._Mild, 1, 0)","v":0},{"$f":"IF('Step 2 EAM'!G96=Response_2._Moderate,2, 0)","v":0},{"$f":"IF('Step 2 EAM'!G96=Response_3._Severe, 3, 0)","v":0},0,0]
[null,{"$f":"IF('Step 2 EAM'!F97=Response_1._Unlikely, 1, 0)","v":0},{"$f":"IF('Step 2 EAM'!F97=Response_2._Low_likelihood, 2, 0)","v":0},{"$f":"IF('Step 2 EAM'!F97=Response_3._Likely, 3, 0)","v":0},0,{"$f":"IF('Step 2 EAM'!G97=Response_1._Mild, 1, 0)","v":0},{"$f":"IF('Step 2 EAM'!G97=Response_2._Moderate,2, 0)","v":0},{"$f":"IF('Step 2 EAM'!G97=Response_3._Severe, 3, 0)","v":0},0,0]
[null,{"$f":"IF('Step 2 EAM'!F98=Response_1._Unlikely, 1, 0)","v":0},{"$f":"IF('Step 2 EAM'!F98=Response_2._Low_likelihood, 2, 0)","v":0},{"$f":"IF('Step 2 EAM'!F98=Response_3._Likely, 3, 0)","v":0},0,{"$f":"IF('Step 2 EAM'!G98=Response_1._Mild, 1, 0)","v":0},{"$f":"IF('Step 2 EAM'!G98=Response_2._Moderate,2, 0)","v":0},{"$f":"IF('Step 2 EAM'!G98=Response_3._Severe, 3, 0)","v":0},0,0]
[null,{"$f":"IF('Step 2 EAM'!F99=Response_1._Unlikely, 1, 0)","v":0},{"$f":"IF('Step 2 EAM'!F99=Response_2._Low_likelihood, 2, 0)","v":0},{"$f":"IF('Step 2 EAM'!F99=Response_3._Likely, 3, 0)","v":0},0,{"$f":"IF('Step 2 EAM'!G99=Response_1._Mild, 1, 0)","v":0},{"$f":"IF('Step 2 EAM'!G99=Response_2._Moderate,2, 0)","v":0},{"$f":"IF('Step 2 EAM'!G99=Response_3._Severe, 3, 0)","v":0},0,0]
[null,{"$f":"IF('Step 2 EAM'!F100=Response_1._Unlikely, 1, 0)","v":0},{"$f":"IF('Step 2 EAM'!F100=Response_2._Low_likelihood, 2, 0)","v":0},{"$f":"IF('Step 2 EAM'!F100=Response_3._Likely, 3, 0)","v":0},0,{"$f":"IF('Step 2 EAM'!G100=Response_1._Mild, 1, 0)","v":0},{"$f":"IF('Step 2 EAM'!G100=Response_2._Moderate,2, 0)","v":0},{"$f":"IF('Step 2 EAM'!G100=Response_3._Severe, 3, 0)","v":0},0,0]
[null,{"$f":"IF('Step 2 EAM'!F101=Response_1._Unlikely, 1, 0)","v":0},{"$f":"IF('Step 2 EAM'!F101=Response_2._Low_likelihood, 2, 0)","v":0},{"$f":"IF('Step 2 EAM'!F101=Response_3._Likely, 3, 0)","v":0},0,{"$f":"IF('Step 2 EAM'!G101=Response_1._Mild, 1, 0)","v":0},{"$f":"IF('Step 2 EAM'!G101=Response_2._Moderate,2, 0)","v":0},{"$f":"IF('Step 2 EAM'!G101=Response_3._Severe, 3, 0)","v":0},0,0]
[null,{"$f":"IF('Step 2 EAM'!F102=Response_1._Unlikely, 1, 0)","v":0},{"$f":"IF('Step 2 EAM'!F102=Response_2._Low_likelihood, 2, 0)","v":0},{"$f":"IF('Step 2 EAM'!F102=Response_3._Likely, 3, 0)","v":0},0,{"$f":"IF('Step 2 EAM'!G102=Response_1._Mild, 1, 0)","v":0},{"$f":"IF('Step 2 EAM'!G102=Response_2._Moderate,2, 0)","v":0},{"$f":"IF('Step 2 EAM'!G102=Response_3._Severe, 3, 0)","v":0},0,0]
[null,{"$f":"IF('Step 2 EAM'!F103=Response_1._Unlikely, 1, 0)","v":0},{"$f":"IF('Step 2 EAM'!F103=Response_2._Low_likelihood, 2, 0)","v":0},{"$f":"IF('Step 2 EAM'!F103=Response_3._Likely, 3, 0)","v":0},0,{"$f":"IF('Step 2 EAM'!G103=Response_1._Mild, 1, 0)","v":0},{"$f":"IF('Step 2 EAM'!G103=Response_2._Moderate,2, 0)","v":0},{"$f":"IF('Step 2 EAM'!G103=Response_3._Severe, 3, 0)","v":0},0,0]
[null,{"$f":"IF('Step 2 EAM'!F104=Response_1._Unlikely, 1, 0)","v":0},{"$f":"IF('Step 2 EAM'!F104=Response_2._Low_likelihood, 2, 0)","v":0},{"$f":"IF('Step 2 EAM'!F104=Response_3._Likely, 3, 0)","v":0},0,{"$f":"IF('Step 2 EAM'!G104=Response_1._Mild, 1, 0)","v":0},{"$f":"IF('Step 2 EAM'!G104=Response_2._Moderate,2, 0)","v":0},{"$f":"IF('Step 2 EAM'!G104=Response_3._Severe, 3, 0)","v":0},0,0]
[null,{"$f":"IF('Step 2 EAM'!F105=Response_1._Unlikely, 1, 0)","v":0},{"$f":"IF('Step 2 EAM'!F105=Response_2._Low_likelihood, 2, 0)","v":0},{"$f":"IF('Step 2 EAM'!F105=Response_3._Likely, 3, 0)","v":0},0,{"$f":"IF('Step 2 EAM'!G105=Response_1._Mild, 1, 0)","v":0},{"$f":"IF('Step 2 EAM'!G105=Response_2._Moderate,2, 0)","v":0},{"$f":"IF('Step 2 EAM'!G105=Response_3._Severe, 3, 0)","v":0},0,0]
[null,{"$f":"IF('Step 2 EAM'!F106=Response_1._Unlikely, 1, 0)","v":0},{"$f":"IF('Step 2 EAM'!F106=Response_2._Low_likelihood, 2, 0)","v":0},{"$f":"IF('Step 2 EAM'!F106=Response_3._Likely, 3, 0)","v":0},0,{"$f":"IF('Step 2 EAM'!G106=Response_1._Mild, 1, 0)","v":0},{"$f":"IF('Step 2 EAM'!G106=Response_2._Moderate,2, 0)","v":0},{"$f":"IF('Step 2 EAM'!G106=Response_3._Severe, 3, 0)","v":0},0,0]
[null,{"$f":"IF('Step 2 EAM'!F107=Response_1._Unlikely, 1, 0)","v":0},{"$f":"IF('Step 2 EAM'!F107=Response_2._Low_likelihood, 2, 0)","v":0},{"$f":"IF('Step 2 EAM'!F107=Response_3._Likely, 3, 0)","v":0},0,{"$f":"IF('Step 2 EAM'!G107=Response_1._Mild, 1, 0)","v":0},{"$f":"IF('Step 2 EAM'!G107=Response_2._Moderate,2, 0)","v":0},{"$f":"IF('Step 2 EAM'!G107=Response_3._Severe, 3, 0)","v":0},0,0]
[null,{"$f":"IF('Step 2 EAM'!F108=Response_1._Unlikely, 1, 0)","v":0},{"$f":"IF('Step 2 EAM'!F108=Response_2._Low_likelihood, 2, 0)","v":0},{"$f":"IF('Step 2 EAM'!F108=Response_3._Likely, 3, 0)","v":0},0,{"$f":"IF('Step 2 EAM'!G108=Response_1._Mild, 1, 0)","v":0},{"$f":"IF('Step 2 EAM'!G108=Response_2._Moderate,2, 0)","v":0},{"$f":"IF('Step 2 EAM'!G108=Response_3._Severe, 3, 0)","v":0},0,0]
[null,{"$f":"IF('Step 2 EAM'!F109=Response_1._Unlikely, 1, 0)","v":0},{"$f":"IF('Step 2 EAM'!F109=Response_2._Low_likelihood, 2, 0)","v":0},{"$f":"IF('Step 2 EAM'!F109=Response_3._Likely, 3, 0)","v":0},0,{"$f":"IF('Step 2 EAM'!G109=Response_1._Mild, 1, 0)","v":0},{"$f":"IF('Step 2 EAM'!G109=Response_2._Moderate,2, 0)","v":0},{"$f":"IF('Step 2 EAM'!G109=Response_3._Severe, 3, 0)","v":0},0,0]
[null,{"$f":"IF('Step 2 EAM'!F110=Response_1._Unlikely, 1, 0)","v":0},{"$f":"IF('Step 2 EAM'!F110=Response_2._Low_likelihood, 2, 0)","v":0},{"$f":"IF('Step 2 EAM'!F110=Response_3._Likely, 3, 0)","v":0},0,{"$f":"IF('Step 2 EAM'!G110=Response_1._Mild, 1, 0)","v":0},{"$f":"IF('Step 2 EAM'!G110=Response_2._Moderate,2, 0)","v":0},{"$f":"IF('Step 2 EAM'!G110=Response_3._Severe, 3, 0)","v":0},0,0]
[null,{"$f":"IF('Step 2 EAM'!F111=Response_1._Unlikely, 1, 0)","v":0},{"$f":"IF('Step 2 EAM'!F111=Response_2._Low_likelihood, 2, 0)","v":0},{"$f":"IF('Step 2 EAM'!F111=Response_3._Likely, 3, 0)","v":0},0,{"$f":"IF('Step 2 EAM'!G111=Response_1._Mild, 1, 0)","v":0},{"$f":"IF('Step 2 EAM'!G111=Response_2._Moderate,2, 0)","v":0},{"$f":"IF('Step 2 EAM'!G111=Response_3._Severe, 3, 0)","v":0},0,0]
[null,{"$f":"IF('Step 2 EAM'!F112=Response_1._Unlikely, 1, 0)","v":0},{"$f":"IF('Step 2 EAM'!F112=Response_2._Low_likelihood, 2, 0)","v":0},{"$f":"IF('Step 2 EAM'!F112=Response_3._Likely, 3, 0)","v":0},0,{"$f":"IF('Step 2 EAM'!G112=Response_1._Mild, 1, 0)","v":0},{"$f":"IF('Step 2 EAM'!G112=Response_2._Moderate,2, 0)","v":0},{"$f":"IF('Step 2 EAM'!G112=Response_3._Severe, 3, 0)","v":0},0,0]
[null,{"$f":"IF('Step 2 EAM'!F113=Response_1._Unlikely, 1, 0)","v":0},{"$f":"IF('Step 2 EAM'!F113=Response_2._Low_likelihood, 2, 0)","v":0},{"$f":"IF('Step 2 EAM'!F113=Response_3._Likely, 3, 0)","v":0},0,{"$f":"IF('Step 2 EAM'!G113=Response_1._Mild, 1, 0)","v":0},{"$f":"IF('Step 2 EAM'!G113=Response_2._Moderate,2, 0)","v":0},{"$f":"IF('Step 2 EAM'!G113=Response_3._Severe, 3, 0)","v":0},0,0]
[null,{"$f":"IF('Step 2 EAM'!F114=Response_1._Unlikely, 1, 0)","v":0},{"$f":"IF('Step 2 EAM'!F114=Response_2._Low_likelihood, 2, 0)","v":0},{"$f":"IF('Step 2 EAM'!F114=Response_3._Likely, 3, 0)","v":0},0,{"$f":"IF('Step 2 EAM'!G114=Response_1._Mild, 1, 0)","v":0},{"$f":"IF('Step 2 EAM'!G114=Response_2._Moderate,2, 0)","v":0},{"$f":"IF('Step 2 EAM'!G114=Response_3._Severe, 3, 0)","v":0},0,0]
[null,{"$f":"IF('Step 2 EAM'!F115=Response_1._Unlikely, 1, 0)","v":0},{"$f":"IF('Step 2 EAM'!F115=Response_2._Low_likelihood, 2, 0)","v":0},{"$f":"IF('Step 2 EAM'!F115=Response_3._Likely, 3, 0)","v":0},0,{"$f":"IF('Step 2 EAM'!G115=Response_1._Mild, 1, 0)","v":0},{"$f":"IF('Step 2 EAM'!G115=Response_2._Moderate,2, 0)","v":0},{"$f":"IF('Step 2 EAM'!G115=Response_3._Severe, 3, 0)","v":0},0,0]
[null,{"$f":"IF('Step 2 EAM'!F116=Response_1._Unlikely, 1, 0)","v":0},{"$f":"IF('Step 2 EAM'!F116=Response_2._Low_likelihood, 2, 0)","v":0},{"$f":"IF('Step 2 EAM'!F116=Response_3._Likely, 3, 0)","v":0},0,{"$f":"IF('Step 2 EAM'!G116=Response_1._Mild, 1, 0)","v":0},{"$f":"IF('Step 2 EAM'!G116=Response_2._Moderate,2, 0)","v":0},{"$f":"IF('Step 2 EAM'!G116=Response_3._Severe, 3, 0)","v":0},0,0]
[null,{"$f":"IF('Step 2 EAM'!F117=Response_1._Unlikely, 1, 0)","v":0},{"$f":"IF('Step 2 EAM'!F117=Response_2._Low_likelihood, 2, 0)","v":0},{"$f":"IF('Step 2 EAM'!F117=Response_3._Likely, 3, 0)","v":0},0,{"$f":"IF('Step 2 EAM'!G117=Response_1._Mild, 1, 0)","v":0},{"$f":"IF('Step 2 EAM'!G117=Response_2._Moderate,2, 0)","v":0},{"$f":"IF('Step 2 EAM'!G117=Response_3._Severe, 3, 0)","v":0},0,0]
[null,{"$f":"IF('Step 2 EAM'!F118=Response_1._Unlikely, 1, 0)","v":0},{"$f":"IF('Step 2 EAM'!F118=Response_2._Low_likelihood, 2, 0)","v":0},{"$f":"IF('Step 2 EAM'!F118=Response_3._Likely, 3, 0)","v":0},0,{"$f":"IF('Step 2 EAM'!G118=Response_1._Mild, 1, 0)","v":0},{"$f":"IF('Step 2 EAM'!G118=Response_2._Moderate,2, 0)","v":0},{"$f":"IF('Step 2 EAM'!G118=Response_3._Severe, 3, 0)","v":0},0,0]
[null,{"$f":"IF('Step 2 EAM'!F119=Response_1._Unlikely, 1, 0)","v":0},{"$f":"IF('Step 2 EAM'!F119=Response_2._Low_likelihood, 2, 0)","v":0},{"$f":"IF('Step 2 EAM'!F119=Response_3._Likely, 3, 0)","v":0},0,{"$f":"IF('Step 2 EAM'!G119=Response_1._Mild, 1, 0)","v":0},{"$f":"IF('Step 2 EAM'!G119=Response_2._Moderate,2, 0)","v":0},{"$f":"IF('Step 2 EAM'!G119=Response_3._Severe, 3, 0)","v":0},0,0]
[null,{"$f":"IF('Step 2 EAM'!F120=Response_1._Unlikely, 1, 0)","v":0},{"$f":"IF('Step 2 EAM'!F120=Response_2._Low_likelihood, 2, 0)","v":0},{"$f":"IF('Step 2 EAM'!F120=Response_3._Likely, 3, 0)","v":0},0,{"$f":"IF('Step 2 EAM'!G120=Response_1._Mild, 1, 0)","v":0},{"$f":"IF('Step 2 EAM'!G120=Response_2._Moderate,2, 0)","v":0},{"$f":"IF('Step 2 EAM'!G120=Response_3._Severe, 3, 0)","v":0},0,0]
[null,{"$f":"IF('Step 2 EAM'!F121=Response_1._Unlikely, 1, 0)","v":0},{"$f":"IF('Step 2 EAM'!F121=Response_2._Low_likelihood, 2, 0)","v":0},{"$f":"IF('Step 2 EAM'!F121=Response_3._Likely, 3, 0)","v":0},0,{"$f":"IF('Step 2 EAM'!G121=Response_1._Mild, 1, 0)","v":0},{"$f":"IF('Step 2 EAM'!G121=Response_2._Moderate,2, 0)","v":0},{"$f":"IF('Step 2 EAM'!G121=Response_3._Severe, 3, 0)","v":0},0,0]
[null,{"$f":"IF('Step 2 EAM'!F122=Response_1._Unlikely, 1, 0)","v":0},{"$f":"IF('Step 2 EAM'!F122=Response_2._Low_likelihood, 2, 0)","v":0},{"$f":"IF('Step 2 EAM'!F122=Response_3._Likely, 3, 0)","v":0},0,{"$f":"IF('Step 2 EAM'!G122=Response_1._Mild, 1, 0)","v":0},{"$f":"IF('Step 2 EAM'!G122=Response_2._Moderate,2, 0)","v":0},{"$f":"IF('Step 2 EAM'!G122=Response_3._Severe, 3, 0)","v":0},0,0]
[null,{"$f":"IF('Step 2 EAM'!F123=Response_1._Unlikely, 1, 0)","v":0},{"$f":"IF('Step 2 EAM'!F123=Response_2._Low_likelihood, 2, 0)","v":0},{"$f":"IF('Step 2 EAM'!F123=Response_3._Likely, 3, 0)","v":0},0,{"$f":"IF('Step 2 EAM'!G123=Response_1._Mild, 1, 0)","v":0},{"$f":"IF('Step 2 EAM'!G123=Response_2._Moderate,2, 0)","v":0},{"$f":"IF('Step 2 EAM'!G123=Response_3._Severe, 3, 0)","v":0},0,0]
[null,{"$f":"IF('Step 2 EAM'!F124=Response_1._Unlikely, 1, 0)","v":0},{"$f":"IF('Step 2 EAM'!F124=Response_2._Low_likelihood, 2, 0)","v":0},{"$f":"IF('Step 2 EAM'!F124=Response_3._Likely, 3, 0)","v":0},0,{"$f":"IF('Step 2 EAM'!G124=Response_1._Mild, 1, 0)","v":0},{"$f":"IF('Step 2 EAM'!G124=Response_2._Moderate,2, 0)","v":0},{"$f":"IF('Step 2 EAM'!G124=Response_3._Severe, 3, 0)","v":0},0,0]
[null,{"$f":"IF('Step 2 EAM'!F125=Response_1._Unlikely, 1, 0)","v":0},{"$f":"IF('Step 2 EAM'!F125=Response_2._Low_likelihood, 2, 0)","v":0},{"$f":"IF('Step 2 EAM'!F125=Response_3._Likely, 3, 0)","v":0},0,{"$f":"IF('Step 2 EAM'!G125=Response_1._Mild, 1, 0)","v":0},{"$f":"IF('Step 2 EAM'!G125=Response_2._Moderate,2, 0)","v":0},{"$f":"IF('Step 2 EAM'!G125=Response_3._Severe, 3, 0)","v":0},0,0]
[null,{"$f":"IF('Step 2 EAM'!F126=Response_1._Unlikely, 1, 0)","v":0},{"$f":"IF('Step 2 EAM'!F126=Response_2._Low_likelihood, 2, 0)","v":0},{"$f":"IF('Step 2 EAM'!F126=Response_3._Likely, 3, 0)","v":0},0,{"$f":"IF('Step 2 EAM'!G126=Response_1._Mild, 1, 0)","v":0},{"$f":"IF('Step 2 EAM'!G126=Response_2._Moderate,2, 0)","v":0},{"$f":"IF('Step 2 EAM'!G126=Response_3._Severe, 3, 0)","v":0},0,0]
[null,{"$f":"IF('Step 2 EAM'!F127=Response_1._Unlikely, 1, 0)","v":0},{"$f":"IF('Step 2 EAM'!F127=Response_2._Low_likelihood, 2, 0)","v":0},{"$f":"IF('Step 2 EAM'!F127=Response_3._Likely, 3, 0)","v":0},0,{"$f":"IF('Step 2 EAM'!G127=Response_1._Mild, 1, 0)","v":0},{"$f":"IF('Step 2 EAM'!G127=Response_2._Moderate,2, 0)","v":0},{"$f":"IF('Step 2 EAM'!G127=Response_3._Severe, 3, 0)","v":0},0,0]
[null,{"$f":"IF('Step 2 EAM'!F128=Response_1._Unlikely, 1, 0)","v":0},{"$f":"IF('Step 2 EAM'!F128=Response_2._Low_likelihood, 2, 0)","v":0},{"$f":"IF('Step 2 EAM'!F128=Response_3._Likely, 3, 0)","v":0},0,{"$f":"IF('Step 2 EAM'!G128=Response_1._Mild, 1, 0)","v":0},{"$f":"IF('Step 2 EAM'!G128=Response_2._Moderate,2, 0)","v":0},{"$f":"IF('Step 2 EAM'!G128=Response_3._Severe, 3, 0)","v":0},0,0]
[null,{"$f":"IF('Step 2 EAM'!F129=Response_1._Unlikely, 1, 0)","v":0},{"$f":"IF('Step 2 EAM'!F129=Response_2._Low_likelihood, 2, 0)","v":0},{"$f":"IF('Step 2 EAM'!F129=Response_3._Likely, 3, 0)","v":0},0,{"$f":"IF('Step 2 EAM'!G129=Response_1._Mild, 1, 0)","v":0},{"$f":"IF('Step 2 EAM'!G129=Response_2._Moderate,2, 0)","v":0},{"$f":"IF('Step 2 EAM'!G129=Response_3._Severe, 3, 0)","v":0},0,0]
[null,{"$f":"IF('Step 2 EAM'!F130=Response_1._Unlikely, 1, 0)","v":0},{"$f":"IF('Step 2 EAM'!F130=Response_2._Low_likelihood, 2, 0)","v":0},{"$f":"IF('Step 2 EAM'!F130=Response_3._Likely, 3, 0)","v":0},0,{"$f":"IF('Step 2 EAM'!G130=Response_1._Mild, 1, 0)","v":0},{"$f":"IF('Step 2 EAM'!G130=Response_2._Moderate,2, 0)","v":0},{"$f":"IF('Step 2 EAM'!G130=Response_3._Severe, 3, 0)","v":0},0,0]
[null,{"$f":"IF('Step 2 EAM'!F131=Response_1._Unlikely, 1, 0)","v":0},{"$f":"IF('Step 2 EAM'!F131=Response_2._Low_likelihood, 2, 0)","v":0},{"$f":"IF('Step 2 EAM'!F131=Response_3._Likely, 3, 0)","v":0},0,{"$f":"IF('Step 2 EAM'!G131=Response_1._Mild, 1, 0)","v":0},{"$f":"IF('Step 2 EAM'!G131=Response_2._Moderate,2, 0)","v":0},{"$f":"IF('Step 2 EAM'!G131=Response_3._Severe, 3, 0)","v":0},0,0]
[null,{"$f":"IF('Step 2 EAM'!F132=Response_1._Unlikely, 1, 0)","v":0},{"$f":"IF('Step 2 EAM'!F132=Response_2._Low_likelihood, 2, 0)","v":0},{"$f":"IF('Step 2 EAM'!F132=Response_3._Likely, 3, 0)","v":0},0,{"$f":"IF('Step 2 EAM'!G132=Response_1._Mild, 1, 0)","v":0},{"$f":"IF('Step 2 EAM'!G132=Response_2._Moderate,2, 0)","v":0},{"$f":"IF('Step 2 EAM'!G132=Response_3._Severe, 3, 0)","v":0},0,0]
[null,{"$f":"IF('Step 2 EAM'!F133=Response_1._Unlikely, 1, 0)","v":0},{"$f":"IF('Step 2 EAM'!F133=Response_2._Low_likelihood, 2, 0)","v":0},{"$f":"IF('Step 2 EAM'!F133=Response_3._Likely, 3, 0)","v":0},0,{"$f":"IF('Step 2 EAM'!G133=Response_1._Mild, 1, 0)","v":0},{"$f":"IF('Step 2 EAM'!G133=Response_2._Moderate,2, 0)","v":0},{"$f":"IF('Step 2 EAM'!G133=Response_3._Severe, 3, 0)","v":0},0,0]
[null,{"$f":"IF('Step 2 EAM'!F134=Response_1._Unlikely, 1, 0)","v":0},{"$f":"IF('Step 2 EAM'!F134=Response_2._Low_likelihood, 2, 0)","v":0},{"$f":"IF('Step 2 EAM'!F134=Response_3._Likely, 3, 0)","v":0},0,{"$f":"IF('Step 2 EAM'!G134=Response_1._Mild, 1, 0)","v":0},{"$f":"IF('Step 2 EAM'!G134=Response_2._Moderate,2, 0)","v":0},{"$f":"IF('Step 2 EAM'!G134=Response_3._Severe, 3, 0)","v":0},0,0]
[null,{"$f":"IF('Step 2 EAM'!F135=Response_1._Unlikely, 1, 0)","v":0},{"$f":"IF('Step 2 EAM'!F135=Response_2._Low_likelihood, 2, 0)","v":0},{"$f":"IF('Step 2 EAM'!F135=Response_3._Likely, 3, 0)","v":0},0,{"$f":"IF('Step 2 EAM'!G135=Response_1._Mild, 1, 0)","v":0},{"$f":"IF('Step 2 EAM'!G135=Response_2._Moderate,2, 0)","v":0},{"$f":"IF('Step 2 EAM'!G135=Response_3._Severe, 3, 0)","v":0},0,0]
[null,{"$f":"IF('Step 2 EAM'!F136=Response_1._Unlikely, 1, 0)","v":0},{"$f":"IF('Step 2 EAM'!F136=Response_2._Low_likelihood, 2, 0)","v":0},{"$f":"IF('Step 2 EAM'!F136=Response_3._Likely, 3, 0)","v":0},0,{"$f":"IF('Step 2 EAM'!G136=Response_1._Mild, 1, 0)","v":0},{"$f":"IF('Step 2 EAM'!G136=Response_2._Moderate,2, 0)","v":0},{"$f":"IF('Step 2 EAM'!G136=Response_3._Severe, 3, 0)","v":0},0,0]
[null,{"$f":"IF('Step 2 EAM'!F137=Response_1._Unlikely, 1, 0)","v":0},{"$f":"IF('Step 2 EAM'!F137=Response_2._Low_likelihood, 2, 0)","v":0},{"$f":"IF('Step 2 EAM'!F137=Response_3._Likely, 3, 0)","v":0},{"$f":"SUM(B132:D132)","v":0},{"$f":"IF('Step 2 EAM'!G137=Response_1._Mild, 1, 0)","v":0},{"$f":"IF('Step 2 EAM'!G137=Response_2._Moderate,2, 0)","v":0},{"$f":"IF('Step 2 EAM'!G137=Response_3._Severe, 3, 0)","v":0},{"$f":"SUM(F132:H132)","v":0},{"$f":"I132*E132","v":0}]
[null,{"$f":"IF('Step 2 EAM'!F138=Response_1._Unlikely, 1, 0)","v":0},{"$f":"IF('Step 2 EAM'!F138=Response_2._Low_likelihood, 2, 0)","v":0},{"$f":"IF('Step 2 EAM'!F138=Response_3._Likely, 3, 0)","v":0},0,{"$f":"IF('Step 2 EAM'!G138=Response_1._Mild, 1, 0)","v":0},{"$f":"IF('Step 2 EAM'!G138=Response_2._Moderate,2, 0)","v":0},{"$f":"IF('Step 2 EAM'!G138=Response_3._Severe, 3, 0)","v":0},0,0]
[null,{"$f":"IF('Step 2 EAM'!F139=Response_1._Unlikely, 1, 0)","v":0},{"$f":"IF('Step 2 EAM'!F139=Response_2._Low_likelihood, 2, 0)","v":0},{"$f":"IF('Step 2 EAM'!F139=Response_3._Likely, 3, 0)","v":0},0,{"$f":"IF('Step 2 EAM'!G139=Response_1._Mild, 1, 0)","v":0},{"$f":"IF('Step 2 EAM'!G139=Response_2._Moderate,2, 0)","v":0},{"$f":"IF('Step 2 EAM'!G139=Response_3._Severe, 3, 0)","v":0},0,0]
[null,{"$f":"IF('Step 2 EAM'!F140=Response_1._Unlikely, 1, 0)","v":0},{"$f":"IF('Step 2 EAM'!F140=Response_2._Low_likelihood, 2, 0)","v":0},{"$f":"IF('Step 2 EAM'!F140=Response_3._Likely, 3, 0)","v":0},0,{"$f":"IF('Step 2 EAM'!G140=Response_1._Mild, 1, 0)","v":0},{"$f":"IF('Step 2 EAM'!G140=Response_2._Moderate,2, 0)","v":0},{"$f":"IF('Step 2 EAM'!G140=Response_3._Severe, 3, 0)","v":0},0,0]
[null,{"$f":"IF('Step 2 EAM'!F141=Response_1._Unlikely, 1, 0)","v":0},{"$f":"IF('Step 2 EAM'!F141=Response_2._Low_likelihood, 2, 0)","v":0},{"$f":"IF('Step 2 EAM'!F141=Response_3._Likely, 3, 0)","v":0},0,{"$f":"IF('Step 2 EAM'!G141=Response_1._Mild, 1, 0)","v":0},{"$f":"IF('Step 2 EAM'!G141=Response_2._Moderate,2, 0)","v":0},{"$f":"IF('Step 2 EAM'!G141=Response_3._Severe, 3, 0)","v":0},0,0]
[null,{"$f":"IF('Step 2 EAM'!F142=Response_1._Unlikely, 1, 0)","v":0},{"$f":"IF('Step 2 EAM'!F142=Response_2._Low_likelihood, 2, 0)","v":0},{"$f":"IF('Step 2 EAM'!F142=Response_3._Likely, 3, 0)","v":0},0,{"$f":"IF('Step 2 EAM'!G142=Response_1._Mild, 1, 0)","v":0},{"$f":"IF('Step 2 EAM'!G142=Response_2._Moderate,2, 0)","v":0},{"$f":"IF('Step 2 EAM'!G142=Response_3._Severe, 3, 0)","v":0},0,0]
[null,{"$f":"IF('Step 2 EAM'!F143=Response_1._Unlikely, 1, 0)","v":0},{"$f":"IF('Step 2 EAM'!F143=Response_2._Low_likelihood, 2, 0)","v":0},{"$f":"IF('Step 2 EAM'!F143=Response_3._Likely, 3, 0)","v":0},0,{"$f":"IF('Step 2 EAM'!G143=Response_1._Mild, 1, 0)","v":0},{"$f":"IF('Step 2 EAM'!G143=Response_2._Moderate,2, 0)","v":0},{"$f":"IF('Step 2 EAM'!G143=Response_3._Severe, 3, 0)","v":0},0,0]
[null,{"$f":"IF('Step 2 EAM'!F144=Response_1._Unlikely, 1, 0)","v":0},{"$f":"IF('Step 2 EAM'!F144=Response_2._Low_likelihood, 2, 0)","v":0},{"$f":"IF('Step 2 EAM'!F144=Response_3._Likely, 3, 0)","v":0},0,{"$f":"IF('Step 2 EAM'!G144=Response_1._Mild, 1, 0)","v":0},{"$f":"IF('Step 2 EAM'!G144=Response_2._Moderate,2, 0)","v":0},{"$f":"IF('Step 2 EAM'!G144=Response_3._Severe, 3, 0)","v":0},0,0]
[null,{"$f":"IF('Step 2 EAM'!F145=Response_1._Unlikely, 1, 0)","v":0},{"$f":"IF('Step 2 EAM'!F145=Response_2._Low_likelihood, 2, 0)","v":0},{"$f":"IF('Step 2 EAM'!F145=Response_3._Likely, 3, 0)","v":0},0,{"$f":"IF('Step 2 EAM'!G145=Response_1._Mild, 1, 0)","v":0},{"$f":"IF('Step 2 EAM'!G145=Response_2._Moderate,2, 0)","v":0},{"$f":"IF('Step 2 EAM'!G145=Response_3._Severe, 3, 0)","v":0},0,0]
[null,{"$f":"IF('Step 2 EAM'!F146=Response_1._Unlikely, 1, 0)","v":0},{"$f":"IF('Step 2 EAM'!F146=Response_2._Low_likelihood, 2, 0)","v":0},{"$f":"IF('Step 2 EAM'!F146=Response_3._Likely, 3, 0)","v":0},0,{"$f":"IF('Step 2 EAM'!G146=Response_1._Mild, 1, 0)","v":0},{"$f":"IF('Step 2 EAM'!G146=Response_2._Moderate,2, 0)","v":0},{"$f":"IF('Step 2 EAM'!G146=Response_3._Severe, 3, 0)","v":0},0,0]
[null,{"$f":"IF('Step 2 EAM'!F147=Response_1._Unlikely, 1, 0)","v":0},{"$f":"IF('Step 2 EAM'!F147=Response_2._Low_likelihood, 2, 0)","v":0},{"$f":"IF('Step 2 EAM'!F147=Response_3._Likely, 3, 0)","v":0},0,{"$f":"IF('Step 2 EAM'!G147=Response_1._Mild, 1, 0)","v":0},{"$f":"IF('Step 2 EAM'!G147=Response_2._Moderate,2, 0)","v":0},{"$f":"IF('Step 2 EAM'!G147=Response_3._Severe, 3, 0)","v":0},0,0]
[null,{"$f":"IF('Step 2 EAM'!F148=Response_1._Unlikely, 1, 0)","v":0},{"$f":"IF('Step 2 EAM'!F148=Response_2._Low_likelihood, 2, 0)","v":0},{"$f":"IF('Step 2 EAM'!F148=Response_3._Likely, 3, 0)","v":0},0,{"$f":"IF('Step 2 EAM'!G148=Response_1._Mild, 1, 0)","v":0},{"$f":"IF('Step 2 EAM'!G148=Response_2._Moderate,2, 0)","v":0},{"$f":"IF('Step 2 EAM'!G148=Response_3._Severe, 3, 0)","v":0},0,0]
[null,{"$f":"IF('Step 2 EAM'!F149=Response_1._Unlikely, 1, 0)","v":0},{"$f":"IF('Step 2 EAM'!F149=Response_2._Low_likelihood, 2, 0)","v":0},{"$f":"IF('Step 2 EAM'!F149=Response_3._Likely, 3, 0)","v":0},0,{"$f":"IF('Step 2 EAM'!G149=Response_1._Mild, 1, 0)","v":0},{"$f":"IF('Step 2 EAM'!G149=Response_2._Moderate,2, 0)","v":0},{"$f":"IF('Step 2 EAM'!G149=Response_3._Severe, 3, 0)","v":0},0,0]
[null,{"$f":"IF('Step 2 EAM'!F150=Response_1._Unlikely, 1, 0)","v":0},{"$f":"IF('Step 2 EAM'!F150=Response_2._Low_likelihood, 2, 0)","v":0},{"$f":"IF('Step 2 EAM'!F150=Response_3._Likely, 3, 0)","v":0},0,{"$f":"IF('Step 2 EAM'!G150=Response_1._Mild, 1, 0)","v":0},{"$f":"IF('Step 2 EAM'!G150=Response_2._Moderate,2, 0)","v":0},{"$f":"IF('Step 2 EAM'!G150=Response_3._Severe, 3, 0)","v":0},0,0]
[null,{"$f":"IF('Step 2 EAM'!F151=Response_1._Unlikely, 1, 0)","v":0},{"$f":"IF('Step 2 EAM'!F151=Response_2._Low_likelihood, 2, 0)","v":0},{"$f":"IF('Step 2 EAM'!F151=Response_3._Likely, 3, 0)","v":0},0,{"$f":"IF('Step 2 EAM'!G151=Response_1._Mild, 1, 0)","v":0},{"$f":"IF('Step 2 EAM'!G151=Response_2._Moderate,2, 0)","v":0},{"$f":"IF('Step 2 EAM'!G151=Response_3._Severe, 3, 0)","v":0},0,0]
[null,{"$f":"IF('Step 2 EAM'!F152=Response_1._Unlikely, 1, 0)","v":0},{"$f":"IF('Step 2 EAM'!F152=Response_2._Low_likelihood, 2, 0)","v":0},{"$f":"IF('Step 2 EAM'!F152=Response_3._Likely, 3, 0)","v":0},0,{"$f":"IF('Step 2 EAM'!G152=Response_1._Mild, 1, 0)","v":0},{"$f":"IF('Step 2 EAM'!G152=Response_2._Moderate,2, 0)","v":0},{"$f":"IF('Step 2 EAM'!G152=Response_3._Severe, 3, 0)","v":0},0,0]
[null,{"$f":"IF('Step 2 EAM'!F153=Response_1._Unlikely, 1, 0)","v":0},{"$f":"IF('Step 2 EAM'!F153=Response_2._Low_likelihood, 2, 0)","v":0},{"$f":"IF('Step 2 EAM'!F153=Response_3._Likely, 3, 0)","v":0},0,{"$f":"IF('Step 2 EAM'!G153=Response_1._Mild, 1, 0)","v":0},{"$f":"IF('Step 2 EAM'!G153=Response_2._Moderate,2, 0)","v":0},{"$f":"IF('Step 2 EAM'!G153=Response_3._Severe, 3, 0)","v":0},0,0]
[null,{"$f":"IF('Step 2 EAM'!F154=Response_1._Unlikely, 1, 0)","v":0},{"$f":"IF('Step 2 EAM'!F154=Response_2._Low_likelihood, 2, 0)","v":0},{"$f":"IF('Step 2 EAM'!F154=Response_3._Likely, 3, 0)","v":0},0,{"$f":"IF('Step 2 EAM'!G154=Response_1._Mild, 1, 0)","v":0},{"$f":"IF('Step 2 EAM'!G154=Response_2._Moderate,2, 0)","v":0},{"$f":"IF('Step 2 EAM'!G154=Response_3._Severe, 3, 0)","v":0},0,0]
[null,{"$f":"IF('Step 2 EAM'!F155=Response_1._Unlikely, 1, 0)","v":0},{"$f":"IF('Step 2 EAM'!F155=Response_2._Low_likelihood, 2, 0)","v":0},{"$f":"IF('Step 2 EAM'!F155=Response_3._Likely, 3, 0)","v":0},0,{"$f":"IF('Step 2 EAM'!G155=Response_1._Mild, 1, 0)","v":0},{"$f":"IF('Step 2 EAM'!G155=Response_2._Moderate,2, 0)","v":0},{"$f":"IF('Step 2 EAM'!G155=Response_3._Severe, 3, 0)","v":0},0,0]
[null,{"$f":"IF('Step 2 EAM'!F156=Response_1._Unlikely, 1, 0)","v":0},{"$f":"IF('Step 2 EAM'!F156=Response_2._Low_likelihood, 2, 0)","v":0},{"$f":"IF('Step 2 EAM'!F156=Response_3._Likely, 3, 0)","v":0},0,{"$f":"IF('Step 2 EAM'!G156=Response_1._Mild, 1, 0)","v":0},{"$f":"IF('Step 2 EAM'!G156=Response_2._Moderate,2, 0)","v":0},{"$f":"IF('Step 2 EAM'!G156=Response_3._Severe, 3, 0)","v":0},0,0]
[null,{"$f":"IF('Step 2 EAM'!F157=Response_1._Unlikely, 1, 0)","v":0},{"$f":"IF('Step 2 EAM'!F157=Response_2._Low_likelihood, 2, 0)","v":0},{"$f":"IF('Step 2 EAM'!F157=Response_3._Likely, 3, 0)","v":0},0,{"$f":"IF('Step 2 EAM'!G157=Response_1._Mild, 1, 0)","v":0},{"$f":"IF('Step 2 EAM'!G157=Response_2._Moderate,2, 0)","v":0},{"$f":"IF('Step 2 EAM'!G157=Response_3._Severe, 3, 0)","v":0},0,0]
[null,{"$f":"IF('Step 2 EAM'!F158=Response_1._Unlikely, 1, 0)","v":0},{"$f":"IF('Step 2 EAM'!F158=Response_2._Low_likelihood, 2, 0)","v":0},{"$f":"IF('Step 2 EAM'!F158=Response_3._Likely, 3, 0)","v":0},0,{"$f":"IF('Step 2 EAM'!G158=Response_1._Mild, 1, 0)","v":0},{"$f":"IF('Step 2 EAM'!G158=Response_2._Moderate,2, 0)","v":0},{"$f":"IF('Step 2 EAM'!G158=Response_3._Severe, 3, 0)","v":0},0,0]
[null,{"$f":"IF('Step 2 EAM'!F159=Response_1._Unlikely, 1, 0)","v":0},{"$f":"IF('Step 2 EAM'!F159=Response_2._Low_likelihood, 2, 0)","v":0},{"$f":"IF('Step 2 EAM'!F159=Response_3._Likely, 3, 0)","v":0},0,{"$f":"IF('Step 2 EAM'!G159=Response_1._Mild, 1, 0)","v":0},{"$f":"IF('Step 2 EAM'!G159=Response_2._Moderate,2, 0)","v":0},{"$f":"IF('Step 2 EAM'!G159=Response_3._Severe, 3, 0)","v":0},0,0]
[null,{"$f":"IF('Step 2 EAM'!F160=Response_1._Unlikely, 1, 0)","v":0},{"$f":"IF('Step 2 EAM'!F160=Response_2._Low_likelihood, 2, 0)","v":0},{"$f":"IF('Step 2 EAM'!F160=Response_3._Likely, 3, 0)","v":0},0,{"$f":"IF('Step 2 EAM'!G160=Response_1._Mild, 1, 0)","v":0},{"$f":"IF('Step 2 EAM'!G160=Response_2._Moderate,2, 0)","v":0},{"$f":"IF('Step 2 EAM'!G160=Response_3._Severe, 3, 0)","v":0},0,0]
[null,{"$f":"IF('Step 2 EAM'!F161=Response_1._Unlikely, 1, 0)","v":0},{"$f":"IF('Step 2 EAM'!F161=Response_2._Low_likelihood, 2, 0)","v":0},{"$f":"IF('Step 2 EAM'!F161=Response_3._Likely, 3, 0)","v":0},0,{"$f":"IF('Step 2 EAM'!G161=Response_1._Mild, 1, 0)","v":0},{"$f":"IF('Step 2 EAM'!G161=Response_2._Moderate,2, 0)","v":0},{"$f":"IF('Step 2 EAM'!G161=Response_3._Severe, 3, 0)","v":0},0,0]
[null,{"$f":"IF('Step 2 EAM'!F162=Response_1._Unlikely, 1, 0)","v":0},{"$f":"IF('Step 2 EAM'!F162=Response_2._Low_likelihood, 2, 0)","v":0},{"$f":"IF('Step 2 EAM'!F162=Response_3._Likely, 3, 0)","v":0},0,{"$f":"IF('Step 2 EAM'!G162=Response_1._Mild, 1, 0)","v":0},{"$f":"IF('Step 2 EAM'!G162=Response_2._Moderate,2, 0)","v":0},{"$f":"IF('Step 2 EAM'!G162=Response_3._Severe, 3, 0)","v":0},0,0]
[null,{"$f":"IF('Step 2 EAM'!F163=Response_1._Unlikely, 1, 0)","v":0},{"$f":"IF('Step 2 EAM'!F163=Response_2._Low_likelihood, 2, 0)","v":0},{"$f":"IF('Step 2 EAM'!F163=Response_3._Likely, 3, 0)","v":0},0,{"$f":"IF('Step 2 EAM'!G163=Response_1._Mild, 1, 0)","v":0},{"$f":"IF('Step 2 EAM'!G163=Response_2._Moderate,2, 0)","v":0},{"$f":"IF('Step 2 EAM'!G163=Response_3._Severe, 3, 0)","v":0},0,0]
[null,{"$f":"IF('Step 2 EAM'!F164=Response_1._Unlikely, 1, 0)","v":0},{"$f":"IF('Step 2 EAM'!F164=Response_2._Low_likelihood, 2, 0)","v":0},{"$f":"IF('Step 2 EAM'!F164=Response_3._Likely, 3, 0)","v":0},0,{"$f":"IF('Step 2 EAM'!G164=Response_1._Mild, 1, 0)","v":0},{"$f":"IF('Step 2 EAM'!G164=Response_2._Moderate,2, 0)","v":0},{"$f":"IF('Step 2 EAM'!G164=Response_3._Severe, 3, 0)","v":0},0,0]
[null,{"$f":"IF('Step 2 EAM'!F165=Response_1._Unlikely, 1, 0)","v":0},{"$f":"IF('Step 2 EAM'!F165=Response_2._Low_likelihood, 2, 0)","v":0},{"$f":"IF('Step 2 EAM'!F165=Response_3._Likely, 3, 0)","v":0},0,{"$f":"IF('Step 2 EAM'!G165=Response_1._Mild, 1, 0)","v":0},{"$f":"IF('Step 2 EAM'!G165=Response_2._Moderate,2, 0)","v":0},{"$f":"IF('Step 2 EAM'!G165=Response_3._Severe, 3, 0)","v":0},0,0]
[null,{"$f":"IF('Step 2 EAM'!F166=Response_1._Unlikely, 1, 0)","v":0},{"$f":"IF('Step 2 EAM'!F166=Response_2._Low_likelihood, 2, 0)","v":0},{"$f":"IF('Step 2 EAM'!F166=Response_3._Likely, 3, 0)","v":0},0,{"$f":"IF('Step 2 EAM'!G166=Response_1._Mild, 1, 0)","v":0},{"$f":"IF('Step 2 EAM'!G166=Response_2._Moderate,2, 0)","v":0},{"$f":"IF('Step 2 EAM'!G166=Response_3._Severe, 3, 0)","v":0},0,0]
[null,{"$f":"IF('Step 2 EAM'!F167=Response_1._Unlikely, 1, 0)","v":0},{"$f":"IF('Step 2 EAM'!F167=Response_2._Low_likelihood, 2, 0)","v":0},{"$f":"IF('Step 2 EAM'!F167=Response_3._Likely, 3, 0)","v":0},0,{"$f":"IF('Step 2 EAM'!G167=Response_1._Mild, 1, 0)","v":0},{"$f":"IF('Step 2 EAM'!G167=Response_2._Moderate,2, 0)","v":0},{"$f":"IF('Step 2 EAM'!G167=Response_3._Severe, 3, 0)","v":0},0,0]
[null,{"$f":"IF('Step 2 EAM'!F168=Response_1._Unlikely, 1, 0)","v":0},{"$f":"IF('Step 2 EAM'!F168=Response_2._Low_likelihood, 2, 0)","v":0},{"$f":"IF('Step 2 EAM'!F168=Response_3._Likely, 3, 0)","v":0},0,{"$f":"IF('Step 2 EAM'!G168=Response_1._Mild, 1, 0)","v":0},{"$f":"IF('Step 2 EAM'!G168=Response_2._Moderate,2, 0)","v":0},{"$f":"IF('Step 2 EAM'!G168=Response_3._Severe, 3, 0)","v":0},0,0]
[null,{"$f":"IF('Step 2 EAM'!F169=Response_1._Unlikely, 1, 0)","v":0},{"$f":"IF('Step 2 EAM'!F169=Response_2._Low_likelihood, 2, 0)","v":0},{"$f":"IF('Step 2 EAM'!F169=Response_3._Likely, 3, 0)","v":0},0,{"$f":"IF('Step 2 EAM'!G169=Response_1._Mild, 1, 0)","v":0},{"$f":"IF('Step 2 EAM'!G169=Response_2._Moderate,2, 0)","v":0},{"$f":"IF('Step 2 EAM'!G169=Response_3._Severe, 3, 0)","v":0},0,0]
[null,{"$f":"IF('Step 2 EAM'!F170=Response_1._Unlikely, 1, 0)","v":0},{"$f":"IF('Step 2 EAM'!F170=Response_2._Low_likelihood, 2, 0)","v":0},{"$f":"IF('Step 2 EAM'!F170=Response_3._Likely, 3, 0)","v":0},0,{"$f":"IF('Step 2 EAM'!G170=Response_1._Mild, 1, 0)","v":0},{"$f":"IF('Step 2 EAM'!G170=Response_2._Moderate,2, 0)","v":0},{"$f":"IF('Step 2 EAM'!G170=Response_3._Severe, 3, 0)","v":0},0,0]
[null,{"$f":"IF('Step 2 EAM'!F171=Response_1._Unlikely, 1, 0)","v":0},{"$f":"IF('Step 2 EAM'!F171=Response_2._Low_likelihood, 2, 0)","v":0},{"$f":"IF('Step 2 EAM'!F171=Response_3._Likely, 3, 0)","v":0},0,{"$f":"IF('Step 2 EAM'!G171=Response_1._Mild, 1, 0)","v":0},{"$f":"IF('Step 2 EAM'!G171=Response_2._Moderate,2, 0)","v":0},{"$f":"IF('Step 2 EAM'!G171=Response_3._Severe, 3, 0)","v":0},0,0]
[null,{"$f":"IF('Step 2 EAM'!F172=Response_1._Unlikely, 1, 0)","v":0},{"$f":"IF('Step 2 EAM'!F172=Response_2._Low_likelihood, 2, 0)","v":0},{"$f":"IF('Step 2 EAM'!F172=Response_3._Likely, 3, 0)","v":0},0,{"$f":"IF('Step 2 EAM'!G172=Response_1._Mild, 1, 0)","v":0},{"$f":"IF('Step 2 EAM'!G172=Response_2._Moderate,2, 0)","v":0},{"$f":"IF('Step 2 EAM'!G172=Response_3._Severe, 3, 0)","v":0},0,0]
[null,{"$f":"IF('Step 2 EAM'!F173=Response_1._Unlikely, 1, 0)","v":0},{"$f":"IF('Step 2 EAM'!F173=Response_2._Low_likelihood, 2, 0)","v":0},{"$f":"IF('Step 2 EAM'!F173=Response_3._Likely, 3, 0)","v":0},0,{"$f":"IF('Step 2 EAM'!G173=Response_1._Mild, 1, 0)","v":0},{"$f":"IF('Step 2 EAM'!G173=Response_2._Moderate,2, 0)","v":0},{"$f":"IF('Step 2 EAM'!G173=Response_3._Severe, 3, 0)","v":0},0,0]
[null,{"$f":"IF('Step 2 EAM'!F174=Response_1._Unlikely, 1, 0)","v":0},{"$f":"IF('Step 2 EAM'!F174=Response_2._Low_likelihood, 2, 0)","v":0},{"$f":"IF('Step 2 EAM'!F174=Response_3._Likely, 3, 0)","v":0},0,{"$f":"IF('Step 2 EAM'!G174=Response_1._Mild, 1, 0)","v":0},{"$f":"IF('Step 2 EAM'!G174=Response_2._Moderate,2, 0)","v":0},{"$f":"IF('Step 2 EAM'!G174=Response_3._Severe, 3, 0)","v":0},0,0]
[null,{"$f":"IF('Step 2 EAM'!F175=Response_1._Unlikely, 1, 0)","v":0},{"$f":"IF('Step 2 EAM'!F175=Response_2._Low_likelihood, 2, 0)","v":0},{"$f":"IF('Step 2 EAM'!F175=Response_3._Likely, 3, 0)","v":0},0,{"$f":"IF('Step 2 EAM'!G175=Response_1._Mild, 1, 0)","v":0},{"$f":"IF('Step 2 EAM'!G175=Response_2._Moderate,2, 0)","v":0},{"$f":"IF('Step 2 EAM'!G175=Response_3._Severe, 3, 0)","v":0},0,0]
[null,{"$f":"IF('Step 2 EAM'!F176=Response_1._Unlikely, 1, 0)","v":0},{"$f":"IF('Step 2 EAM'!F176=Response_2._Low_likelihood, 2, 0)","v":0},{"$f":"IF('Step 2 EAM'!F176=Response_3._Likely, 3, 0)","v":0},0,{"$f":"IF('Step 2 EAM'!G176=Response_1._Mild, 1, 0)","v":0},{"$f":"IF('Step 2 EAM'!G176=Response_2._Moderate,2, 0)","v":0},{"$f":"IF('Step 2 EAM'!G176=Response_3._Severe, 3, 0)","v":0},0,0]
[null,{"$f":"IF('Step 2 EAM'!F177=Response_1._Unlikely, 1, 0)","v":0},{"$f":"IF('Step 2 EAM'!F177=Response_2._Low_likelihood, 2, 0)","v":0},{"$f":"IF('Step 2 EAM'!F177=Response_3._Likely, 3, 0)","v":0},0,{"$f":"IF('Step 2 EAM'!G177=Response_1._Mild, 1, 0)","v":0},{"$f":"IF('Step 2 EAM'!G177=Response_2._Moderate,2, 0)","v":0},{"$f":"IF('Step 2 EAM'!G177=Response_3._Severe, 3, 0)","v":0},0,0]
[null,{"$f":"IF('Step 2 EAM'!F178=Response_1._Unlikely, 1, 0)","v":0},{"$f":"IF('Step 2 EAM'!F178=Response_2._Low_likelihood, 2, 0)","v":0},{"$f":"IF('Step 2 EAM'!F178=Response_3._Likely, 3, 0)","v":0},0,{"$f":"IF('Step 2 EAM'!G178=Response_1._Mild, 1, 0)","v":0},{"$f":"IF('Step 2 EAM'!G178=Response_2._Moderate,2, 0)","v":0},{"$f":"IF('Step 2 EAM'!G178=Response_3._Severe, 3, 0)","v":0},0,0]
[null,{"$f":"IF('Step 2 EAM'!F179=Response_1._Unlikely, 1, 0)","v":0},{"$f":"IF('Step 2 EAM'!F179=Response_2._Low_likelihood, 2, 0)","v":0},{"$f":"IF('Step 2 EAM'!F179=Response_3._Likely, 3, 0)","v":0},0,{"$f":"IF('Step 2 EAM'!G179=Response_1._Mild, 1, 0)","v":0},{"$f":"IF('Step 2 EAM'!G179=Response_2._Moderate,2, 0)","v":0},{"$f":"IF('Step 2 EAM'!G179=Response_3._Severe, 3, 0)","v":0},0,0]
[null,{"$f":"IF('Step 2 EAM'!F180=Response_1._Unlikely, 1, 0)","v":0},{"$f":"IF('Step 2 EAM'!F180=Response_2._Low_likelihood, 2, 0)","v":0},{"$f":"IF('Step 2 EAM'!F180=Response_3._Likely, 3, 0)","v":0},0,{"$f":"IF('Step 2 EAM'!G180=Response_1._Mild, 1, 0)","v":0},{"$f":"IF('Step 2 EAM'!G180=Response_2._Moderate,2, 0)","v":0},{"$f":"IF('Step 2 EAM'!G180=Response_3._Severe, 3, 0)","v":0},0,0]
[null,{"$f":"IF('Step 2 EAM'!F181=Response_1._Unlikely, 1, 0)","v":0},{"$f":"IF('Step 2 EAM'!F181=Response_2._Low_likelihood, 2, 0)","v":0},{"$f":"IF('Step 2 EAM'!F181=Response_3._Likely, 3, 0)","v":0},0,{"$f":"IF('Step 2 EAM'!G181=Response_1._Mild, 1, 0)","v":0},{"$f":"IF('Step 2 EAM'!G181=Response_2._Moderate,2, 0)","v":0},{"$f":"IF('Step 2 EAM'!G181=Response_3._Severe, 3, 0)","v":0},0,0]
[null,{"$f":"IF('Step 2 EAM'!F182=Response_1._Unlikely, 1, 0)","v":0},{"$f":"IF('Step 2 EAM'!F182=Response_2._Low_likelihood, 2, 0)","v":0},{"$f":"IF('Step 2 EAM'!F182=Response_3._Likely, 3, 0)","v":0},0,{"$f":"IF('Step 2 EAM'!G182=Response_1._Mild, 1, 0)","v":0},{"$f":"IF('Step 2 EAM'!G182=Response_2._Moderate,2, 0)","v":0},{"$f":"IF('Step 2 EAM'!G182=Response_3._Severe, 3, 0)","v":0},0,0]
[null,{"$f":"IF('Step 2 EAM'!F183=Response_1._Unlikely, 1, 0)","v":0},{"$f":"IF('Step 2 EAM'!F183=Response_2._Low_likelihood, 2, 0)","v":0},{"$f":"IF('Step 2 EAM'!F183=Response_3._Likely, 3, 0)","v":0},0,{"$f":"IF('Step 2 EAM'!G183=Response_1._Mild, 1, 0)","v":0},{"$f":"IF('Step 2 EAM'!G183=Response_2._Moderate,2, 0)","v":0},{"$f":"IF('Step 2 EAM'!G183=Response_3._Severe, 3, 0)","v":0},0,0]
[null,{"$f":"IF('Step 2 EAM'!F184=Response_1._Unlikely, 1, 0)","v":0},{"$f":"IF('Step 2 EAM'!F184=Response_2._Low_likelihood, 2, 0)","v":0},{"$f":"IF('Step 2 EAM'!F184=Response_3._Likely, 3, 0)","v":0},0,{"$f":"IF('Step 2 EAM'!G184=Response_1._Mild, 1, 0)","v":0},{"$f":"IF('Step 2 EAM'!G184=Response_2._Moderate,2, 0)","v":0},{"$f":"IF('Step 2 EAM'!G184=Response_3._Severe, 3, 0)","v":0},0,0]
[null,{"$f":"IF('Step 2 EAM'!F185=Response_1._Unlikely, 1, 0)","v":0},{"$f":"IF('Step 2 EAM'!F185=Response_2._Low_likelihood, 2, 0)","v":0},{"$f":"IF('Step 2 EAM'!F185=Response_3._Likely, 3, 0)","v":0},0,{"$f":"IF('Step 2 EAM'!G185=Response_1._Mild, 1, 0)","v":0},{"$f":"IF('Step 2 EAM'!G185=Response_2._Moderate,2, 0)","v":0},{"$f":"IF('Step 2 EAM'!G185=Response_3._Severe, 3, 0)","v":0},0,0]
[null,{"$f":"IF('Step 2 EAM'!F186=Response_1._Unlikely, 1, 0)","v":0},{"$f":"IF('Step 2 EAM'!F186=Response_2._Low_likelihood, 2, 0)","v":0},{"$f":"IF('Step 2 EAM'!F186=Response_3._Likely, 3, 0)","v":0},0,{"$f":"IF('Step 2 EAM'!G186=Response_1._Mild, 1, 0)","v":0},{"$f":"IF('Step 2 EAM'!G186=Response_2._Moderate,2, 0)","v":0},{"$f":"IF('Step 2 EAM'!G186=Response_3._Severe, 3, 0)","v":0},0,0]
[null,{"$f":"IF('Step 2 EAM'!F187=Response_1._Unlikely, 1, 0)","v":0},{"$f":"IF('Step 2 EAM'!F187=Response_2._Low_likelihood, 2, 0)","v":0},{"$f":"IF('Step 2 EAM'!F187=Response_3._Likely, 3, 0)","v":0},0,{"$f":"IF('Step 2 EAM'!G187=Response_1._Mild, 1, 0)","v":0},{"$f":"IF('Step 2 EAM'!G187=Response_2._Moderate,2, 0)","v":0},{"$f":"IF('Step 2 EAM'!G187=Response_3._Severe, 3, 0)","v":0},0,0]
[null,{"$f":"IF('Step 2 EAM'!F188=Response_1._Unlikely, 1, 0)","v":0},{"$f":"IF('Step 2 EAM'!F188=Response_2._Low_likelihood, 2, 0)","v":0},{"$f":"IF('Step 2 EAM'!F188=Response_3._Likely, 3, 0)","v":0},0,{"$f":"IF('Step 2 EAM'!G188=Response_1._Mild, 1, 0)","v":0},{"$f":"IF('Step 2 EAM'!G188=Response_2._Moderate,2, 0)","v":0},{"$f":"IF('Step 2 EAM'!G188=Response_3._Severe, 3, 0)","v":0},0,0]
[null,{"$f":"IF('Step 2 EAM'!F189=Response_1._Unlikely, 1, 0)","v":0},{"$f":"IF('Step 2 EAM'!F189=Response_2._Low_likelihood, 2, 0)","v":0},{"$f":"IF('Step 2 EAM'!F189=Response_3._Likely, 3, 0)","v":0},0,{"$f":"IF('Step 2 EAM'!G189=Response_1._Mild, 1, 0)","v":0},{"$f":"IF('Step 2 EAM'!G189=Response_2._Moderate,2, 0)","v":0},{"$f":"IF('Step 2 EAM'!G189=Response_3._Severe, 3, 0)","v":0},0,0]
[null,{"$f":"IF('Step 2 EAM'!F190=Response_1._Unlikely, 1, 0)","v":0},{"$f":"IF('Step 2 EAM'!F190=Response_2._Low_likelihood, 2, 0)","v":0},{"$f":"IF('Step 2 EAM'!F190=Response_3._Likely, 3, 0)","v":0},0,{"$f":"IF('Step 2 EAM'!G190=Response_1._Mild, 1, 0)","v":0},{"$f":"IF('Step 2 EAM'!G190=Response_2._Moderate,2, 0)","v":0},{"$f":"IF('Step 2 EAM'!G190=Response_3._Severe, 3, 0)","v":0},0,0]
[null,{"$f":"IF('Step 2 EAM'!F191=Response_1._Unlikely, 1, 0)","v":0},{"$f":"IF('Step 2 EAM'!F191=Response_2._Low_likelihood, 2, 0)","v":0},{"$f":"IF('Step 2 EAM'!F191=Response_3._Likely, 3, 0)","v":0},0,{"$f":"IF('Step 2 EAM'!G191=Response_1._Mild, 1, 0)","v":0},{"$f":"IF('Step 2 EAM'!G191=Response_2._Moderate,2, 0)","v":0},{"$f":"IF('Step 2 EAM'!G191=Response_3._Severe, 3, 0)","v":0},0,0]
[null,{"$f":"IF('Step 2 EAM'!F192=Response_1._Unlikely, 1, 0)","v":0},{"$f":"IF('Step 2 EAM'!F192=Response_2._Low_likelihood, 2, 0)","v":0},{"$f":"IF('Step 2 EAM'!F192=Response_3._Likely, 3, 0)","v":0},0,{"$f":"IF('Step 2 EAM'!G192=Response_1._Mild, 1, 0)","v":0},{"$f":"IF('Step 2 EAM'!G192=Response_2._Moderate,2, 0)","v":0},{"$f":"IF('Step 2 EAM'!G192=Response_3._Severe, 3, 0)","v":0},0,0]
[null,{"$f":"IF('Step 2 EAM'!F193=Response_1._Unlikely, 1, 0)","v":0},{"$f":"IF('Step 2 EAM'!F193=Response_2._Low_likelihood, 2, 0)","v":0},{"$f":"IF('Step 2 EAM'!F193=Response_3._Likely, 3, 0)","v":0},0,{"$f":"IF('Step 2 EAM'!G193=Response_1._Mild, 1, 0)","v":0},{"$f":"IF('Step 2 EAM'!G193=Response_2._Moderate,2, 0)","v":0},{"$f":"IF('Step 2 EAM'!G193=Response_3._Severe, 3, 0)","v":0},0,0]
[null,{"$f":"IF('Step 2 EAM'!F194=Response_1._Unlikely, 1, 0)","v":0},{"$f":"IF('Step 2 EAM'!F194=Response_2._Low_likelihood, 2, 0)","v":0},{"$f":"IF('Step 2 EAM'!F194=Response_3._Likely, 3, 0)","v":0},0,{"$f":"IF('Step 2 EAM'!G194=Response_1._Mild, 1, 0)","v":0},{"$f":"IF('Step 2 EAM'!G194=Response_2._Moderate,2, 0)","v":0},{"$f":"IF('Step 2 EAM'!G194=Response_3._Severe, 3, 0)","v":0},0,0]
[null,{"$f":"IF('Step 2 EAM'!F195=Response_1._Unlikely, 1, 0)","v":0},{"$f":"IF('Step 2 EAM'!F195=Response_2._Low_likelihood, 2, 0)","v":0},{"$f":"IF('Step 2 EAM'!F195=Response_3._Likely, 3, 0)","v":0},0,{"$f":"IF('Step 2 EAM'!G195=Response_1._Mild, 1, 0)","v":0},{"$f":"IF('Step 2 EAM'!G195=Response_2._Moderate,2, 0)","v":0},{"$f":"IF('Step 2 EAM'!G195=Response_3._Severe, 3, 0)","v":0},0,0]
[null,{"$f":"IF('Step 2 EAM'!F196=Response_1._Unlikely, 1, 0)","v":0},{"$f":"IF('Step 2 EAM'!F196=Response_2._Low_likelihood, 2, 0)","v":0},{"$f":"IF('Step 2 EAM'!F196=Response_3._Likely, 3, 0)","v":0},0,{"$f":"IF('Step 2 EAM'!G196=Response_1._Mild, 1, 0)","v":0},{"$f":"IF('Step 2 EAM'!G196=Response_2._Moderate,2, 0)","v":0},{"$f":"IF('Step 2 EAM'!G196=Response_3._Severe, 3, 0)","v":0},0,0]
[null,{"$f":"IF('Step 2 EAM'!F197=Response_1._Unlikely, 1, 0)","v":0},{"$f":"IF('Step 2 EAM'!F197=Response_2._Low_likelihood, 2, 0)","v":0},{"$f":"IF('Step 2 EAM'!F197=Response_3._Likely, 3, 0)","v":0},0,{"$f":"IF('Step 2 EAM'!G197=Response_1._Mild, 1, 0)","v":0},{"$f":"IF('Step 2 EAM'!G197=Response_2._Moderate,2, 0)","v":0},{"$f":"IF('Step 2 EAM'!G197=Response_3._Severe, 3, 0)","v":0},0,0]
[null,{"$f":"IF('Step 2 EAM'!F198=Response_1._Unlikely, 1, 0)","v":0},{"$f":"IF('Step 2 EAM'!F198=Response_2._Low_likelihood, 2, 0)","v":0},{"$f":"IF('Step 2 EAM'!F198=Response_3._Likely, 3, 0)","v":0},0,{"$f":"IF('Step 2 EAM'!G198=Response_1._Mild, 1, 0)","v":0},{"$f":"IF('Step 2 EAM'!G198=Response_2._Moderate,2, 0)","v":0},{"$f":"IF('Step 2 EAM'!G198=Response_3._Severe, 3, 0)","v":0},0,0]
[null,{"$f":"IF('Step 2 EAM'!F199=Response_1._Unlikely, 1, 0)","v":0},{"$f":"IF('Step 2 EAM'!F199=Response_2._Low_likelihood, 2, 0)","v":0},{"$f":"IF('Step 2 EAM'!F199=Response_3._Likely, 3, 0)","v":0},0,{"$f":"IF('Step 2 EAM'!G199=Response_1._Mild, 1, 0)","v":0},{"$f":"IF('Step 2 EAM'!G199=Response_2._Moderate,2, 0)","v":0},{"$f":"IF('Step 2 EAM'!G199=Response_3._Severe, 3, 0)","v":0},0,0]
[null,{"$f":"IF('Step 2 EAM'!#REF!=Response_1._Unlikely, 1, 0)","v":{"$error":"#REF!"}},{"$f":"IF('Step 2 EAM'!#REF!=Response_2._Low_likelihood, 2, 0)","v":{"$error":"#REF!"}},{"$f":"IF('Step 2 EAM'!#REF!=Response_3._Likely, 3, 0)","v":{"$error":"#REF!"}},{"$error":"#REF!"},{"$f":"IF('Step 2 EAM'!#REF!=Response_1._Mild, 1, 0)","v":{"$error":"#REF!"}},{"$f":"IF('Step 2 EAM'!#REF!=Response_2._Moderate,2, 0)","v":{"$error":"#REF!"}},{"$f":"IF('Step 2 EAM'!#REF!=Response_3._Severe, 3, 0)","v":{"$error":"#REF!"}},{"$error":"#REF!"},{"$error":"#REF!"}]
[null,{"$f":"IF('Step 2 EAM'!#REF!=Response_1._Unlikely, 1, 0)","v":{"$error":"#REF!"}},{"$f":"IF('Step 2 EAM'!#REF!=Response_2._Low_likelihood, 2, 0)","v":{"$error":"#REF!"}},{"$f":"IF('Step 2 EAM'!#REF!=Response_3._Likely, 3, 0)","v":{"$error":"#REF!"}},{"$f":"SUM(B196:D196)","v":{"$error":"#REF!"}},{"$f":"IF('Step 2 EAM'!#REF!=Response_1._Mild, 1, 0)","v":{"$error":"#REF!"}},{"$f":"IF('Step 2 EAM'!#REF!=Response_2._Moderate,2, 0)","v":{"$error":"#REF!"}},{"$f":"IF('Step 2 EAM'!#REF!=Response_3._Severe, 3, 0)","v":{"$error":"#REF!"}},{"$f":"SUM(F196:H196)","v":{"$error":"#REF!"}},{"$f":"I196*E196","v":{"$error":"#REF!"}}]
[null,{"$f":"IF('Step 2 EAM'!#REF!=Response_1._Unlikely, 1, 0)","v":{"$error":"#REF!"}},{"$f":"IF('Step 2 EAM'!#REF!=Response_2._Low_likelihood, 2, 0)","v":{"$error":"#REF!"}},{"$f":"IF('Step 2 EAM'!#REF!=Response_3._Likely, 3, 0)","v":{"$error":"#REF!"}},{"$error":"#REF!"},{"$f":"IF('Step 2 EAM'!#REF!=Response_1._Mild, 1, 0)","v":{"$error":"#REF!"}},{"$f":"IF('Step 2 EAM'!#REF!=Response_2._Moderate,2, 0)","v":{"$error":"#REF!"}},{"$f":"IF('Step 2 EAM'!#REF!=Response_3._Severe, 3, 0)","v":{"$error":"#REF!"}},{"$error":"#REF!"},{"$error":"#REF!"}]
[null,{"$f":"IF('Step 2 EAM'!#REF!=Response_1._Unlikely, 1, 0)","v":{"$error":"#REF!"}},{"$f":"IF('Step 2 EAM'!#REF!=Response_2._Low_likelihood, 2, 0)","v":{"$error":"#REF!"}},{"$f":"IF('Step 2 EAM'!#REF!=Response_3._Likely, 3, 0)","v":{"$error":"#REF!"}},{"$error":"#REF!"},{"$f":"IF('Step 2 EAM'!#REF!=Response_1._Mild, 1, 0)","v":{"$error":"#REF!"}},{"$f":"IF('Step 2 EAM'!#REF!=Response_2._Moderate,2, 0)","v":{"$error":"#REF!"}},{"$f":"IF('Step 2 EAM'!#REF!=Response_3._Severe, 3, 0)","v":{"$error":"#REF!"}},{"$error":"#REF!"},{"$error":"#REF!"}]
[null,{"$f":"IF('Step 2 EAM'!#REF!=Response_1._Unlikely, 1, 0)","v":{"$error":"#REF!"}},{"$f":"IF('Step 2 EAM'!#REF!=Response_2._Low_likelihood, 2, 0)","v":{"$error":"#REF!"}},{"$f":"IF('Step 2 EAM'!#REF!=Response_3._Likely, 3, 0)","v":{"$error":"#REF!"}},{"$error":"#REF!"},{"$f":"IF('Step 2 EAM'!#REF!=Response_1._Mild, 1, 0)","v":{"$error":"#REF!"}},{"$f":"IF('Step 2 EAM'!#REF!=Response_2._Moderate,2, 0)","v":{"$error":"#REF!"}},{"$f":"IF('Step 2 EAM'!#REF!=Response_3._Severe, 3, 0)","v":{"$error":"#REF!"}},{"$error":"#REF!"},{"$error":"#REF!"}]
[null,{"$f":"IF('Step 2 EAM'!#REF!=Response_1._Unlikely, 1, 0)","v":{"$error":"#REF!"}},{"$f":"IF('Step 2 EAM'!#REF!=Response_2._Low_likelihood, 2, 0)","v":{"$error":"#REF!"}},{"$f":"IF('Step 2 EAM'!#REF!=Response_3._Likely, 3, 0)","v":{"$error":"#REF!"}},{"$error":"#REF!"},{"$f":"IF('Step 2 EAM'!#REF!=Response_1._Mild, 1, 0)","v":{"$error":"#REF!"}},{"$f":"IF('Step 2 EAM'!#REF!=Response_2._Moderate,2, 0)","v":{"$error":"#REF!"}},{"$f":"IF('Step 2 EAM'!#REF!=Response_3._Severe, 3, 0)","v":{"$error":"#REF!"}},{"$error":"#REF!"},{"$error":"#REF!"}]
[null,{"$f":"IF('Step 2 EAM'!#REF!=Response_1._Unlikely, 1, 0)","v":{"$error":"#REF!"}},{"$f":"IF('Step 2 EAM'!#REF!=Response_2._Low_likelihood, 2, 0)","v":{"$error":"#REF!"}},{"$f":"IF('Step 2 EAM'!#REF!=Response_3._Likely, 3, 0)","v":{"$error":"#REF!"}},{"$error":"#REF!"},{"$f":"IF('Step 2 EAM'!#REF!=Response_1._Mild, 1, 0)","v":{"$error":"#REF!"}},{"$f":"IF('Step 2 EAM'!#REF!=Response_2._Moderate,2, 0)","v":{"$error":"#REF!"}},{"$f":"IF('Step 2 EAM'!#REF!=Response_3._Severe, 3, 0)","v":{"$error":"#REF!"}},{"$error":"#REF!"},{"$error":"#REF!"}]
[null,{"$f":"IF('Step 2 EAM'!#REF!=Response_1._Unlikely, 1, 0)","v":{"$error":"#REF!"}},{"$f":"IF('Step 2 EAM'!#REF!=Response_2._Low_likelihood, 2, 0)","v":{"$error":"#REF!"}},{"$f":"IF('Step 2 EAM'!#REF!=Response_3._Likely, 3, 0)","v":{"$error":"#REF!"}},{"$error":"#REF!"},{"$f":"IF('Step 2 EAM'!#REF!=Response_1._Mild, 1, 0)","v":{"$error":"#REF!"}},{"$f":"IF('Step 2 EAM'!#REF!=Response_2._Moderate,2, 0)","v":{"$error":"#REF!"}},{"$f":"IF('Step 2 EAM'!#REF!=Response_3._Severe, 3, 0)","v":{"$error":"#REF!"}},{"$error":"#REF!"},{"$error":"#REF!"}]
[null,{"$f":"IF('Step 2 EAM'!#REF!=Response_1._Unlikely, 1, 0)","v":{"$error":"#REF!"}},{"$f":"IF('Step 2 EAM'!#REF!=Response_2._Low_likelihood, 2, 0)","v":{"$error":"#REF!"}},{"$f":"IF('Step 2 EAM'!#REF!=Response_3._Likely, 3, 0)","v":{"$error":"#REF!"}},{"$error":"#REF!"},{"$f":"IF('Step 2 EAM'!#REF!=Response_1._Mild, 1, 0)","v":{"$error":"#REF!"}},{"$f":"IF('Step 2 EAM'!#REF!=Response_2._Moderate,2, 0)","v":{"$error":"#REF!"}},{"$f":"IF('Step 2 EAM'!#REF!=Response_3._Severe, 3, 0)","v":{"$error":"#REF!"}},{"$error":"#REF!"},{"$error":"#REF!"}]
[null,{"$f":"IF('Step 2 EAM'!#REF!=Response_1._Unlikely, 1, 0)","v":{"$error":"#REF!"}},{"$f":"IF('Step 2 EAM'!#REF!=Response_2._Low_likelihood, 2, 0)","v":{"$error":"#REF!"}},{"$f":"IF('Step 2 EAM'!#REF!=Response_3._Likely, 3, 0)","v":{"$error":"#REF!"}},{"$error":"#REF!"},{"$f":"IF('Step 2 EAM'!#REF!=Response_1._Mild, 1, 0)","v":{"$error":"#REF!"}},{"$f":"IF('Step 2 EAM'!#REF!=Response_2._Moderate,2, 0)","v":{"$error":"#REF!"}},{"$f":"IF('Step 2 EAM'!#REF!=Response_3._Severe, 3, 0)","v":{"$error":"#REF!"}},{"$error":"#REF!"},{"$error":"#REF!"}]
[null,{"$f":"IF('Step 2 EAM'!#REF!=Response_1._Unlikely, 1, 0)","v":{"$error":"#REF!"}},{"$f":"IF('Step 2 EAM'!#REF!=Response_2._Low_likelihood, 2, 0)","v":{"$error":"#REF!"}},{"$f":"IF('Step 2 EAM'!#REF!=Response_3._Likely, 3, 0)","v":{"$error":"#REF!"}},{"$error":"#REF!"},{"$f":"IF('Step 2 EAM'!#REF!=Response_1._Mild, 1, 0)","v":{"$error":"#REF!"}},{"$f":"IF('Step 2 EAM'!#REF!=Response_2._Moderate,2, 0)","v":{"$error":"#REF!"}},{"$f":"IF('Step 2 EAM'!#REF!=Response_3._Severe, 3, 0)","v":{"$error":"#REF!"}},{"$error":"#REF!"},{"$error":"#REF!"}]
[null,{"$f":"IF('Step 2 EAM'!#REF!=Response_1._Unlikely, 1, 0)","v":{"$error":"#REF!"}},{"$f":"IF('Step 2 EAM'!#REF!=Response_2._Low_likelihood, 2, 0)","v":{"$error":"#REF!"}},{"$f":"IF('Step 2 EAM'!#REF!=Response_3._Likely, 3, 0)","v":{"$error":"#REF!"}},{"$error":"#REF!"},{"$f":"IF('Step 2 EAM'!#REF!=Response_1._Mild, 1, 0)","v":{"$error":"#REF!"}},{"$f":"IF('Step 2 EAM'!#REF!=Response_2._Moderate,2, 0)","v":{"$error":"#REF!"}},{"$f":"IF('Step 2 EAM'!#REF!=Response_3._Severe, 3, 0)","v":{"$error":"#REF!"}},{"$error":"#REF!"},{"$error":"#REF!"}]
[null,{"$f":"IF('Step 2 EAM'!#REF!=Response_1._Unlikely, 1, 0)","v":{"$error":"#REF!"}},{"$f":"IF('Step 2 EAM'!#REF!=Response_2._Low_likelihood, 2, 0)","v":{"$error":"#REF!"}},{"$f":"IF('Step 2 EAM'!#REF!=Response_3._Likely, 3, 0)","v":{"$error":"#REF!"}},{"$error":"#REF!"},{"$f":"IF('Step 2 EAM'!#REF!=Response_1._Mild, 1, 0)","v":{"$error":"#REF!"}},{"$f":"IF('Step 2 EAM'!#REF!=Response_2._Moderate,2, 0)","v":{"$error":"#REF!"}},{"$f":"IF('Step 2 EAM'!#REF!=Response_3._Severe, 3, 0)","v":{"$error":"#REF!"}},{"$error":"#REF!"},{"$error":"#REF!"}]
[null,{"$f":"IF('Step 2 EAM'!#REF!=Response_1._Unlikely, 1, 0)","v":{"$error":"#REF!"}},{"$f":"IF('Step 2 EAM'!#REF!=Response_2._Low_likelihood, 2, 0)","v":{"$error":"#REF!"}},{"$f":"IF('Step 2 EAM'!#REF!=Response_3._Likely, 3, 0)","v":{"$error":"#REF!"}},{"$error":"#REF!"},{"$f":"IF('Step 2 EAM'!#REF!=Response_1._Mild, 1, 0)","v":{"$error":"#REF!"}},{"$f":"IF('Step 2 EAM'!#REF!=Response_2._Moderate,2, 0)","v":{"$error":"#REF!"}},{"$f":"IF('Step 2 EAM'!#REF!=Response_3._Severe, 3, 0)","v":{"$error":"#REF!"}},{"$error":"#REF!"},{"$error":"#REF!"}]
[null,{"$f":"IF('Step 2 EAM'!#REF!=Response_1._Unlikely, 1, 0)","v":{"$error":"#REF!"}},{"$f":"IF('Step 2 EAM'!#REF!=Response_2._Low_likelihood, 2, 0)","v":{"$error":"#REF!"}},{"$f":"IF('Step 2 EAM'!#REF!=Response_3._Likely, 3, 0)","v":{"$error":"#REF!"}},{"$error":"#REF!"},{"$f":"IF('Step 2 EAM'!#REF!=Response_1._Mild, 1, 0)","v":{"$error":"#REF!"}},{"$f":"IF('Step 2 EAM'!#REF!=Response_2._Moderate,2, 0)","v":{"$error":"#REF!"}},{"$f":"IF('Step 2 EAM'!#REF!=Response_3._Severe, 3, 0)","v":{"$error":"#REF!"}},{"$error":"#REF!"},{"$error":"#REF!"}]
[null,{"$f":"IF('Step 2 EAM'!#REF!=Response_1._Unlikely, 1, 0)","v":{"$error":"#REF!"}},{"$f":"IF('Step 2 EAM'!#REF!=Response_2._Low_likelihood, 2, 0)","v":{"$error":"#REF!"}},{"$f":"IF('Step 2 EAM'!#REF!=Response_3._Likely, 3, 0)","v":{"$error":"#REF!"}},{"$error":"#REF!"},{"$f":"IF('Step 2 EAM'!#REF!=Response_1._Mild, 1, 0)","v":{"$error":"#REF!"}},{"$f":"IF('Step 2 EAM'!#REF!=Response_2._Moderate,2, 0)","v":{"$error":"#REF!"}},{"$f":"IF('Step 2 EAM'!#REF!=Response_3._Severe, 3, 0)","v":{"$error":"#REF!"}},{"$error":"#REF!"},{"$error":"#REF!"}]
[null,{"$f":"IF('Step 2 EAM'!#REF!=Response_1._Unlikely, 1, 0)","v":{"$error":"#REF!"}},{"$f":"IF('Step 2 EAM'!#REF!=Response_2._Low_likelihood, 2, 0)","v":{"$error":"#REF!"}},{"$f":"IF('Step 2 EAM'!#REF!=Response_3._Likely, 3, 0)","v":{"$error":"#REF!"}},{"$error":"#REF!"},{"$f":"IF('Step 2 EAM'!#REF!=Response_1._Mild, 1, 0)","v":{"$error":"#REF!"}},{"$f":"IF('Step 2 EAM'!#REF!=Response_2._Moderate,2, 0)","v":{"$error":"#REF!"}},{"$f":"IF('Step 2 EAM'!#REF!=Response_3._Severe, 3, 0)","v":{"$error":"#REF!"}},{"$error":"#REF!"},{"$error":"#REF!"}]
[null,{"$f":"IF('Step 2 EAM'!#REF!=Response_1._Unlikely, 1, 0)","v":{"$error":"#REF!"}},{"$f":"IF('Step 2 EAM'!#REF!=Response_2._Low_likelihood, 2, 0)","v":{"$error":"#REF!"}},{"$f":"IF('Step 2 EAM'!#REF!=Response_3._Likely, 3, 0)","v":{"$error":"#REF!"}},{"$error":"#REF!"},{"$f":"IF('Step 2 EAM'!#REF!=Response_1._Mild, 1, 0)","v":{"$error":"#REF!"}},{"$f":"IF('Step 2 EAM'!#REF!=Response_2._Moderate,2, 0)","v":{"$error":"#REF!"}},{"$f":"IF('Step 2 EAM'!#REF!=Response_3._Severe, 3, 0)","v":{"$error":"#REF!"}},{"$error":"#REF!"},{"$error":"#REF!"}]
[null,{"$f":"IF('Step 2 EAM'!#REF!=Response_1._Unlikely, 1, 0)","v":{"$error":"#REF!"}},{"$f":"IF('Step 2 EAM'!#REF!=Response_2._Low_likelihood, 2, 0)","v":{"$error":"#REF!"}},{"$f":"IF('Step 2 EAM'!#REF!=Response_3._Likely, 3, 0)","v":{"$error":"#REF!"}},{"$error":"#REF!"},{"$f":"IF('Step 2 EAM'!#REF!=Response_1._Mild, 1, 0)","v":{"$error":"#REF!"}},{"$f":"IF('Step 2 EAM'!#REF!=Response_2._Moderate,2, 0)","v":{"$error":"#REF!"}},{"$f":"IF('Step 2 EAM'!#REF!=Response_3._Severe, 3, 0)","v":{"$error":"#REF!"}},{"$error":"#REF!"},{"$error":"#REF!"}]
[null,{"$f":"IF('Step 2 EAM'!#REF!=Response_1._Unlikely, 1, 0)","v":{"$error":"#REF!"}},{"$f":"IF('Step 2 EAM'!#REF!=Response_2._Low_likelihood, 2, 0)","v":{"$error":"#REF!"}},{"$f":"IF('Step 2 EAM'!#REF!=Response_3._Likely, 3, 0)","v":{"$error":"#REF!"}},{"$error":"#REF!"},{"$f":"IF('Step 2 EAM'!#REF!=Response_1._Mild, 1, 0)","v":{"$error":"#REF!"}},{"$f":"IF('Step 2 EAM'!#REF!=Response_2._Moderate,2, 0)","v":{"$error":"#REF!"}},{"$f":"IF('Step 2 EAM'!#REF!=Response_3._Severe, 3, 0)","v":{"$error":"#REF!"}},{"$error":"#REF!"},{"$error":"#REF!"}]
[null,{"$f":"IF('Step 2 EAM'!#REF!=Response_1._Unlikely, 1, 0)","v":{"$error":"#REF!"}},{"$f":"IF('Step 2 EAM'!#REF!=Response_2._Low_likelihood, 2, 0)","v":{"$error":"#REF!"}},{"$f":"IF('Step 2 EAM'!#REF!=Response_3._Likely, 3, 0)","v":{"$error":"#REF!"}},{"$error":"#REF!"},{"$f":"IF('Step 2 EAM'!#REF!=Response_1._Mild, 1, 0)","v":{"$error":"#REF!"}},{"$f":"IF('Step 2 EAM'!#REF!=Response_2._Moderate,2, 0)","v":{"$error":"#REF!"}},{"$f":"IF('Step 2 EAM'!#REF!=Response_3._Severe, 3, 0)","v":{"$error":"#REF!"}},{"$error":"#REF!"},{"$error":"#REF!"}]
[null,{"$f":"IF('Step 2 EAM'!#REF!=Response_1._Unlikely, 1, 0)","v":{"$error":"#REF!"}},{"$f":"IF('Step 2 EAM'!#REF!=Response_2._Low_likelihood, 2, 0)","v":{"$error":"#REF!"}},{"$f":"IF('Step 2 EAM'!#REF!=Response_3._Likely, 3, 0)","v":{"$error":"#REF!"}},{"$error":"#REF!"},{"$f":"IF('Step 2 EAM'!#REF!=Response_1._Mild, 1, 0)","v":{"$error":"#REF!"}},{"$f":"IF('Step 2 EAM'!#REF!=Response_2._Moderate,2, 0)","v":{"$error":"#REF!"}},{"$f":"IF('Step 2 EAM'!#REF!=Response_3._Severe, 3, 0)","v":{"$error":"#REF!"}},{"$error":"#REF!"},{"$error":"#REF!"}]
[null,{"$f":"IF('Step 2 EAM'!#REF!=Response_1._Unlikely, 1, 0)","v":{"$error":"#REF!"}},{"$f":"IF('Step 2 EAM'!#REF!=Response_2._Low_likelihood, 2, 0)","v":{"$error":"#REF!"}},{"$f":"IF('Step 2 EAM'!#REF!=Response_3._Likely, 3, 0)","v":{"$error":"#REF!"}},{"$error":"#REF!"},{"$f":"IF('Step 2 EAM'!#REF!=Response_1._Mild, 1, 0)","v":{"$error":"#REF!"}},{"$f":"IF('Step 2 EAM'!#REF!=Response_2._Moderate,2, 0)","v":{"$error":"#REF!"}},{"$f":"IF('Step 2 EAM'!#REF!=Response_3._Severe, 3, 0)","v":{"$error":"#REF!"}},{"$error":"#REF!"},{"$error":"#REF!"}]
[null,{"$f":"IF('Step 2 EAM'!#REF!=Response_1._Unlikely, 1, 0)","v":{"$error":"#REF!"}},{"$f":"IF('Step 2 EAM'!#REF!=Response_2._Low_likelihood, 2, 0)","v":{"$error":"#REF!"}},{"$f":"IF('Step 2 EAM'!#REF!=Response_3._Likely, 3, 0)","v":{"$error":"#REF!"}},{"$error":"#REF!"},{"$f":"IF('Step 2 EAM'!#REF!=Response_1._Mild, 1, 0)","v":{"$error":"#REF!"}},{"$f":"IF('Step 2 EAM'!#REF!=Response_2._Moderate,2, 0)","v":{"$error":"#REF!"}},{"$f":"IF('Step 2 EAM'!#REF!=Response_3._Severe, 3, 0)","v":{"$error":"#REF!"}},{"$error":"#REF!"},{"$error":"#REF!"}]
[null,{"$f":"IF('Step 2 EAM'!#REF!=Response_1._Unlikely, 1, 0)","v":{"$error":"#REF!"}},{"$f":"IF('Step 2 EAM'!#REF!=Response_2._Low_likelihood, 2, 0)","v":{"$error":"#REF!"}},{"$f":"IF('Step 2 EAM'!#REF!=Response_3._Likely, 3, 0)","v":{"$error":"#REF!"}},{"$error":"#REF!"},{"$f":"IF('Step 2 EAM'!#REF!=Response_1._Mild, 1, 0)","v":{"$error":"#REF!"}},{"$f":"IF('Step 2 EAM'!#REF!=Response_2._Moderate,2, 0)","v":{"$error":"#REF!"}},{"$f":"IF('Step 2 EAM'!#REF!=Response_3._Severe, 3, 0)","v":{"$error":"#REF!"}},{"$error":"#REF!"},{"$error":"#REF!"}]
[null,{"$f":"IF('Step 2 EAM'!#REF!=Response_1._Unlikely, 1, 0)","v":{"$error":"#REF!"}},{"$f":"IF('Step 2 EAM'!#REF!=Response_2._Low_likelihood, 2, 0)","v":{"$error":"#REF!"}},{"$f":"IF('Step 2 EAM'!#REF!=Response_3._Likely, 3, 0)","v":{"$error":"#REF!"}},{"$error":"#REF!"},{"$f":"IF('Step 2 EAM'!#REF!=Response_1._Mild, 1, 0)","v":{"$error":"#REF!"}},{"$f":"IF('Step 2 EAM'!#REF!=Response_2._Moderate,2, 0)","v":{"$error":"#REF!"}},{"$f":"IF('Step 2 EAM'!#REF!=Response_3._Severe, 3, 0)","v":{"$error":"#REF!"}},{"$error":"#REF!"},{"$error":"#REF!"}]
[null,{"$f":"IF('Step 2 EAM'!#REF!=Response_1._Unlikely, 1, 0)","v":{"$error":"#REF!"}},{"$f":"IF('Step 2 EAM'!#REF!=Response_2._Low_likelihood, 2, 0)","v":{"$error":"#REF!"}},{"$f":"IF('Step 2 EAM'!#REF!=Response_3._Likely, 3, 0)","v":{"$error":"#REF!"}},{"$error":"#REF!"},{"$f":"IF('Step 2 EAM'!#REF!=Response_1._Mild, 1, 0)","v":{"$error":"#REF!"}},{"$f":"IF('Step 2 EAM'!#REF!=Response_2._Moderate,2, 0)","v":{"$error":"#REF!"}},{"$f":"IF('Step 2 EAM'!#REF!=Response_3._Severe, 3, 0)","v":{"$error":"#REF!"}},{"$error":"#REF!"},{"$error":"#REF!"}]
[null,{"$f":"IF('Step 2 EAM'!#REF!=Response_1._Unlikely, 1, 0)","v":{"$error":"#REF!"}},{"$f":"IF('Step 2 EAM'!#REF!=Response_2._Low_likelihood, 2, 0)","v":{"$error":"#REF!"}},{"$f":"IF('Step 2 EAM'!#REF!=Response_3._Likely, 3, 0)","v":{"$error":"#REF!"}},{"$error":"#REF!"},{"$f":"IF('Step 2 EAM'!#REF!=Response_1._Mild, 1, 0)","v":{"$error":"#REF!"}},{"$f":"IF('Step 2 EAM'!#REF!=Response_2._Moderate,2, 0)","v":{"$error":"#REF!"}},{"$f":"IF('Step 2 EAM'!#REF!=Response_3._Severe, 3, 0)","v":{"$error":"#REF!"}},{"$error":"#REF!"},{"$error":"#REF!"}]
[null,{"$f":"IF('Step 2 EAM'!#REF!=Response_1._Unlikely, 1, 0)","v":{"$error":"#REF!"}},{"$f":"IF('Step 2 EAM'!#REF!=Response_2._Low_likelihood, 2, 0)","v":{"$error":"#REF!"}},{"$f":"IF('Step 2 EAM'!#REF!=Response_3._Likely, 3, 0)","v":{"$error":"#REF!"}},{"$error":"#REF!"},{"$f":"IF('Step 2 EAM'!#REF!=Response_1._Mild, 1, 0)","v":{"$error":"#REF!"}},{"$f":"IF('Step 2 EAM'!#REF!=Response_2._Moderate,2, 0)","v":{"$error":"#REF!"}},{"$f":"IF('Step 2 EAM'!#REF!=Response_3._Severe, 3, 0)","v":{"$error":"#REF!"}},{"$error":"#REF!"},{"$error":"#REF!"}]
[null,{"$f":"IF('Step 2 EAM'!#REF!=Response_1._Unlikely, 1, 0)","v":{"$error":"#REF!"}},{"$f":"IF('Step 2 EAM'!#REF!=Response_2._Low_likelihood, 2, 0)","v":{"$error":"#REF!"}},{"$f":"IF('Step 2 EAM'!#REF!=Response_3._Likely, 3, 0)","v":{"$error":"#REF!"}},{"$error":"#REF!"},{"$f":"IF('Step 2 EAM'!#REF!=Response_1._Mild, 1, 0)","v":{"$error":"#REF!"}},{"$f":"IF('Step 2 EAM'!#REF!=Response_2._Moderate,2, 0)","v":{"$error":"#REF!"}},{"$f":"IF('Step 2 EAM'!#REF!=Response_3._Severe, 3, 0)","v":{"$error":"#REF!"}},{"$error":"#REF!"},{"$error":"#REF!"}]
[null,{"$f":"IF('Step 2 EAM'!#REF!=Response_1._Unlikely, 1, 0)","v":{"$error":"#REF!"}},{"$f":"IF('Step 2 EAM'!#REF!=Response_2._Low_likelihood, 2, 0)","v":{"$error":"#REF!"}},{"$f":"IF('Step 2 EAM'!#REF!=Response_3._Likely, 3, 0)","v":{"$error":"#REF!"}},{"$error":"#REF!"},{"$f":"IF('Step 2 EAM'!#REF!=Response_1._Mild, 1, 0)","v":{"$error":"#REF!"}},{"$f":"IF('Step 2 EAM'!#REF!=Response_2._Moderate,2, 0)","v":{"$error":"#REF!"}},{"$f":"IF('Step 2 EAM'!#REF!=Response_3._Severe, 3, 0)","v":{"$error":"#REF!"}},{"$error":"#REF!"},{"$error":"#REF!"}]
[null,{"$f":"IF('Step 2 EAM'!#REF!=Response_1._Unlikely, 1, 0)","v":{"$error":"#REF!"}},{"$f":"IF('Step 2 EAM'!#REF!=Response_2._Low_likelihood, 2, 0)","v":{"$error":"#REF!"}},{"$f":"IF('Step 2 EAM'!#REF!=Response_3._Likely, 3, 0)","v":{"$error":"#REF!"}},{"$error":"#REF!"},{"$f":"IF('Step 2 EAM'!#REF!=Response_1._Mild, 1, 0)","v":{"$error":"#REF!"}},{"$f":"IF('Step 2 EAM'!#REF!=Response_2._Moderate,2, 0)","v":{"$error":"#REF!"}},{"$f":"IF('Step 2 EAM'!#REF!=Response_3._Severe, 3, 0)","v":{"$error":"#REF!"}},{"$error":"#REF!"},{"$error":"#REF!"}]
[null,{"$f":"IF('Step 2 EAM'!#REF!=Response_1._Unlikely, 1, 0)","v":{"$error":"#REF!"}},{"$f":"IF('Step 2 EAM'!#REF!=Response_2._Low_likelihood, 2, 0)","v":{"$error":"#REF!"}},{"$f":"IF('Step 2 EAM'!#REF!=Response_3._Likely, 3, 0)","v":{"$error":"#REF!"}},{"$error":"#REF!"},{"$f":"IF('Step 2 EAM'!#REF!=Response_1._Mild, 1, 0)","v":{"$error":"#REF!"}},{"$f":"IF('Step 2 EAM'!#REF!=Response_2._Moderate,2, 0)","v":{"$error":"#REF!"}},{"$f":"IF('Step 2 EAM'!#REF!=Response_3._Severe, 3, 0)","v":{"$error":"#REF!"}},{"$error":"#REF!"},{"$error":"#REF!"}]
[null,{"$f":"IF('Step 2 EAM'!#REF!=Response_1._Unlikely, 1, 0)","v":{"$error":"#REF!"}},{"$f":"IF('Step 2 EAM'!#REF!=Response_2._Low_likelihood, 2, 0)","v":{"$error":"#REF!"}},{"$f":"IF('Step 2 EAM'!#REF!=Response_3._Likely, 3, 0)","v":{"$error":"#REF!"}},{"$error":"#REF!"},{"$f":"IF('Step 2 EAM'!#REF!=Response_1._Mild, 1, 0)","v":{"$error":"#REF!"}},{"$f":"IF('Step 2 EAM'!#REF!=Response_2._Moderate,2, 0)","v":{"$error":"#REF!"}},{"$f":"IF('Step 2 EAM'!#REF!=Response_3._Severe, 3, 0)","v":{"$error":"#REF!"}},{"$error":"#REF!"},{"$error":"#REF!"}]
[null,{"$f":"IF('Step 2 EAM'!#REF!=Response_1._Unlikely, 1, 0)","v":{"$error":"#REF!"}},{"$f":"IF('Step 2 EAM'!#REF!=Response_2._Low_likelihood, 2, 0)","v":{"$error":"#REF!"}},{"$f":"IF('Step 2 EAM'!#REF!=Response_3._Likely, 3, 0)","v":{"$error":"#REF!"}},{"$error":"#REF!"},{"$f":"IF('Step 2 EAM'!#REF!=Response_1._Mild, 1, 0)","v":{"$error":"#REF!"}},{"$f":"IF('Step 2 EAM'!#REF!=Response_2._Moderate,2, 0)","v":{"$error":"#REF!"}},{"$f":"IF('Step 2 EAM'!#REF!=Response_3._Severe, 3, 0)","v":{"$error":"#REF!"}},{"$error":"#REF!"},{"$error":"#REF!"}]
[null,{"$f":"IF('Step 2 EAM'!#REF!=Response_1._Unlikely, 1, 0)","v":{"$error":"#REF!"}},{"$f":"IF('Step 2 EAM'!#REF!=Response_2._Low_likelihood, 2, 0)","v":{"$error":"#REF!"}},{"$f":"IF('Step 2 EAM'!#REF!=Response_3._Likely, 3, 0)","v":{"$error":"#REF!"}},{"$error":"#REF!"},{"$f":"IF('Step 2 EAM'!#REF!=Response_1._Mild, 1, 0)","v":{"$error":"#REF!"}},{"$f":"IF('Step 2 EAM'!#REF!=Response_2._Moderate,2, 0)","v":{"$error":"#REF!"}},{"$f":"IF('Step 2 EAM'!#REF!=Response_3._Severe, 3, 0)","v":{"$error":"#REF!"}},{"$error":"#REF!"},{"$error":"#REF!"}]
[null,{"$f":"IF('Step 2 EAM'!#REF!=Response_1._Unlikely, 1, 0)","v":{"$error":"#REF!"}},{"$f":"IF('Step 2 EAM'!#REF!=Response_2._Low_likelihood, 2, 0)","v":{"$error":"#REF!"}},{"$f":"IF('Step 2 EAM'!#REF!=Response_3._Likely, 3, 0)","v":{"$error":"#REF!"}},{"$error":"#REF!"},{"$f":"IF('Step 2 EAM'!#REF!=Response_1._Mild, 1, 0)","v":{"$error":"#REF!"}},{"$f":"IF('Step 2 EAM'!#REF!=Response_2._Moderate,2, 0)","v":{"$error":"#REF!"}},{"$f":"IF('Step 2 EAM'!#REF!=Response_3._Severe, 3, 0)","v":{"$error":"#REF!"}},{"$error":"#REF!"},{"$error":"#REF!"}]
[null,{"$f":"IF('Step 2 EAM'!#REF!=Response_1._Unlikely, 1, 0)","v":{"$error":"#REF!"}},{"$f":"IF('Step 2 EAM'!#REF!=Response_2._Low_likelihood, 2, 0)","v":{"$error":"#REF!"}},{"$f":"IF('Step 2 EAM'!#REF!=Response_3._Likely, 3, 0)","v":{"$error":"#REF!"}},{"$error":"#REF!"},{"$f":"IF('Step 2 EAM'!#REF!=Response_1._Mild, 1, 0)","v":{"$error":"#REF!"}},{"$f":"IF('Step 2 EAM'!#REF!=Response_2._Moderate,2, 0)","v":{"$error":"#REF!"}},{"$f":"IF('Step 2 EAM'!#REF!=Response_3._Severe, 3, 0)","v":{"$error":"#REF!"}},{"$error":"#REF!"},{"$error":"#REF!"}]
[null,{"$f":"IF('Step 2 EAM'!#REF!=Response_1._Unlikely, 1, 0)","v":{"$error":"#REF!"}},{"$f":"IF('Step 2 EAM'!#REF!=Response_2._Low_likelihood, 2, 0)","v":{"$error":"#REF!"}},{"$f":"IF('Step 2 EAM'!#REF!=Response_3._Likely, 3, 0)","v":{"$error":"#REF!"}},{"$error":"#REF!"},{"$f":"IF('Step 2 EAM'!#REF!=Response_1._Mild, 1, 0)","v":{"$error":"#REF!"}},{"$f":"IF('Step 2 EAM'!#REF!=Response_2._Moderate,2, 0)","v":{"$error":"#REF!"}},{"$f":"IF('Step 2 EAM'!#REF!=Response_3._Severe, 3, 0)","v":{"$error":"#REF!"}},{"$error":"#REF!"},{"$error":"#REF!"}]
[null,{"$f":"IF('Step 2 EAM'!#REF!=Response_1._Unlikely, 1, 0)","v":{"$error":"#REF!"}},{"$f":"IF('Step 2 EAM'!#REF!=Response_2._Low_likelihood, 2, 0)","v":{"$error":"#REF!"}},{"$f":"IF('Step 2 EAM'!#REF!=Response_3._Likely, 3, 0)","v":{"$error":"#REF!"}},{"$error":"#REF!"},{"$f":"IF('Step 2 EAM'!#REF!=Response_1._Mild, 1, 0)","v":{"$error":"#REF!"}},{"$f":"IF('Step 2 EAM'!#REF!=Response_2._Moderate,2, 0)","v":{"$error":"#REF!"}},{"$f":"IF('Step 2 EAM'!#REF!=Response_3._Severe, 3, 0)","v":{"$error":"#REF!"}},{"$error":"#REF!"},{"$error":"#REF!"}]
[null,{"$f":"IF('Step 2 EAM'!#REF!=Response_1._Unlikely, 1, 0)","v":{"$error":"#REF!"}},{"$f":"IF('Step 2 EAM'!#REF!=Response_2._Low_likelihood, 2, 0)","v":{"$error":"#REF!"}},{"$f":"IF('Step 2 EAM'!#REF!=Response_3._Likely, 3, 0)","v":{"$error":"#REF!"}},{"$error":"#REF!"},{"$f":"IF('Step 2 EAM'!#REF!=Response_1._Mild, 1, 0)","v":{"$error":"#REF!"}},{"$f":"IF('Step 2 EAM'!#REF!=Response_2._Moderate,2, 0)","v":{"$error":"#REF!"}},{"$f":"IF('Step 2 EAM'!#REF!=Response_3._Severe, 3, 0)","v":{"$error":"#REF!"}},{"$error":"#REF!"},{"$error":"#REF!"}]
[null,{"$f":"IF('Step 2 EAM'!#REF!=Response_1._Unlikely, 1, 0)","v":{"$error":"#REF!"}},{"$f":"IF('Step 2 EAM'!#REF!=Response_2._Low_likelihood, 2, 0)","v":{"$error":"#REF!"}},{"$f":"IF('Step 2 EAM'!#REF!=Response_3._Likely, 3, 0)","v":{"$error":"#REF!"}},{"$error":"#REF!"},{"$f":"IF('Step 2 EAM'!#REF!=Response_1._Mild, 1, 0)","v":{"$error":"#REF!"}},{"$f":"IF('Step 2 EAM'!#REF!=Response_2._Moderate,2, 0)","v":{"$error":"#REF!"}},{"$f":"IF('Step 2 EAM'!#REF!=Response_3._Severe, 3, 0)","v":{"$error":"#REF!"}},{"$error":"#REF!"},{"$error":"#REF!"}]
[null,{"$f":"IF('Step 2 EAM'!#REF!=Response_1._Unlikely, 1, 0)","v":{"$error":"#REF!"}},{"$f":"IF('Step 2 EAM'!#REF!=Response_2._Low_likelihood, 2, 0)","v":{"$error":"#REF!"}},{"$f":"IF('Step 2 EAM'!#REF!=Response_3._Likely, 3, 0)","v":{"$error":"#REF!"}},{"$error":"#REF!"},{"$f":"IF('Step 2 EAM'!#REF!=Response_1._Mild, 1, 0)","v":{"$error":"#REF!"}},{"$f":"IF('Step 2 EAM'!#REF!=Response_2._Moderate,2, 0)","v":{"$error":"#REF!"}},{"$f":"IF('Step 2 EAM'!#REF!=Response_3._Severe, 3, 0)","v":{"$error":"#REF!"}},{"$error":"#REF!"},{"$error":"#REF!"}]
[null,{"$f":"IF('Step 2 EAM'!#REF!=Response_1._Unlikely, 1, 0)","v":{"$error":"#REF!"}},{"$f":"IF('Step 2 EAM'!#REF!=Response_2._Low_likelihood, 2, 0)","v":{"$error":"#REF!"}},{"$f":"IF('Step 2 EAM'!#REF!=Response_3._Likely, 3, 0)","v":{"$error":"#REF!"}},{"$error":"#REF!"},{"$f":"IF('Step 2 EAM'!#REF!=Response_1._Mild, 1, 0)","v":{"$error":"#REF!"}},{"$f":"IF('Step 2 EAM'!#REF!=Response_2._Moderate,2, 0)","v":{"$error":"#REF!"}},{"$f":"IF('Step 2 EAM'!#REF!=Response_3._Severe, 3, 0)","v":{"$error":"#REF!"}},{"$error":"#REF!"},{"$error":"#REF!"}]
[null,{"$f":"IF('Step 2 EAM'!#REF!=Response_1._Unlikely, 1, 0)","v":{"$error":"#REF!"}},{"$f":"IF('Step 2 EAM'!#REF!=Response_2._Low_likelihood, 2, 0)","v":{"$error":"#REF!"}},{"$f":"IF('Step 2 EAM'!#REF!=Response_3._Likely, 3, 0)","v":{"$error":"#REF!"}},{"$error":"#REF!"},{"$f":"IF('Step 2 EAM'!#REF!=Response_1._Mild, 1, 0)","v":{"$error":"#REF!"}},{"$f":"IF('Step 2 EAM'!#REF!=Response_2._Moderate,2, 0)","v":{"$error":"#REF!"}},{"$f":"IF('Step 2 EAM'!#REF!=Response_3._Severe, 3, 0)","v":{"$error":"#REF!"}},{"$error":"#REF!"},{"$error":"#REF!"}]
[null,{"$f":"IF('Step 2 EAM'!#REF!=Response_1._Unlikely, 1, 0)","v":{"$error":"#REF!"}},{"$f":"IF('Step 2 EAM'!#REF!=Response_2._Low_likelihood, 2, 0)","v":{"$error":"#REF!"}},{"$f":"IF('Step 2 EAM'!#REF!=Response_3._Likely, 3, 0)","v":{"$error":"#REF!"}},{"$error":"#REF!"},{"$f":"IF('Step 2 EAM'!#REF!=Response_1._Mild, 1, 0)","v":{"$error":"#REF!"}},{"$f":"IF('Step 2 EAM'!#REF!=Response_2._Moderate,2, 0)","v":{"$error":"#REF!"}},{"$f":"IF('Step 2 EAM'!#REF!=Response_3._Severe, 3, 0)","v":{"$error":"#REF!"}},{"$error":"#REF!"},{"$error":"#REF!"}]
[null,{"$f":"IF('Step 2 EAM'!#REF!=Response_1._Unlikely, 1, 0)","v":{"$error":"#REF!"}},{"$f":"IF('Step 2 EAM'!#REF!=Response_2._Low_likelihood, 2, 0)","v":{"$error":"#REF!"}},{"$f":"IF('Step 2 EAM'!#REF!=Response_3._Likely, 3, 0)","v":{"$error":"#REF!"}},{"$error":"#REF!"},{"$f":"IF('Step 2 EAM'!#REF!=Response_1._Mild, 1, 0)","v":{"$error":"#REF!"}},{"$f":"IF('Step 2 EAM'!#REF!=Response_2._Moderate,2, 0)","v":{"$error":"#REF!"}},{"$f":"IF('Step 2 EAM'!#REF!=Response_3._Severe, 3, 0)","v":{"$error":"#REF!"}},{"$error":"#REF!"},{"$error":"#REF!"}]
[null,{"$f":"IF('Step 2 EAM'!#REF!=Response_1._Unlikely, 1, 0)","v":{"$error":"#REF!"}},{"$f":"IF('Step 2 EAM'!#REF!=Response_2._Low_likelihood, 2, 0)","v":{"$error":"#REF!"}},{"$f":"IF('Step 2 EAM'!#REF!=Response_3._Likely, 3, 0)","v":{"$error":"#REF!"}},{"$error":"#REF!"},{"$f":"IF('Step 2 EAM'!#REF!=Response_1._Mild, 1, 0)","v":{"$error":"#REF!"}},{"$f":"IF('Step 2 EAM'!#REF!=Response_2._Moderate,2, 0)","v":{"$error":"#REF!"}},{"$f":"IF('Step 2 EAM'!#REF!=Response_3._Severe, 3, 0)","v":{"$error":"#REF!"}},{"$error":"#REF!"},{"$error":"#REF!"}]
[null,{"$f":"IF('Step 2 EAM'!#REF!=Response_1._Unlikely, 1, 0)","v":{"$error":"#REF!"}},{"$f":"IF('Step 2 EAM'!#REF!=Response_2._Low_likelihood, 2, 0)","v":{"$error":"#REF!"}},{"$f":"IF('Step 2 EAM'!#REF!=Response_3._Likely, 3, 0)","v":{"$error":"#REF!"}},{"$error":"#REF!"},{"$f":"IF('Step 2 EAM'!#REF!=Response_1._Mild, 1, 0)","v":{"$error":"#REF!"}},{"$f":"IF('Step 2 EAM'!#REF!=Response_2._Moderate,2, 0)","v":{"$error":"#REF!"}},{"$f":"IF('Step 2 EAM'!#REF!=Response_3._Severe, 3, 0)","v":{"$error":"#REF!"}},{"$error":"#REF!"},{"$error":"#REF!"}]
[null,{"$f":"IF('Step 2 EAM'!#REF!=Response_1._Unlikely, 1, 0)","v":{"$error":"#REF!"}},{"$f":"IF('Step 2 EAM'!#REF!=Response_2._Low_likelihood, 2, 0)","v":{"$error":"#REF!"}},{"$f":"IF('Step 2 EAM'!#REF!=Response_3._Likely, 3, 0)","v":{"$error":"#REF!"}},{"$error":"#REF!"},{"$f":"IF('Step 2 EAM'!#REF!=Response_1._Mild, 1, 0)","v":{"$error":"#REF!"}},{"$f":"IF('Step 2 EAM'!#REF!=Response_2._Moderate,2, 0)","v":{"$error":"#REF!"}},{"$f":"IF('Step 2 EAM'!#REF!=Response_3._Severe, 3, 0)","v":{"$error":"#REF!"}},{"$error":"#REF!"},{"$error":"#REF!"}]
[null,{"$f":"IF('Step 2 EAM'!#REF!=Response_1._Unlikely, 1, 0)","v":{"$error":"#REF!"}},{"$f":"IF('Step 2 EAM'!#REF!=Response_2._Low_likelihood, 2, 0)","v":{"$error":"#REF!"}},{"$f":"IF('Step 2 EAM'!#REF!=Response_3._Likely, 3, 0)","v":{"$error":"#REF!"}},{"$error":"#REF!"},{"$f":"IF('Step 2 EAM'!#REF!=Response_1._Mild, 1, 0)","v":{"$error":"#REF!"}},{"$f":"IF('Step 2 EAM'!#REF!=Response_2._Moderate,2, 0)","v":{"$error":"#REF!"}},{"$f":"IF('Step 2 EAM'!#REF!=Response_3._Severe, 3, 0)","v":{"$error":"#REF!"}},{"$error":"#REF!"},{"$error":"#REF!"}]
[null,{"$f":"IF('Step 2 EAM'!#REF!=Response_1._Unlikely, 1, 0)","v":{"$error":"#REF!"}},{"$f":"IF('Step 2 EAM'!#REF!=Response_2._Low_likelihood, 2, 0)","v":{"$error":"#REF!"}},{"$f":"IF('Step 2 EAM'!#REF!=Response_3._Likely, 3, 0)","v":{"$error":"#REF!"}},{"$error":"#REF!"},{"$f":"IF('Step 2 EAM'!#REF!=Response_1._Mild, 1, 0)","v":{"$error":"#REF!"}},{"$f":"IF('Step 2 EAM'!#REF!=Response_2._Moderate,2, 0)","v":{"$error":"#REF!"}},{"$f":"IF('Step 2 EAM'!#REF!=Response_3._Severe, 3, 0)","v":{"$error":"#REF!"}},{"$error":"#REF!"},{"$error":"#REF!"}]
[null,{"$f":"IF('Step 2 EAM'!#REF!=Response_1._Unlikely, 1, 0)","v":{"$error":"#REF!"}},{"$f":"IF('Step 2 EAM'!#REF!=Response_2._Low_likelihood, 2, 0)","v":{"$error":"#REF!"}},{"$f":"IF('Step 2 EAM'!#REF!=Response_3._Likely, 3, 0)","v":{"$error":"#REF!"}},{"$error":"#REF!"},{"$f":"IF('Step 2 EAM'!#REF!=Response_1._Mild, 1, 0)","v":{"$error":"#REF!"}},{"$f":"IF('Step 2 EAM'!#REF!=Response_2._Moderate,2, 0)","v":{"$error":"#REF!"}},{"$f":"IF('Step 2 EAM'!#REF!=Response_3._Severe, 3, 0)","v":{"$error":"#REF!"}},{"$error":"#REF!"},{"$error":"#REF!"}]
[null,{"$f":"IF('Step 2 EAM'!#REF!=Response_1._Unlikely, 1, 0)","v":{"$error":"#REF!"}},{"$f":"IF('Step 2 EAM'!#REF!=Response_2._Low_likelihood, 2, 0)","v":{"$error":"#REF!"}},{"$f":"IF('Step 2 EAM'!#REF!=Response_3._Likely, 3, 0)","v":{"$error":"#REF!"}},{"$error":"#REF!"},{"$f":"IF('Step 2 EAM'!#REF!=Response_1._Mild, 1, 0)","v":{"$error":"#REF!"}},{"$f":"IF('Step 2 EAM'!#REF!=Response_2._Moderate,2, 0)","v":{"$error":"#REF!"}},{"$f":"IF('Step 2 EAM'!#REF!=Response_3._Severe, 3, 0)","v":{"$error":"#REF!"}},{"$error":"#REF!"},{"$error":"#REF!"}]
[null,{"$f":"IF('Step 2 EAM'!#REF!=Response_1._Unlikely, 1, 0)","v":{"$error":"#REF!"}},{"$f":"IF('Step 2 EAM'!#REF!=Response_2._Low_likelihood, 2, 0)","v":{"$error":"#REF!"}},{"$f":"IF('Step 2 EAM'!#REF!=Response_3._Likely, 3, 0)","v":{"$error":"#REF!"}},{"$error":"#REF!"},{"$f":"IF('Step 2 EAM'!#REF!=Response_1._Mild, 1, 0)","v":{"$error":"#REF!"}},{"$f":"IF('Step 2 EAM'!#REF!=Response_2._Moderate,2, 0)","v":{"$error":"#REF!"}},{"$f":"IF('Step 2 EAM'!#REF!=Response_3._Severe, 3, 0)","v":{"$error":"#REF!"}},{"$error":"#REF!"},{"$error":"#REF!"}]
[null,{"$f":"IF('Step 2 EAM'!#REF!=Response_1._Unlikely, 1, 0)","v":{"$error":"#REF!"}},{"$f":"IF('Step 2 EAM'!#REF!=Response_2._Low_likelihood, 2, 0)","v":{"$error":"#REF!"}},{"$f":"IF('Step 2 EAM'!#REF!=Response_3._Likely, 3, 0)","v":{"$error":"#REF!"}},{"$error":"#REF!"},{"$f":"IF('Step 2 EAM'!#REF!=Response_1._Mild, 1, 0)","v":{"$error":"#REF!"}},{"$f":"IF('Step 2 EAM'!#REF!=Response_2._Moderate,2, 0)","v":{"$error":"#REF!"}},{"$f":"IF('Step 2 EAM'!#REF!=Response_3._Severe, 3, 0)","v":{"$error":"#REF!"}},{"$error":"#REF!"},{"$error":"#REF!"}]
[null,{"$f":"IF('Step 2 EAM'!#REF!=Response_1._Unlikely, 1, 0)","v":{"$error":"#REF!"}},{"$f":"IF('Step 2 EAM'!#REF!=Response_2._Low_likelihood, 2, 0)","v":{"$error":"#REF!"}},{"$f":"IF('Step 2 EAM'!#REF!=Response_3._Likely, 3, 0)","v":{"$error":"#REF!"}},{"$error":"#REF!"},{"$f":"IF('Step 2 EAM'!#REF!=Response_1._Mild, 1, 0)","v":{"$error":"#REF!"}},{"$f":"IF('Step 2 EAM'!#REF!=Response_2._Moderate,2, 0)","v":{"$error":"#REF!"}},{"$f":"IF('Step 2 EAM'!#REF!=Response_3._Severe, 3, 0)","v":{"$error":"#REF!"}},{"$error":"#REF!"},{"$error":"#REF!"}]
[null,{"$f":"IF('Step 2 EAM'!#REF!=Response_1._Unlikely, 1, 0)","v":{"$error":"#REF!"}},{"$f":"IF('Step 2 EAM'!#REF!=Response_2._Low_likelihood, 2, 0)","v":{"$error":"#REF!"}},{"$f":"IF('Step 2 EAM'!#REF!=Response_3._Likely, 3, 0)","v":{"$error":"#REF!"}},{"$error":"#REF!"},{"$f":"IF('Step 2 EAM'!#REF!=Response_1._Mild, 1, 0)","v":{"$error":"#REF!"}},{"$f":"IF('Step 2 EAM'!#REF!=Response_2._Moderate,2, 0)","v":{"$error":"#REF!"}},{"$f":"IF('Step 2 EAM'!#REF!=Response_3._Severe, 3, 0)","v":{"$error":"#REF!"}},{"$error":"#REF!"},{"$error":"#REF!"}]
[null,{"$f":"IF('Step 2 EAM'!#REF!=Response_1._Unlikely, 1, 0)","v":{"$error":"#REF!"}},{"$f":"IF('Step 2 EAM'!#REF!=Response_2._Low_likelihood, 2, 0)","v":{"$error":"#REF!"}},{"$f":"IF('Step 2 EAM'!#REF!=Response_3._Likely, 3, 0)","v":{"$error":"#REF!"}},{"$error":"#REF!"},{"$f":"IF('Step 2 EAM'!#REF!=Response_1._Mild, 1, 0)","v":{"$error":"#REF!"}},{"$f":"IF('Step 2 EAM'!#REF!=Response_2._Moderate,2, 0)","v":{"$error":"#REF!"}},{"$f":"IF('Step 2 EAM'!#REF!=Response_3._Severe, 3, 0)","v":{"$error":"#REF!"}},{"$error":"#REF!"},{"$error":"#REF!"}]
[null,{"$f":"IF('Step 2 EAM'!#REF!=Response_1._Unlikely, 1, 0)","v":{"$error":"#REF!"}},{"$f":"IF('Step 2 EAM'!#REF!=Response_2._Low_likelihood, 2, 0)","v":{"$error":"#REF!"}},{"$f":"IF('Step 2 EAM'!#REF!=Response_3._Likely, 3, 0)","v":{"$error":"#REF!"}},{"$error":"#REF!"},{"$f":"IF('Step 2 EAM'!#REF!=Response_1._Mild, 1, 0)","v":{"$error":"#REF!"}},{"$f":"IF('Step 2 EAM'!#REF!=Response_2._Moderate,2, 0)","v":{"$error":"#REF!"}},{"$f":"IF('Step 2 EAM'!#REF!=Response_3._Severe, 3, 0)","v":{"$error":"#REF!"}},{"$error":"#REF!"},{"$error":"#REF!"}]
[null,{"$f":"IF('Step 2 EAM'!#REF!=Response_1._Unlikely, 1, 0)","v":{"$error":"#REF!"}},{"$f":"IF('Step 2 EAM'!#REF!=Response_2._Low_likelihood, 2, 0)","v":{"$error":"#REF!"}},{"$f":"IF('Step 2 EAM'!#REF!=Response_3._Likely, 3, 0)","v":{"$error":"#REF!"}},{"$error":"#REF!"},{"$f":"IF('Step 2 EAM'!#REF!=Response_1._Mild, 1, 0)","v":{"$error":"#REF!"}},{"$f":"IF('Step 2 EAM'!#REF!=Response_2._Moderate,2, 0)","v":{"$error":"#REF!"}},{"$f":"IF('Step 2 EAM'!#REF!=Response_3._Severe, 3, 0)","v":{"$error":"#REF!"}},{"$error":"#REF!"},{"$error":"#REF!"}]
[null,{"$f":"IF('Step 2 EAM'!#REF!=Response_1._Unlikely, 1, 0)","v":{"$error":"#REF!"}},{"$f":"IF('Step 2 EAM'!#REF!=Response_2._Low_likelihood, 2, 0)","v":{"$error":"#REF!"}},{"$f":"IF('Step 2 EAM'!#REF!=Response_3._Likely, 3, 0)","v":{"$error":"#REF!"}},{"$error":"#REF!"},{"$f":"IF('Step 2 EAM'!#REF!=Response_1._Mild, 1, 0)","v":{"$error":"#REF!"}},{"$f":"IF('Step 2 EAM'!#REF!=Response_2._Moderate,2, 0)","v":{"$error":"#REF!"}},{"$f":"IF('Step 2 EAM'!#REF!=Response_3._Severe, 3, 0)","v":{"$error":"#REF!"}},{"$error":"#REF!"},{"$error":"#REF!"}]
[null,{"$f":"IF('Step 2 EAM'!#REF!=Response_1._Unlikely, 1, 0)","v":{"$error":"#REF!"}},{"$f":"IF('Step 2 EAM'!#REF!=Response_2._Low_likelihood, 2, 0)","v":{"$error":"#REF!"}},{"$f":"IF('Step 2 EAM'!#REF!=Response_3._Likely, 3, 0)","v":{"$error":"#REF!"}},{"$error":"#REF!"},{"$f":"IF('Step 2 EAM'!#REF!=Response_1._Mild, 1, 0)","v":{"$error":"#REF!"}},{"$f":"IF('Step 2 EAM'!#REF!=Response_2._Moderate,2, 0)","v":{"$error":"#REF!"}},{"$f":"IF('Step 2 EAM'!#REF!=Response_3._Severe, 3, 0)","v":{"$error":"#REF!"}},{"$error":"#REF!"},{"$error":"#REF!"}]
[null,{"$f":"IF('Step 2 EAM'!#REF!=Response_1._Unlikely, 1, 0)","v":{"$error":"#REF!"}},{"$f":"IF('Step 2 EAM'!#REF!=Response_2._Low_likelihood, 2, 0)","v":{"$error":"#REF!"}},{"$f":"IF('Step 2 EAM'!#REF!=Response_3._Likely, 3, 0)","v":{"$error":"#REF!"}},{"$error":"#REF!"},{"$f":"IF('Step 2 EAM'!#REF!=Response_1._Mild, 1, 0)","v":{"$error":"#REF!"}},{"$f":"IF('Step 2 EAM'!#REF!=Response_2._Moderate,2, 0)","v":{"$error":"#REF!"}},{"$f":"IF('Step 2 EAM'!#REF!=Response_3._Severe, 3, 0)","v":{"$error":"#REF!"}},{"$error":"#REF!"},{"$error":"#REF!"}]
[null,{"$f":"IF('Step 2 EAM'!#REF!=Response_1._Unlikely, 1, 0)","v":{"$error":"#REF!"}},{"$f":"IF('Step 2 EAM'!#REF!=Response_2._Low_likelihood, 2, 0)","v":{"$error":"#REF!"}},{"$f":"IF('Step 2 EAM'!#REF!=Response_3._Likely, 3, 0)","v":{"$error":"#REF!"}},{"$error":"#REF!"},{"$f":"IF('Step 2 EAM'!#REF!=Response_1._Mild, 1, 0)","v":{"$error":"#REF!"}},{"$f":"IF('Step 2 EAM'!#REF!=Response_2._Moderate,2, 0)","v":{"$error":"#REF!"}},{"$f":"IF('Step 2 EAM'!#REF!=Response_3._Severe, 3, 0)","v":{"$error":"#REF!"}},{"$error":"#REF!"},{"$error":"#REF!"}]
[null,{"$f":"IF('Step 2 EAM'!#REF!=Response_1._Unlikely, 1, 0)","v":{"$error":"#REF!"}},{"$f":"IF('Step 2 EAM'!#REF!=Response_2._Low_likelihood, 2, 0)","v":{"$error":"#REF!"}},{"$f":"IF('Step 2 EAM'!#REF!=Response_3._Likely, 3, 0)","v":{"$error":"#REF!"}},{"$f":"SUM(B260:D260)","v":{"$error":"#REF!"}},{"$f":"IF('Step 2 EAM'!#REF!=Response_1._Mild, 1, 0)","v":{"$error":"#REF!"}},{"$f":"IF('Step 2 EAM'!#REF!=Response_2._Moderate,2, 0)","v":{"$error":"#REF!"}},{"$f":"IF('Step 2 EAM'!#REF!=Response_3._Severe, 3, 0)","v":{"$error":"#REF!"}},{"$f":"SUM(F260:H260)","v":{"$error":"#REF!"}},{"$f":"I260*E260","v":{"$error":"#REF!"}}]
[null,{"$f":"IF('Step 2 EAM'!#REF!=Response_1._Unlikely, 1, 0)","v":{"$error":"#REF!"}},{"$f":"IF('Step 2 EAM'!#REF!=Response_2._Low_likelihood, 2, 0)","v":{"$error":"#REF!"}},{"$f":"IF('Step 2 EAM'!#REF!=Response_3._Likely, 3, 0)","v":{"$error":"#REF!"}},{"$error":"#REF!"},{"$f":"IF('Step 2 EAM'!#REF!=Response_1._Mild, 1, 0)","v":{"$error":"#REF!"}},{"$f":"IF('Step 2 EAM'!#REF!=Response_2._Moderate,2, 0)","v":{"$error":"#REF!"}},{"$f":"IF('Step 2 EAM'!#REF!=Response_3._Severe, 3, 0)","v":{"$error":"#REF!"}},{"$error":"#REF!"},{"$error":"#REF!"}]
[null,{"$f":"IF('Step 2 EAM'!#REF!=Response_1._Unlikely, 1, 0)","v":{"$error":"#REF!"}},{"$f":"IF('Step 2 EAM'!#REF!=Response_2._Low_likelihood, 2, 0)","v":{"$error":"#REF!"}},{"$f":"IF('Step 2 EAM'!#REF!=Response_3._Likely, 3, 0)","v":{"$error":"#REF!"}},{"$error":"#REF!"},{"$f":"IF('Step 2 EAM'!#REF!=Response_1._Mild, 1, 0)","v":{"$error":"#REF!"}},{"$f":"IF('Step 2 EAM'!#REF!=Response_2._Moderate,2, 0)","v":{"$error":"#REF!"}},{"$f":"IF('Step 2 EAM'!#REF!=Response_3._Severe, 3, 0)","v":{"$error":"#REF!"}},{"$error":"#REF!"},{"$error":"#REF!"}]
[null,{"$f":"IF('Step 2 EAM'!#REF!=Response_1._Unlikely, 1, 0)","v":{"$error":"#REF!"}},{"$f":"IF('Step 2 EAM'!#REF!=Response_2._Low_likelihood, 2, 0)","v":{"$error":"#REF!"}},{"$f":"IF('Step 2 EAM'!#REF!=Response_3._Likely, 3, 0)","v":{"$error":"#REF!"}},{"$error":"#REF!"},{"$f":"IF('Step 2 EAM'!#REF!=Response_1._Mild, 1, 0)","v":{"$error":"#REF!"}},{"$f":"IF('Step 2 EAM'!#REF!=Response_2._Moderate,2, 0)","v":{"$error":"#REF!"}},{"$f":"IF('Step 2 EAM'!#REF!=Response_3._Severe, 3, 0)","v":{"$error":"#REF!"}},{"$error":"#REF!"},{"$error":"#REF!"}]
[null,{"$f":"IF('Step 2 EAM'!#REF!=Response_1._Unlikely, 1, 0)","v":{"$error":"#REF!"}},{"$f":"IF('Step 2 EAM'!#REF!=Response_2._Low_likelihood, 2, 0)","v":{"$error":"#REF!"}},{"$f":"IF('Step 2 EAM'!#REF!=Response_3._Likely, 3, 0)","v":{"$error":"#REF!"}},{"$error":"#REF!"},{"$f":"IF('Step 2 EAM'!#REF!=Response_1._Mild, 1, 0)","v":{"$error":"#REF!"}},{"$f":"IF('Step 2 EAM'!#REF!=Response_2._Moderate,2, 0)","v":{"$error":"#REF!"}},{"$f":"IF('Step 2 EAM'!#REF!=Response_3._Severe, 3, 0)","v":{"$error":"#REF!"}},{"$error":"#REF!"},{"$error":"#REF!"}]
[null,{"$f":"IF('Step 2 EAM'!#REF!=Response_1._Unlikely, 1, 0)","v":{"$error":"#REF!"}},{"$f":"IF('Step 2 EAM'!#REF!=Response_2._Low_likelihood, 2, 0)","v":{"$error":"#REF!"}},{"$f":"IF('Step 2 EAM'!#REF!=Response_3._Likely, 3, 0)","v":{"$error":"#REF!"}},{"$error":"#REF!"},{"$f":"IF('Step 2 EAM'!#REF!=Response_1._Mild, 1, 0)","v":{"$error":"#REF!"}},{"$f":"IF('Step 2 EAM'!#REF!=Response_2._Moderate,2, 0)","v":{"$error":"#REF!"}},{"$f":"IF('Step 2 EAM'!#REF!=Response_3._Severe, 3, 0)","v":{"$error":"#REF!"}},{"$error":"#REF!"},{"$error":"#REF!"}]
[null,{"$f":"IF('Step 2 EAM'!#REF!=Response_1._Unlikely, 1, 0)","v":{"$error":"#REF!"}},{"$f":"IF('Step 2 EAM'!#REF!=Response_2._Low_likelihood, 2, 0)","v":{"$error":"#REF!"}},{"$f":"IF('Step 2 EAM'!#REF!=Response_3._Likely, 3, 0)","v":{"$error":"#REF!"}},{"$error":"#REF!"},{"$f":"IF('Step 2 EAM'!#REF!=Response_1._Mild, 1, 0)","v":{"$error":"#REF!"}},{"$f":"IF('Step 2 EAM'!#REF!=Response_2._Moderate,2, 0)","v":{"$error":"#REF!"}},{"$f":"IF('Step 2 EAM'!#REF!=Response_3._Severe, 3, 0)","v":{"$error":"#REF!"}},{"$error":"#REF!"},{"$error":"#REF!"}]
[null,{"$f":"IF('Step 2 EAM'!#REF!=Response_1._Unlikely, 1, 0)","v":{"$error":"#REF!"}},{"$f":"IF('Step 2 EAM'!#REF!=Response_2._Low_likelihood, 2, 0)","v":{"$error":"#REF!"}},{"$f":"IF('Step 2 EAM'!#REF!=Response_3._Likely, 3, 0)","v":{"$error":"#REF!"}},{"$error":"#REF!"},{"$f":"IF('Step 2 EAM'!#REF!=Response_1._Mild, 1, 0)","v":{"$error":"#REF!"}},{"$f":"IF('Step 2 EAM'!#REF!=Response_2._Moderate,2, 0)","v":{"$error":"#REF!"}},{"$f":"IF('Step 2 EAM'!#REF!=Response_3._Severe, 3, 0)","v":{"$error":"#REF!"}},{"$error":"#REF!"},{"$error":"#REF!"}]
[null,{"$f":"IF('Step 2 EAM'!#REF!=Response_1._Unlikely, 1, 0)","v":{"$error":"#REF!"}},{"$f":"IF('Step 2 EAM'!#REF!=Response_2._Low_likelihood, 2, 0)","v":{"$error":"#REF!"}},{"$f":"IF('Step 2 EAM'!#REF!=Response_3._Likely, 3, 0)","v":{"$error":"#REF!"}},{"$error":"#REF!"},{"$f":"IF('Step 2 EAM'!#REF!=Response_1._Mild, 1, 0)","v":{"$error":"#REF!"}},{"$f":"IF('Step 2 EAM'!#REF!=Response_2._Moderate,2, 0)","v":{"$error":"#REF!"}},{"$f":"IF('Step 2 EAM'!#REF!=Response_3._Severe, 3, 0)","v":{"$error":"#REF!"}},{"$error":"#REF!"},{"$error":"#REF!"}]
[null,{"$f":"IF('Step 2 EAM'!#REF!=Response_1._Unlikely, 1, 0)","v":{"$error":"#REF!"}},{"$f":"IF('Step 2 EAM'!#REF!=Response_2._Low_likelihood, 2, 0)","v":{"$error":"#REF!"}},{"$f":"IF('Step 2 EAM'!#REF!=Response_3._Likely, 3, 0)","v":{"$error":"#REF!"}},{"$error":"#REF!"},{"$f":"IF('Step 2 EAM'!#REF!=Response_1._Mild, 1, 0)","v":{"$error":"#REF!"}},{"$f":"IF('Step 2 EAM'!#REF!=Response_2._Moderate,2, 0)","v":{"$error":"#REF!"}},{"$f":"IF('Step 2 EAM'!#REF!=Response_3._Severe, 3, 0)","v":{"$error":"#REF!"}},{"$error":"#REF!"},{"$error":"#REF!"}]
[null,{"$f":"IF('Step 2 EAM'!#REF!=Response_1._Unlikely, 1, 0)","v":{"$error":"#REF!"}},{"$f":"IF('Step 2 EAM'!#REF!=Response_2._Low_likelihood, 2, 0)","v":{"$error":"#REF!"}},{"$f":"IF('Step 2 EAM'!#REF!=Response_3._Likely, 3, 0)","v":{"$error":"#REF!"}},{"$error":"#REF!"},{"$f":"IF('Step 2 EAM'!#REF!=Response_1._Mild, 1, 0)","v":{"$error":"#REF!"}},{"$f":"IF('Step 2 EAM'!#REF!=Response_2._Moderate,2, 0)","v":{"$error":"#REF!"}},{"$f":"IF('Step 2 EAM'!#REF!=Response_3._Severe, 3, 0)","v":{"$error":"#REF!"}},{"$error":"#REF!"},{"$error":"#REF!"}]
[null,{"$f":"IF('Step 2 EAM'!#REF!=Response_1._Unlikely, 1, 0)","v":{"$error":"#REF!"}},{"$f":"IF('Step 2 EAM'!#REF!=Response_2._Low_likelihood, 2, 0)","v":{"$error":"#REF!"}},{"$f":"IF('Step 2 EAM'!#REF!=Response_3._Likely, 3, 0)","v":{"$error":"#REF!"}},{"$error":"#REF!"},{"$f":"IF('Step 2 EAM'!#REF!=Response_1._Mild, 1, 0)","v":{"$error":"#REF!"}},{"$f":"IF('Step 2 EAM'!#REF!=Response_2._Moderate,2, 0)","v":{"$error":"#REF!"}},{"$f":"IF('Step 2 EAM'!#REF!=Response_3._Severe, 3, 0)","v":{"$error":"#REF!"}},{"$error":"#REF!"},{"$error":"#REF!"}]
[null,{"$f":"IF('Step 2 EAM'!#REF!=Response_1._Unlikely, 1, 0)","v":{"$error":"#REF!"}},{"$f":"IF('Step 2 EAM'!#REF!=Response_2._Low_likelihood, 2, 0)","v":{"$error":"#REF!"}},{"$f":"IF('Step 2 EAM'!#REF!=Response_3._Likely, 3, 0)","v":{"$error":"#REF!"}},{"$error":"#REF!"},{"$f":"IF('Step 2 EAM'!#REF!=Response_1._Mild, 1, 0)","v":{"$error":"#REF!"}},{"$f":"IF('Step 2 EAM'!#REF!=Response_2._Moderate,2, 0)","v":{"$error":"#REF!"}},{"$f":"IF('Step 2 EAM'!#REF!=Response_3._Severe, 3, 0)","v":{"$error":"#REF!"}},{"$error":"#REF!"},{"$error":"#REF!"}]
[null,{"$f":"IF('Step 2 EAM'!#REF!=Response_1._Unlikely, 1, 0)","v":{"$error":"#REF!"}},{"$f":"IF('Step 2 EAM'!#REF!=Response_2._Low_likelihood, 2, 0)","v":{"$error":"#REF!"}},{"$f":"IF('Step 2 EAM'!#REF!=Response_3._Likely, 3, 0)","v":{"$error":"#REF!"}},{"$error":"#REF!"},{"$f":"IF('Step 2 EAM'!#REF!=Response_1._Mild, 1, 0)","v":{"$error":"#REF!"}},{"$f":"IF('Step 2 EAM'!#REF!=Response_2._Moderate,2, 0)","v":{"$error":"#REF!"}},{"$f":"IF('Step 2 EAM'!#REF!=Response_3._Severe, 3, 0)","v":{"$error":"#REF!"}},{"$error":"#REF!"},{"$error":"#REF!"}]
[null,{"$f":"IF('Step 2 EAM'!#REF!=Response_1._Unlikely, 1, 0)","v":{"$error":"#REF!"}},{"$f":"IF('Step 2 EAM'!#REF!=Response_2._Low_likelihood, 2, 0)","v":{"$error":"#REF!"}},{"$f":"IF('Step 2 EAM'!#REF!=Response_3._Likely, 3, 0)","v":{"$error":"#REF!"}},{"$error":"#REF!"},{"$f":"IF('Step 2 EAM'!#REF!=Response_1._Mild, 1, 0)","v":{"$error":"#REF!"}},{"$f":"IF('Step 2 EAM'!#REF!=Response_2._Moderate,2, 0)","v":{"$error":"#REF!"}},{"$f":"IF('Step 2 EAM'!#REF!=Response_3._Severe, 3, 0)","v":{"$error":"#REF!"}},{"$error":"#REF!"},{"$error":"#REF!"}]
[null,{"$f":"IF('Step 2 EAM'!#REF!=Response_1._Unlikely, 1, 0)","v":{"$error":"#REF!"}},{"$f":"IF('Step 2 EAM'!#REF!=Response_2._Low_likelihood, 2, 0)","v":{"$error":"#REF!"}},{"$f":"IF('Step 2 EAM'!#REF!=Response_3._Likely, 3, 0)","v":{"$error":"#REF!"}},{"$error":"#REF!"},{"$f":"IF('Step 2 EAM'!#REF!=Response_1._Mild, 1, 0)","v":{"$error":"#REF!"}},{"$f":"IF('Step 2 EAM'!#REF!=Response_2._Moderate,2, 0)","v":{"$error":"#REF!"}},{"$f":"IF('Step 2 EAM'!#REF!=Response_3._Severe, 3, 0)","v":{"$error":"#REF!"}},{"$error":"#REF!"},{"$error":"#REF!"}]
[null,{"$f":"IF('Step 2 EAM'!#REF!=Response_1._Unlikely, 1, 0)","v":{"$error":"#REF!"}},{"$f":"IF('Step 2 EAM'!#REF!=Response_2._Low_likelihood, 2, 0)","v":{"$error":"#REF!"}},{"$f":"IF('Step 2 EAM'!#REF!=Response_3._Likely, 3, 0)","v":{"$error":"#REF!"}},{"$error":"#REF!"},{"$f":"IF('Step 2 EAM'!#REF!=Response_1._Mild, 1, 0)","v":{"$error":"#REF!"}},{"$f":"IF('Step 2 EAM'!#REF!=Response_2._Moderate,2, 0)","v":{"$error":"#REF!"}},{"$f":"IF('Step 2 EAM'!#REF!=Response_3._Severe, 3, 0)","v":{"$error":"#REF!"}},{"$error":"#REF!"},{"$error":"#REF!"}]
[null,{"$f":"IF('Step 2 EAM'!#REF!=Response_1._Unlikely, 1, 0)","v":{"$error":"#REF!"}},{"$f":"IF('Step 2 EAM'!#REF!=Response_2._Low_likelihood, 2, 0)","v":{"$error":"#REF!"}},{"$f":"IF('Step 2 EAM'!#REF!=Response_3._Likely, 3, 0)","v":{"$error":"#REF!"}},{"$error":"#REF!"},{"$f":"IF('Step 2 EAM'!#REF!=Response_1._Mild, 1, 0)","v":{"$error":"#REF!"}},{"$f":"IF('Step 2 EAM'!#REF!=Response_2._Moderate,2, 0)","v":{"$error":"#REF!"}},{"$f":"IF('Step 2 EAM'!#REF!=Response_3._Severe, 3, 0)","v":{"$error":"#REF!"}},{"$error":"#REF!"},{"$error":"#REF!"}]
[null,{"$f":"IF('Step 2 EAM'!#REF!=Response_1._Unlikely, 1, 0)","v":{"$error":"#REF!"}},{"$f":"IF('Step 2 EAM'!#REF!=Response_2._Low_likelihood, 2, 0)","v":{"$error":"#REF!"}},{"$f":"IF('Step 2 EAM'!#REF!=Response_3._Likely, 3, 0)","v":{"$error":"#REF!"}},{"$error":"#REF!"},{"$f":"IF('Step 2 EAM'!#REF!=Response_1._Mild, 1, 0)","v":{"$error":"#REF!"}},{"$f":"IF('Step 2 EAM'!#REF!=Response_2._Moderate,2, 0)","v":{"$error":"#REF!"}},{"$f":"IF('Step 2 EAM'!#REF!=Response_3._Severe, 3, 0)","v":{"$error":"#REF!"}},{"$error":"#REF!"},{"$error":"#REF!"}]
[null,{"$f":"IF('Step 2 EAM'!#REF!=Response_1._Unlikely, 1, 0)","v":{"$error":"#REF!"}},{"$f":"IF('Step 2 EAM'!#REF!=Response_2._Low_likelihood, 2, 0)","v":{"$error":"#REF!"}},{"$f":"IF('Step 2 EAM'!#REF!=Response_3._Likely, 3, 0)","v":{"$error":"#REF!"}},{"$error":"#REF!"},{"$f":"IF('Step 2 EAM'!#REF!=Response_1._Mild, 1, 0)","v":{"$error":"#REF!"}},{"$f":"IF('Step 2 EAM'!#REF!=Response_2._Moderate,2, 0)","v":{"$error":"#REF!"}},{"$f":"IF('Step 2 EAM'!#REF!=Response_3._Severe, 3, 0)","v":{"$error":"#REF!"}},{"$error":"#REF!"},{"$error":"#REF!"}]
[null,{"$f":"IF('Step 2 EAM'!#REF!=Response_1._Unlikely, 1, 0)","v":{"$error":"#REF!"}},{"$f":"IF('Step 2 EAM'!#REF!=Response_2._Low_likelihood, 2, 0)","v":{"$error":"#REF!"}},{"$f":"IF('Step 2 EAM'!#REF!=Response_3._Likely, 3, 0)","v":{"$error":"#REF!"}},{"$error":"#REF!"},{"$f":"IF('Step 2 EAM'!#REF!=Response_1._Mild, 1, 0)","v":{"$error":"#REF!"}},{"$f":"IF('Step 2 EAM'!#REF!=Response_2._Moderate,2, 0)","v":{"$error":"#REF!"}},{"$f":"IF('Step 2 EAM'!#REF!=Response_3._Severe, 3, 0)","v":{"$error":"#REF!"}},{"$error":"#REF!"},{"$error":"#REF!"}]
[null,{"$f":"IF('Step 2 EAM'!#REF!=Response_1._Unlikely, 1, 0)","v":{"$error":"#REF!"}},{"$f":"IF('Step 2 EAM'!#REF!=Response_2._Low_likelihood, 2, 0)","v":{"$error":"#REF!"}},{"$f":"IF('Step 2 EAM'!#REF!=Response_3._Likely, 3, 0)","v":{"$error":"#REF!"}},{"$error":"#REF!"},{"$f":"IF('Step 2 EAM'!#REF!=Response_1._Mild, 1, 0)","v":{"$error":"#REF!"}},{"$f":"IF('Step 2 EAM'!#REF!=Response_2._Moderate,2, 0)","v":{"$error":"#REF!"}},{"$f":"IF('Step 2 EAM'!#REF!=Response_3._Severe, 3, 0)","v":{"$error":"#REF!"}},{"$error":"#REF!"},{"$error":"#REF!"}]
[null,{"$f":"IF('Step 2 EAM'!#REF!=Response_1._Unlikely, 1, 0)","v":{"$error":"#REF!"}},{"$f":"IF('Step 2 EAM'!#REF!=Response_2._Low_likelihood, 2, 0)","v":{"$error":"#REF!"}},{"$f":"IF('Step 2 EAM'!#REF!=Response_3._Likely, 3, 0)","v":{"$error":"#REF!"}},{"$error":"#REF!"},{"$f":"IF('Step 2 EAM'!#REF!=Response_1._Mild, 1, 0)","v":{"$error":"#REF!"}},{"$f":"IF('Step 2 EAM'!#REF!=Response_2._Moderate,2, 0)","v":{"$error":"#REF!"}},{"$f":"IF('Step 2 EAM'!#REF!=Response_3._Severe, 3, 0)","v":{"$error":"#REF!"}},{"$error":"#REF!"},{"$error":"#REF!"}]
[null,{"$f":"IF('Step 2 EAM'!#REF!=Response_1._Unlikely, 1, 0)","v":{"$error":"#REF!"}},{"$f":"IF('Step 2 EAM'!#REF!=Response_2._Low_likelihood, 2, 0)","v":{"$error":"#REF!"}},{"$f":"IF('Step 2 EAM'!#REF!=Response_3._Likely, 3, 0)","v":{"$error":"#REF!"}},{"$error":"#REF!"},{"$f":"IF('Step 2 EAM'!#REF!=Response_1._Mild, 1, 0)","v":{"$error":"#REF!"}},{"$f":"IF('Step 2 EAM'!#REF!=Response_2._Moderate,2, 0)","v":{"$error":"#REF!"}},{"$f":"IF('Step 2 EAM'!#REF!=Response_3._Severe, 3, 0)","v":{"$error":"#REF!"}},{"$error":"#REF!"},{"$error":"#REF!"}]
[null,{"$f":"IF('Step 2 EAM'!#REF!=Response_1._Unlikely, 1, 0)","v":{"$error":"#REF!"}},{"$f":"IF('Step 2 EAM'!#REF!=Response_2._Low_likelihood, 2, 0)","v":{"$error":"#REF!"}},{"$f":"IF('Step 2 EAM'!#REF!=Response_3._Likely, 3, 0)","v":{"$error":"#REF!"}},{"$error":"#REF!"},{"$f":"IF('Step 2 EAM'!#REF!=Response_1._Mild, 1, 0)","v":{"$error":"#REF!"}},{"$f":"IF('Step 2 EAM'!#REF!=Response_2._Moderate,2, 0)","v":{"$error":"#REF!"}},{"$f":"IF('Step 2 EAM'!#REF!=Response_3._Severe, 3, 0)","v":{"$error":"#REF!"}},{"$error":"#REF!"},{"$error":"#REF!"}]
[null,{"$f":"IF('Step 2 EAM'!#REF!=Response_1._Unlikely, 1, 0)","v":{"$error":"#REF!"}},{"$f":"IF('Step 2 EAM'!#REF!=Response_2._Low_likelihood, 2, 0)","v":{"$error":"#REF!"}},{"$f":"IF('Step 2 EAM'!#REF!=Response_3._Likely, 3, 0)","v":{"$error":"#REF!"}},{"$error":"#REF!"},{"$f":"IF('Step 2 EAM'!#REF!=Response_1._Mild, 1, 0)","v":{"$error":"#REF!"}},{"$f":"IF('Step 2 EAM'!#REF!=Response_2._Moderate,2, 0)","v":{"$error":"#REF!"}},{"$f":"IF('Step 2 EAM'!#REF!=Response_3._Severe, 3, 0)","v":{"$error":"#REF!"}},{"$error":"#REF!"},{"$error":"#REF!"}]
[null,{"$f":"IF('Step 2 EAM'!#REF!=Response_1._Unlikely, 1, 0)","v":{"$error":"#REF!"}},{"$f":"IF('Step 2 EAM'!#REF!=Response_2._Low_likelihood, 2, 0)","v":{"$error":"#REF!"}},{"$f":"IF('Step 2 EAM'!#REF!=Response_3._Likely, 3, 0)","v":{"$error":"#REF!"}},{"$error":"#REF!"},{"$f":"IF('Step 2 EAM'!#REF!=Response_1._Mild, 1, 0)","v":{"$error":"#REF!"}},{"$f":"IF('Step 2 EAM'!#REF!=Response_2._Moderate,2, 0)","v":{"$error":"#REF!"}},{"$f":"IF('Step 2 EAM'!#REF!=Response_3._Severe, 3, 0)","v":{"$error":"#REF!"}},{"$error":"#REF!"},{"$error":"#REF!"}]
[null,{"$f":"IF('Step 2 EAM'!#REF!=Response_1._Unlikely, 1, 0)","v":{"$error":"#REF!"}},{"$f":"IF('Step 2 EAM'!#REF!=Response_2._Low_likelihood, 2, 0)","v":{"$error":"#REF!"}},{"$f":"IF('Step 2 EAM'!#REF!=Response_3._Likely, 3, 0)","v":{"$error":"#REF!"}},{"$error":"#REF!"},{"$f":"IF('Step 2 EAM'!#REF!=Response_1._Mild, 1, 0)","v":{"$error":"#REF!"}},{"$f":"IF('Step 2 EAM'!#REF!=Response_2._Moderate,2, 0)","v":{"$error":"#REF!"}},{"$f":"IF('Step 2 EAM'!#REF!=Response_3._Severe, 3, 0)","v":{"$error":"#REF!"}},{"$error":"#REF!"},{"$error":"#REF!"}]
[null,{"$f":"IF('Step 2 EAM'!#REF!=Response_1._Unlikely, 1, 0)","v":{"$error":"#REF!"}},{"$f":"IF('Step 2 EAM'!#REF!=Response_2._Low_likelihood, 2, 0)","v":{"$error":"#REF!"}},{"$f":"IF('Step 2 EAM'!#REF!=Response_3._Likely, 3, 0)","v":{"$error":"#REF!"}},{"$error":"#REF!"},{"$f":"IF('Step 2 EAM'!#REF!=Response_1._Mild, 1, 0)","v":{"$error":"#REF!"}},{"$f":"IF('Step 2 EAM'!#REF!=Response_2._Moderate,2, 0)","v":{"$error":"#REF!"}},{"$f":"IF('Step 2 EAM'!#REF!=Response_3._Severe, 3, 0)","v":{"$error":"#REF!"}},{"$error":"#REF!"},{"$error":"#REF!"}]
[null,{"$f":"IF('Step 2 EAM'!#REF!=Response_1._Unlikely, 1, 0)","v":{"$error":"#REF!"}},{"$f":"IF('Step 2 EAM'!#REF!=Response_2._Low_likelihood, 2, 0)","v":{"$error":"#REF!"}},{"$f":"IF('Step 2 EAM'!#REF!=Response_3._Likely, 3, 0)","v":{"$error":"#REF!"}},{"$error":"#REF!"},{"$f":"IF('Step 2 EAM'!#REF!=Response_1._Mild, 1, 0)","v":{"$error":"#REF!"}},{"$f":"IF('Step 2 EAM'!#REF!=Response_2._Moderate,2, 0)","v":{"$error":"#REF!"}},{"$f":"IF('Step 2 EAM'!#REF!=Response_3._Severe, 3, 0)","v":{"$error":"#REF!"}},{"$error":"#REF!"},{"$error":"#REF!"}]
[null,{"$f":"IF('Step 2 EAM'!#REF!=Response_1._Unlikely, 1, 0)","v":{"$error":"#REF!"}},{"$f":"IF('Step 2 EAM'!#REF!=Response_2._Low_likelihood, 2, 0)","v":{"$error":"#REF!"}},{"$f":"IF('Step 2 EAM'!#REF!=Response_3._Likely, 3, 0)","v":{"$error":"#REF!"}},{"$error":"#REF!"},{"$f":"IF('Step 2 EAM'!#REF!=Response_1._Mild, 1, 0)","v":{"$error":"#REF!"}},{"$f":"IF('Step 2 EAM'!#REF!=Response_2._Moderate,2, 0)","v":{"$error":"#REF!"}},{"$f":"IF('Step 2 EAM'!#REF!=Response_3._Severe, 3, 0)","v":{"$error":"#REF!"}},{"$error":"#REF!"},{"$error":"#REF!"}]
[null,{"$f":"IF('Step 2 EAM'!#REF!=Response_1._Unlikely, 1, 0)","v":{"$error":"#REF!"}},{"$f":"IF('Step 2 EAM'!#REF!=Response_2._Low_likelihood, 2, 0)","v":{"$error":"#REF!"}},{"$f":"IF('Step 2 EAM'!#REF!=Response_3._Likely, 3, 0)","v":{"$error":"#REF!"}},{"$error":"#REF!"},{"$f":"IF('Step 2 EAM'!#REF!=Response_1._Mild, 1, 0)","v":{"$error":"#REF!"}},{"$f":"IF('Step 2 EAM'!#REF!=Response_2._Moderate,2, 0)","v":{"$error":"#REF!"}},{"$f":"IF('Step 2 EAM'!#REF!=Response_3._Severe, 3, 0)","v":{"$error":"#REF!"}},{"$error":"#REF!"},{"$error":"#REF!"}]
[null,{"$f":"IF('Step 2 EAM'!#REF!=Response_1._Unlikely, 1, 0)","v":{"$error":"#REF!"}},{"$f":"IF('Step 2 EAM'!#REF!=Response_2._Low_likelihood, 2, 0)","v":{"$error":"#REF!"}},{"$f":"IF('Step 2 EAM'!#REF!=Response_3._Likely, 3, 0)","v":{"$error":"#REF!"}},{"$error":"#REF!"},{"$f":"IF('Step 2 EAM'!#REF!=Response_1._Mild, 1, 0)","v":{"$error":"#REF!"}},{"$f":"IF('Step 2 EAM'!#REF!=Response_2._Moderate,2, 0)","v":{"$error":"#REF!"}},{"$f":"IF('Step 2 EAM'!#REF!=Response_3._Severe, 3, 0)","v":{"$error":"#REF!"}},{"$error":"#REF!"},{"$error":"#REF!"}]
[null,{"$f":"IF('Step 2 EAM'!#REF!=Response_1._Unlikely, 1, 0)","v":{"$error":"#REF!"}},{"$f":"IF('Step 2 EAM'!#REF!=Response_2._Low_likelihood, 2, 0)","v":{"$error":"#REF!"}},{"$f":"IF('Step 2 EAM'!#REF!=Response_3._Likely, 3, 0)","v":{"$error":"#REF!"}},{"$error":"#REF!"},{"$f":"IF('Step 2 EAM'!#REF!=Response_1._Mild, 1, 0)","v":{"$error":"#REF!"}},{"$f":"IF('Step 2 EAM'!#REF!=Response_2._Moderate,2, 0)","v":{"$error":"#REF!"}},{"$f":"IF('Step 2 EAM'!#REF!=Response_3._Severe, 3, 0)","v":{"$error":"#REF!"}},{"$error":"#REF!"},{"$error":"#REF!"}]
[null,{"$f":"IF('Step 2 EAM'!#REF!=Response_1._Unlikely, 1, 0)","v":{"$error":"#REF!"}},{"$f":"IF('Step 2 EAM'!#REF!=Response_2._Low_likelihood, 2, 0)","v":{"$error":"#REF!"}},{"$f":"IF('Step 2 EAM'!#REF!=Response_3._Likely, 3, 0)","v":{"$error":"#REF!"}},{"$error":"#REF!"},{"$f":"IF('Step 2 EAM'!#REF!=Response_1._Mild, 1, 0)","v":{"$error":"#REF!"}},{"$f":"IF('Step 2 EAM'!#REF!=Response_2._Moderate,2, 0)","v":{"$error":"#REF!"}},{"$f":"IF('Step 2 EAM'!#REF!=Response_3._Severe, 3, 0)","v":{"$error":"#REF!"}},{"$error":"#REF!"},{"$error":"#REF!"}]
[null,{"$f":"IF('Step 2 EAM'!#REF!=Response_1._Unlikely, 1, 0)","v":{"$error":"#REF!"}},{"$f":"IF('Step 2 EAM'!#REF!=Response_2._Low_likelihood, 2, 0)","v":{"$error":"#REF!"}},{"$f":"IF('Step 2 EAM'!#REF!=Response_3._Likely, 3, 0)","v":{"$error":"#REF!"}},{"$error":"#REF!"},{"$f":"IF('Step 2 EAM'!#REF!=Response_1._Mild, 1, 0)","v":{"$error":"#REF!"}},{"$f":"IF('Step 2 EAM'!#REF!=Response_2._Moderate,2, 0)","v":{"$error":"#REF!"}},{"$f":"IF('Step 2 EAM'!#REF!=Response_3._Severe, 3, 0)","v":{"$error":"#REF!"}},{"$error":"#REF!"},{"$error":"#REF!"}]
[null,{"$f":"IF('Step 2 EAM'!#REF!=Response_1._Unlikely, 1, 0)","v":{"$error":"#REF!"}},{"$f":"IF('Step 2 EAM'!#REF!=Response_2._Low_likelihood, 2, 0)","v":{"$error":"#REF!"}},{"$f":"IF('Step 2 EAM'!#REF!=Response_3._Likely, 3, 0)","v":{"$error":"#REF!"}},{"$error":"#REF!"},{"$f":"IF('Step 2 EAM'!#REF!=Response_1._Mild, 1, 0)","v":{"$error":"#REF!"}},{"$f":"IF('Step 2 EAM'!#REF!=Response_2._Moderate,2, 0)","v":{"$error":"#REF!"}},{"$f":"IF('Step 2 EAM'!#REF!=Response_3._Severe, 3, 0)","v":{"$error":"#REF!"}},{"$error":"#REF!"},{"$error":"#REF!"}]
[null,{"$f":"IF('Step 2 EAM'!#REF!=Response_1._Unlikely, 1, 0)","v":{"$error":"#REF!"}},{"$f":"IF('Step 2 EAM'!#REF!=Response_2._Low_likelihood, 2, 0)","v":{"$error":"#REF!"}},{"$f":"IF('Step 2 EAM'!#REF!=Response_3._Likely, 3, 0)","v":{"$error":"#REF!"}},{"$error":"#REF!"},{"$f":"IF('Step 2 EAM'!#REF!=Response_1._Mild, 1, 0)","v":{"$error":"#REF!"}},{"$f":"IF('Step 2 EAM'!#REF!=Response_2._Moderate,2, 0)","v":{"$error":"#REF!"}},{"$f":"IF('Step 2 EAM'!#REF!=Response_3._Severe, 3, 0)","v":{"$error":"#REF!"}},{"$error":"#REF!"},{"$error":"#REF!"}]
[null,{"$f":"IF('Step 2 EAM'!#REF!=Response_1._Unlikely, 1, 0)","v":{"$error":"#REF!"}},{"$f":"IF('Step 2 EAM'!#REF!=Response_2._Low_likelihood, 2, 0)","v":{"$error":"#REF!"}},{"$f":"IF('Step 2 EAM'!#REF!=Response_3._Likely, 3, 0)","v":{"$error":"#REF!"}},{"$error":"#REF!"},{"$f":"IF('Step 2 EAM'!#REF!=Response_1._Mild, 1, 0)","v":{"$error":"#REF!"}},{"$f":"IF('Step 2 EAM'!#REF!=Response_2._Moderate,2, 0)","v":{"$error":"#REF!"}},{"$f":"IF('Step 2 EAM'!#REF!=Response_3._Severe, 3, 0)","v":{"$error":"#REF!"}},{"$error":"#REF!"},{"$error":"#REF!"}]
[null,{"$f":"IF('Step 2 EAM'!#REF!=Response_1._Unlikely, 1, 0)","v":{"$error":"#REF!"}},{"$f":"IF('Step 2 EAM'!#REF!=Response_2._Low_likelihood, 2, 0)","v":{"$error":"#REF!"}},{"$f":"IF('Step 2 EAM'!#REF!=Response_3._Likely, 3, 0)","v":{"$error":"#REF!"}},{"$error":"#REF!"},{"$f":"IF('Step 2 EAM'!#REF!=Response_1._Mild, 1, 0)","v":{"$error":"#REF!"}},{"$f":"IF('Step 2 EAM'!#REF!=Response_2._Moderate,2, 0)","v":{"$error":"#REF!"}},{"$f":"IF('Step 2 EAM'!#REF!=Response_3._Severe, 3, 0)","v":{"$error":"#REF!"}},{"$error":"#REF!"},{"$error":"#REF!"}]

{"sheet":"Profile Statements","index":17,"n_rows":68,"n_cols":22,"rows_kept":68,"cut":false,"hidden":true,"merged":[]}
["Profile Statement","Score","Category","Thresholds",null,null,null,null,null,null,null,null,null,null,null,null,null,null,null,null,null,"Mitigation Tips"]
[null,null,null,"High",0.75]
[null,null,null,"Medium",0.5]
["Note: If translating or editing the statements, only Column A needs to be changed. \nCells have 'defined names' and link to other sheets.",null,null,"Low",0.3]
["People living nearby, could be affected by negative mine action activities.",{"$f":"VLOOKUP(A5,'Response calculation'!A:B,2,FALSE)","v":0},{"$f":"IF(B5>$E$2,$D$2,IF(B5>$E$3,$D$3,IF(B5>$E$4,$D$4,\"Null\")))","v":"Null"},null,null,null,null,null,null,null,null,null,null,null,null,null,null,null,null,null,null,{"$f":"\"●   \"&_xlfn.TEXTJOIN(CHAR(10)&\"●   \",TRUE,F5:T5)","v":"●   "}]
["People with ready access to areas close to the mine action activities.",{"$f":"VLOOKUP(A6,'Response calculation'!A:B,2,FALSE)","v":0},"Null",null,null,null,null,null,null,null,null,null,null,null,null,null,null,null,null,null,null,"●   "]
["A general decline or early signs of decline in land quality and land productivity.",{"$f":"VLOOKUP(A7,'Response calculation'!A:B,2,FALSE)","v":0},"Null",null,null,null,null,null,null,null,null,null,null,null,null,null,null,null,null,null,null,"●   "]
["A decline, or potential for decline, in natural habitat due to increased urbanisation or agricultural changes in recent years.",{"$f":"VLOOKUP(A8,'Response calculation'!A:B,2,FALSE)","v":0},"Null",null,null,null,null,null,null,null,null,null,null,null,null,null,null,null,null,null,null,"●   "]
["Uncertain whether natural habitat has declined in recent years due land use changes.",{"$f":"VLOOKUP(A9,'Response calculation'!A:B,2,FALSE)","v":0},"Null"]
["Weakened or poor governance system, with a low capacity for environmental management or controls.",{"$f":"VLOOKUP(A10,'Response calculation'!A:B,2,FALSE)","v":0},"Null",null,null,null,null,null,null,null,null,null,null,null,null,null,null,null,null,null,null,"●   "]
["The predominant ecosystem in the area is potentially vulnerable to habitat and biodiversity loss. \nSeek local ecological advice. ",{"$f":"VLOOKUP(A11,'Response calculation'!A:B,2,FALSE)","v":0},"Null",null,null,null,null,null,null,null,null,null,null,null,null,null,null,null,null,null,null,"●   "]
["The secondary ecosystem in the area is potentially vulnerable to habitat and biodiversity loss. \nSeek local ecological advice. ",{"$f":"VLOOKUP(A12,'Response calculation'!A:B,2,FALSE)","v":0},"Null"]
["Protected / conservation areas, and legal / planning restrictions are likely to apply.\nConsult with authorities and seek local advice.",{"$f":"VLOOKUP(A13,'Response calculation'!A:B,2,FALSE)","v":0},"Null",null,null,null,null,null,null,null,null,null,null,null,null,null,null,null,null,null,null,{"$f":"\"●   \"&_xlfn.TEXTJOIN(CHAR(10)&\"●   \",TRUE,F13:T13)","v":"●   "}]
["Protected/conservation area status is not known. \nSeek local ecological advice. ",{"$f":"VLOOKUP(A14,'Response calculation'!A:B,2,FALSE)","v":0},"Null"]
["Nearby areas of high cultural significance, and special precautions may apply.",{"$f":"VLOOKUP(A15,'Response calculation'!A:B,2,FALSE)","v":0},"Null",null,null,null,null,null,null,null,null,null,null,null,null,null,null,null,null,null,null,{"$f":"\"●   \"&_xlfn.TEXTJOIN(CHAR(10)&\"●   \",TRUE,F15:T15)","v":"●   "}]
["No current details known on whether there are cultural assets nearby.\nSeek local advice.",{"$f":"VLOOKUP(A16,'Response calculation'!A:B,2,FALSE)","v":0},"Null"]
["Deforestation in the region over recent years, which could worsen the effects of climate change, soil erosion and biodiversity loss. ",{"$f":"VLOOKUP(A17,'Response calculation'!A:B,2,FALSE)","v":0},"Null",null,null,null,null,null,null,null,null,null,null,null,null,null,null,null,null,null,null,{"$f":"\"●   \"&_xlfn.TEXTJOIN(CHAR(10)&\"●   \",TRUE,F17:T17)","v":"●   "}]
["No current details known on deforestation in the region.\nSeek local advice.",{"$f":"VLOOKUP(A18,'Response calculation'!A:B,2,FALSE)","v":0},"Null"]
["Low regenerative capacity of the local environment. The effects of land and soil degradation may be more significant.",{"$f":"VLOOKUP(A19,'Response calculation'!A:B,2,FALSE)","v":0},"Null",null,null,null,null,null,null,null,null,null,null,null,null,null,null,null,null,null,null,{"$f":"\"●   \"&_xlfn.TEXTJOIN(CHAR(10)&\"●   \",TRUE,F19:T19)","v":"●   "}]
["Opportunities to introduce ecosystem-based adaptation or other initiatives.\nSeek local advice as early as possible and suitability of options.",{"$f":"VLOOKUP(A20,'Response calculation'!A:B,2,FALSE)","v":0},"Null"]
["Local water supply may be vulnerable to contamination.",{"$f":"VLOOKUP(A21,'Response calculation'!A:B,2,FALSE)","v":0},"Null",null,null,null,null,null,null,null,null,null,null,null,null,null,null,null,null,null,null,{"$f":"\"●   \"&_xlfn.TEXTJOIN(CHAR(10)&\"●   \",TRUE,F21:T21)","v":"●   "}]
["Nearby surface water features which may be vulnerable from mine action activities.",{"$f":"VLOOKUP(A22,'Response calculation'!A:B,2,FALSE)","v":0},{"$f":"IF(B22>$E$2,$D$2,IF(B22>$E$3,$D$3,IF(B22>$E$4,$D$4,\"Null\")))","v":"Null"}]
["There are local water scarcity and quality issues.\nIncorporate water conservation, together with standard pollution control measures.",{"$f":"VLOOKUP(A23,'Response calculation'!A:B,2,FALSE)","v":0},{"$f":"IF(B23>$E$2,$D$2,IF(B23>$E$3,$D$3,IF(B23>$E$4,$D$4,\"Null\")))","v":"Null"}]
["Limited regional capacity to manage solid waste, including hazardous waste.",{"$f":"VLOOKUP(A24,'Response calculation'!A:B,2,FALSE)","v":0},{"$f":"IF(B24>$E$2,$D$2,IF(B24>$E$3,$D$3,IF(B24>$E$4,$D$4,\"Null\")))","v":"Null"},null,null,null,null,null,null,null,null,null,null,null,null,null,null,null,null,null,null,"●   "]
["Soils vulnerable to compaction and waterlogging.",{"$f":"VLOOKUP(A25,'Response calculation'!A:B,2,FALSE)","v":0},"Null"]
["Existing bare soils vulnerable to erosion by wind, water run-off or flooding",{"$f":"VLOOKUP(A26,'Response calculation'!A:B,2,FALSE)","v":0},"Null"]
["Soils vulnerable to compaction, and groundwater may be close to the surface.",{"$f":"VLOOKUP(A27,'Response calculation'!A:B,2,FALSE)","v":0},"Null"]
["Area may have poorer slope stability, susceptible to erosion, and potentially prone to landslides and mudslides. A lack of vegetation will worsen the risk. ",{"$f":"VLOOKUP(A28,'Response calculation'!A:B,2,FALSE)","v":0},"Null"]
["Soils are at risk of erosion where vegetation is removed. Erosion leads to a loss of fertility and productivity, and more difficult to revegetate.",{"$f":"VLOOKUP(A29,'Response calculation'!A:B,2,FALSE)","v":0},"Null",null,null,null,null,null,null,null,null,null,null,null,null,null,null,null,null,null,null,"●   "]
["Area may be at risk from storm surges, flooding and/or coastal erosion",{"$f":"VLOOKUP(A30,'Response calculation'!A:B,2,FALSE)","v":0},"Null",null,null,null,null,null,null,null,null,null,null,null,null,null,null,null,null,null,null,"●   "]
["Area may be at risk of flooding, which could impact mine action activities and local people.",{"$f":"VLOOKUP(A31,'Response calculation'!A:B,2,FALSE)","v":0},"Null",null,null,null,null,null,null,null,null,null,null,null,null,null,null,null,null,null,null,"●   "]
["Existing pollution due to previous activities and land use could impact soil and water quality, future land use and safe access.",{"$f":"VLOOKUP(A32,'Response calculation'!A:B,2,FALSE)","v":0},"Null",null,null,null,null,null,null,null,null,null,null,null,null,null,null,null,null,null,null,"●   "]
["Local ecosystems adversely impacted by climate change.",{"$f":"VLOOKUP(A33,'Response calculation'!A:B,2,FALSE)","v":0},"Null",null,null,null,null,null,null,null,null,null,null,null,null,null,null,null,null,null,null,"●   "]
["Uncertain about how local ecosystems may be impacted by climate change.",{"$f":"VLOOKUP(A34,'Response calculation'!A:B,2,FALSE)","v":0},"Null"]
["Local livelihoods and assets adversely impacted by climate change.",{"$f":"VLOOKUP(A35,'Response calculation'!A:B,2,FALSE)","v":0},"Null",null,null,null,null,null,null,null,null,null,null,null,null,null,null,null,null,null,null,{"$f":"\"●   \"&_xlfn.TEXTJOIN(CHAR(10)&\"●   \",TRUE,F35:T35)","v":"●   "}]
["Uncertain about how local livelihoods and assets may be impacted by climate change.",{"$f":"VLOOKUP(A36,'Response calculation'!A:B,2,FALSE)","v":0},"Null"]
["The local community has noted overall changes in weather and seasonal patterns.",{"$f":"VLOOKUP(A37,'Response calculation'!A:B,2,FALSE)","v":0},"Null",null,null,null,null,null,null,null,null,null,null,null,null,null,null,null,null,null,null,"●   "]
["The local community experience of changes in weather and seasonal patterns is unknown.",{"$f":"VLOOKUP(A38,'Response calculation'!A:B,2,FALSE)","v":0},"Null"]
["An international border is nearby. Mine action activities could cause cross-boundary environmental issues. \nConsultation with local environmental actors required.",{"$f":"VLOOKUP(A39,'Response calculation'!A:B,2,FALSE)","v":0},"Null",null,null,null,null,null,null,null,null,null,null,null,null,null,null,null,null,null,null,{"$f":"\"●   \"&_xlfn.TEXTJOIN(CHAR(10)&\"●   \",TRUE,F39:T39)","v":"●   "}]
["Heightened exposure to climate-related risks and extreme weather events.\nIncorporation of climate-risks into mine action programming and adaptation planning.",{"$f":"VLOOKUP(A40,'Response calculation'!A:B,2,FALSE)","v":0},"Null"]
["The potential for heightened exposure to climate-related risks is unknown. \nCheck high-level climate risk profiles and seek advice.",{"$f":"VLOOKUP(A41,'Response calculation'!A:B,2,FALSE)","v":0},"Null"]
["The local community note wildlife and conservation issues in the area.",{"$f":"VLOOKUP(A42,'Response calculation'!A:B,2,FALSE)","v":0},"Null"]
["There is no current information on local wildlife or conservation issues. \nFurther enquiries should be carried out to check status.",{"$f":"VLOOKUP(A43,'Response calculation'!A:B,2,FALSE)","v":0},"Null"]
["There are records of endangered species living within or close to the area of concern.",{"$f":"VLOOKUP(A44,'Response calculation'!A:B,2,FALSE)","v":0},"Null"]
["The presence of protected or endangered species in the area is not known. \nSeek local ecological advice. ",{"$f":"VLOOKUP(A45,'Response calculation'!A:B,2,FALSE)","v":0},"Null"]
["There are known conservation or ecological activities in the area.\nThese may be relevant  to task areas, and collaboration opportunities possible. ",{"$f":"VLOOKUP(A46,'Response calculation'!A:B,2,FALSE)","v":0},"Null"]
["There is no current information on any local conservation activities in the area. \nFurther enquiries should be carried out to check status.",{"$f":"VLOOKUP(A47,'Response calculation'!A:B,2,FALSE)","v":0},"Null"]
["Invasive species may be present and measures required to avoid spreading.",{"$f":"VLOOKUP(A48,'Response calculation'!A:B,2,FALSE)","v":0},"Null"]
["No current information on invasive species.\nFurther enquiries should be carried out to check status.",{"$f":"VLOOKUP(A49,'Response calculation'!A:B,2,FALSE)","v":0},"Null"]
["Any vegetation removed will take time to re-establish.",{"$f":"VLOOKUP(A50,'Response calculation'!A:B,2,FALSE)","v":0},"Null"]
["Mature and/or established vegetation present.\nWhere vegetation cover to be removed, keep to a minimum and  prevent damage to retained areas. ",{"$f":"VLOOKUP(A51,'Response calculation'!A:B,2,FALSE)","v":0},"Null"]
["Local water scarcity and quality issues are uncertain or not known.\nIncorporate water conservation, together with standard pollution control measures as good practice.",{"$f":"VLOOKUP(A52,'Response calculation'!A:B,2,FALSE)","v":0},"Null"]
["Sandy or coarser soils which may allow pollution present, or arising from mine activities, to readily travel through soil and migrate to groundwater or nearby water bodies.",{"$f":"VLOOKUP(A53,'Response calculation'!A:B,2,FALSE)","v":0},"Null"]
["Shallow groundwater may be more vulnerable to pollution.",{"$f":"VLOOKUP(A54,'Response calculation'!A:B,2,FALSE)","v":0},"Null"]
["Groundwater may be less vulnerable to pollution.",{"$f":"VLOOKUP(A55,'Response calculation'!A:B,2,FALSE)","v":0},"Null"]
["Pollution may affect watercourses with lower flow rate, with less dilution of contaminants.",{"$f":"VLOOKUP(A56,'Response calculation'!A:B,2,FALSE)","v":0},"Null"]
["Increased risk of landscape fires.",{"$f":"VLOOKUP(A57,'Response calculation'!A:B,2,FALSE)","v":0},"Null"]
["The potential for landscape fires is unknown. \nCheck high-level climate risk profiles and seek local advice.",{"$f":"VLOOKUP(A58,'Response calculation'!A:B,2,FALSE)","v":0},"Null"]
["Annual temperature rises could impact shift patterns, and increase landscape fire risks in the future.",{"$f":"VLOOKUP(A59,'Response calculation'!A:B,2,FALSE)","v":0},{"$f":"IF(B59>$E$2,$D$2,IF(B59>$E$3,$D$3,IF(B59>$E$4,$D$4,\"Null\")))","v":"Null"}]
["The potential for temperature rises is unknown. \nCheck high-level climate risk profiles and seek local advice.",{"$f":"VLOOKUP(A60,'Response calculation'!A:B,2,FALSE)","v":0},"Null"]
["Control of water run-off from work areas.",{"$f":"VLOOKUP(A61,'Response calculation'!A:B,2,FALSE)","v":0},"Null"]
["Increases in annual rainfall may impact mine action programming, and seasonal flood risks.",{"$f":"VLOOKUP(A62,'Response calculation'!A:B,2,FALSE)","v":0},"Null"]
["Decreases in annual rainfall may impact mine action programming, and increase drought conditions.",{"$f":"VLOOKUP(A63,'Response calculation'!A:B,2,FALSE)","v":0},"Null"]
["Changes in annual rainfall not clear. \nSeek local information and expertise.",{"$f":"VLOOKUP(A64,'Response calculation'!A:B,2,FALSE)","v":0},"Null"]
["Changes in rainfall patterns may impact mine action programming",{"$f":"VLOOKUP(A65,'Response calculation'!A:B,2,FALSE)","v":0},"Null"]
["Landslides and mudslides risks.",{"$f":"VLOOKUP(A66,'Response calculation'!A:B,2,FALSE)","v":0},"Null"]
["Future land use has a potential to impact the environment following clearance.",{"$f":"VLOOKUP(A67,'Response calculation'!A:B,2,FALSE)","v":0},"Null"]
["Weak or unknown local coping strategies to deal with climate change and other environmental risks.",{"$f":"VLOOKUP(A68,'Response calculation'!A:B,2,FALSE)","v":0},{"$f":"IF(B68>$E$2,$D$2,IF(B68>$E$3,$D$3,IF(B68>$E$4,$D$4,\"Null\")))","v":"Null"}]